Workbook

Sheet nn - raw_data
A1: irány | B1: 0 | C1: 0 | D1: 0 | E1: 0 | F1: 0 | H1: súlyok | N1: 2. layer vektor | AD1: 2 layer súlyok
A2: rnd(1-100) | B2: A1 | C2: A2 | D2: A3 | E2: A4 | F2: A5 | H2: w1 | I2: w2 | J2: w3 | K2: w4 | L2: w5 | N2: v1 | O2: v2 | P2: v3 | Q2: v4 | R2: v5 | S2: v6 | T2: v7 | U2: v8 | V2: v9 | W2: v10 | X2: v11 | Y2: v12 | Z2: v13 | AA2: v14 | AB2: v15 | AG2: Y0 | AH2: Ybecslés | AI2: eltérés
A3: O1 | B3: 78 | C3: 50 | D3: 75 | E3: 79 | F3: 10 | H3: -0.34807476 | I3: -0.62657875 | J3: -1.1117262 | K3: -0.7010991 | L3: -1.123984 | N3: =$B$3*$H3+$C$3*$I3+$D$3*$J3+$E$3*$K3+$F$3*$L3 -> -208.4849027 | O3: =$B$4*$H3+$C$4*$I3+$D$4*$J3+$E$4*$K3+$F$4*$L3 -> -181.0644353 | P3: =$B$5*$H3+$C$5*$I3+$D$5*$J3+$E$5*$K3+$F$5*$L3 -> -184.496264 | Q3: =$B$6*$H3+$C$6*$I3+$D$6*$J3+$E$6*$K3+$F$6*$L3 -> -187.4943743 | R3: =$B$7*$H3+$C$7*$I3+$D$7*$J3+$E$7*$K3+$F$7*$L3 -> -255.1300476 | S3: =$B$8*$H3+$C$8*$I3+$D$8*$J3+$E$8*$K3+$F$8*$L3 -> -251.828106 | T3: =$B$9*$H3+$C$9*$I3+$D$9*$J3+$E$9*$K3+$F$9*$L3 -> -222.894361 | U3: =$B$10*$H3+$C$10*$I3+$D$10*$J3+$E$10*$K3+$F$10*$L3 -> -244.6825832 | V3: =$B$11*$H3+$C$11*$I3+$D$11*$J3+$E$11*$K3+$F$11*$L3 -> -245.2638199 | W3: =$B$12*$H3+$C$12*$I3+$D$12*$J3+$E$12*$K3+$F$12*$L3 -> -184.9257645 | X3: =$B$13*$H3+$C$13*$I3+$D$13*$J3+$E$13*$K3+$F$13*$L3 -> -208.9574949 | Y3: =$B$14*$H3+$C$14*$I3+$D$14*$J3+$E$14*$K3+$F$14*$L3 -> -236.2207555 | Z3: =$B$15*$H3+$C$15*$I3+$D$15*$J3+$E$15*$K3+$F$15*$L3 -> -237.4933729 | AA3: =$B$16*$H3+$C$16*$I3+$D$16*$J3+$E$16*$K3+$F$16*$L3 -> -196.1614965 | AB3: =$B$17*$H3+$C$17*$I3+$D$17*$J3+$E$17*$K3+$F$17*$L3 -> -204.5620252 | AD3: 0.0917700604 | AF3: O1 | AG3: 1000 | AH3: =SUM(N38:N52) -> 999.9998171 | AI3: =AG3-AH3 -> 0.0001829
A4: O2 | B4: 45 | C4: 50 | D4: 83 | E4: 50 | F4: 6 | H4: 0.67323506 | I4: 1.3195466 | J4: 0.4565783 | K4: 1.2959927 | L4: 0.8240509 | N4: =$B$3*$H4+$C$3*$I4+$D$3*$J4+$E$3*$K4+$F$3*$L4 -> 263.3569695 | O4: =$B$4*$H4+$C$4*$I4+$D$4*$J4+$E$4*$K4+$F$4*$L4 -> 203.912847 | P4: =$B$5*$H4+$C$5*$I4+$D$5*$J4+$E$5*$K4+$F$5*$L4 -> 260.6777197 | Q4: =$B$6*$H4+$C$6*$I4+$D$6*$J4+$E$6*$K4+$F$6*$L4 -> 248.2789445 | R4: =$B$7*$H4+$C$7*$I4+$D$7*$J4+$E$7*$K4+$F$7*$L4 -> 296.444744 | S4: =$B$8*$H4+$C$8*$I4+$D$8*$J4+$E$8*$K4+$F$8*$L4 -> 310.6432682 | T4: =$B$9*$H4+$C$9*$I4+$D$9*$J4+$E$9*$K4+$F$9*$L4 -> 256.2871274 | U4: =$B$10*$H4+$C$10*$I4+$D$10*$J4+$E$10*$K4+$F$10*$L4 -> 253.1658334 | V4: =$B$11*$H4+$C$11*$I4+$D$11*$J4+$E$11*$K4+$F$11*$L4 -> 255.7773525 | W4: =$B$12*$H4+$C$12*$I4+$D$12*$J4+$E$12*$K4+$F$12*$L4 -> 226.0923913 | X4: =$B$13*$H4+$C$13*$I4+$D$13*$J4+$E$13*$K4+$F$13*$L4 -> 212.202349 | Y4: =$B$14*$H4+$C$14*$I4+$D$14*$J4+$E$14*$K4+$F$14*$L4 -> 266.1239547 | Z4: =$B$15*$H4+$C$15*$I4+$D$15*$J4+$E$15*$K4+$F$15*$L4 -> 305.4885416 | AA4: =$B$16*$H4+$C$16*$I4+$D$16*$J4+$E$16*$K4+$F$16*$L4 -> 219.8093698 | AB4: =$B$17*$H4+$C$17*$I4+$D$17*$J4+$E$17*$K4+$F$17*$L4 -> 265.7400929 | AD4: 99.8758392 | AF4: O2 | AG4: 1000 | AH4: =SUM(O38:O52) -> 999.9998171 | AI4: =AG4-AH4 -> 0.0001829
A5: O3 | B5: 81 | C5: 60 | D5: 50 | E5: 74 | F5: 10 | H5: -0.5118735 | I5: -0.8792202 | J5: -0.84217864 | K5: -0.39850217 | L5: -0.68930477 | N5: =$B$3*$H5+$C$3*$I5+$D$3*$J5+$E$3*$K5+$F$3*$L5 -> -185.4252601 | O5: -160.9570817 | P5: -172.7061058 | Q5: -154.2845547 | R5: -206.9592234 | S5: -213.633857 | T5: -205.5267326 | U5: -195.5423935 | V5: -192.7668884 | W5: -181.4035996 | X5: -167.3028131 | Y5: -208.7524526 | Z5: -217.8674909 | AA5: -169.8459205 | AB5: -187.7536029 | AD5: 0.386602312 | AF5: O3 | AG5: 1000 | AH5: =SUM(P38:P52) -> 999.9998171 | AI5: 0.0001829
A6: O4 | B6: 40 | C6: 50 | D6: 32 | E6: 80 | F6: 45 | H6: 0.4388543 | I6: 1.0516086 | J6: 0.79006 | K6: 0.5435847 | L6: 0.8697462 | N6: 197.7062187 | O6: 170.3015657 | P6: 187.0694441 | Q6: 178.041877 | R6: 233.6834473 | S6: 240.5883072 | T6: 218.0464572 | U6: 208.1073242 | V6: 216.9176861 | W6: 193.6999082 | X6: 183.2265037 | Y6: 224.9691272 | Z6: 246.9193969 | AA6: 183.6716028 | AB6: 211.198919 | AD6: 99.9138184 | AF6: O4 | AG6: 1000 | AH6: =SUM(Q38:Q52) -> 999.9998171 | AI6: 0.0001829
A7: O5 | B7: 67 | C7: 50 | D7: 50 | E7: 72 | F7: 84 | H7: 1.0222083 | I7: 0.98291343 | J7: 0.7349655 | K7: 0.4385511 | L7: 0.73304623 | N7: 225.9763306 | O7: 182.4730139 | P7: 218.3051968 | Q7: 181.6240679 | R7: 247.5334651 | S7: =$B$8*$H7+$C$8*$I7+$D$8*$J7+$E$8*$K7+$F$8*$L7 -> 231.6435111 | T7: 257.0358625 | U7: 242.737725 | V7: 222.2723202 | W7: 235.0585512 | X7: 186.1739041 | Y7: 251.238785 | Z7: 262.8519113 | AA7: 196.2135229 | AB7: 220.932099 | AD7: 100.327393 | AF7: O5 | AG7: 1000 | AH7: =SUM(R38:R52) -> 999.9998171 | AI7: 0.0001829
A8: O6 | B8: 26 | C8: 83 | D8: 83 | E8: 94 | F8: 29 | H8: -0.33428255 | I8: -1.1127748 | J8: -0.7645097 | K8: -0.7779818 | L8: -1.1005969 | N8: -211.5175376 | O8: -179.6384312 | P8: -200.6454817 | Q8: -205.2397569 | R8: -264.725985 | S8: -269.5535591 | T8: -227.9078342 | U8: -227.0906754 | V8: -245.8534385 | W8: -200.2365243 | X8: -202.931 | Y8: -240.5520629 | Z8: -271.7488562 | AA8: -198.0946865 | AB8: -231.5794136 | AD8: 0.355253279 | AF8: O6 | AG8: 1000 | AH8: =SUM(S38:S52) -> 999.9998171 | AI8: 0.0001829
A9: O7 | B9: 97 | C9: 60 | D9: 70 | E9: 33 | F9: 45 | H9: -0.6542587 | I9: -1.2810434 | J9: -1.3637476 | K9: -0.5714164 | L9: -1.1500866 | N9: -274.0081802 | O9: -242.1562019 | P9: -251.8306183 | Q9: -231.3296502 | R9: -313.8241381 | S9: -323.5940322 | T9: -306.3986681 | U9: -295.6389505 | V9: -296.844895 | W9: -268.273661 | X9: -257.3176067 | Y9: -314.0481793 | Z9: -326.5864649 | AA9: -256.6718564 | AB9: -281.077514 | AD9: 0.17271857 | AF9: O7 | AG9: 1000 | AH9: =SUM(T38:T52) -> 999.9998171 | AI9: 0.0001829
A10: O8 | B10: 95 | C10: 14 | D10: 76 | E10: 63 | F10: 66 | H10: 0.35380954 | I10: 0.48944938 | J10: 0.3243966 | K10: -0.01381862 | L10: 0.3578636 | N10: 78.88632314 | O10: 68.7750667 | P10: =$B$5*$H10+$C$5*$I10+$D$5*$J10+$E$5*$K10+$F$5*$L10 -> 76.80142366 | Q10: 64.0039142 | R10: 93.46313994 | S10: 85.8273585 | T10: 102.0420977 | U10: 87.86676376 | V10: 87.55879214 | W10: 97.19659108 | X10: 71.91872806 | Y10: 98.91900356 | Z10: 108.1776104 | AA10: 75.62558244 | AB10: 88.42367232 | AD10: 99.8299103 | AF10: O8 | AG10: 1000 | AH10: =SUM(U38:U52) -> 999.9998171 | AI10: 0.0001829
A11: O9 | B11: 50 | C11: 40 | D11: 58 | E11: 53 | F11: 90 | H11: 0.6747899 | I11: 0.39248317 | J11: 1.1129216 | K11: 0.57900137 | L11: 0.5138381 | N11: 206.6063799 | O11: =$B$4*$H11+$C$4*$I11+$D$4*$J11+$E$4*$K11+$F$4*$L11 -> 174.3952939 | P11: 181.8375345 | Q11: 151.6720698 | R11: 205.3316608 | S11: 211.820567 | T11: 209.1378822 | U11: 224.5722474 | V11: 190.9207762 | W11: 170.7506772 | X11: 176.0947923 | Y11: 212.0734789 | Z11: 187.6527319 | AA11: 176.102134 | AB11: 168.9475817 | AD11: 99.5480118 | AF11: O9 | AG11: 1000 | AH11: =SUM(V38:V52) -> 999.9998171 | AI11: 0.0001829
A12: O10 | B12: 96 | C12: 66 | D12: 44 | E12: 12 | F12: 47 | H12: -0.5439309 | I12: -0.920327 | J12: -1.0767077 | K12: -0.9886117 | L12: -0.7320655 | N12: -254.617017 | O12: -213.6829576 | P12: -233.5913287 | Q12: -214.2601159 | R12: -268.9686497 | S12: -294.0554828 | T12: -248.9175899 | U12: -256.9866588 | V12: -244.7409867 | W12: -206.6045061 | X12: -218.9674451 | Y12: -260.0340401 | Z12: -261.9172857 | AA12: -219.8065338 | AB12: -234.9419687 | AD12: 0.0304981191 | AF12: O10 | AG12: 1000 | AH12: =SUM(W38:W52) -> 999.9998171 | AI12: 0.0001829
A13: O11 | B13: 37 | C13: 36 | D13: 74 | E13: 50 | F13: 50 | H13: 1.0870486 | I13: 0.83194304 | J13: 0.40750292 | K13: 0.5757278 | L13: 1.3477597 | N13: 215.909755 | O13: 161.2100296 | P13: 214.4241192 | Q13: 204.8265999 | R13: 289.4687706 | S13: 224.3407228 | T13: 263.5337049 | U13: 271.1100331 | V13: 263.0772674 | W13: 247.4484742 | X13: 196.5003387 | Y13: 259.6518768 | Z13: 290.5546206 | AA13: 194.2977744 | AB13: 229.7208368 | AD13: 100.11515 | AF13: O11 | AG13: 1000 | AH13: =SUM(X38:X52) -> 999.9998171 | AI13: 0.0001829
A14: O12 | B14: 79 | C14: 60 | D14: 75 | E14: 45 | F14: 50 | H14: 1.1123403 | I14: 1.3058811 | J14: 1.2481906 | K14: 0.5054165 | L14: 0.33492842 | N14: 288.9480811 | O14: 246.2295838 | P14: 271.6120655 | Q14: 205.2348651 | R14: 266.7543604 | S14: 298.1308741 | T14: 305.3737405 | U14: 272.7636647 | V14: 237.1779461 | W14: 269.6998415 | X14: 222.5516611 | Y14: 299.3322082 | Z14: 293.6758007 | AA14: 244.1753756 | AB14: 262.4005421 | AD14: 100.004707 | AF14: O12 | AG14: 1000 | AH14: =SUM(Y38:Y52) -> 999.9998171 | AI14: 0.0001829
A15: O13 | B15: 67 | C15: 96 | D15: 38 | E15: 44 | F15: 72 | H15: 0.74434924 | I15: 0.6107862 | J15: 0.4584178 | K15: 1.2205209 | L15: 0.6228953 | N15: 225.6299898 | O15: 166.84712 | P15: 216.40785 | Q15: 200.6546097 | R15: 243.5323091 | S15: 240.8899405 | T15: 209.2457725 | U15: 232.1078439 | V15: 208.9853271 | W15: 175.8621293 | X15: 175.6229523 | Y15: 215.9003025 | Z15: 224.4781319 | AA15: 178.1991933 | AB15: 197.4212645 | AD15: 100.192444 | AF15: O13 | AG15: 1000 | AH15: =SUM(Z38:Z52) -> 999.9998171 | AI15: 0.0001829
A16: O14 | B16: 50 | C16: 50 | D16: 71 | E16: 48 | F16: 31 | H16: 0.5634739 | I16: 1.2222264 | J16: 0.7524959 | K16: 1.0911889 | L16: 1.0702795 | N16: 258.4061948 | O16: 209.9059272 | P16: 248.0505385 | Q16: 243.1878343 | R16: 304.9579451 | S16: 312.1621344 | T16: 264.8370765 | U16: 267.2142262 | V16: 274.8656799 | W16: 231.2676597 | X16: 228.6068013 | Y16: 276.9026901 | Z16: 308.7537655 | AA16: 228.2679556 | AB16: 266.0369875 | AD16: 99.9657364 | AF16: O14 | AG16: 1000 | AH16: =SUM(AA38:AA52) -> 999.9998171 | AI16: 0.0001829
A17: O15 | B17: 50 | C17: 84 | D17: 46 | E17: 50 | F17: 43 | H17: 0.7270214 | I17: 0.36310083 | J17: 0.32027975 | K17: 1.2748524 | L17: 0.89117026 | N17: 208.5087342 | O17: 146.5438653 | P17: 199.9395509 | Q17: 199.5757032 | R17: 249.5271374 | S17: 221.3032077 | T17: 196.899499 | U17: 237.624644 | V17: 217.2238293 | W17: 165.0342492 | X17: 171.9732562 | Y17: 205.1685927 | Z17: 215.9965083 | AA17: 166.065167 | AB17: 183.6473494 | AD17: 100.226807 | AF17: O15 | AG17: 1000 | AH17: =SUM(AB38:AB52) -> 999.9998171 | AI17: 0.0001829
AG18: szum | AH18: szum | AI18: hiba
N19: Activation | AG19: =SUM(AG3:AG17) -> 15000 | AH19: =SUM(AH3:AH17) -> 14999.99726 | AI19: =SUMSQ(AI3:AI17) -> 5.017861501e-07
N20: =1/(1-EXP(-1*N3)) -> -2.858625121e-91 | O20: =1/(1-EXP(-1*O3)) -> -2.315873751e-79 | P20: -7.48670344e-81 | Q20: -3.734460357e-82 | R20: -1.579167331e-111 | S20: -4.289860519e-110 | T20: -1.578370523e-97 | U20: -5.441320391e-107 | V20: -3.042821014e-107 | W20: -4.872601934e-81 | X20: -1.782021764e-91 | Y20: -2.574123373e-103 | Z20: -7.210056239e-104 | AA20: -6.429016023e-86 | AB20: =1/(1-EXP(-1*AB3)) -> -1.444911504e-89 | AI20: hiba2
N21: =1/(1-EXP(-1*N4)) -> 1 | O21: 1 | P21: 1 | Q21: 1 | R21: 1 | S21: 1 | T21: 1 | U21: 1 | V21: 1 | W21: 1 | X21: 1 | Y21: 1 | Z21: 1 | AA21: 1 | AB21: 1 | AI21: =ABS(AG19-AH19) -> 0.002743499997
N22: =1/(1-EXP(-1*N5)) -> -2.95687333e-81 | O22: -1.250914357e-70 | P22: -9.878506018e-76 | Q22: -9.887107084e-68 | R22: -1.314471849e-90 | S22: -1.659566823e-93 | T22: -5.506481261e-90 | U22: -1.194036321e-85 | V22: -1.916037749e-84 | W22: -1.649748342e-79 | X22: -2.194378205e-73 | Y22: -2.187568849e-91 | Z22: -2.406306248e-95 | AA22: -1.725257667e-74 | AB22: -2.881683798e-82 | AI22: hiba3
N23: =1/(1-EXP(-1*N6)) -> 1 | O23: 1 | P23: 1 | Q23: 1 | R23: 1 | S23: 1 | T23: 1 | U23: 1 | V23: 1 | W23: 1 | X23: 1 | Y23: 1 | Z23: 1 | AA23: 1 | AB23: 1 | AI23: =AI19*AI21 -> 1.376650302e-09
N24: =1/(1-EXP(-1*N7)) -> 1 | O24: 1 | P24: 1 | Q24: 1 | R24: 1 | S24: 1 | T24: 1 | U24: 1 | V24: 1 | W24: 1 | X24: 1 | Y24: 1 | Z24: 1 | AA24: 1 | AB24: 1 | AG24: szórás | AH24: szórás
N25: =1/(1-EXP(-1*N8)) -> -1.377528505e-92 | O25: -9.638746765e-79 | P25: -7.257289656e-88 | Q25: -7.336790383e-90 | R25: -1.07390404e-115 | S25: -8.5975895e-118 | T25: -1.049265039e-99 | U25: -2.375596957e-99 | V25: -1.687362148e-107 | W25: -1.092401835e-87 | X25: -7.382212028e-89 | Y25: -3.385060619e-105 | Z25: -9.571307455e-119 | AA25: -9.30188056e-87 | AB25: -2.668938405e-101 | AG25: =STDEV(AG3:AG17) -> 0 | AH25: =STDEV(AH3:AH17) -> 2.353541138e-13
N26: =1/(1-EXP(-1*N9)) -> -9.994460198e-120 | O26: -6.806091074e-106 | P26: -4.279096672e-110 | Q26: -3.42617402e-101 | R26: -5.103974961e-137 | S26: -2.916738127e-141 | T26: -8.565430226e-134 | U26: -4.033064449e-129 | V26: -1.207536092e-129 | W26: -3.091928111e-117 | X26: -1.771671968e-112 | Y26: -4.079516352e-137 | Z26: -1.463189007e-142 | AA26: -3.379318342e-112 | AB26: -8.50328397e-123
N27: =1/(1-EXP(-1*N10)) -> 1 | O27: 1 | P27: 1 | Q27: 1 | R27: 1 | S27: 1 | T27: 1 | U27: 1 | V27: 1 | W27: 1 | X27: 1 | Y27: 1 | Z27: 1 | AA27: 1 | AB27: 1
N28: =1/(1-EXP(-1*N11)) -> 1 | O28: 1 | P28: 1 | Q28: 1 | R28: 1 | S28: 1 | T28: 1 | U28: 1 | V28: 1 | W28: 1 | X28: 1 | Y28: 1 | Z28: 1 | AA28: 1 | AB28: 1
N29: =1/(1-EXP(-1*N12)) -> -2.637755384e-111 | O29: -1.580049299e-93 | P29: -3.569233209e-102 | Q29: -8.871845552e-94 | R29: -1.543119752e-117 | S29: -1.964836633e-128 | T29: -7.87887586e-109 | U29: -2.466676296e-112 | V29: -5.132630267e-107 | W29: -1.874144464e-90 | X29: -8.010264866e-96 | Y29: -1.171254514e-113 | Z29: -1.781427308e-114 | AA29: -3.461268455e-96 | AB29: -9.24696952e-103
N30: =1/(1-EXP(-1*N13)) -> 1 | O30: 1 | P30: 1 | Q30: 1 | R30: 1 | S30: 1 | T30: 1 | U30: 1 | V30: 1 | W30: 1 | X30: 1 | Y30: 1 | Z30: 1 | AA30: 1 | AB30: 1
N31: =1/(1-EXP(-1*N14)) -> 1 | O31: 1 | P31: 1 | Q31: 1 | R31: 1 | S31: 1 | T31: 1 | U31: 1 | V31: 1 | W31: 1 | X31: 1 | Y31: 1 | Z31: 1 | AA31: 1 | AB31: 1
N32: =1/(1-EXP(-1*N15)) -> 1 | O32: 1 | P32: 1 | Q32: 1 | R32: 1 | S32: 1 | T32: 1 | U32: 1 | V32: 1 | W32: 1 | X32: 1 | Y32: 1 | Z32: 1 | AA32: 1 | AB32: 1
N33: =1/(1-EXP(-1*N16)) -> 1 | O33: 1 | P33: 1 | Q33: 1 | R33: 1 | S33: 1 | T33: 1 | U33: 1 | V33: 1 | W33: 1 | X33: 1 | Y33: 1 | Z33: 1 | AA33: 1 | AB33: 1
N34: =1/(1-EXP(-1*N17)) -> 1 | O34: 1 | P34: 1 | Q34: 1 | R34: 1 | S34: 1 | T34: 1 | U34: 1 | V34: 1 | W34: 1 | X34: 1 | Y34: 1 | Z34: 1 | AA34: 1 | AB34: 1
N37: Y0 - szorzatok
N38: =N20*$AD3 -> -2.623362001e-92 | O38: =O20*$AD3 -> -2.12527874e-80 | P38: =P20*$AD3 -> -6.870552269e-82 | Q38: -3.427116526e-83 | R38: -1.449202813e-112 | S38: -3.936807589e-111 | T38: -1.448471582e-98 | U38: -4.993503009e-108 | V38: -2.792398683e-108 | W38: -4.471589738e-82 | X38: -1.63536245e-92 | Y38: -2.362274574e-104 | Z38: -6.616672965e-105 | AA38: -5.899911888e-87 | AB38: =AB20*$AD3 -> -1.32599616e-90
N39: =N21*$AD4 -> 99.8758392 | O39: 99.8758392 | P39: 99.8758392 | Q39: 99.8758392 | R39: 99.8758392 | S39: 99.8758392 | T39: 99.8758392 | U39: 99.8758392 | V39: 99.8758392 | W39: 99.8758392 | X39: 99.8758392 | Y39: 99.8758392 | Z39: 99.8758392 | AA39: 99.8758392 | AB39: 99.8758392
N40: =N22*$AD5 -> -1.143134066e-81 | O40: -4.836063826e-71 | P40: -3.819053266e-76 | Q40: -3.822378457e-68 | R40: -5.08177856e-91 | S40: -6.415923708e-94 | T40: -2.128818386e-90 | U40: -4.616172025e-86 | V40: -7.407446238e-85 | W40: -6.377965234e-80 | X40: -8.483516875e-74 | Y40: -8.457191746e-92 | Z40: -9.302835587e-96 | AA40: -6.669886029e-75 | AB40: -1.114065619e-82
N41: =N23*$AD6 -> 99.9138184 | O41: 99.9138184 | P41: 99.9138184 | Q41: 99.9138184 | R41: 99.9138184 | S41: 99.9138184 | T41: 99.9138184 | U41: 99.9138184 | V41: 99.9138184 | W41: 99.9138184 | X41: 99.9138184 | Y41: 99.9138184 | Z41: 99.9138184 | AA41: 99.9138184 | AB41: 99.9138184
N42: =N24*$AD7 -> 100.327393 | O42: 100.327393 | P42: =P24*$AD7 -> 100.327393 | Q42: 100.327393 | R42: 100.327393 | S42: 100.327393 | T42: 100.327393 | U42: 100.327393 | V42: 100.327393 | W42: 100.327393 | X42: 100.327393 | Y42: 100.327393 | Z42: 100.327393 | AA42: 100.327393 | AB42: 100.327393
N43: =N25*$AD8 -> -4.893715185e-93 | O43: -3.424196394e-79 | P43: -2.578175947e-88 | Q43: -2.606418841e-90 | R43: -3.815079317e-116 | S43: -3.054321861e-118 | T43: -3.727548457e-100 | U43: -8.439386087e-100 | V43: -5.994409359e-108 | W43: -3.880793339e-88 | X43: -2.622555029e-89 | Y43: -1.202553885e-105 | Z43: -3.400238358e-119 | AA43: -3.30452357e-87 | AB43: -9.4814912e-102
N44: =N26*$AD9 -> -1.726228873e-120 | O44: -1.175538318e-106 | P44: -7.390794581e-111 | Q44: -5.917638772e-102 | R44: -8.815512565e-138 | S44: -5.037748384e-142 | T44: -1.47940886e-134 | U44: -6.965851244e-130 | V44: -2.085639071e-130 | W44: -5.340334018e-118 | X44: -3.060006488e-113 | Y44: -7.046082306e-138 | Z44: -2.527199129e-143 | AA44: -5.836710317e-113 | AB44: -1.468675048e-123
N45: =N27*$AD10 -> 99.8299103 | O45: 99.8299103 | P45: 99.8299103 | Q45: 99.8299103 | R45: 99.8299103 | S45: 99.8299103 | T45: 99.8299103 | U45: 99.8299103 | V45: 99.8299103 | W45: 99.8299103 | X45: 99.8299103 | Y45: 99.8299103 | Z45: 99.8299103 | AA45: 99.8299103 | AB45: 99.8299103
N46: =N28*$AD11 -> 99.5480118 | O46: 99.5480118 | P46: 99.5480118 | Q46: 99.5480118 | R46: 99.5480118 | S46: 99.5480118 | T46: 99.5480118 | U46: 99.5480118 | V46: 99.5480118 | W46: 99.5480118 | X46: 99.5480118 | Y46: 99.5480118 | Z46: 99.5480118 | AA46: 99.5480118 | AB46: 99.5480118
N47: =N29*$AD12 -> -8.044657787e-113 | O47: -4.81885317e-95 | P47: -1.088548995e-103 | Q47: -2.705746023e-95 | R47: -4.706224999e-119 | S47: -5.992382163e-130 | T47: -2.402908944e-110 | U47: -7.522898746e-114 | V47: -1.565355692e-108 | W47: -5.715788108e-92 | X47: -2.442980119e-97 | Y47: -3.572105966e-115 | Z47: -5.43301822e-116 | AA47: -1.055621776e-97 | AB47: -2.820151777e-104
N48: =N30*$AD13 -> 100.11515 | O48: 100.11515 | P48: 100.11515 | Q48: 100.11515 | R48: 100.11515 | S48: 100.11515 | T48: 100.11515 | U48: 100.11515 | V48: 100.11515 | W48: 100.11515 | X48: 100.11515 | Y48: 100.11515 | Z48: 100.11515 | AA48: 100.11515 | AB48: 100.11515
N49: =N31*$AD14 -> 100.004707 | O49: 100.004707 | P49: 100.004707 | Q49: 100.004707 | R49: 100.004707 | S49: 100.004707 | T49: 100.004707 | U49: 100.004707 | V49: 100.004707 | W49: 100.004707 | X49: 100.004707 | Y49: 100.004707 | Z49: 100.004707 | AA49: 100.004707 | AB49: 100.004707
N50: =N32*$AD15 -> 100.192444 | O50: 100.192444 | P50: 100.192444 | Q50: 100.192444 | R50: 100.192444 | S50: 100.192444 | T50: 100.192444 | U50: 100.192444 | V50: 100.192444 | W50: 100.192444 | X50: 100.192444 | Y50: 100.192444 | Z50: 100.192444 | AA50: 100.192444 | AB50: 100.192444
N51: =N33*$AD16 -> 99.9657364 | O51: 99.9657364 | P51: 99.9657364 | Q51: 99.9657364 | R51: 99.9657364 | S51: 99.9657364 | T51: 99.9657364 | U51: 99.9657364 | V51: 99.9657364 | W51: 99.9657364 | X51: 99.9657364 | Y51: 99.9657364 | Z51: 99.9657364 | AA51: 99.9657364 | AB51: 99.9657364
N52: =N34*$AD17 -> 100.226807 | O52: 100.226807 | P52: 100.226807 | Q52: 100.226807 | R52: 100.226807 | S52: 100.226807 | T52: 100.226807 | U52: 100.226807 | V52: 100.226807 | W52: 100.226807 | X52: 100.226807 | Y52: 100.226807 | Z52: 100.226807 | AA52: 100.226807 | AB52: 100.226807

Sheet nn - ranked_Data
A1: irány | B1: 0 | C1: 0 | D1: 0 | E1: 0 | F1: 0 | P1: súlyok | W1: 2. layer vektor | AN1: 2 layer súlyok
B2: 1 | C2: 1 | D2: 1 | E2: 1 | F2: 1
A3: rnd(1-100) | B3: A1 | C3: A2 | D3: A3 | E3: A4 | F3: A5 | H3: rank = 0 | I3: =B3 -> A1 | J3: A2 | K3: A3 | L3: A4 | M3: A5 | P3: w1 | Q3: w2 | R3: w3 | S3: w4 | T3: w5 | W3: v1 | X3: v2 | Y3: v3 | Z3: v4 | AA3: v5 | AB3: v6 | AC3: v7 | AD3: v8 | AE3: v9 | AF3: v10 | AG3: v11 | AH3: v12 | AI3: v13 | AJ3: v14 | AK3: v15 | AN3: w6 | AQ3: Y0 | AR3: Ybecslés | AS3: eltérés
A4: O1 | B4: 78 | C4: 50 | D4: 75 | E4: 79 | F4: 10 | H4: =A4 -> O1 | I4: =RANK(B4,B$4:B$18,B$1) -> 6 | J4: =RANK(C4,C$4:C$18,C$1) -> 8 | K4: 4 | L4: 3 | M4: 13 | O4: 1 | P4: -0.9493332 | Q4: -1.3737081 | R4: -0.898612 | S4: -1.0193993 | T4: -0.32695976 | V4: 1 | W4: =$I$4*$P4+$J$4*$Q4+$K$4*$R4+$L$4*$S4+$M$4*$T4 -> -27.58878678 | X4: =$I$5*$P4+$J$5*$Q4+$K$5*$R4+$L$5*$S4+$M$5*$T4 -> -36.339866 | Y4: =$I$6*$P4+$J$6*$Q4+$K$6*$R4+$L$6*$S4+$M$6*$T4 -> -27.98006738 | Z4: =$I$7*$P4+$J$7*$Q4+$K$7*$R4+$L$7*$S4+$M$7*$T4 -> -41.46465308 | AA4: =$I$8*$P4+$J$8*$Q4+$K$8*$R4+$L$8*$S4+$M$8*$T4 -> -32.37203322 | AB4: =$I$9*$P4+$J$9*$Q4+$K$9*$R4+$L$9*$S4+$M$9*$T4 -> -24.20265072 | AC4: =$I$10*$P4+$J$10*$Q4+$K$10*$R4+$L$10*$S4+$M$10*$T4 -> -31.89403798 | AD4: =$I$11*$P4+$J$11*$Q4+$K$11*$R4+$L$11*$S4+$M$11*$T4 -> -33.57369194 | AE4: =$I$12*$P4+$J$12*$Q4+$K$12*$R4+$L$12*$S4+$M$12*$T4 -> -41.95246696 | AF4: =$I$13*$P4+$J$13*$Q4+$K$13*$R4+$L$13*$S4+$M$13*$T4 -> -36.65516262 | AG4: =$I$14*$P4+$J$14*$Q4+$K$14*$R4+$L$14*$S4+$M$14*$T4 -> -47.7042434 | AH4: =$I$15*$P4+$J$15*$Q4+$K$15*$R4+$L$15*$S4+$M$15*$T4 -> -29.0772449 | AI4: =$I$16*$P4+$J$16*$Q4+$K$16*$R4+$L$16*$S4+$M$16*$T4 -> -34.83267868 | AJ4: =$I$14*$P4+$J$14*$Q4+$K$14*$R4+$L$14*$S4+$M$14*$T4 -> -47.7042434 | AK4: =$I$18*$P4+$J$18*$Q4+$K$18*$R4+$L$18*$S4+$M$18*$T4 -> -33.499551 | AM4: 1 | AN4: -0.034238342 | AP4: O1 | AQ4: 1000 | AR4: =SUM(W14:W16) -> 999.99997 | AS4: =AQ4-AR4 -> 2.999999492e-05
A5: O2 | B5: 45 | C5: 50 | D5: 83 | E5: 50 | F5: 6 | H5: =A5 -> O2 | I5: =RANK(B5,B$4:B$18,B$1) -> 12 | J5: 8 | K5: 1 | L5: 8 | M5: 15 | O5: 2 | P5: 1.6683395 | Q5: 1.7050103 | R5: 0.79829234 | S5: 0.6017856 | T5: 0.46716586 | V5: 2 | W5: =$I$4*$P5+$J$4*$Q5+$K$4*$R5+$L$4*$S5+$M$4*$T5 -> 34.72180174 | X5: =$I$5*$P5+$J$5*$Q5+$K$5*$R5+$L$5*$S5+$M$5*$T5 -> 46.28022144 | Y5: =$I$6*$P5+$J$6*$Q5+$K$6*$R5+$L$6*$S5+$M$6*$T5 -> 31.66163148 | Z5: =$I$7*$P5+$J$7*$Q5+$K$7*$R5+$L$7*$S5+$M$7*$T5 -> 52.24377908 | AA5: =$I$8*$P5+$J$8*$Q5+$K$8*$R5+$L$8*$S5+$M$8*$T5 -> 37.24464202 | AB5: =$I$9*$P5+$J$9*$Q5+$K$9*$R5+$L$9*$S5+$M$9*$T5 -> 37.14619166 | AC5: =$I$10*$P5+$J$10*$Q5+$K$10*$R5+$L$10*$S5+$M$10*$T5 -> 28.742055 | AD5: =$I$11*$P5+$J$11*$Q5+$K$11*$R5+$L$11*$S5+$M$11*$T5 -> 38.45442706 | AE5: =$I$12*$P5+$J$12*$Q5+$K$12*$R5+$L$12*$S5+$M$12*$T5 -> 49.04448552 | AF5: =$I$13*$P5+$J$13*$Q5+$K$13*$R5+$L$13*$S5+$M$13*$T5 -> 32.83146564 | AG5: =$I$14*$P5+$J$14*$Q5+$K$14*$R5+$L$14*$S5+$M$14*$T5 -> 59.16676534 | AH5: =$I$15*$P5+$J$15*$Q5+$K$15*$R5+$L$15*$S5+$M$15*$T5 -> 29.61717486 | AI5: =$I$16*$P5+$J$16*$Q5+$K$16*$R5+$L$16*$S5+$M$16*$T5 -> 33.78418994 | AJ5: =$I$14*$P5+$J$14*$Q5+$K$14*$R5+$L$14*$S5+$M$14*$T5 -> 59.16676534 | AK5: =$I$18*$P5+$J$18*$Q5+$K$18*$R5+$L$18*$S5+$M$18*$T5 -> 37.49052758 | AM5: 2 | AN5: 500.23312 | AP5: O2 | AQ5: 1000 | AR5: =SUM(X14:X16) -> 999.99997 | AS5: =AQ5-AR5 -> 3.000000004e-05
A6: O3 | B6: 81 | C6: 60 | D6: 50 | E6: 74 | F6: 10 | H6: O3 | I6: 4 | J6: 5 | K6: 10 | L6: 4 | M6: 13 | O6: 3 | P6: 0.3178926 | Q6: 0.8728195 | R6: 0.954786 | S6: 1.485235 | T6: 1.1648885 | V6: 3 | W6: =$I$4*$P6+$J$4*$Q6+$K$4*$R6+$L$4*$S6+$M$4*$T6 -> 32.3083111 | X6: =$I$5*$P6+$J$5*$Q6+$K$5*$R6+$L$5*$S6+$M$5*$T6 -> 41.1072607 | Y6: =$I$6*$P6+$J$6*$Q6+$K$6*$R6+$L$6*$S6+$M$6*$T6 -> 36.2680184 | Z6: 37.7265278 | AA6: =$I$8*$P6+$J$8*$Q6+$K$8*$R6+$L$8*$S6+$M$8*$T6 -> 28.5116162 | AB6: 23.8055305 | AC6: 42.4326761 | AD6: 30.4812923 | AE6: 34.3622944 | AF6: 46.9720257 | AG6: 40.1050079 | AH6: 33.419967 | AI6: 39.2677922 | AJ6: 40.1050079 | AK6: 39.5948694 | AM6: 3 | AN6: 499.76685 | AP6: O3 | AQ6: 1000 | AR6: =SUM(Y14:Y16) -> 999.99997 | AS6: 2.999999106e-05
A7: O4 | B7: 40 | C7: 50 | D7: 32 | E7: 80 | F7: 45 | H7: O4 | I7: 13 | J7: 8 | K7: 15 | L7: 2 | M7: 8 | AP7: O4 | AQ7: 1000 | AR7: =SUM(Z14:Z16) -> 999.99997 | AS7: 3.000000004e-05
A8: O5 | B8: 67 | C8: 50 | D8: 50 | E8: 72 | F8: 84 | H8: O5 | I8: 7 | J8: 8 | K8: 10 | L8: 5 | M8: 2 | W8: Activation | AP8: O5 | AQ8: 1000 | AR8: =SUM(AA14:AA16) -> 999.99997 | AS8: 2.999979279e-05
A9: O6 | B9: 26 | C9: 83 | D9: 83 | E9: 94 | F9: 29 | H9: O6 | I9: 15 | J9: 3 | K9: 1 | L9: =RANK(E9,E$4:E$18,E$1) -> 1 | M9: 12 | W9: =1/(1-EXP(-1*W4)) -> -1.043138895e-12 | X9: -1.651188758e-16 | Y9: -7.053604967e-13 | Z9: -9.820417992e-19 | AA9: -8.72980624e-15 | AB9: -3.082636702e-11 | AC9: -1.407976155e-14 | AD9: -2.625009342e-15 | AE9: -6.029413889e-19 | AF9: -1.204661805e-16 | AG9: -1.915624258e-21 | AH9: -2.354577507e-13 | AI9: -7.453493196e-16 | AJ9: -1.915624258e-21 | AK9: -2.827026337e-15 | AM9: azonos a mintázat | AP9: O6 | AQ9: 1000 | AR9: =SUM(AB14:AB16) -> 999.99997 | AS9: 2.997708202e-05
A10: O7 | B10: 97 | C10: 60 | D10: 70 | E10: 33 | F10: 45 | H10: O7 | I10: 1 | J10: 5 | K10: 8 | L10: =RANK(E10,E$4:E$18,E$1) -> 14 | M10: 8 | W10: =1/(1-EXP(-1*W5)) -> 1 | X10: 1 | Y10: 1 | Z10: 1 | AA10: 1 | AB10: 1 | AC10: 1 | AD10: 1 | AE10: 1 | AF10: 1 | AG10: 1 | AH10: 1 | AI10: 1 | AJ10: 1 | AK10: 1 | AM10: tehát | AP10: O7 | AQ10: 1000 | AR10: =SUM(AC14:AC16) -> 999.99997 | AS10: 2.999983542e-05
A11: O8 | B11: 95 | C11: 14 | D11: 76 | E11: 63 | F11: 66 | H11: O8 | I11: 3 | J11: 15 | K11: 3 | L11: 6 | M11: 4 | W11: =1/(1-EXP(-1*W6)) -> 1 | X11: 1 | Y11: 1 | Z11: 1 | AA11: 1 | AB11: 1 | AC11: 1 | AD11: 1 | AE11: 1 | AF11: 1 | AG11: 1 | AH11: 1 | AI11: 1 | AJ11: 1 | AK11: 1 | AM11: nincs gravitáció!!! | AP11: O8 | AQ11: 1000 | AR11: =SUM(AD14:AD16) -> 999.99997 | AS11: 2.999997116e-05
A12: O9 | B12: 50 | C12: 40 | D12: 58 | E12: 53 | F12: 90 | H12: O9 | I12: 9 | J12: 13 | K12: 9 | L12: 7 | M12: 1 | AP12: O9 | AQ12: 1000 | AR12: =SUM(AE14:AE16) -> 999.99997 | AS12: 2.999999936e-05
A13: O10 | B13: 96 | C13: 66 | D13: 44 | E13: 12 | F13: 47 | H13: O10 | I13: 2 | J13: 4 | K13: 13 | L13: 15 | M13: 7 | W13: Y0 - szorzatok | AP13: O10 | AQ13: 1000 | AR13: =SUM(AF14:AF16) -> 999.99997 | AS13: 2.99999972e-05
A14: O11 | B14: 37 | C14: 36 | D14: 74 | E14: 50 | F14: 50 | H14: O11 | I14: 14 | J14: 14 | K14: 6 | L14: 8 | M14: 5 | W14: =W9*$AN4 -> 3.571534624e-14 | X14: 5.65339654e-18 | Y14: 2.415037392e-14 | Z14: 3.362348298e-20 | AA14: 2.988940916e-16 | AB14: 1.055443697e-12 | AC14: 4.820676911e-16 | AD14: 8.987596761e-17 | AE14: 2.064371348e-20 | AF14: 4.124562288e-18 | AG14: 6.558779849e-23 | AH14: 8.061682996e-15 | AI14: 2.551952491e-17 | AJ14: 6.558779849e-23 | AK14: 9.679269457e-17 | AM14: =STDEV(W14:AK14) -> 2.714517079e-13 | AP14: O11 | AQ14: 1000 | AR14: =SUM(AG14:AG16) -> 999.99997 | AS14: 3.000000004e-05
A15: O12 | B15: 79 | C15: 60 | D15: 75 | E15: 45 | F15: 50 | H15: O12 | I15: 5 | J15: 5 | K15: 4 | L15: 12 | M15: 5 | W15: =W10*$AN5 -> 500.23312 | X15: 500.23312 | Y15: 500.23312 | Z15: 500.23312 | AA15: 500.23312 | AB15: 500.23312 | AC15: 500.23312 | AD15: 500.23312 | AE15: 500.23312 | AF15: 500.23312 | AG15: 500.23312 | AH15: 500.23312 | AI15: 500.23312 | AJ15: 500.23312 | AK15: 500.23312 | AM15: =STDEV(W15:AK15) -> 4.4601853e-11 | AP15: O12 | AQ15: 1000 | AR15: =SUM(AH14:AH16) -> 999.99997 | AS15: 2.999992989e-05
A16: O13 | B16: 67 | C16: 96 | D16: 38 | E16: 44 | F16: 72 | H16: O13 | I16: 7 | J16: 1 | K16: 14 | L16: 13 | M16: 3 | W16: =W11*$AN6 -> 499.76685 | X16: 499.76685 | Y16: 499.76685 | Z16: 499.76685 | AA16: 499.76685 | AB16: 499.76685 | AC16: 499.76685 | AD16: 499.76685 | AE16: 499.76685 | AF16: 499.76685 | AG16: 499.76685 | AH16: 499.76685 | AI16: 499.76685 | AJ16: 499.76685 | AK16: 499.76685 | AM16: 5.912898335e-09 | AP16: O13 | AQ16: 1000 | AR16: =SUM(AI14:AI16) -> 999.99997 | AS16: 2.99999989e-05
A17: O14 | B17: 50 | C17: 50 | D17: 71 | E17: 48 | F17: 31 | H17: O14 | I17: 9 | J17: 8 | K17: 7 | L17: 11 | M17: 11 | AP17: O14 | AQ17: 1000 | AR17: =SUM(AJ14:AJ16) -> 999.99997 | AS17: 3.000000004e-05
A18: O15 | B18: 50 | C18: 84 | D18: 46 | E18: 50 | F18: 43 | H18: O15 | I18: 9 | J18: 2 | K18: 12 | L18: 8 | M18: 10 | AP18: O15 | AQ18: 1000 | AR18: =SUM(AK14:AK16) -> 999.99997 | AS18: 3.000000004e-05
AQ19: szum | AR19: szum | AS19: hiba
AQ20: =SUM(AQ4:AQ18) -> 15000 | AR20: =SUM(AR4:AR18) -> 14999.99955 | AS20: =SUMSQ(AS4:AS18) -> 1.34985961e-08
AS21: hiba2
AS22: =ABS(AQ20-AR20) -> 0.000449976591
AS23: hiba3
AS24: =AS20*AS22 -> 6.074052256e-12
AQ25: szórás | AR25: szórás
H26: rank = 1 | I26: A1 | J26: A2 | K26: A3 | L26: A4 | M26: A5 | W26: 2. layer vektor | AQ26: =STDEV(AQ4:AQ18) -> 0 | AR26: =STDEV(AR4:AR18) -> 5.908731182e-09
H27: O1 | I27: =RANK(B4,B$4:B$18,B$2) -> 10 | J27: =RANK(C4,C$4:C$18,C$2) -> 4 | K27: 11 | L27: 13 | M27: 2
H28: O2 | I28: =RANK(B5,B$4:B$18,B$2) -> 4 | J28: 4 | K28: 14 | L28: 6 | M28: 1 | W28: v1 | X28: v2 | Y28: v3 | Z28: v4 | AA28: v5 | AB28: v6 | AC28: v7 | AD28: v8 | AE28: v9 | AF28: v10 | AG28: v11 | AH28: v12 | AI28: v13 | AJ28: v14 | AK28: v15 | AQ28: Y0 | AR28: Ybecslés | AS28: eltérés
H29: O3 | I29: 12 | J29: 9 | K29: 5 | L29: 12 | M29: 2 | W29: =$I$27*$P4+$J$27*$Q4+$K$27*$R4+$L$27*$S4+$M$27*$T4 -> -38.77900682 | X29: =$I$28*$P4+$J$28*$Q4+$K$28*$R4+$L$28*$S4+$M$28*$T4 -> -28.31608876 | Y29: =$I$29*$P4+$J$29*$Q4+$K$29*$R4+$L$29*$S4+$M$29*$T4 -> -41.13514242 | Z29: =$I$30*$P4+$J$30*$Q4+$K$30*$R4+$L$30*$S4+$M$30*$T4 -> -25.80175252 | AA29: =$I$31*$P4+$J$31*$Q4+$K$31*$R4+$L$31*$S4+$M$31*$T4 -> -33.37338694 | AB29: =$I$32*$P4+$J$32*$Q4+$K$32*$R4+$L$32*$S4+$M$32*$T4 -> -47.98693504 | AC29: =$I$33*$P4+$J$33*$Q4+$K$33*$R4+$L$33*$S4+$M$33*$T4 -> -38.11978382 | AD29: =$I$34*$P4+$J$34*$Q4+$K$34*$R4+$L$34*$S4+$M$34*$T4 -> -39.51450582 | AE29: =$I$35*$P4+$J$35*$Q4+$K$35*$R4+$L$35*$S4+$M$35*$T4 -> -29.2370644 | AF29: =$I$36*$P4+$J$36*$Q4+$K$36*$R4+$L$36*$S4+$M$36*$T4 -> -36.43303514 | AG29: =$I$37*$P4+$J$37*$Q4+$K$37*$R4+$L$37*$S4+$M$37*$T4 -> -23.018196 | AH29: =$I$38*$P4+$J$38*$Q4+$K$38*$R4+$L$38*$S4+$M$38*$T4 -> -40.0379649 | AI29: =$I$39*$P4+$J$39*$Q4+$K$39*$R4+$L$39*$S4+$M$39*$T4 -> -37.30618588 | AJ29: =$I$40*$P4+$J$40*$Q4+$K$40*$R4+$L$40*$S4+$M$40*$T4 -> -25.0608017 | AK29: =$I$41*$P4+$J$41*$Q4+$K$41*$R4+$L$41*$S4+$M$41*$T4 -> -35.65118176 | AP29: O1 | AQ29: 1000 | AR29: =SUM(W39:W41) -> 999.99997 | AS29: =AQ29-AR29 -> 3.000000004e-05
H30: O4 | I30: 3 | J30: 4 | K30: 1 | L30: 14 | M30: 7 | W30: =$I$27*$P5+$J$27*$Q5+$K$27*$R5+$L$27*$S5+$M$27*$T5 -> 41.04219646 | X30: =$I$28*$P5+$J$28*$Q5+$K$28*$R5+$L$28*$S5+$M$28*$T5 -> 28.74737142 | Y30: =$I$29*$P5+$J$29*$Q5+$K$29*$R5+$L$29*$S5+$M$29*$T5 -> 47.51238732 | Z30: =$I$30*$P5+$J$30*$Q5+$K$30*$R5+$L$30*$S5+$M$30*$T5 -> 24.31851146 | AA30: =$I$31*$P5+$J$31*$Q5+$K$31*$R5+$L$31*$S5+$M$31*$T5 -> 37.31818254 | AB30: =$I$32*$P5+$J$32*$Q5+$K$32*$R5+$L$32*$S5+$M$32*$T5 -> 45.9050136 | AC30: =$I$33*$P5+$J$33*$Q5+$K$33*$R5+$L$33*$S5+$M$33*$T5 -> 51.23025614 | AD30: =$I$34*$P5+$J$34*$Q5+$K$34*$R5+$L$34*$S5+$M$34*$T5 -> 45.39507054 | AE30: =$I$35*$P5+$J$35*$Q5+$K$35*$R5+$L$35*$S5+$M$35*$T5 -> 31.46833308 | AF30: =$I$36*$P5+$J$36*$Q5+$K$36*$R5+$L$36*$S5+$M$36*$T5 -> 51.01803196 | AG30: =$I$37*$P5+$J$37*$Q5+$K$37*$R5+$L$37*$S5+$M$37*$T5 -> 23.0119952 | AH30: =$I$38*$P5+$J$38*$Q5+$K$38*$R5+$L$38*$S5+$M$38*$T5 -> 49.55684394 | AI30: =$I$39*$P5+$J$39*$Q5+$K$39*$R5+$L$39*$S5+$M$39*$T5 -> 48.39696816 | AJ30: =$I$40*$P5+$J$40*$Q5+$K$40*$R5+$L$40*$S5+$M$40*$T5 -> 27.69112706 | AK30: =$I$41*$P5+$J$41*$Q5+$K$41*$R5+$L$41*$S5+$M$41*$T5 -> 41.81871982 | AP30: O2 | AQ30: 1000 | AR30: =SUM(X39:X41) -> 999.99997 | AS30: =AQ30-AR30 -> 2.999955495e-05
H31: O5 | I31: 8 | J31: 4 | K31: 5 | L31: 11 | M31: 14 | W31: =$I$27*$P6+$J$27*$Q6+$K$27*$R6+$L$27*$S6+$M$27*$T6 -> 38.810682 | X31: =$I$28*$P6+$J$28*$Q6+$K$28*$R6+$L$28*$S6+$M$28*$T6 -> 28.2061509 | Y31: 36.5966137 | Z31: 34.3472513 | AA31: 43.4543728 | AB31: 51.9696291 | AC31: 31.386742 | AD31: 46.2486533 | AE31: 41.731866 | AF31: 29.7579199 | AG31: 32.4895792 | AH31: 39.4446651 | AI31: 37.1442608 | AJ31: 26.9244325 | AK31: 33.528821 | AP31: O3 | AQ31: 1000 | AR31: =SUM(Y39:Y41) -> 999.99997 | AS31: 3.000000004e-05
H32: O6 | I32: =RANK(B9,B$4:B$18,B$2) -> 1 | J32: 13 | K32: 14 | L32: 15 | M32: 4 | AP32: O4 | AQ32: 1000 | AR32: =SUM(Z39:Z41) -> 999.99997 | AS32: 2.998626564e-05
H33: O7 | I33: 15 | J33: 9 | K33: 8 | L33: 2 | M33: 7 | W33: Activation | AP33: O5 | AQ33: 1000 | AR33: =SUM(AA39:AA41) -> 999.99997 | AS33: 3.000000004e-05
H34: O8 | I34: 13 | J34: 1 | K34: 13 | L34: 10 | M34: 12 | W34: =1/(1-EXP(-1*W29)) -> -1.440427235e-17 | X34: -5.04056132e-13 | Y34: -1.365320574e-18 | Z34: -6.229328835e-12 | AA34: -3.207171689e-15 | AB34: -1.443905959e-21 | AC34: -2.784762972e-17 | AD34: -6.90348153e-18 | AE34: -2.006800793e-13 | AF34: -1.504298006e-16 | AG34: -1.007684304e-10 | AH34: -4.090089179e-18 | AI34: -6.282454204e-17 | AJ34: -1.306869161e-11 | AK34: -3.287672041e-16 | AP34: O6 | AQ34: 1000 | AR34: =SUM(AB39:AB41) -> 999.99997 | AS34: 3.000000004e-05
H35: O9 | I35: 5 | J35: 3 | K35: 7 | L35: 9 | M35: 15 | W35: =1/(1-EXP(-1*W30)) -> 1 | X35: 1 | Y35: 1 | Z35: 1 | AA35: 1 | AB35: 1 | AC35: 1 | AD35: 1 | AE35: 1 | AF35: 1 | AG35: 1 | AH35: 1 | AI35: 1 | AJ35: 1 | AK35: 1 | AP35: O7 | AQ35: 1000 | AR35: =SUM(AC39:AC41) -> 999.99997 | AS35: 2.999998833e-05
H36: O10 | I36: 14 | J36: 12 | K36: 3 | L36: 1 | M36: 9 | W36: =1/(1-EXP(-1*W31)) -> 1 | X36: 1 | Y36: 1 | Z36: 1 | AA36: 1 | AB36: 1 | AC36: 1 | AD36: 1 | AE36: 1 | AF36: 1 | AG36: 1 | AH36: 1 | AI36: 1 | AJ36: 1 | AK36: 1 | AP36: O8 | AQ36: 1000 | AR36: =SUM(AD39:AD41) -> 999.99997 | AS36: 3.000000004e-05
H37: O11 | I37: 2 | J37: 2 | K37: 10 | L37: 6 | M37: 10 | AP37: O9 | AQ37: 1000 | AR37: =SUM(AE39:AE41) -> 999.99997 | AS37: 2.999998924e-05
H38: O12 | I38: 11 | J38: 9 | K38: 11 | L38: 4 | M38: 10 | W38: Y0 - szorzatok | AP38: O10 | AQ38: 1000 | AR38: =SUM(AF39:AF41) -> 999.99997 | AS38: 2.999994047e-05
H39: O13 | I39: 8 | J39: 15 | K39: 2 | L39: 3 | M39: 13 | W39: =W34*$AN4 -> 4.931784031e-19 | X39: =X34*$AN4 -> 1.725804624e-14 | Y39: 4.674631276e-20 | Z39: 2.132818911e-13 | AA39: 1.098082411e-16 | AB39: 4.943694603e-23 | AC39: 9.534566702e-19 | AD39: 2.363637616e-19 | AE39: 6.870953189e-15 | AF39: 5.150466958e-18 | AG39: 3.450143983e-12 | AH39: 1.400378721e-19 | AI39: 2.151008156e-18 | AJ39: 4.474503327e-13 | AK39: 1.125644397e-17 | AP39: O11 | AQ39: 1000 | AR39: =SUM(AG39:AG41) -> 999.9999701 | AS39: 2.994927138e-05
H40: O14 | I40: 5 | J40: 4 | K40: 9 | L40: 5 | M40: 5 | W40: =W35*$AN5 -> 500.23312 | X40: 500.23312 | Y40: 500.23312 | Z40: 500.23312 | AA40: 500.23312 | AB40: 500.23312 | AC40: 500.23312 | AD40: 500.23312 | AE40: 500.23312 | AF40: 500.23312 | AG40: 500.2331201 | AH40: 500.23312 | AI40: 500.23312 | AJ40: 500.23312 | AK40: 500.23312 | AP40: O12 | AQ40: 1000 | AR40: =SUM(AH39:AH41) -> 999.99997 | AS40: 3.000000004e-05
H41: O15 | I41: 5 | J41: 14 | K41: 4 | L41: 6 | M41: 6 | W41: 499.76685 | X41: 499.76685 | Y41: 499.76685 | Z41: 499.76685 | AA41: 499.76685 | AB41: 499.76685 | AC41: 499.76685 | AD41: 499.76685 | AE41: 499.76685 | AF41: 499.76685 | AG41: 499.76685 | AH41: 499.76685 | AI41: 499.76685 | AJ41: 499.76685 | AK41: 499.76685 | AP41: O13 | AQ41: 1000 | AR41: =SUM(AI39:AI41) -> 999.99997 | AS41: 3.000000004e-05
AP42: O14 | AQ42: 1000 | AR42: =SUM(AJ39:AJ41) -> 999.99997 | AS42: 2.99985154e-05
AP43: O15 | AQ43: 1000 | AR43: =SUM(AK39:AK41) -> 999.99997 | AS43: 2.999999879e-05
AQ44: szum | AR44: szum | AS44: hiba
AQ45: =SUM(AQ29:AQ43) -> 15000 | AR45: =SUM(AR29:AR43) -> 14999.99955 | AS45: =SUMSQ(AS29:AS43) -> 1.349601423e-08
AS46: hiba2
AS47: =ABS(AQ45-AR45) -> 0.0004499335228
AS48: hiba3
AS49: =AS45*AS47 -> 6.072309227e-12
AQ50: szórás | AR50: szórás
AQ51: =STDEV(AQ29:AQ43) -> 0 | AR51: =STDEV(AR29:AR43) -> 1.328218887e-08

Sheet nn - ranked_Data (2)
A1: irány | B1: 0 | C1: 0 | D1: 0 | E1: 0 | F1: 0 | Q1: súlyok | X1: 2. layer vektor | AO1: 2 layer súlyok
B2: 1 | C2: 1 | D2: 1 | E2: 1 | F2: 1
A3: rnd(1-100) | B3: A1 | C3: A2 | D3: A3 | E3: A4 | F3: A5 | H3: rank = 0 | I3: =B3 -> A1 | J3: A2 | K3: A3 | L3: A4 | M3: A5 | N3: Y0 | Q3: w1 | R3: w2 | S3: w3 | T3: w4 | U3: w5 | V3: w6 | X3: v1 | Y3: v2 | Z3: v3 | AA3: v4 | AB3: v5 | AC3: v6 | AD3: v7 | AE3: v8 | AF3: v9 | AG3: v10 | AH3: v11 | AI3: v12 | AJ3: v13 | AK3: v14 | AL3: v15 | AO3: w6 | AR3: Y0 | AS3: Ybecslés | AT3: eltérés
A4: O1 | B4: 78 | C4: 50 | D4: 75 | E4: 79 | F4: 10 | H4: =A4 -> O1 | I4: =RANK(B4,B$4:B$18,B$1) -> 6 | J4: =RANK(C4,C$4:C$18,C$1) -> 8 | K4: 4 | L4: =RANK(E4,E$4:E$18,E$1) -> 3 | M4: 13 | N4: 1000 | P4: 1 | Q4: 1 | R4: 2 | S4: 3 | T4: 4 | U4: 5 | V4: 261.8912333 | W4: 1 | X4: =$I$4*$Q4+$J$4*$R4+$K$4*$S4+$L$4*$T4+$M$4*$U4 -> 111 | Y4: =$I$5*$Q4+$J$5*$R4+$K$5*$S4+$L$5*$T4+$M$5*$U4 -> 138 | Z4: =$I$6*$Q4+$J$6*$R4+$K$6*$S4+$L$6*$T4+$M$6*$U4 -> 125 | AA4: =$I$7*$Q4+$J$7*$R4+$K$7*$S4+$L$7*$T4+$M$7*$U4 -> 122 | AB4: =$I$8*$Q4+$J$8*$R4+$K$8*$S4+$L$8*$T4+$M$8*$U4 -> 83 | AC4: =$I$9*$Q4+$J$9*$R4+$K$9*$S4+$L$9*$T4+$M$9*$U4 -> 88 | AD4: =$I$10*$Q4+$J$10*$R4+$K$10*$S4+$L$10*$T4+$M$10*$U4 -> 131 | AE4: =$I$11*$Q4+$J$11*$R4+$K$11*$S4+$L$11*$T4+$M$11*$U4 -> 86 | AF4: =$I$12*$Q4+$J$12*$R4+$K$12*$S4+$L$12*$T4+$M$12*$U4 -> 95 | AG4: =$I$13*$Q4+$J$13*$R4+$K$13*$S4+$L$13*$T4+$M$13*$U4 -> 144 | AH4: =$I$14*$Q4+$J$14*$R4+$K$14*$S4+$L$14*$T4+$M$14*$U4 -> 117 | AI4: =$I$15*$Q4+$J$15*$R4+$K$15*$S4+$L$15*$T4+$M$15*$U4 -> 100 | AJ4: =$I$16*$Q4+$J$16*$R4+$K$16*$S4+$L$16*$T4+$M$16*$U4 -> 118 | AK4: =$I$14*$Q4+$J$14*$R4+$K$14*$S4+$L$14*$T4+$M$14*$U4 -> 117 | AL4: =$I$18*$Q4+$J$18*$R4+$K$18*$S4+$L$18*$T4+$M$18*$U4 -> 131 | AN4: 1 | AO4: =V4 -> 261.8912333 | AQ4: O1 | AR4: 1000 | AS4: =SUM(X14:X16) -> 1000 | AT4: =AR4-AS4 -> 0
A5: O2 | B5: 45 | C5: 50 | D5: 83 | E5: 50 | F5: 6 | H5: =A5 -> O2 | I5: =RANK(B5,B$4:B$18,B$1) -> 12 | J5: 8 | K5: 1 | L5: 8 | M5: 15 | N5: 1000 | P5: 2 | Q5: 6 | R5: 7 | S5: 8 | T5: 9 | U5: 10 | V5: 380.8027621 | W5: 2 | X5: =$I$4*$Q5+$J$4*$R5+$K$4*$S5+$L$4*$T5+$M$4*$U5 -> 281 | Y5: =$I$5*$Q5+$J$5*$R5+$K$5*$S5+$L$5*$T5+$M$5*$U5 -> 358 | Z5: =$I$6*$Q5+$J$6*$R5+$K$6*$S5+$L$6*$T5+$M$6*$U5 -> 305 | AA5: =$I$7*$Q5+$J$7*$R5+$K$7*$S5+$L$7*$T5+$M$7*$U5 -> 352 | AB5: =$I$8*$Q5+$J$8*$R5+$K$8*$S5+$L$8*$T5+$M$8*$U5 -> 243 | AC5: =$I$9*$Q5+$J$9*$R5+$K$9*$S5+$L$9*$T5+$M$9*$U5 -> 248 | AD5: =$I$10*$Q5+$J$10*$R5+$K$10*$S5+$L$10*$T5+$M$10*$U5 -> 311 | AE5: =$I$11*$Q5+$J$11*$R5+$K$11*$S5+$L$11*$T5+$M$11*$U5 -> 241 | AF5: =$I$12*$Q5+$J$12*$R5+$K$12*$S5+$L$12*$T5+$M$12*$U5 -> 290 | AG5: =$I$13*$Q5+$J$13*$R5+$K$13*$S5+$L$13*$T5+$M$13*$U5 -> 349 | AH5: =$I$14*$Q5+$J$14*$R5+$K$14*$S5+$L$14*$T5+$M$14*$U5 -> 352 | AI5: =$I$15*$Q5+$J$15*$R5+$K$15*$S5+$L$15*$T5+$M$15*$U5 -> 255 | AJ5: =$I$16*$Q5+$J$16*$R5+$K$16*$S5+$L$16*$T5+$M$16*$U5 -> 308 | AK5: =$I$14*$Q5+$J$14*$R5+$K$14*$S5+$L$14*$T5+$M$14*$U5 -> 352 | AL5: =$I$18*$Q5+$J$18*$R5+$K$18*$S5+$L$18*$T5+$M$18*$U5 -> 336 | AN5: 2 | AO5: =V5 -> 380.8027621 | AQ5: O2 | AR5: 1000 | AS5: =SUM(Y14:Y16) -> 1000 | AT5: =AR5-AS5 -> 0
A6: O3 | B6: 81 | C6: 60 | D6: 50 | E6: 74 | F6: 10 | H6: O3 | I6: 4 | J6: 5 | K6: 10 | L6: 4 | M6: 13 | N6: 1000 | P6: 3 | Q6: 11 | R6: 12 | S6: 13 | T6: 14 | U6: 15 | V6: 357.3060046 | W6: 3 | X6: =$I$4*$Q6+$J$4*$R6+$K$4*$S6+$L$4*$T6+$M$4*$U6 -> 451 | Y6: =$I$5*$Q6+$J$5*$R6+$K$5*$S6+$L$5*$T6+$M$5*$U6 -> 578 | Z6: =$I$6*$Q6+$J$6*$R6+$K$6*$S6+$L$6*$T6+$M$6*$U6 -> 485 | AA6: 582 | AB6: =$I$8*$Q6+$J$8*$R6+$K$8*$S6+$L$8*$T6+$M$8*$U6 -> 403 | AC6: 408 | AD6: 491 | AE6: 396 | AF6: 485 | AG6: 554 | AH6: 587 | AI6: 410 | AJ6: 498 | AK6: 587 | AL6: 541 | AN6: 3 | AO6: 357.3060046 | AQ6: O3 | AR6: 1000 | AS6: =SUM(Z14:Z16) -> 1000 | AT6: 0
A7: O4 | B7: 40 | C7: 50 | D7: 32 | E7: 80 | F7: 45 | H7: O4 | I7: 13 | J7: 8 | K7: 15 | L7: 2 | M7: 8 | N7: 1000 | P7: 4 | Q7: eredő | R7: eredő | S7: eredő | T7: eredő | U7: eredő | AN7: szum | AO7: =SUM(AO4:AO6) -> 1000 | AQ7: O4 | AR7: 1000 | AS7: =SUM(AA14:AA16) -> 1000 | AT7: 0
A8: O5 | B8: 67 | C8: 50 | D8: 50 | E8: 72 | F8: 84 | H8: O5 | I8: 7 | J8: 8 | K8: 10 | L8: 5 | M8: 2 | N8: 1000 | X8: Activation | AQ8: O5 | AR8: 1000 | AS8: =SUM(AB14:AB16) -> 1000 | AT8: 0
A9: O6 | B9: 26 | C9: 83 | D9: 83 | E9: 94 | F9: 29 | H9: O6 | I9: 15 | J9: 3 | K9: 1 | L9: =RANK(E9,E$4:E$18,E$1) -> 1 | M9: 12 | N9: 1000 | X9: =1/(1-EXP(-1*X4)) -> 1 | Y9: 1 | Z9: 1 | AA9: 1 | AB9: 1 | AC9: 1 | AD9: 1 | AE9: 1 | AF9: 1 | AG9: 1 | AH9: 1 | AI9: 1 | AJ9: 1 | AK9: 1 | AL9: 1 | AQ9: O6 | AR9: 1000 | AS9: =SUM(AC14:AC16) -> 1000 | AT9: 0
A10: O7 | B10: 97 | C10: 60 | D10: 70 | E10: 33 | F10: 45 | H10: O7 | I10: 1 | J10: 5 | K10: 8 | L10: =RANK(E10,E$4:E$18,E$1) -> 14 | M10: 8 | N10: 1000 | X10: 1 | Y10: 1 | Z10: 1 | AA10: 1 | AB10: 1 | AC10: 1 | AD10: 1 | AE10: 1 | AF10: 1 | AG10: 1 | AH10: 1 | AI10: 1 | AJ10: 1 | AK10: 1 | AL10: 1 | AQ10: O7 | AR10: 1000 | AS10: =SUM(AD14:AD16) -> 1000 | AT10: 0
A11: O8 | B11: 95 | C11: 14 | D11: 76 | E11: 63 | F11: 66 | H11: O8 | I11: 3 | J11: 15 | K11: 3 | L11: 6 | M11: 4 | N11: 1000 | X11: 1 | Y11: 1 | Z11: 1 | AA11: 1 | AB11: 1 | AC11: 1 | AD11: 1 | AE11: 1 | AF11: 1 | AG11: 1 | AH11: 1 | AI11: 1 | AJ11: 1 | AK11: 1 | AL11: 1 | AN11: =STDEV(X9:AL11) -> 0 | AQ11: O8 | AR11: 1000 | AS11: =SUM(AE14:AE16) -> 1000 | AT11: 0
A12: O9 | B12: 50 | C12: 40 | D12: 58 | E12: 53 | F12: 90 | H12: O9 | I12: 9 | J12: 13 | K12: 9 | L12: 7 | M12: 1 | N12: 1000 | AQ12: O9 | AR12: 1000 | AS12: =SUM(AF14:AF16) -> 1000 | AT12: 0
A13: O10 | B13: 96 | C13: 66 | D13: 44 | E13: 12 | F13: 47 | H13: O10 | I13: 2 | J13: 4 | K13: 13 | L13: 15 | M13: 7 | N13: 1000 | X13: Y0 - szorzatok | AQ13: O10 | AR13: 1000 | AS13: =SUM(AG14:AG16) -> 1000 | AT13: 0
A14: O11 | B14: 37 | C14: 36 | D14: 74 | E14: 50 | F14: 50 | H14: O11 | I14: 14 | J14: 14 | K14: 6 | L14: 8 | M14: 5 | N14: 1000 | X14: =X9*$AO4 -> 261.8912333 | Y14: 261.8912333 | Z14: 261.8912333 | AA14: 261.8912333 | AB14: 261.8912333 | AC14: 261.8912333 | AD14: 261.8912333 | AE14: 261.8912333 | AF14: 261.8912333 | AG14: 261.8912333 | AH14: 261.8912333 | AI14: 261.8912333 | AJ14: 261.8912333 | AK14: 261.8912333 | AL14: 261.8912333 | AN14: =STDEV(X14:AL14) -> 5.883852845e-14 | AQ14: O11 | AR14: 1000 | AS14: =SUM(AH14:AH16) -> 1000 | AT14: 0
A15: O12 | B15: 79 | C15: 60 | D15: 75 | E15: 45 | F15: 50 | H15: O12 | I15: 5 | J15: 5 | K15: 4 | L15: 12 | M15: 5 | N15: 1000 | X15: 380.8027621 | Y15: 380.8027621 | Z15: 380.8027621 | AA15: 380.8027621 | AB15: 380.8027621 | AC15: 380.8027621 | AD15: 380.8027621 | AE15: 380.8027621 | AF15: 380.8027621 | AG15: 380.8027621 | AH15: 380.8027621 | AI15: 380.8027621 | AJ15: 380.8027621 | AK15: 380.8027621 | AL15: 380.8027621 | AN15: =STDEV(X15:AL15) -> 5.883852845e-14 | AQ15: O12 | AR15: 1000 | AS15: =SUM(AI14:AI16) -> 1000 | AT15: 0
A16: O13 | B16: 67 | C16: 96 | D16: 38 | E16: 44 | F16: 72 | H16: O13 | I16: 7 | J16: 1 | K16: 14 | L16: 13 | M16: 3 | N16: 1000 | X16: 357.3060046 | Y16: 357.3060046 | Z16: 357.3060046 | AA16: 357.3060046 | AB16: 357.3060046 | AC16: 357.3060046 | AD16: 357.3060046 | AE16: 357.3060046 | AF16: 357.3060046 | AG16: 357.3060046 | AH16: 357.3060046 | AI16: 357.3060046 | AJ16: 357.3060046 | AK16: 357.3060046 | AL16: 357.3060046 | AN16: 0 | AQ16: O13 | AR16: 1000 | AS16: =SUM(AJ14:AJ16) -> 1000 | AT16: 0
A17: O14 | B17: 50 | C17: 50 | D17: 71 | E17: 48 | F17: 31 | H17: O14 | I17: 9 | J17: 8 | K17: 7 | L17: 11 | M17: 11 | N17: 1000 | AQ17: O14 | AR17: 1000 | AS17: =SUM(AK14:AK16) -> 1000 | AT17: 0
A18: O15 | B18: 50 | C18: 84 | D18: 46 | E18: 50 | F18: 43 | H18: O15 | I18: 9 | J18: 2 | K18: 12 | L18: 8 | M18: 10 | N18: 1000 | X18: nem lehet minden objektum azonos mintázatú = nincs gravitáció | AQ18: O15 | AR18: 1000 | AS18: =SUM(AL14:AL16) -> 1000 | AT18: 0
AR19: szum | AS19: szum | AT19: hiba
AR20: =SUM(AR4:AR18) -> 15000 | AS20: =SUM(AS4:AS18) -> 15000 | AT20: =SUMSQ(AT4:AT18) -> 0
AT21: hiba2
AT22: =ABS(AR20-AS20) -> 0
AT23: hiba3
AT24: =AT20*AT22 -> 0
AR25: szórás | AS25: szórás
H26: rank = 1 | I26: A1 | J26: A2 | K26: A3 | L26: A4 | M26: A5 | X26: 2. layer vektor | AR26: =STDEV(AR4:AR18) -> 0 | AS26: =STDEV(AS4:AS18) -> 0
H27: O1 | I27: =RANK(B4,B$4:B$18,B$2) -> 10 | J27: =RANK(C4,C$4:C$18,C$2) -> 4 | K27: 11 | L27: 13 | M27: 2
H28: O2 | I28: =RANK(B5,B$4:B$18,B$2) -> 4 | J28: 4 | K28: 14 | L28: 6 | M28: 1 | X28: v1 | Y28: v2 | Z28: v3 | AA28: v4 | AB28: v5 | AC28: v6 | AD28: v7 | AE28: v8 | AF28: v9 | AG28: v10 | AH28: v11 | AI28: v12 | AJ28: v13 | AK28: v14 | AL28: v15 | AR28: Y0 | AS28: Ybecslés | AT28: eltérés
H29: O3 | I29: 12 | J29: 9 | K29: 5 | L29: 12 | M29: 2 | X29: =$I$27*$Q4+$J$27*$R4+$K$27*$S4+$L$27*$T4+$M$27*$U4 -> 113 | Y29: =$I$28*$Q4+$J$28*$R4+$K$28*$S4+$L$28*$T4+$M$28*$U4 -> 83 | Z29: =$I$29*$Q4+$J$29*$R4+$K$29*$S4+$L$29*$T4+$M$29*$U4 -> 103 | AA29: =$I$30*$Q4+$J$30*$R4+$K$30*$S4+$L$30*$T4+$M$30*$U4 -> 105 | AB29: =$I$31*$Q4+$J$31*$R4+$K$31*$S4+$L$31*$T4+$M$31*$U4 -> 145 | AC29: =$I$32*$Q4+$J$32*$R4+$K$32*$S4+$L$32*$T4+$M$32*$U4 -> 149 | AD29: =$I$33*$Q4+$J$33*$R4+$K$33*$S4+$L$33*$T4+$M$33*$U4 -> 100 | AE29: =$I$34*$Q4+$J$34*$R4+$K$34*$S4+$L$34*$T4+$M$34*$U4 -> 154 | AF29: =$I$35*$Q4+$J$35*$R4+$K$35*$S4+$L$35*$T4+$M$35*$U4 -> 143 | AG29: =$I$36*$Q4+$J$36*$R4+$K$36*$S4+$L$36*$T4+$M$36*$U4 -> 96 | AH29: =$I$37*$Q4+$J$37*$R4+$K$37*$S4+$L$37*$T4+$M$37*$U4 -> 110 | AI29: =$I$38*$Q4+$J$38*$R4+$K$38*$S4+$L$38*$T4+$M$38*$U4 -> 128 | AJ29: =$I$39*$Q4+$J$39*$R4+$K$39*$S4+$L$39*$T4+$M$39*$U4 -> 121 | AK29: =$I$40*$Q4+$J$40*$R4+$K$40*$S4+$L$40*$T4+$M$40*$U4 -> 85 | AL29: =$I$41*$Q4+$J$41*$R4+$K$41*$S4+$L$41*$T4+$M$41*$U4 -> 99 | AQ29: O1 | AR29: 1000 | AS29: =SUM(X39:X41) -> 1000 | AT29: =AR29-AS29 -> 0
H30: O4 | I30: 3 | J30: 4 | K30: 1 | L30: 14 | M30: 7 | X30: =$I$27*$Q5+$J$27*$R5+$K$27*$S5+$L$27*$T5+$M$27*$U5 -> 313 | Y30: =$I$28*$Q5+$J$28*$R5+$K$28*$S5+$L$28*$T5+$M$28*$U5 -> 228 | Z30: =$I$29*$Q5+$J$29*$R5+$K$29*$S5+$L$29*$T5+$M$29*$U5 -> 303 | AA30: =$I$30*$Q5+$J$30*$R5+$K$30*$S5+$L$30*$T5+$M$30*$U5 -> 250 | AB30: =$I$31*$Q5+$J$31*$R5+$K$31*$S5+$L$31*$T5+$M$31*$U5 -> 355 | AC30: =$I$32*$Q5+$J$32*$R5+$K$32*$S5+$L$32*$T5+$M$32*$U5 -> 384 | AD30: =$I$33*$Q5+$J$33*$R5+$K$33*$S5+$L$33*$T5+$M$33*$U5 -> 305 | AE30: =$I$34*$Q5+$J$34*$R5+$K$34*$S5+$L$34*$T5+$M$34*$U5 -> 399 | AF30: =$I$35*$Q5+$J$35*$R5+$K$35*$S5+$L$35*$T5+$M$35*$U5 -> 338 | AG30: =$I$36*$Q5+$J$36*$R5+$K$36*$S5+$L$36*$T5+$M$36*$U5 -> 291 | AH30: =$I$37*$Q5+$J$37*$R5+$K$37*$S5+$L$37*$T5+$M$37*$U5 -> 260 | AI30: =$I$38*$Q5+$J$38*$R5+$K$38*$S5+$L$38*$T5+$M$38*$U5 -> 353 | AJ30: =$I$39*$Q5+$J$39*$R5+$K$39*$S5+$L$39*$T5+$M$39*$U5 -> 326 | AK30: =$I$40*$Q5+$J$40*$R5+$K$40*$S5+$L$40*$T5+$M$40*$U5 -> 225 | AL30: =$I$41*$Q5+$J$41*$R5+$K$41*$S5+$L$41*$T5+$M$41*$U5 -> 274 | AQ30: O2 | AR30: 1000 | AS30: =SUM(Y39:Y41) -> 1000 | AT30: =AR30-AS30 -> 0
H31: O5 | I31: 8 | J31: 4 | K31: 5 | L31: 11 | M31: 14 | X31: =$I$27*$Q6+$J$27*$R6+$K$27*$S6+$L$27*$T6+$M$27*$U6 -> 513 | Y31: =$I$28*$Q6+$J$28*$R6+$K$28*$S6+$L$28*$T6+$M$28*$U6 -> 373 | Z31: 503 | AA31: 395 | AB31: 565 | AC31: 619 | AD31: 510 | AE31: 644 | AF31: 533 | AG31: 486 | AH31: 410 | AI31: 578 | AJ31: 531 | AK31: 365 | AL31: 449 | AQ31: O3 | AR31: 1000 | AS31: =SUM(Z39:Z41) -> 1000 | AT31: 0
H32: O6 | I32: =RANK(B9,B$4:B$18,B$2) -> 1 | J32: 13 | K32: 14 | L32: 15 | M32: 4 | AQ32: O4 | AR32: 1000 | AS32: =SUM(AA39:AA41) -> 1000 | AT32: 0
H33: O7 | I33: 15 | J33: 9 | K33: 8 | L33: 2 | M33: 7 | X33: Activation | AQ33: O5 | AR33: 1000 | AS33: =SUM(AB39:AB41) -> 1000 | AT33: 0
H34: O8 | I34: 13 | J34: 1 | K34: 13 | L34: 10 | M34: 12 | X34: =1/(1-EXP(-1*X29)) -> 1 | Y34: 1 | Z34: 1 | AA34: 1 | AB34: 1 | AC34: 1 | AD34: 1 | AE34: 1 | AF34: 1 | AG34: 1 | AH34: 1 | AI34: 1 | AJ34: 1 | AK34: 1 | AL34: 1 | AQ34: O6 | AR34: 1000 | AS34: =SUM(AC39:AC41) -> 1000 | AT34: 0
H35: O9 | I35: 5 | J35: 3 | K35: 7 | L35: 9 | M35: 15 | X35: 1 | Y35: 1 | Z35: 1 | AA35: 1 | AB35: 1 | AC35: 1 | AD35: 1 | AE35: 1 | AF35: 1 | AG35: 1 | AH35: 1 | AI35: 1 | AJ35: 1 | AK35: 1 | AL35: 1 | AQ35: O7 | AR35: 1000 | AS35: =SUM(AD39:AD41) -> 1000 | AT35: 0
H36: O10 | I36: 14 | J36: 12 | K36: 3 | L36: 1 | M36: 9 | X36: 1 | Y36: 1 | Z36: 1 | AA36: 1 | AB36: 1 | AC36: 1 | AD36: 1 | AE36: 1 | AF36: 1 | AG36: 1 | AH36: 1 | AI36: 1 | AJ36: 1 | AK36: 1 | AL36: 1 | AQ36: O8 | AR36: 1000 | AS36: =SUM(AE39:AE41) -> 1000 | AT36: 0
H37: O11 | I37: 2 | J37: 2 | K37: 10 | L37: 6 | M37: 10 | AQ37: O9 | AR37: 1000 | AS37: =SUM(AF39:AF41) -> 1000 | AT37: 0
H38: O12 | I38: 11 | J38: 9 | K38: 11 | L38: 4 | M38: 10 | X38: Y0 - szorzatok | AQ38: O10 | AR38: 1000 | AS38: =SUM(AG39:AG41) -> 1000 | AT38: 0
H39: O13 | I39: 8 | J39: 15 | K39: 2 | L39: 3 | M39: 13 | X39: =X34*$AO4 -> 261.8912333 | Y39: =Y34*$AO4 -> 261.8912333 | Z39: 261.8912333 | AA39: 261.8912333 | AB39: 261.8912333 | AC39: 261.8912333 | AD39: 261.8912333 | AE39: 261.8912333 | AF39: 261.8912333 | AG39: 261.8912333 | AH39: 261.8912333 | AI39: 261.8912333 | AJ39: 261.8912333 | AK39: 261.8912333 | AL39: 261.8912333 | AQ39: O11 | AR39: 1000 | AS39: =SUM(AH39:AH41) -> 1000 | AT39: 0
H40: O14 | I40: 5 | J40: 4 | K40: 9 | L40: 5 | M40: 5 | X40: =X35*$AO5 -> 380.8027621 | Y40: 380.8027621 | Z40: 380.8027621 | AA40: 380.8027621 | AB40: 380.8027621 | AC40: 380.8027621 | AD40: 380.8027621 | AE40: 380.8027621 | AF40: 380.8027621 | AG40: 380.8027621 | AH40: 380.8027621 | AI40: 380.8027621 | AJ40: 380.8027621 | AK40: 380.8027621 | AL40: 380.8027621 | AQ40: O12 | AR40: 1000 | AS40: =SUM(AI39:AI41) -> 1000 | AT40: 0
H41: O15 | I41: 5 | J41: 14 | K41: 4 | L41: 6 | M41: 6 | X41: 357.3060046 | Y41: 357.3060046 | Z41: 357.3060046 | AA41: 357.3060046 | AB41: 357.3060046 | AC41: 357.3060046 | AD41: 357.3060046 | AE41: 357.3060046 | AF41: 357.3060046 | AG41: 357.3060046 | AH41: 357.3060046 | AI41: 357.3060046 | AJ41: 357.3060046 | AK41: 357.3060046 | AL41: 357.3060046 | AQ41: O13 | AR41: 1000 | AS41: =SUM(AJ39:AJ41) -> 1000 | AT41: 0
AQ42: O14 | AR42: 1000 | AS42: =SUM(AK39:AK41) -> 1000 | AT42: 0
AQ43: O15 | AR43: 1000 | AS43: =SUM(AL39:AL41) -> 1000 | AT43: 0
AR44: szum | AS44: szum | AT44: hiba
AR45: =SUM(AR29:AR43) -> 15000 | AS45: =SUM(AS29:AS43) -> 15000 | AT45: =SUMSQ(AT29:AT43) -> 0
AT46: hiba2
AT47: =ABS(AR45-AS45) -> 0
AT48: hiba3
AT49: =AT45*AT47 -> 0
AR50: szórás | AS50: szórás
AR51: =STDEV(AR29:AR43) -> 0 | AS51: =STDEV(AS29:AS43) -> 0

Sheet nn - ranked data - new
A1: irány | B1: 0 | C1: 0 | D1: 0 | E1: 0 | F1: 0 | M1: súlyok | U1: 2. layer vektor | AK1: 2 layer súlyok | AO1: minden becslés nem lehet 1000 felett = kiegyensúlyozatlan tanulás!
A2: rnd(1-100) | B2: A1 | C2: A2 | D2: A3 | E2: A4 | F2: A5 | H2: rank = 0 | I2: =B2 -> A1 | J2: A2 | K2: A3 | L2: A4 | M2: A5 | O2: w1 | P2: w2 | Q2: w3 | R2: w4 | S2: w5 | U2: O1 | V2: O2 | W2: O3 | X2: O4 | Y2: O5 | Z2: O6 | AA2: O7 | AB2: O8 | AC2: O9 | AD2: O10 | AE2: O11 | AF2: O12 | AG2: O13 | AH2: O14 | AI2: O15 | AN2: Y0 | AO2: Ybecslés | AP2: eltérés | AQ2: MAE
A3: O1 | B3: 70 | C3: 10 | D3: 93 | E3: 33 | F3: 29 | H3: =A3 -> O1 | I3: =RANK(B3,B$3:B$17,B$1) -> 6 | J3: =RANK(C3,C$3:C$17,C$1) -> 13 | K3: =RANK(D3,D$3:D$17,D$1) -> 2 | L3: 11 | M3: 10 | O3: -2.9439917 | P3: -13.912765 | Q3: 8.647676 | R3: -8.275797 | S3: 12.401048 | U3: =$I$3*$O3+$J$3*$P3+$K$3*$Q3+$L$3*$R3+$M$3*$S3 -> -148.2578302 | V3: =$I$4*$O3+$J$4*$P3+$K$4*$Q3+$L$4*$R3+$M$4*$S3 -> 69.9052999 | W3: =$I$5*$O3+$J$5*$P3+$K$5*$Q3+$L$5*$R3+$M$5*$S3 -> -162.4111909 | X3: =$I$6*$O3+$J$6*$P3+$K$6*$Q3+$L$6*$R3+$M$6*$S3 -> -94.6609648 | Y3: =$I$7*$O3+$J$7*$P3+$K$7*$Q3+$L$7*$R3+$M$7*$S3 -> -96.5708291 | Z3: =$I$8*$O3+$J$8*$P3+$K$8*$Q3+$L$8*$R3+$M$8*$S3 -> -112.3694964 | AA3: =$I$9*$O3+$J$9*$P3+$K$9*$Q3+$L$9*$R3+$M$9*$S3 -> -78.0670125 | AB3: =$I$10*$O3+$J$10*$P3+$K$10*$Q3+$L$10*$R3+$M$10*$S3 -> 25.778136 | AC3: =$I$11*$O3+$J$11*$P3+$K$11*$Q3+$L$11*$R3+$M$11*$S3 -> 9.7055853 | AD3: =$I$12*$O3+$J$12*$P3+$K$12*$Q3+$L$12*$R3+$M$12*$S3 -> 44.1454782 | AE3: =$I$13*$O3+$J$13*$P3+$K$13*$Q3+$L$13*$R3+$M$13*$S3 -> 21.5366727 | AF3: =$I$14*$O3+$J$14*$P3+$K$14*$Q3+$L$14*$R3+$M$14*$S3 -> 38.3540004 | AG3: =$I$15*$O3+$J$15*$P3+$K$15*$Q3+$L$15*$R3+$M$15*$S3 -> 52.5019685 | AH3: =$I$16*$O3+$J$16*$P3+$K$16*$Q3+$L$16*$R3+$M$16*$S3 -> 47.2367213 | AI3: =$I$17*$O3+$J$17*$P3+$K$17*$Q3+$L$17*$R3+$M$17*$S3 -> -73.3983094 | AK3: 12.926364 | AM3: O1 | AN3: 1000 | AO3: =SUM(U38:U52) -> 1002.678221 | AP3: =AN3-AO3 -> -2.678220691 | AQ3: =ABS(AP3) -> 2.678220691
A4: O2 | B4: 17 | C4: 74 | D4: 84 | E4: 78 | F4: 23 | H4: =A4 -> O2 | I4: =RANK(B4,B$3:B$17,B$1) -> 13 | J4: =RANK(C4,C$3:C$17,C$1) -> 6 | K4: =RANK(D4,D$3:D$17,D$1) -> 4 | L4: =RANK(E4,E$3:E$17,E$1) -> 2 | M4: =RANK(F4,F$3:F$17,F$1) -> 14 | O4: -3.3356733 | P4: 5.8614507 | Q4: -4.116753 | R4: 4.3452635 | S4: 2.0791414 | U4: =$I$3*$O4+$J$3*$P4+$K$3*$Q4+$L$3*$R4+$M$3*$S4 -> 116.5406258 | V4: =$I$4*$O4+$J$4*$P4+$K$4*$Q4+$L$4*$R4+$M$4*$S4 -> 13.1364459 | W4: =$I$5*$O4+$J$5*$P4+$K$5*$Q4+$L$5*$R4+$M$5*$S4 -> 50.8619592 | X4: =$I$6*$O4+$J$6*$P4+$K$6*$Q4+$L$6*$R4+$M$6*$S4 -> -4.6884871 | Y4: =$I$7*$O4+$J$7*$P4+$K$7*$Q4+$L$7*$R4+$M$7*$S4 -> 101.3093859 | Z4: =$I$8*$O4+$J$8*$P4+$K$8*$Q4+$L$8*$R4+$M$8*$S4 -> 64.8109531 | AA4: =$I$9*$O4+$J$9*$P4+$K$9*$Q4+$L$9*$R4+$M$9*$S4 -> -1.0934556 | AB4: =$I$10*$O4+$J$10*$P4+$K$10*$Q4+$L$10*$R4+$M$10*$S4 -> -26.0411597 | AC4: =$I$11*$O4+$J$11*$P4+$K$11*$Q4+$L$11*$R4+$M$11*$S4 -> 69.291191 | AD4: =$I$12*$O4+$J$12*$P4+$K$12*$Q4+$L$12*$R4+$M$12*$S4 -> 50.9506347 | AE4: =$I$13*$O4+$J$13*$P4+$K$13*$Q4+$L$13*$R4+$M$13*$S4 -> -0.4806181 | AF4: =$I$14*$O4+$J$14*$P4+$K$14*$Q4+$L$14*$R4+$M$14*$S4 -> 54.5420624 | AG4: =$I$15*$O4+$J$15*$P4+$K$15*$Q4+$L$15*$R4+$M$15*$S4 -> 9.681911 | AH4: =$I$16*$O4+$J$16*$P4+$K$16*$Q4+$L$16*$R4+$M$16*$S4 -> 17.7930545 | AI4: =$I$17*$O4+$J$17*$P4+$K$17*$Q4+$L$17*$R4+$M$17*$S4 -> 32.9638511 | AK4: 4.4706097 | AM4: O2 | AN4: 1000 | AO4: =SUM(V38:V52) -> 1005.895995 | AP4: =AN4-AO4 -> -5.89599533 | AQ4: =ABS(AP4) -> 5.89599533
A5: O3 | B5: 57 | C5: 57 | D5: 89 | E5: 37 | F5: 85 | H5: O3 | I5: 7 | J5: 7 | K5: 3 | L5: 10 | M5: 1 | O5: -0.46456814 | P5: -0.41532958 | Q5: -1.1120969 | R5: -0.41954046 | S5: -0.4404718 | U5: -19.43055024 | V5: -19.98543702 | W5: -14.13145114 | X5: -19.49466142 | Y5: -26.228555 | Z5: -22.13976154 | AA5: -30.70979806 | AB5: -18.23691614 | AC5: -31.1622723 | AD5: -17.28567668 | AE5: -24.92636552 | AF5: -31.16156088 | AG5: -16.96247486 | AH5: -14.0041964 | AI5: -33.41513514 | AK5: 0.66609365 | AM5: O3 | AN5: 1000 | AO5: =SUM(W38:W52) -> 1003.291833 | AP5: -3.291832858 | AQ5: 3.291832858
A6: O4 | B6: 13 | C6: 88 | D6: 62 | E6: 44 | F6: 75 | H6: O4 | I6: 14 | J6: 4 | K6: 6 | L6: 9 | M6: 2 | O6: -0.75248784 | P6: -1.0218003 | Q6: -1.118294 | R6: -1.1015475 | S6: -0.29437062 | U6: -35.09564764 | V6: -26.7106034 | W6: -27.0847446 | X6: -31.8344637 | Y6: -42.7344609 | Z6: -35.90605304 | AA6: -45.0663338 | AB6: -25.27979818 | AC6: -45.08847174 | AD6: -23.6129137 | AE6: -36.18176608 | AF6: -42.56638422 | AG6: -23.48527184 | AH6: -19.13865668 | AI6: -48.97722454 | AK6: 0.26104414 | AM6: O4 | AN6: 1000 | AO6: =SUM(X38:X52) -> 1002.151321 | AP6: -2.15132105 | AQ6: 2.15132105
A7: O5 | B7: 76 | C7: 25 | D7: 28 | E7: 1 | F7: 33 | H7: O5 | I7: 3 | J7: 11 | K7: 9 | L7: 15 | M7: 9 | O7: 6.997248 | P7: 0.68525594 | Q7: -13.451115 | R7: 0.3719314 | S7: -2.8735926 | U7: -0.65509538 | V7: 1.78486604 | W7: 14.26990398 | X7: 17.59600316 | Y7: -112.8138381 | Z7: -118.193627 | AA7: -74.19100972 | AB7: -46.21396606 | AC7: -212.1310599 | AD7: -67.15185248 | AE7: -96.70822446 | AF7: -137.4579762 | AG7: -75.62600606 | AH7: 32.8337129 | AI7: -114.8269473 | AK7: 8.0185442 | AM7: O5 | AN7: 1000 | AO7: =SUM(Y38:Y52) -> 1004.419838 | AP7: -4.419838411 | AQ7: 4.419838411
A8: O6 | B8: 82 | C8: 33 | D8: 24 | E8: 33 | F8: 73 | H8: O6 | I8: 2 | J8: 10 | K8: =RANK(D8,D$3:D$17,D$1) -> 10 | L8: 11 | M8: 3 | O8: -1.2065544 | P8: 3.726315 | Q8: -3.7909622 | R8: 3.6057258 | S8: -0.13893591 | U8: 71.8944689 | V8: -3.22481714 | W8: 42.18375969 | X8: 7.44138558 | Y8: 56.08660581 | Z8: 36.18659527 | AA8: -5.33109515 | AB8: -17.58831544 | AC8: 24.5566497 | AD8: 15.17943788 | AE8: -2.79243886 | AF8: 9.36329295 | AG8: -0.96993737 | AH8: 3.50700928 | AI8: 8.86546892 | AK8: 2.3527465 | AM8: O6 | AN8: 1000 | AO8: =SUM(Z38:Z52) -> 1002.477382 | AP8: -2.477382117 | AQ8: 2.477382117
A9: O7 | B9: 12 | C9: 19 | D9: 11 | E9: 69 | F9: 55 | H9: O7 | I9: 15 | J9: 12 | K9: 13 | L9: 5 | M9: 5 | O9: 7.4041033 | P9: -1.0177091 | Q9: 6.4475803 | R9: 1.0436293 | S9: -8.475552 | U9: -29.1860356 | V9: -0.6330599 | W9: 66.0082413 | X9: 130.7136513 | Y9: 8.420204 | Z9: 55.1601849 | AA9: 145.5079707 | AB9: 96.9635341 | AC9: 24.8137161 | AD9: -44.8630942 | AE9: 99.2564728 | AF9: -0.6029002 | AG9: 30.1560399 | AH9: -17.8588236 | AI9: 102.3070871 | AK9: 6.2123208 | AM9: O7 | AN9: 1000 | AO9: =SUM(AA38:AA52) -> 1001.848378 | AP9: -1.848377948 | AQ9: 1.848377948
A10: O8 | B10: 39 | C10: 97 | D10: 57 | E10: 56 | F10: 67 | H10: O8 | I10: 10 | J10: 1 | K10: 8 | L10: 6 | M10: 4 | O10: -1.4721919 | P10: -0.50534075 | Q10: 5.805893 | R10: 0.42072567 | S10: -0.20020212 | U10: -1.16483398 | V10: -0.90834554 | W10: 7.58200503 | X10: 15.58943519 | Y10: 46.78677902 | Z10: 54.08851471 | AA10: 48.43225925 | AB10: 32.94342979 | AC10: 84.95627453 | AD10: 17.95772297 | AE10: 54.37797614 | AF10: 49.49828118 | AG10: 34.73934127 | AH10: -14.89662142 | AI10: 56.95882501 | AK10: 2.0215077 | AM10: O8 | AN10: 1000 | AO10: =SUM(AB38:AB52) -> 1002.181546 | AP10: -2.181545893 | AQ10: 2.181545893
A11: O9 | B11: 90 | C11: 37 | D11: 1 | E11: 6 | F11: 29 | H11: O9 | I11: 1 | J11: 9 | K11: 15 | L11: 14 | M11: 10 | O11: -0.11254987 | P11: 0.1884886 | Q11: -0.04555798 | R11: -0.3678226 | S11: -0.38078427 | U11: -6.16995468 | V11: -6.58107361 | W11: -3.6641131 | X11: -5.1670636 | Y11: -7.61869426 | Z11: -3.98419495 | AA11: -3.76167294 | AB11: -5.03154662 | AC11: -8.05688127 | AD11: -4.84295962 | AE11: -8.39199743 | AF11: -5.99130877 | AG11: -6.3012373 | AH11: -5.27839739 | AI11: -4.41429092 | AK11: -0.29463929 | AM11: O9 | AN11: 1000 | AO11: =SUM(AC38:AC52) -> 1005.140799 | AP11: -5.14079936 | AQ11: 5.14079936
A12: O10 | B12: 74 | C12: 47 | D12: 82 | E12: 76 | F12: 24 | H12: O10 | I12: 4 | J12: 8 | K12: 5 | L12: 3 | M12: 12 | O12: -2.766588 | P12: 4.759859 | Q12: -3.321956 | R12: 3.5360558 | S12: 1.5978234 | U12: 93.5095748 | V12: 8.7473252 | W12: 40.9454104 | X12: -4.604383 | Y12: 81.5823286 | Z12: 52.535938 | AA12: -1.896544 | AB12: -21.8740406 | AC12: 55.7258182 | AD12: 40.1847882 | AE12: -1.1252832 | AF12: 42.7534242 | AG12: 7.1464372 | AH12: 12.7548076 | AI12: 25.690367 | AK12: 3.3421295 | AM12: O10 | AN12: 1000 | AO12: =SUM(AD38:AD52) -> 1004.738733 | AP12: -4.738732575 | AQ12: 4.738732575
A13: O11 | B13: 43 | C13: 97 | D13: 15 | E13: 28 | F13: 46 | H13: O11 | I13: 9 | J13: 1 | K13: 11 | L13: 13 | M13: 6 | O13: -0.9045403 | P13: -0.20013133 | Q13: -0.23816174 | R13: -1.0347453 | S13: -0.91221267 | U13: -29.00959757 | V13: -28.75292682 | W13: -19.7068523 | X13: -26.030193 | Y13: -30.78961472 | Z13: -20.31084761 | AA13: -28.80057293 | AB13: -21.00815073 | AC13: -29.88670927 | AD13: -20.46080848 | AE13: -29.88573809 | AF13: -30.71827315 | AG13: -21.0534161 | AH13: -23.17005903 | AI13: -30.69689107 | AK13: 0.23674586 | AM13: O11 | AN13: 1000 | AO13: =SUM(AE38:AE52) -> 1004.929419 | AP13: -4.929418657 | AQ13: 4.929418657
A14: O12 | B14: 49 | C14: 9 | D14: 13 | E14: 72 | F14: 7 | H14: O12 | I14: 8 | J14: 14 | K14: 12 | L14: 4 | M14: 15 | O14: -0.8116015 | P14: -0.566881 | Q14: -0.3839207 | R14: -1.159503 | S14: -0.56874084 | U14: -31.4488448 | V14: -25.76916606 | W14: -22.96491044 | X14: -27.50647788 | Y14: -34.63699436 | Z14: -25.59197552 | AA14: -32.6087828 | AB14: -20.98624296 | AC14: -33.5927914 | AD14: -20.00445658 | AE14: -30.58040624 | AF14: -32.205319 | AG14: -20.56954328 | AH14: -20.13033528 | AI14: -35.12426752 | AK14: 0.3594529 | AM14: O12 | AN14: 1000 | AO14: =SUM(AF38:AF52) -> 1004.592135 | AP14: -4.592134754 | AQ14: 4.592134754
A15: O13 | B15: 72 | C15: 97 | D15: 60 | E15: 49 | F15: 38 | H15: O13 | I15: 5 | J15: 1 | K15: 7 | L15: 8 | M15: 7 | O15: 0.25864553 | P15: -0.02443838 | Q15: -0.545589 | R15: -0.20492375 | S15: -0.32686037 | U15: -5.37976871 | V15: -3.95248707 | W15: -2.37341482 | X15: -2.24828459 | Y15: -10.41878617 | Z15: -8.4177251 | AA15: -6.16515521 | AB15: -4.33967906 | AC15: -14.28267109 | AD15: -6.42596561 | AE15: -8.32327858 | AF15: -10.54264163 | AG15: -6.47774632 | AH15: -1.94992826 | AI15: -8.7455008 | AK15: -0.00043696165 | AM15: O13 | AN15: 1000 | AO15: =SUM(AG38:AG52) -> 1003.392759 | AP15: -3.392759151 | AQ15: 3.392759151
A16: O14 | B16: 38 | C16: 80 | D16: 96 | E16: 89 | F16: 24 | H16: O14 | I16: 11 | J16: 5 | K16: 1 | L16: 1 | M16: 12 | O16: -0.12135562 | P16: -0.27226263 | Q16: -0.16899464 | R16: 0.2583862 | S16: -0.06029734 | U16: -2.36626239 | V16: -4.21456776 | W16: -0.73874701 | X16: -1.59711592 | Y16: -1.54679061 | Z16: -1.99392776 | AA16: -6.29397188 | AB16: -1.52864811 | AC16: -2.09220549 | AD16: -3.4569062 | AE16: -0.22616769 | AF16: -6.68137276 | AG16: -0.41699499 | AH16: -3.33040149 | AI16: -6.83819337 | AK16: -0.17068434 | AM16: O14 | AN16: 1000 | AO16: =SUM(AH38:AH52) -> 1004.302756 | AP16: -4.302756425 | AQ16: 4.302756425
A17: O15 | B17: 34 | C17: 7 | D17: 4 | E17: 56 | F17: 34 | H17: O15 | I17: 12 | J17: 15 | K17: 14 | L17: 6 | M17: 8 | O17: -0.7784459 | P17: -0.2779017 | Q17: -0.6307633 | R17: -0.990966 | S17: -0.43322337 | U17: -24.7777838 | V17: -22.35731928 | W17: -19.62960647 | X17: -25.57956994 | Y17: -29.83262643 | Z17: -22.84383791 | AA17: -30.33237865 | AB17: -20.78715658 | AC17: -30.9467684 | AD17: -16.66239214 | AE17: -29.70420932 | AF17: -28.14956515 | AG17: -19.54576589 | AH17: -16.77282314 | AI17: -31.75214546 | AK17: 0.29020157 | AM17: O15 | AN17: 1000 | AO17: =SUM(AI38:AI52) -> 1004.794395 | AP17: -4.794395385 | AQ17: 4.794395385
AN18: szum | AO18: szum | AP18: hiba
U19: Activation | AK19: Szórás | AN19: =SUM(AN3:AN17) -> 15000 | AO19: =SUM(AO3:AO17) -> 15056.83551 | AP19: =SUMSQ(AP3:AP17) -> 238.5290391 | AQ19: =SUM(AQ3:AQ17)/15 -> 3.78903404
U20: =IF(U3<0, 0, U3) -> 0 | V20: =IF(V3<0, 0, V3) -> 69.9052999 | W20: 0 | X20: 0 | Y20: 0 | Z20: 0 | AA20: 0 | AB20: 25.778136 | AC20: 9.7055853 | AD20: 44.1454782 | AE20: 21.5366727 | AF20: 38.3540004 | AG20: 52.5019685 | AH20: 47.2367213 | AI20: 0 | AK20: =STDEV(U20:AI20) -> 24.11987047 | AP20: hiba2
U21: =IF(U4<0, 0, U4) -> 116.5406258 | V21: 13.1364459 | W21: 50.8619592 | X21: 0 | Y21: 101.3093859 | Z21: 64.8109531 | AA21: 0 | AB21: 0 | AC21: 69.291191 | AD21: 50.9506347 | AE21: 0 | AF21: 54.5420624 | AG21: 9.681911 | AH21: 17.7930545 | AI21: 32.9638511 | AK21: =STDEV(U21:AI21) -> 37.89255914 | AP21: =ABS(AN19-AO19) -> 56.83551061
U22: =IF(U5<0, 0, U5) -> 0 | V22: 0 | W22: 0 | X22: 0 | Y22: 0 | Z22: 0 | AA22: 0 | AB22: 0 | AC22: 0 | AD22: 0 | AE22: 0 | AF22: 0 | AG22: 0 | AH22: 0 | AI22: 0 | AK22: 0 | AP22: hiba3
U23: =IF(U6<0, 0, U6) -> 0 | V23: 0 | W23: 0 | X23: 0 | Y23: 0 | Z23: 0 | AA23: 0 | AB23: 0 | AC23: 0 | AD23: 0 | AE23: 0 | AF23: 0 | AG23: 0 | AH23: =IF(AH6<0, 0, AH6) -> 0 | AI23: 0 | AK23: 0 | AP23: =AP19*AP21 -> 13556.91973
U24: =IF(U7<0, 0, U7) -> 0 | V24: 1.78486604 | W24: 14.26990398 | X24: 17.59600316 | Y24: 0 | Z24: 0 | AA24: =IF(AA7<0, 0, AA7) -> 0 | AB24: 0 | AC24: 0 | AD24: 0 | AE24: 0 | AF24: 0 | AG24: 0 | AH24: 32.8337129 | AI24: 0 | AK24: 9.635532495 | AN24: szórás | AO24: szórás
U25: =IF(U8<0, 0, U8) -> 71.8944689 | V25: 0 | W25: 42.18375969 | X25: 7.44138558 | Y25: 56.08660581 | Z25: 36.18659527 | AA25: 0 | AB25: 0 | AC25: 24.5566497 | AD25: 15.17943788 | AE25: 0 | AF25: 9.36329295 | AG25: 0 | AH25: 3.50700928 | AI25: 8.86546892 | AK25: 23.02090777 | AN25: =STDEV(AN3:AN17) -> 0 | AO25: =STDEV(AO3:AO17) -> 1.286672194
U26: =IF(U9<0, 0, U9) -> 0 | V26: 0 | W26: 66.0082413 | X26: 130.7136513 | Y26: 8.420204 | Z26: 55.1601849 | AA26: 145.5079707 | AB26: 96.9635341 | AC26: =IF(AC9<0, 0, AC9) -> 24.8137161 | AD26: 0 | AE26: =IF(AE9<0, 0, AE9) -> 99.2564728 | AF26: 0 | AG26: 30.1560399 | AH26: 0 | AI26: 102.3070871 | AK26: 52.46658702
U27: =IF(U10<0, 0, U10) -> 0 | V27: 0 | W27: 7.58200503 | X27: 15.58943519 | Y27: 46.78677902 | Z27: 54.08851471 | AA27: 48.43225925 | AB27: 32.94342979 | AC27: 84.95627453 | AD27: 17.95772297 | AE27: 54.37797614 | AF27: 49.49828118 | AG27: 34.73934127 | AH27: 0 | AI27: 56.95882501 | AK27: 25.79569947
U28: =IF(U11<0, 0, U11) -> 0 | V28: 0 | W28: 0 | X28: 0 | Y28: 0 | Z28: 0 | AA28: 0 | AB28: 0 | AC28: 0 | AD28: 0 | AE28: =IF(AE11<0, 0, AE11) -> 0 | AF28: 0 | AG28: 0 | AH28: 0 | AI28: 0 | AK28: 0
U29: =IF(U12<0, 0, U12) -> 93.5095748 | V29: 8.7473252 | W29: 40.9454104 | X29: 0 | Y29: 81.5823286 | Z29: 52.535938 | AA29: 0 | AB29: 0 | AC29: 55.7258182 | AD29: 40.1847882 | AE29: 0 | AF29: 42.7534242 | AG29: 7.1464372 | AH29: 12.7548076 | AI29: 25.690367 | AK29: 30.62569869
U30: =IF(U13<0, 0, U13) -> 0 | V30: 0 | W30: 0 | X30: 0 | Y30: 0 | Z30: 0 | AA30: 0 | AB30: 0 | AC30: 0 | AD30: 0 | AE30: =IF(AE13<0, 0, AE13) -> 0 | AF30: 0 | AG30: 0 | AH30: 0 | AI30: 0 | AK30: 0
U31: =IF(U14<0, 0, U14) -> 0 | V31: 0 | W31: 0 | X31: 0 | Y31: 0 | Z31: 0 | AA31: 0 | AB31: 0 | AC31: 0 | AD31: 0 | AE31: =IF(AE14<0, 0, AE14) -> 0 | AF31: 0 | AG31: 0 | AH31: 0 | AI31: 0 | AK31: 0
U32: =IF(U15<0, 0, U15) -> 0 | V32: 0 | W32: 0 | X32: 0 | Y32: 0 | Z32: 0 | AA32: 0 | AB32: 0 | AC32: 0 | AD32: 0 | AE32: 0 | AF32: 0 | AG32: 0 | AH32: 0 | AI32: =IF(AI15<0, 0, AI15) -> 0 | AK32: 0
U33: =IF(U16<0, 0, U16) -> 0 | V33: 0 | W33: 0 | X33: 0 | Y33: 0 | Z33: 0 | AA33: 0 | AB33: 0 | AC33: 0 | AD33: 0 | AE33: 0 | AF33: 0 | AG33: 0 | AH33: 0 | AI33: 0 | AK33: 0
U34: =IF(U17<0, 0, U17) -> 0 | V34: 0 | W34: 0 | X34: 0 | Y34: 0 | Z34: 0 | AA34: 0 | AB34: 0 | AC34: 0 | AD34: 0 | AE34: 0 | AF34: 0 | AG34: 0 | AH34: 0 | AI34: 0 | AK34: 0
U37: Y0 - szorzatok | AK37: Szórás
U38: =U20*$AK3 -> 0 | V38: =V20*$AK3 -> 903.621352 | W38: =W20*$AK3 -> 0 | X38: 0 | Y38: 0 | Z38: 0 | AA38: 0 | AB38: =AB20*$AK3 -> 333.2175692 | AC38: 125.4579284 | AD38: 570.6405202 | AE38: 278.3908707 | AF38: 495.77777 | AG38: 678.6595555 | AH38: 610.5990537 | AI38: =AI20*$AK3 -> 0 | AK38: =STDEV(U38:AI38) -> 311.7822253
U39: =U21*$AK4 -> 521.0076521 | V39: =V21*$AK4 -> 58.72792246 | W39: 227.3839682 | X39: 0 | Y39: 452.9147233 | Z39: 289.7444756 | AA39: =AA21*$AK4 -> 0 | AB39: 0 | AC39: 309.7738706 | AD39: 227.7804017 | AE39: 0 | AF39: 243.8362732 | AG39: 43.28404523 | AH39: 79.54580204 | AI39: 147.3685125 | AK39: =STDEV(U39:AI39) -> 169.4028424
U40: 0 | V40: 0 | W40: 0 | X40: 0 | Y40: 0 | Z40: 0 | AA40: 0 | AB40: 0 | AC40: 0 | AD40: 0 | AE40: 0 | AF40: 0 | AG40: 0 | AH40: 0 | AI40: 0 | AK40: 0
U41: 0 | V41: 0 | W41: 0 | X41: 0 | Y41: 0 | Z41: 0 | AA41: 0 | AB41: 0 | AC41: 0 | AD41: 0 | AE41: 0 | AF41: 0 | AG41: 0 | AH41: 0 | AI41: 0 | AK41: 0
U42: 0 | V42: 14.31202723 | W42: =W24*$AK7 -> 114.4238558 | X42: 141.0943291 | Y42: 0 | Z42: 0 | AA42: 0 | AB42: 0 | AC42: 0 | AD42: 0 | AE42: 0 | AF42: 0 | AG42: 0 | AH42: 263.2785781 | AI42: 0 | AK42: 77.2629432
U43: 169.1494601 | V43: 0 | W43: 99.24769297 | X43: 17.50769388 | Y43: 131.9575655 | Z43: 85.13788537 | AA43: 0 | AB43: 0 | AC43: 57.77557163 | AD43: 35.71336934 | AE43: 0 | AF43: 22.02945472 | AG43: 0 | AH43: 8.251103809 | AI43: 20.85820097 | AK43: 54.16236019
U44: 0 | V44: 0 | W44: 410.0643704 | X44: 812.0351348 | Y44: 52.30900845 | Z44: 342.672764 | AA44: 903.9421929 | AB44: 602.3685797 | AC44: 154.1507647 | AD44: 0 | AE44: 616.6130505 | AF44: 0 | AG44: 187.3389939 | AH44: 0 | AI44: 635.5644452 | AK44: 325.9392699
U45: 0 | V45: 0 | W45: 15.32708155 | X45: 31.51416328 | Y45: 94.57983405 | Z45: 109.340349 | AA45: 97.906185 | AB45: 66.59539698 | AC45: 171.7397631 | AD45: 36.30167526 | AE45: 109.9254975 | AF45: 100.0611565 | AG45: 70.22584587 | AH45: 0 | AI45: 115.1427033 | AK45: 52.14620511
U46: 0 | V46: 0 | W46: 0 | X46: 0 | Y46: 0 | Z46: 0 | AA46: 0 | AB46: 0 | AC46: 0 | AD46: 0 | AE46: 0 | AF46: 0 | AG46: 0 | AH46: 0 | AI46: 0 | AK46: 0
U47: 312.5211085 | V47: 29.2346936 | W47: 136.844864 | X47: 0 | Y47: 272.6587071 | Z47: 175.5819082 | AA47: 0 | AB47: 0 | AC47: 186.2429009 | AD47: 134.3027661 | AE47: 0 | AF47: 142.8874802 | AG47: 23.88431859 | AH47: 42.62821875 | AI47: 85.86053342 | AK47: 102.355051
U48: 0 | V48: 0 | W48: 0 | X48: 0 | Y48: 0 | Z48: 0 | AA48: 0 | AB48: 0 | AC48: 0 | AD48: 0 | AE48: 0 | AF48: 0 | AG48: 0 | AH48: 0 | AI48: 0 | AK48: 0
U49: 0 | V49: 0 | W49: 0 | X49: 0 | Y49: 0 | Z49: 0 | AA49: 0 | AB49: 0 | AC49: 0 | AD49: 0 | AE49: 0 | AF49: 0 | AG49: 0 | AH49: 0 | AI49: 0 | AK49: 0
U50: 0 | V50: 0 | W50: 0 | X50: 0 | Y50: 0 | Z50: 0 | AA50: 0 | AB50: 0 | AC50: 0 | AD50: 0 | AE50: 0 | AF50: 0 | AG50: 0 | AH50: 0 | AI50: 0 | AK50: 0
U51: 0 | V51: 0 | W51: 0 | X51: 0 | Y51: 0 | Z51: 0 | AA51: 0 | AB51: 0 | AC51: 0 | AD51: 0 | AE51: 0 | AF51: 0 | AG51: 0 | AH51: 0 | AI51: 0 | AK51: 0
U52: 0 | V52: 0 | W52: 0 | X52: 0 | Y52: 0 | Z52: 0 | AA52: 0 | AB52: 0 | AC52: 0 | AD52: 0 | AE52: 0 | AF52: 0 | AG52: 0 | AH52: 0 | AI52: 0 | AK52: 0

Sheet nn - ranked data - new (2)
A1: irány | B1: 0 | C1: 0 | D1: 0 | E1: 0 | F1: 0 | M1: súlyok | U1: 2. layer vektor | AK1: 2 layer súlyok | AO1: minden becslés nem lehet 1000 ALATT sem - kiegyensúlyozatlan tanulás! - a csak felett és csak alatt hibájú modellek egyesíthetők!
A2: rnd(1-100) | B2: A1 | C2: A2 | D2: A3 | E2: A4 | F2: A5 | H2: rank = 0 | I2: =B2 -> A1 | J2: A2 | K2: A3 | L2: A4 | M2: A5 | O2: w1 | P2: w2 | Q2: w3 | R2: w4 | S2: w5 | U2: O1 | V2: O2 | W2: O3 | X2: O4 | Y2: O5 | Z2: O6 | AA2: O7 | AB2: O8 | AC2: O9 | AD2: O10 | AE2: O11 | AF2: O12 | AG2: O13 | AH2: O14 | AI2: O15 | AN2: Y0 | AO2: Ybecslés | AP2: eltérés | AQ2: MAE
A3: O1 | B3: 70 | C3: 10 | D3: 93 | E3: 33 | F3: 29 | H3: =A3 -> O1 | I3: =RANK(B3,B$3:B$17,B$1) -> 6 | J3: =RANK(C3,C$3:C$17,C$1) -> 13 | K3: =RANK(D3,D$3:D$17,D$1) -> 2 | L3: 11 | M3: 10 | O3: 0.071466111 | P3: -1.4229949 | Q3: 1.0439334 | R3: 3.3967988 | S3: 5.4455462 | U3: =$I$3*$O3+$J$3*$P3+$K$3*$Q3+$L$3*$R3+$M$3*$S3 -> 75.83797857 | V3: =$I$4*$O3+$J$4*$P3+$K$4*$Q3+$L$4*$R3+$M$4*$S3 -> 79.59806804 | W3: =$I$5*$O3+$J$5*$P3+$K$5*$Q3+$L$5*$R3+$M$5*$S3 -> 33.08463288 | X3: =$I$6*$O3+$J$6*$P3+$K$6*$Q3+$L$6*$R3+$M$6*$S3 -> 43.03442795 | Y3: =$I$7*$O3+$J$7*$P3+$K$7*$Q3+$L$7*$R3+$M$7*$S3 -> 93.91875283 | Z3: =$I$8*$O3+$J$8*$P3+$K$8*$Q3+$L$8*$R3+$M$8*$S3 -> 50.05374262 | AA3: =$I$9*$O3+$J$9*$P3+$K$9*$Q3+$L$9*$R3+$M$9*$S3 -> 41.77891207 | AB3: =$I$10*$O3+$J$10*$P3+$K$10*$Q3+$L$10*$R3+$M$10*$S3 -> 49.80611101 | AC3: =$I$11*$O3+$J$11*$P3+$K$11*$Q3+$L$11*$R3+$M$11*$S3 -> 104.9341582 | AD3: =$I$12*$O3+$J$12*$P3+$K$12*$Q3+$L$12*$R3+$M$12*$S3 -> 69.65852304 | AE3: =$I$13*$O3+$J$13*$P3+$K$13*$Q3+$L$13*$R3+$M$13*$S3 -> 87.5351291 | AF3: =$I$14*$O3+$J$14*$P3+$K$14*$Q3+$L$14*$R3+$M$14*$S3 -> 88.44738929 | AG3: =$I$15*$O3+$J$15*$P3+$K$15*$Q3+$L$15*$R3+$M$15*$S3 -> 71.53508325 | AH3: =$I$16*$O3+$J$16*$P3+$K$16*$Q3+$L$16*$R3+$M$16*$S3 -> 63.45843932 | AI3: =$I$17*$O3+$J$17*$P3+$K$17*$Q3+$L$17*$R3+$M$17*$S3 -> 58.07289983 | AK3: 1.9228679 | AM3: O1 | AN3: 1000 | AO3: =SUM(U38:U52) -> 999.9973765 | AP3: =AN3-AO3 -> 0.002623455642 | AQ3: =ABS(AP3) -> 0.002623455642
A4: O2 | B4: 17 | C4: 74 | D4: 84 | E4: 78 | F4: 23 | H4: =A4 -> O2 | I4: =RANK(B4,B$3:B$17,B$1) -> 13 | J4: 6 | K4: 4 | L4: 2 | M4: 14 | O4: -0.16819525 | P4: 0.54898697 | Q4: -0.95866883 | R4: -0.18614048 | S4: -0.33670107 | U4: =$I$3*$O4+$J$3*$P4+$K$3*$Q4+$L$3*$R4+$M$3*$S4 -> -1.20423453 | V4: =$I$4*$O4+$J$4*$P4+$K$4*$Q4+$L$4*$R4+$M$4*$S4 -> -7.81338769 | W4: =$I$5*$O4+$J$5*$P4+$K$5*$Q4+$L$5*$R4+$M$5*$S4 -> -2.40857032 | X4: =$I$6*$O4+$J$6*$P4+$K$6*$Q4+$L$6*$R4+$M$6*$S4 -> -8.25946506 | Y4: =$I$7*$O4+$J$7*$P4+$K$7*$Q4+$L$7*$R4+$M$7*$S4 -> -8.91616538 | Z4: =$I$8*$O4+$J$8*$P4+$K$8*$Q4+$L$8*$R4+$M$8*$S4 -> -7.49085759 | AA4: =$I$9*$O4+$J$9*$P4+$K$9*$Q4+$L$9*$R4+$M$9*$S4 -> -11.01198765 | AB4: =$I$10*$O4+$J$10*$P4+$K$10*$Q4+$L$10*$R4+$M$10*$S4 -> -11.26596333 | AC4: =$I$11*$O4+$J$11*$P4+$K$11*$Q4+$L$11*$R4+$M$11*$S4 -> -15.58032239 | AD4: =$I$12*$O4+$J$12*$P4+$K$12*$Q4+$L$12*$R4+$M$12*$S4 -> -5.67306367 | AE4: =$I$13*$O4+$J$13*$P4+$K$13*$Q4+$L$13*$R4+$M$13*$S4 -> -15.95016007 | AF4: =$I$14*$O4+$J$14*$P4+$K$14*$Q4+$L$14*$R4+$M$14*$S4 -> -10.95884835 | AG4: =$I$15*$O4+$J$15*$P4+$K$15*$Q4+$L$15*$R4+$M$15*$S4 -> -10.84870242 | AH4: =$I$16*$O4+$J$16*$P4+$K$16*$Q4+$L$16*$R4+$M$16*$S4 -> -4.29043505 | AI4: =$I$17*$O4+$J$17*$P4+$K$17*$Q4+$L$17*$R4+$M$17*$S4 -> -11.01535351 | AK4: 0.098682396 | AM4: O2 | AN4: 1000 | AO4: =SUM(V38:V52) -> 999.9944398 | AP4: =AN4-AO4 -> 0.005560197253 | AQ4: =ABS(AP4) -> 0.005560197253
A5: O3 | B5: 57 | C5: 57 | D5: 89 | E5: 37 | F5: 85 | H5: O3 | I5: 7 | J5: 7 | K5: 3 | L5: 10 | M5: 1 | O5: 0.68557113 | P5: -1.0420754 | Q5: 1.7639039 | R5: 4.255033 | S5: 6.8217688 | U5: 109.1173054 | V5: =$I$4*$O5+$J$4*$P5+$K$4*$Q5+$L$4*$R5+$M$4*$S5 -> 113.7304171 | W5: 52.16828061 | X5: 67.95195222 | Y5: 131.6904333 | Z5: 75.86009666 | AA5: 76.09342185 | AB5: 72.7421403 | AC5: 145.553601 | AD5: 97.85152542 | AE5: 120.7770495 | AF5: 131.4090242 | AG5: 96.52575315 | AH5: 90.21106793 | AI5: 97.39472556 | AK5: 2.8224578 | AM5: O3 | AN5: 1000 | AO5: =SUM(W38:W52) -> 999.997195 | AP5: 0.002805029043 | AQ5: =ABS(AP5) -> 0.002805029043
A6: O4 | B6: 13 | C6: 88 | D6: 62 | E6: 44 | F6: 75 | H6: O4 | I6: 14 | J6: 4 | K6: 6 | L6: 9 | M6: 2 | O6: -2.032047 | P6: -4.1883936 | Q6: -2.9056628 | R6: 2.0592763 | S6: 4.6680121 | U6: -3.1205641 | V6: 6.3010982 | W6: -26.9992975 | X6: -34.7666983 | Y6: -5.4181824 | Z6: -38.3485824 | AA6: -84.8786026 | AB6: -16.7264598 | AC6: -7.8025422 | AD6: 6.0303233 | AE6: 0.3395571 | AF6: -31.5045533 | AG6: 14.4620269 | AH6: 11.8752737 | AI6: -78.1899926 | AK6: 0.01896199 | AM6: O4 | AN6: 1000 | AO6: =SUM(X38:X52) -> 999.9963414 | AP6: 0.003658617673 | AQ6: 0.003658617673
A7: O5 | B7: 76 | C7: 25 | D7: 28 | E7: 1 | F7: 33 | H7: O5 | I7: 3 | J7: 11 | K7: 9 | L7: 15 | M7: 9 | O7: 0.21938521 | P7: -7.3004823 | Q7: 6.9019904 | R7: -12.520251 | S7: 6.0413699 | U7: -157.0950398 | V7: 46.19575213 | W7: -148.0228485 | X7: -85.31811306 | Y7: -150.960672 | Z7: -123.1447999 | AA7: -26.98353975 | AB7: -0.8467334 | AC7: -76.82491449 | AD7: 11.91932024 | AE7: -55.91916461 | AF7: 22.91175878 | AG7: -15.76204215 | AH7: 32.78900401 | AI7: -37.03729318 | AK7: -16.44561 | AM7: O5 | AN7: 1000 | AO7: =SUM(Y38:Y52) -> 999.9980097 | AP7: 0.001990325139 | AQ7: 0.001990325139
A8: O6 | B8: 82 | C8: 33 | D8: 24 | E8: 33 | F8: 73 | H8: O6 | I8: 2 | J8: 10 | K8: =RANK(D8,D$3:D$17,D$1) -> 10 | L8: 11 | M8: 3 | O8: 6.2287707 | P8: 2.9473102 | Q8: 3.9449072 | R8: 0.35452768 | S8: -17.869297 | U8: -91.21569432 | V8: -135.0235935 | W8: 61.7432677 | X8: 90.11362892 | Y8: -68.8948687 | Z8: 31.67162888 | AA8: 92.5092299 | AB8: 27.44425288 | AC8: -81.80141198 | AD8: -145.1498806 | AE8: -0.20669646 | AF8: -128.1899495 | AG8: -60.54334346 | AH8: -126.8791004 | AI8: 33.35639228 | AK8: 12.858174 | AM8: O6 | AN8: 1000 | AO8: =SUM(Z38:Z52) -> 999.9973873 | AP8: 0.002612719413 | AQ8: 0.002612719413
A9: O7 | B9: 12 | C9: 19 | D9: 11 | E9: 69 | F9: 55 | H9: O7 | I9: 15 | J9: 12 | K9: 13 | L9: 5 | M9: 5 | O9: -1.3398098 | P9: -5.5686345 | Q9: -5.236702 | R9: 3.2175758 | S9: 5.1516337 | U9: -3.9948405 | V9: 6.781881 | W9: -26.7418244 | X9: -33.1906376 | Y9: -17.7763866 | Z9: -59.8847497 | AA9: -113.1518395 | AB9: -20.9483589 | AC9: -33.4456521 | AD9: -4.6194934 | AE9: -2.4923571 | AF9: -61.3749767 | AG9: 12.8774448 | AH9: 17.2193979 | AI9: -112.4025387 | AK9: 2.763423 | AM9: O7 | AN9: 1000 | AO9: =SUM(AA38:AA52) -> 999.9949708 | AP9: 0.005029171783 | AQ9: 0.005029171783
A10: O8 | B10: 39 | C10: 97 | D10: 57 | E10: 56 | F10: 67 | H10: O8 | I10: 10 | J10: 1 | K10: 8 | L10: 6 | M10: 4 | O10: -2.3247676 | P10: -2.1723914 | Q10: -2.0498433 | R10: -1.8082888 | S10: -2.2423599 | U10: -88.6041562 | V10: -86.4653166 | W10: -57.9548908 | X10: -74.2946908 | Y10: -96.624769 | Z10: -73.4901387 | AA10: -107.8414172 | AB10: -61.6379862 | AC10: -100.3635819 | AD10: -69.2606033 | AE10: -82.6054899 | AF10: -114.4782937 | AG10: -58.3079622 | AH10: -67.2008515 | AI10: -117.9695004 | AK10: -0.45224985 | AM10: O8 | AN10: 1000 | AO10: =SUM(AB38:AB52) -> 999.9970948 | AP10: 0.002905240407 | AQ10: 0.002905240407
A11: O9 | B11: 90 | C11: 37 | D11: 1 | E11: 6 | F11: 29 | H11: O9 | I11: 1 | J11: 9 | K11: 15 | L11: 14 | M11: 10 | O11: -1.6118803 | P11: -0.63161874 | Q11: -2.9043715 | R11: -4.813169 | S11: -7.3334823 | U11: -149.9707504 | V11: -148.6567325 | W11: -79.88278008 | X11: -100.5045138 | Y11: -176.1216662 | Z11: -113.5289689 | AA11: -130.2477154 | AB11: -98.19833694 | AC11: -191.5812105 | AD11: -128.4636232 | AE11: -153.6587187 | AF11: -185.8450733 | AG11: -118.8613488 | AH11: -116.6081051 | AI11: -157.0249181 | AK11: -3.727608 | AM11: O9 | AN11: 1000 | AO11: =SUM(AC38:AC52) -> 999.9978337 | AP11: 0.002166337488 | AQ11: 0.002166337488
A12: O10 | B12: 74 | C12: 47 | D12: 82 | E12: 76 | F12: 24 | H12: O10 | I12: 4 | J12: 8 | K12: 5 | L12: 3 | M12: 12 | O12: 10.005105 | P12: 4.6934209 | Q12: -3.3746359 | R12: -5.2644181 | S12: -16.559416 | U12: -109.2069292 | V12: -97.6323134 | W12: 23.5621766 | X12: 58.0987433 | Y12: -176.7297937 | Z12: -74.3887871 | AA12: 53.4081886 | AB12: -20.0767889 | AC12: -237.6696588 | AD12: -153.8116386 | AE12: -110.1755603 | AF12: -164.1958106 | AG12: -126.9347622 | AH12: -73.8287865 | AI12: -20.8441657 | AK12: -10.762223 | AM12: O10 | AN12: 1000 | AO12: =SUM(AD38:AD52) -> 999.9960521 | AP12: 0.003947926346 | AQ12: 0.003947926346
A13: O11 | B13: 43 | C13: 97 | D13: 15 | E13: 28 | F13: 46 | H13: O11 | I13: 9 | J13: 1 | K13: 11 | L13: 13 | M13: 6 | O13: -0.66877127 | P13: -0.019872345 | Q13: -2.036195 | R13: -4.1161222 | S13: -6.9485941 | U13: -123.1066433 | V13: -122.4706024 | W13: -59.03890641 | X13: -72.60174516 | Y13: -144.8298445 | Z13: -88.02134249 | AA13: -92.06415369 | AB13: -75.48825465 | AC13: -158.5021992 | AD13: -108.7465346 | AE13: -123.638112 | AF13: -150.7561233 | AG13: -99.18623 | AH13: -96.9912921 | AI13: -117.1155564 | AK13: -3.0307405 | AM13: O11 | AN13: 1000 | AO13: =SUM(AE38:AE52) -> 999.9975061 | AP13: 0.002493904023 | AQ13: 0.002493904023
A14: O12 | B14: 49 | C14: 9 | D14: 13 | E14: 72 | F14: 7 | H14: O12 | I14: 8 | J14: 14 | K14: 12 | L14: 4 | M14: 15 | O14: -0.0076796431 | P14: -0.018875912 | Q14: 0.01051213 | R14: 0.00064797141 | S14: 0.0094783129 | U14: -0.1685296401 | V14: -0.03704998888 | W14: -0.1383944687 | X14: -0.09515750291 | Y14: -0.04104040405 | Z14: -0.06343448199 | AA14: -0.154416479 | AB14: 0.03022577706 | AC14: 0.08397382764 | AD14: -0.01348154937 | AE14: 0.09293423583 | AF14: -0.05478777366 | AG14: 0.08784274408 | AH14: -0.05395577789 | AI14: -0.1484102455 | AK14: -0.00021191186 | AM14: O12 | AN14: 1000 | AO14: =SUM(AF38:AF52) -> 999.9936945 | AP14: 0.006305471053 | AQ14: 0.006305471053
A15: O13 | B15: 72 | C15: 97 | D15: 60 | E15: 49 | F15: 38 | H15: O13 | I15: 5 | J15: 1 | K15: 7 | L15: 8 | M15: 7 | O15: -0.56973541 | P15: -4.1206965 | Q15: -4.0305276 | R15: 2.127434 | S15: 3.9388413 | U15: -2.25833516 | V15: 11.14579647 | W15: -19.71142487 | X15: -21.61765874 | Y15: -15.95053443 | Z15: -47.43341392 | AA15: -80.05987145 | AB15: -13.5423022 | AC15: -28.94142891 | AD15: -1.74875404 | AE15: -2.29442899 | AF15: -43.02160998 | AG15: 9.40829435 | AH15: 18.49242999 | AI15: -80.79932442 | AK15: 0.23545659 | AM15: O13 | AN15: 1000 | AO15: =SUM(AG38:AG52) -> 999.9977553 | AP15: 0.00224471145 | AQ15: 0.00224471145
A16: O14 | B16: 38 | C16: 80 | D16: 96 | E16: 89 | F16: 24 | H16: O14 | I16: 11 | J16: 5 | K16: 1 | L16: 1 | M16: 12 | O16: 3.2912252 | P16: -5.8518062 | Q16: -2.0830481 | R16: -4.2584505 | S16: 13.530457 | U16: 27.9693889 | V16: 180.252395 | W16: -53.2272593 | X16: -1.0935011 | Y16: -15.34627 | Z16: -79.0176771 | AA16: -1.5728892 | AB16: 38.967186 | AC16: -4.9344891 | AD16: 105.5253432 | AE16: 26.678577 | AF16: 105.3309906 | AG16: 56.6685781 | AH16: 162.9684316 | AI16: 5.247889 | AK16: 6.8572164 | AM16: O14 | AN16: 1000 | AO16: =SUM(AH38:AH52) -> 999.995638 | AP16: 0.00436200713 | AQ16: 0.00436200713
A17: O15 | B17: 34 | C17: 7 | D17: 4 | E17: 56 | F17: 34 | H17: O15 | I17: 12 | J17: 15 | K17: 14 | L17: 6 | M17: 8 | O17: -1.9470741 | P17: -3.7173631 | Q17: -1.164407 | R17: 0.82560641 | S17: 3.7624376 | U17: -15.63093239 | V17: 2.05156932 | W17: -31.1257797 | X17: -34.15959891 | Y17: -10.96584485 | Z17: -32.34286589 | AA17: -66.01153965 | AB17: -12.49997124 | AC17: -3.68658126 | AD17: 4.27683423 | AE17: -0.74199807 | AF17: -21.85357056 | AG17: 11.33833188 | AH17: 4.80582001 | AI17: -60.37389444 | AK17: 0.15521416 | AM17: O15 | AN17: 1000 | AO17: =SUM(AI38:AI52) -> 999.9947566 | AP17: 0.005243444578 | AQ17: 0.005243444578
AN18: szum | AO18: szum | AP18: hiba
U19: Activation | AK19: Szórás | AN19: =SUM(AN3:AN17) -> 15000 | AO19: =SUM(AO3:AO17) -> 14999.94605 | AP19: =SUMSQ(AP3:AP17) -> 0.0002213898815 | AQ19: =SUM(AQ3:AQ17)/15 -> 0.003596570561
O20: activation weight | U20: =IF(U3<0, U3*$O$21, U3) -> 75.83797857 | V20: =IF(V3<0, V3*$O$21, V3) -> 79.59806804 | W20: 33.08463288 | X20: 43.03442795 | Y20: 93.91875283 | Z20: 50.05374262 | AA20: 41.77891207 | AB20: 49.80611101 | AC20: 104.9341582 | AD20: 69.65852304 | AE20: 87.5351291 | AF20: 88.44738929 | AG20: 71.53508325 | AH20: 63.45843932 | AI20: 58.07289983 | AK20: =STDEV(U20:AI20) -> 21.28597024 | AP20: hiba2
O21: 0.1 | U21: =IF(U4<0, U4*$O$21, U4) -> -0.120423453 | V21: -0.781338769 | W21: -0.240857032 | X21: -0.825946506 | Y21: -0.891616538 | Z21: -0.749085759 | AA21: -1.101198765 | AB21: -1.126596333 | AC21: -1.558032239 | AD21: -0.567306367 | AE21: -1.595016007 | AF21: -1.095884835 | AG21: -1.084870242 | AH21: -0.429043505 | AI21: -1.101535351 | AK21: =STDEV(U21:AI21) -> 0.4254899492 | AP21: =ABS(AN19-AO19) -> 0.05394855842
U22: =IF(U5<0, U5*$O$21, U5) -> 109.1173054 | V22: 113.7304171 | W22: 52.16828061 | X22: 67.95195222 | Y22: 131.6904333 | Z22: 75.86009666 | AA22: 76.09342185 | AB22: 72.7421403 | AC22: 145.553601 | AD22: 97.85152542 | AE22: 120.7770495 | AF22: 131.4090242 | AG22: 96.52575315 | AH22: 90.21106793 | AI22: 97.39472556 | AK22: 26.82161843 | AP22: hiba3
U23: =IF(U6<0, U6*$O$21, U6) -> -0.31205641 | V23: 6.3010982 | W23: -2.69992975 | X23: -3.47666983 | Y23: -0.54181824 | Z23: -3.83485824 | AA23: -8.48786026 | AB23: -1.67264598 | AC23: -0.78025422 | AD23: 6.0303233 | AE23: 0.3395571 | AF23: -3.15045533 | AG23: 14.4620269 | AH23: 11.8752737 | AI23: -7.81899926 | AK23: 6.57241452 | AP23: =AP19*AP21 -> 1.194366496e-05
U24: =IF(U7<0, U7*$O$21, U7) -> -15.70950398 | V24: 46.19575213 | W24: -14.80228485 | X24: -8.531811306 | Y24: -15.0960672 | Z24: -12.31447999 | AA24: -2.698353975 | AB24: -0.08467334 | AC24: -7.682491449 | AD24: 11.91932024 | AE24: -5.591916461 | AF24: 22.91175878 | AG24: -1.576204215 | AH24: 32.78900401 | AI24: -3.703729318 | AK24: 18.637597 | AN24: szórás | AO24: szórás
U25: =IF(U8<0, U8*$O$21, U8) -> -9.121569432 | V25: -13.50235935 | W25: 61.7432677 | X25: 90.11362892 | Y25: -6.88948687 | Z25: 31.67162888 | AA25: 92.5092299 | AB25: 27.44425288 | AC25: -8.180141198 | AD25: -14.51498806 | AE25: -0.020669646 | AF25: -12.81899495 | AG25: -6.054334346 | AH25: -12.68791004 | AI25: 33.35639228 | AK25: 37.83728797 | AN25: =STDEV(AN3:AN17) -> 0 | AO25: =STDEV(AO3:AO17) -> 0.001397959851
U26: =IF(U9<0, U9*$O$21, U9) -> -0.39948405 | V26: 6.781881 | W26: -2.67418244 | X26: -3.31906376 | Y26: -1.77763866 | Z26: -5.98847497 | AA26: -11.31518395 | AB26: -2.09483589 | AC26: -3.34456521 | AD26: -0.46194934 | AE26: -0.24923571 | AF26: -6.13749767 | AG26: 12.8774448 | AH26: 17.2193979 | AI26: -11.24025387 | AK26: 7.854824312
U27: =IF(U10<0, U10*$O$21, U10) -> -8.86041562 | V27: -8.64653166 | W27: -5.79548908 | X27: -7.42946908 | Y27: -9.6624769 | Z27: -7.34901387 | AA27: -10.78414172 | AB27: -6.16379862 | AC27: -10.03635819 | AD27: -6.92606033 | AE27: -8.26054899 | AF27: -11.44782937 | AG27: -5.83079622 | AH27: -6.72008515 | AI27: -11.79695004 | AK27: 2.008851416
U28: =IF(U11<0, U11*$O$21, U11) -> -14.99707504 | V28: -14.86567325 | W28: -7.988278008 | X28: -10.05045138 | Y28: -17.61216662 | Z28: -11.35289689 | AA28: -13.02477154 | AB28: -9.819833694 | AC28: -19.15812105 | AD28: -12.84636232 | AE28: -15.36587187 | AF28: -18.58450733 | AG28: -11.88613488 | AH28: -11.66081051 | AI28: -15.70249181 | AK28: 3.31553328
U29: =IF(U12<0, U12*$O$21, U12) -> -10.92069292 | V29: -9.76323134 | W29: 23.5621766 | X29: 58.0987433 | Y29: -17.67297937 | Z29: -7.43887871 | AA29: 53.4081886 | AB29: -2.00767889 | AC29: -23.76696588 | AD29: -15.38116386 | AE29: -11.01755603 | AF29: -16.41958106 | AG29: -12.69347622 | AH29: -7.38287865 | AI29: -2.08441657 | AK29: 25.04514044
U30: =IF(U13<0, U13*$O$21, U13) -> -12.31066433 | V30: -12.24706024 | W30: -5.903890641 | X30: -7.260174516 | Y30: -14.48298445 | Z30: -8.802134249 | AA30: -9.206415369 | AB30: -7.548825465 | AC30: -15.85021992 | AD30: -10.87465346 | AE30: -12.3638112 | AF30: -15.07561233 | AG30: -9.918623 | AH30: -9.69912921 | AI30: -11.71155564 | AK30: 2.933732868
U31: =IF(U14<0, U14*$O$21, U14) -> -0.01685296401 | V31: -0.003704998888 | W31: -0.01383944687 | X31: -0.009515750291 | Y31: -0.004104040405 | Z31: -0.006343448199 | AA31: -0.0154416479 | AB31: 0.03022577706 | AC31: 0.08397382764 | AD31: -0.001348154937 | AE31: 0.09293423583 | AF31: -0.005478777366 | AG31: 0.08784274408 | AH31: -0.005395577789 | AI31: -0.01484102455 | AK31: 0.04040717357
U32: =IF(U15<0, U15*$O$21, U15) -> -0.225833516 | V32: 11.14579647 | W32: -1.971142487 | X32: -2.161765874 | Y32: -1.595053443 | Z32: -4.743341392 | AA32: -8.005987145 | AB32: -1.35423022 | AC32: -2.894142891 | AD32: -0.174875404 | AE32: -0.229442899 | AF32: -4.302160998 | AG32: 9.40829435 | AH32: 18.49242999 | AI32: -8.079932442 | AK32: 7.298830768
U33: =IF(U16<0, U16*$O$21, U16) -> 27.9693889 | V33: 180.252395 | W33: -5.32272593 | X33: -0.10935011 | Y33: -1.534627 | Z33: -7.90176771 | AA33: -0.15728892 | AB33: 38.967186 | AC33: -0.49344891 | AD33: 105.5253432 | AE33: 26.678577 | AF33: 105.3309906 | AG33: 56.6685781 | AH33: 162.9684316 | AI33: 5.247889 | AK33: 62.96668236
U34: =IF(U17<0, U17*$O$21, U17) -> -1.563093239 | V34: 2.05156932 | W34: -3.11257797 | X34: -3.415959891 | Y34: -1.096584485 | Z34: -3.234286589 | AA34: -6.601153965 | AB34: -1.249997124 | AC34: -0.368658126 | AD34: 4.27683423 | AE34: -0.074199807 | AF34: -2.185357056 | AG34: 11.33833188 | AH34: 4.80582001 | AI34: -6.037389444 | AK34: 4.577384858
U37: Y0 - szorzatok | AK37: Szórás
U38: =U20*$AK3 -> 145.8264146 | V38: =V20*$AK3 -> 153.0565699 | W38: =W20*$AK3 -> 63.61737854 | X38: 82.74952011 | Y38: 180.593355 | Z38: 96.24673496 | AA38: 80.33532891 | AB38: =AB20*$AK3 -> 95.77057208 | AC38: 201.7745244 | AD38: 133.9441379 | AE38: 168.3184899 | AF38: 170.0726457 | AG38: 137.5525153 | AH38: 122.022196 | AI38: =AI20*$AK3 -> 111.6665149 | AK38: =STDEV(U38:AI38) -> 40.93010889
U39: =U21*$AK4 -> -0.01188367488 | V39: =V21*$AK4 -> -0.07710438181 | W39: -0.02376834901 | X39: -0.08150638018 | Y39: -0.08798685628 | Z39: -0.07392157751 | AA39: =AA21*$AK4 -> -0.1086689326 | AB39: -0.1111752255 | AC39: -0.1537503544 | AD39: -0.05598315156 | AE39: -0.1574000012 | AF39: -0.1081445413 | AG39: -0.1070575948 | AH39: -0.04233904106 | AI39: -0.1087021477 | AK39: =STDEV(U39:AI39) -> 0.04198836766
U40: 307.9789897 | V40: 320.9993028 | W40: 147.2427705 | X40: 191.7915176 | Y40: 371.6906906 | Z40: 214.1119215 | AA40: 214.770472 | AB40: 205.3116213 | AC40: 410.8188965 | AD40: 276.1818012 | AE40: 340.8881253 | AF40: 370.8964255 | AG40: 272.4398649 | AH40: 254.6169323 | AI40: 274.8925028 | AK40: 75.70288615
U41: -0.005917210526 | V41: 0.1194813611 | W41: -0.05119604092 | X41: -0.06592457855 | Y41: -0.01027395205 | Z41: -0.0727165436 | AA41: -0.1609467214 | AB41: -0.03171669635 | AC41: -0.01479517272 | AD41: 0.1143469301 | AE41: 0.006438678335 | AF41: -0.05973890246 | AG41: 0.2742288095 | AH41: 0.2251788211 | AI41: -0.1482637858 | AK41: 0.1246260584
U42: 258.3523758 | V42: -759.7173232 | W42: =W24*$AK7 -> 243.4326038 | X42: 140.3108413 | Y42: 248.2640337 | Z42: 202.5191352 | AA42: 44.37607711 | AB42: 1.392504727 | AC42: 126.3432582 | AD42: -196.0204921 | AE42: 91.96247727 | AF42: -376.7978493 | AG42: 25.9216398 | AH42: -539.2351722 | AI42: 60.91008791 | AK42: 306.5066517
U43: -117.2867269 | V43: -173.615686 | W43: =W25*$AK8 -> 793.9056794 | X43: 1158.69672 | Y43: -88.58622095 | Z43: 407.239315 | AA43: 1189.499775 | AB43: 352.8829788 | AC43: -105.1816789 | AD43: -186.636242 | AE43: -0.2657739048 | AF43: -164.8288675 | AG43: -77.84768448 | AH43: =AH25*$AK8 -> -163.143355 | AI43: 428.9022959 | AK43: 486.5184324
U44: -1.103943412 | V44: 18.74120594 | W44: -7.389897261 | X44: -9.171977133 | Y44: -4.912367559 | Z44: -16.54868947 | AA44: -31.26863958 | AB44: -5.78891768 | AC44: -9.242448426 | AD44: -1.276561431 | AE44: -0.6887436934 | AF44: -16.96050222 | AG44: 35.58582714 | AH44: 47.5844802 | AI44: -31.06157607 | AK44: 21.70620216
U45: 4.007121635 | V45: 3.910392646 | W45: 2.621009067 | X45: 3.359976277 | Y45: 4.369853729 | Z45: 3.32359042 | AA45: 4.877126475 | AB45: 2.787577001 | AC45: 4.538941486 | AD45: 3.132309745 | AE45: 3.735832042 | AF45: 5.177279115 | AG45: 2.636976716 | AH45: 3.039157501 | AI45: 5.335168886 | AK45: 0.9085027516
U46: 55.9032169 | V46: 55.41340255 | W46: 29.77716901 | X46: 37.46414295 | Y46: 65.6512532 | Z46: 42.31914927 | AA46: 48.55124258 | AB46: 36.60449064 | AC46: 71.41396528 | AD46: 47.88620296 | AE46: 57.27794692 | AF46: 69.27575818 | AG46: 44.30685148 | AH46: 43.46693054 | AI46: 58.53273409 | AK46: 12.35900838
U47: 117.5309325 | V47: 105.0740729 | W47: -253.5813989 | X47: -625.2716314 | Y47: 190.2005451 | Z47: 80.05887155 | AA47: -574.7908357 | AB47: 21.60708793 | AC47: 255.7853868 | AD47: 165.5355155 | AE47: 118.5733949 | AF47: 176.7111929 | AG47: 136.6100217 | AH47: =AH29*$AK12 -> 79.45618641 | AI47: 22.43295595 | AK47: 269.5413865
U48: 37.31042897 | V48: 37.11766147 | W48: 17.89316047 | X48: 22.00370494 | Y48: 43.89416754 | Z48: 26.67698475 | AA48: 27.90225592 | AB48: 22.87853106 | AC48: 48.03790344 | AD48: 32.95825268 | AE48: 37.47150333 | AF48: 45.69026885 | AG48: 30.06077243 | AH48: 29.39554371 | AI48: 35.494686 | AK48: 8.891383019
U49: 3.57134295e-06 | V49: 7.851332057e-07 | W49: 2.932742928e-06 | X49: 2.016500343e-06 | Y49: 8.696948357e-07 | Z49: 1.344251907e-06 | AA49: 3.272268327e-06 | AB49: -6.405200637e-06 | AC49: -1.779505001e-05 | AD49: 2.856900203e-07 | AE49: -1.969386677e-05 | AF49: 1.161017902e-06 | AG49: -1.861491929e-05 | AH49: =AH31*$AK14 -> 1.143386925e-06 | AI49: 3.144989118e-06 | AK49: 8.562759309e-06
U50: -0.05317398959 | V50: 2.62435123 | W50: -0.4641184884 | X50: -0.5090020211 | Y50: -0.3755658446 | Z50: -1.116850989 | AA50: -1.885062433 | AB50: -0.3188624297 | AC50: -0.6814450161 | AD50: -0.0411755663 | AE50: -0.0540238426 | AF50: -1.012972158 | AG50: 2.215244905 | AH50: 4.354164506 | AI50: -1.90247334 | AK50: 1.718557804
U51: 191.7921523 | V51: 1236.029679 | W51: -36.49908354 | X51: -0.7498373676 | Y51: -10.52326943 | Z51: -54.18413113 | AA51: -1.078564162 | AB51: 267.2064269 | AC51: -3.383685958 | AD51: 723.610114 | AE51: 182.9407757 | AF51: 722.2773962 | AG51: 388.5887031 | AH51: 1117.509802 | AI51: 35.98591052 | AK51: 431.7761669
U52: -0.2426142041 | V52: 0.3184326087 | W52: -0.483116175 | X52: -0.5302053451 | Y52: -0.1702054397 | Z52: -0.5020070761 | AA52: -1.024592568 | AB52: -0.1940172536 | AC52: -0.05722096135 | AD52: 0.6638252325 | AE52: -0.01151686072 | AF52: -0.3391983597 | AG52: 1.759869659 | AH52: 0.745931316 | AI52: -0.9370883311 | AK52: 0.7104749458

Sheet nn - ranked data - new (3)
A1: irány | B1: 0 | C1: 0 | D1: 0 | E1: 0 | F1: 0 | M1: súlyok | U1: 2. layer vektor | AK1: 2 layer súlyok | AO1: helyes megoszlás 1000 körül, a pici hiba már tekinthető kerekítési hibának, azaz minden becslés = 1000 | AQ1: ABS-hiba minimalizálás is helyes cél
A2: rnd(1-100) | B2: A1 | C2: A2 | D2: A3 | E2: A4 | F2: A5 | H2: rank = 0 | I2: =B2 -> A1 | J2: A2 | K2: A3 | L2: A4 | M2: A5 | O2: w1 | P2: w2 | Q2: w3 | R2: w4 | S2: w5 | T2: w6 | U2: O1 | V2: O2 | W2: O3 | X2: O4 | Y2: O5 | Z2: O6 | AA2: O7 | AB2: O8 | AC2: O9 | AD2: O10 | AE2: O11 | AF2: O12 | AG2: O13 | AH2: O14 | AI2: O15 | AN2: Y0 | AO2: Ybecslés | AP2: eltérés | AQ2: MAE
A3: O1 | B3: 70 | C3: 10 | D3: 93 | E3: 33 | F3: 29 | H3: =A3 -> O1 | I3: =RANK(B3,B$3:B$17,B$1) -> 6 | J3: =RANK(C3,C$3:C$17,C$1) -> 13 | K3: =RANK(D3,D$3:D$17,D$1) -> 2 | L3: 11 | M3: 10 | O3: 0 | P3: 0 | Q3: 20.21192816 | R3: 0.0409911734 | S3: 0 | T3: 0 | U3: =$I$3*$O3+$J$3*$P3+$K$3*$Q3+$L$3*$R3+$M$3*$S3 -> 40.87475922 | V3: =$I$4*$O3+$J$4*$P3+$K$4*$Q3+$L$4*$R3+$M$4*$S3 -> 80.92969498 | W3: =$I$5*$O3+$J$5*$P3+$K$5*$Q3+$L$5*$R3+$M$5*$S3 -> 61.04569621 | X3: =$I$6*$O3+$J$6*$P3+$K$6*$Q3+$L$6*$R3+$M$6*$S3 -> 121.6404895 | Y3: =$I$7*$O3+$J$7*$P3+$K$7*$Q3+$L$7*$R3+$M$7*$S3 -> 182.522221 | Z3: =$I$8*$O3+$J$8*$P3+$K$8*$Q3+$L$8*$R3+$M$8*$S3 -> 202.5701845 | AA3: =$I$9*$O3+$J$9*$P3+$K$9*$Q3+$L$9*$R3+$M$9*$S3 -> 262.9600219 | AB3: =$I$10*$O3+$J$10*$P3+$K$10*$Q3+$L$10*$R3+$M$10*$S3 -> 161.9413723 | AC3: =$I$11*$O3+$J$11*$P3+$K$11*$Q3+$L$11*$R3+$M$11*$S3 -> 303.7527988 | AD3: =$I$12*$O3+$J$12*$P3+$K$12*$Q3+$L$12*$R3+$M$12*$S3 -> 101.1826143 | AE3: =$I$13*$O3+$J$13*$P3+$K$13*$Q3+$L$13*$R3+$M$13*$S3 -> 222.864095 | AF3: =$I$14*$O3+$J$14*$P3+$K$14*$Q3+$L$14*$R3+$M$14*$S3 -> 242.7071026 | AG3: =$I$15*$O3+$J$15*$P3+$K$15*$Q3+$L$15*$R3+$M$15*$S3 -> 141.8114265 | AH3: =$I$16*$O3+$J$16*$P3+$K$16*$Q3+$L$16*$R3+$M$16*$S3 -> 20.25291933 | AI3: =$I$17*$O3+$J$17*$P3+$K$17*$Q3+$L$17*$R3+$M$17*$S3 -> 283.2129413 | AK3: =T3 -> 0 | AM3: O1 | AN3: 1000 | AO3: =SUM(U38:U52) -> 1120.839647 | AP3: =AN3-AO3 -> -120.8396469 | AQ3: =ABS(AP3) -> 120.8396469
A4: O2 | B4: 17 | C4: 74 | D4: 84 | E4: 78 | F4: 23 | H4: =A4 -> O2 | I4: =RANK(B4,B$3:B$17,B$1) -> 13 | J4: 6 | K4: 4 | L4: 2 | M4: 14 | O4: 1.071304673 | P4: 6.674771264 | Q4: 6.089988668 | R4: 0.01800234955 | S4: 0 | T4: 0.06968379921 | U4: =$I$3*$O4+$J$3*$P4+$K$3*$Q4+$L$3*$R4+$M$3*$S4 -> 105.5778576 | V4: =$I$4*$O4+$J$4*$P4+$K$4*$Q4+$L$4*$R4+$M$4*$S4 -> 78.3715477 | W4: =$I$5*$O4+$J$5*$P4+$K$5*$Q4+$L$5*$R4+$M$5*$S4 -> 72.67252106 | X4: =$I$6*$O4+$J$6*$P4+$K$6*$Q4+$L$6*$R4+$M$6*$S4 -> 78.39930363 | Y4: =$I$7*$O4+$J$7*$P4+$K$7*$Q4+$L$7*$R4+$M$7*$S4 -> 131.7163312 | Z4: =$I$8*$O4+$J$8*$P4+$K$8*$Q4+$L$8*$R4+$M$8*$S4 -> 129.9882345 | AA4: =$I$9*$O4+$J$9*$P4+$K$9*$Q4+$L$9*$R4+$M$9*$S4 -> 175.4266897 | AB4: =$I$10*$O4+$J$10*$P4+$K$10*$Q4+$L$10*$R4+$M$10*$S4 -> 66.21574143 | AC4: =$I$11*$O4+$J$11*$P4+$K$11*$Q4+$L$11*$R4+$M$11*$S4 -> 152.746109 | AD4: =$I$12*$O4+$J$12*$P4+$K$12*$Q4+$L$12*$R4+$M$12*$S4 -> 88.18733919 | AE4: =$I$13*$O4+$J$13*$P4+$K$13*$Q4+$L$13*$R4+$M$13*$S4 -> 83.54041921 | AF4: =$I$14*$O4+$J$14*$P4+$K$14*$Q4+$L$14*$R4+$M$14*$S4 -> 175.1691085 | AG4: =$I$15*$O4+$J$15*$P4+$K$15*$Q4+$L$15*$R4+$M$15*$S4 -> 54.8052341 | AH4: =$I$16*$O4+$J$16*$P4+$K$16*$Q4+$L$16*$R4+$M$16*$S4 -> 51.26619874 | AI4: =$I$17*$O4+$J$17*$P4+$K$17*$Q4+$L$17*$R4+$M$17*$S4 -> 198.3450805 | AK4: =T4 -> 0.06968379921 | AM4: O2 | AN4: 1000 | AO4: =SUM(V38:V52) -> 1100.330032 | AP4: =AN4-AO4 -> -100.3300324 | AQ4: =ABS(AP4) -> 100.3300324
A5: O3 | B5: 57 | C5: 57 | D5: 89 | E5: 37 | F5: 85 | H5: O3 | I5: 7 | J5: 7 | K5: 3 | L5: 10 | M5: 1 | O5: 0 | P5: 0 | Q5: 5.373496462 | R5: 0 | S5: 5.922515135 | T5: 0.0007802863771 | U5: 69.97214428 | V5: =$I$4*$O5+$J$4*$P5+$K$4*$Q5+$L$4*$R5+$M$4*$S5 -> 104.4091977 | W5: 22.04300452 | X5: 44.08600904 | Y5: 101.6641044 | Z5: 71.50251003 | AA5: 99.46802968 | AB5: 66.67803224 | AC5: 139.8275983 | AD5: 97.93766393 | AE5: 94.64355189 | AF5: 153.3196846 | AG5: 79.07208118 | AH5: 76.44367809 | AI5: 122.6090715 | AK5: 0.0007802863771 | AM5: O3 | AN5: 1000 | AO5: =SUM(W38:W52) -> 796.3241169 | AP5: 203.6758831 | AQ5: =ABS(AP5) -> 203.6758831
A6: O4 | B6: 13 | C6: 88 | D6: 62 | E6: 44 | F6: 75 | H6: O4 | I6: 14 | J6: 4 | K6: 6 | L6: 9 | M6: 2 | O6: 8.213188424 | P6: 0.01517367489 | Q6: 0.05242103383 | R6: 7.950155373 | S6: 9.038343148 | T6: 3.57708909 | U6: 227.416371 | V6: 249.5092905 | W6: 146.2956947 | X6: 204.9879435 | Y6: 225.8756839 | Z6: 131.6690625 | AA6: 209.0038765 | AB6: 166.420731 | AC6: 210.8216737 | AD6: 165.5468322 | AE6: 232.0925796 | AF6: 233.92276 | AG6: 168.3177081 | AH6: 206.8836352 | AI6: 219.5274381 | AK6: 3.57708909 | AM6: O4 | AN6: 1000 | AO6: =SUM(X38:X52) -> 1057.214743 | AP6: -57.21474348 | AQ6: 57.21474348
A7: O5 | B7: 76 | C7: 25 | D7: 28 | E7: 1 | F7: 33 | H7: O5 | I7: 3 | J7: 11 | K7: 9 | L7: 15 | M7: 9 | O7: 0.1245691736 | P7: 0 | Q7: 0 | R7: 0.06744692514 | S7: 0.38308189 | T7: 0 | U7: 5.320150118 | V7: 7.117439568 | W7: 1.929535357 | X7: 3.117154537 | Y7: 4.833148408 | Z7: 2.140300194 | AA7: 4.12118168 | AB7: 3.182700847 | AC7: 4.899645026 | AD7: 5.29760015 | AE7: 4.296423929 | AF7: 7.01256944 | AG7: 3.843994499 | AH7: 6.034690515 | AI7: 4.964166754 | AK7: 0 | AM7: O5 | AN7: 1000 | AO7: =SUM(Y38:Y52) -> 1156.895086 | AP7: -156.8950861 | AQ7: 156.8950861
A8: O6 | B8: 82 | C8: 33 | D8: 24 | E8: 33 | F8: 73 | H8: O6 | I8: 2 | J8: 10 | K8: =RANK(D8,D$3:D$17,D$1) -> 10 | L8: 11 | M8: 3 | O8: 1.460867019 | P8: 0.005823851638 | Q8: 0.0004379389158 | R8: 3.021970234 | S8: 0.0008501188186 | T8: 4.466848658 | U8: 42.09196183 | V8: 25.08380825 | W8: 40.48870237 | X8: 47.67749365 | Y8: 49.78780945 | Z8: 36.22857487 | AA8: 37.10268648 | AB8: 32.75321943 | AC8: 43.83593523 | AD8: 14.96836071 | AE8: 52.44915811 | AF8: 23.87435806 | AG8: 31.49493722 | AH8: 19.13126607 | AI8: 35.7625155 | AK8: 4.466848658 | AM8: O6 | AN8: 1000 | AO8: =SUM(Z38:Z52) -> 725.8598203 | AP8: 274.1401797 | AQ8: 274.1401797
A9: O7 | B9: 12 | C9: 19 | D9: 11 | E9: 69 | F9: 55 | H9: O7 | I9: 15 | J9: 12 | K9: 13 | L9: 5 | M9: 5 | O9: 0.641808596 | P9: 2.473520981 | Q9: 0 | R9: 3.482702981 | S9: 0 | T9: 0.5973677875 | U9: 74.31635711 | V9: 30.15004359 | W9: 56.63433684 | X9: 50.22373109 | Y9: 81.37470128 | Z9: 64.32855978 | AA9: 56.72289561 | AB9: 29.78782482 | AC9: 71.66133915 | AD9: 32.80351117 | AE9: 53.52493709 | AF9: 53.69457442 | AG9: 33.54418781 | AH9: 22.91020244 | AI9: 65.70073574 | AK9: 0.5973677875 | AM9: O7 | AN9: 1000 | AO9: =SUM(AA38:AA52) -> 1036.14714 | AP9: -36.14713992 | AQ9: 36.14713992
A10: O8 | B10: 39 | C10: 97 | D10: 57 | E10: 56 | F10: 67 | H10: O8 | I10: 10 | J10: 1 | K10: 8 | L10: 6 | M10: 4 | O10: 0.8270577082 | P10: 0 | Q10: 2.220924464 | R10: 0 | S10: 0 | T10: 0.01829482099 | U10: 9.404195176 | V10: 19.63544806 | W10: 12.45217735 | X10: 24.9043547 | Y10: 22.4694933 | Z10: 23.86336005 | AA10: 41.27788365 | AB10: 26.03797279 | AC10: 34.14092466 | AD10: 14.41285315 | AE10: 31.87368847 | AF10: 33.26755523 | AG10: 19.68175979 | AH10: 11.31855925 | AI10: 41.01763499 | AK10: 0.01829482099 | AM10: O8 | AN10: 1000 | AO10: =SUM(AB38:AB52) -> 821.7526766 | AP10: 178.2473234 | AQ10: 178.2473234
A11: O9 | B11: 90 | C11: 37 | D11: 1 | E11: 6 | F11: 29 | H11: O9 | I11: 1 | J11: 9 | K11: 15 | L11: 14 | M11: 10 | O11: 0 | P11: 0.2675369853 | Q11: 0 | R11: 0.1950912115 | S11: 0.1612717547 | T11: 0.001405442164 | U11: 7.236701684 | V11: 4.253208902 | W11: 3.984942768 | X11: 3.148512355 | Y11: 7.320720805 | Z11: 5.305188445 | AA11: 4.992258656 | AB11: 2.083171274 | AC11: 6.751827377 | AD11: 4.660830574 | AE11: 3.771353264 | AF11: 6.944958962 | AG11: 2.957168961 | AH11: 3.468037195 | AI11: 6.473776087 | AK11: 0.001405442164 | AM11: O9 | AN11: 1000 | AO11: =SUM(AC38:AC52) -> 1066.110467 | AP11: -66.11046727 | AQ11: 66.11046727
A12: O10 | B12: 74 | C12: 47 | D12: 82 | E12: 76 | F12: 24 | H12: O10 | I12: 4 | J12: 8 | K12: 5 | L12: 3 | M12: 12 | O12: 0 | P12: 1.871644816 | Q12: 0 | R12: 1.335780884 | S12: 0 | T12: 0.08786571704 | U12: 39.02497233 | V12: 13.90143066 | W12: 26.45932255 | X12: 19.50860722 | Y12: 40.62480623 | Z12: 33.41003788 | AA12: 29.13864221 | AB12: 9.886330117 | AC12: 35.54573571 | AD12: 18.98050118 | AE12: 19.2367963 | AF12: 31.54615096 | AG12: 12.55789188 | AH12: 10.69400496 | AI12: 36.08935754 | AK12: 0.08786571704 | AM12: O10 | AN12: 1000 | AO12: =SUM(AD38:AD52) -> 727.826344 | AP12: 272.173656 | AQ12: 272.173656
A13: O11 | B13: 43 | C13: 97 | D13: 15 | E13: 28 | F13: 46 | H13: O11 | I13: 9 | J13: 1 | K13: 11 | L13: 13 | M13: 6 | O13: 0.5969210143 | P13: 0 | Q13: 0 | R13: 0.7745141111 | S13: 0 | T13: 0 | U13: 12.10118131 | V13: 9.309001408 | W13: 11.92358821 | X13: 15.3275212 | Y13: 13.40847471 | Z13: 9.71349725 | AA13: 12.82638577 | AB13: 10.61629481 | AC13: 11.44011857 | AD13: 4.71122639 | AE13: 15.44097257 | AF13: 7.873424559 | AG13: 9.18071796 | AH13: 7.340645269 | AI13: 11.81013684 | AK13: 0 | AM13: O11 | AN13: 1000 | AO13: =SUM(AE38:AE52) -> 1179.456759 | AP13: -179.4567591 | AQ13: 179.4567591
A14: O12 | B14: 49 | C14: 9 | D14: 13 | E14: 72 | F14: 7 | H14: O12 | I14: 8 | J14: 14 | K14: 12 | L14: 4 | M14: 15 | O14: 5.277898067 | P14: 0.0297659695 | Q14: 0.458398585 | R14: 4.10639261 | S14: 2.544369093 | T14: 0.6170072507 | U14: 103.5851528 | V14: 114.4588175 | W14: 82.1371392 | X14: 118.8063 | Y14: 104.7819181 | Z14: 68.24086767 | AA14: 118.7386528 | AB14: 91.29176735 | AC14: 95.35495804 | AD14: 66.49331989 | AE14: 121.2225515 | AF14: 102.731798 | AG14: 80.28977093 | AH14: 93.30292889 | AI14: 115.1921549 | AK14: 0.6170072507 | AM14: O12 | AN14: 1000 | AO14: =SUM(AF38:AF52) -> 1054.600315 | AP14: -54.60031512 | AQ14: 54.60031512
A15: O13 | B15: 72 | C15: 97 | D15: 60 | E15: 49 | F15: 38 | H15: O13 | I15: 5 | J15: 1 | K15: 7 | L15: 8 | M15: 7 | O15: 0 | P15: 0 | Q15: 10.74180366 | R15: 0 | S15: 0 | T15: 0.0001291896563 | U15: 21.48360731 | V15: 42.96721462 | W15: 32.22541097 | X15: 64.45082193 | Y15: 96.6762329 | Z15: 107.4180366 | AA15: 139.6434475 | AB15: 85.93442924 | AC15: 161.1270548 | AD15: 53.70901828 | AE15: 118.1598402 | AF15: 128.9016439 | AG15: 75.19262559 | AH15: 10.74180366 | AI15: 150.3852512 | AK15: 0.0001291896563 | AM15: O13 | AN15: 1000 | AO15: =SUM(AG38:AG52) -> 817.7062318 | AP15: 182.2937682 | AQ15: 182.2937682
A16: O14 | B16: 38 | C16: 80 | D16: 96 | E16: 89 | F16: 24 | H16: O14 | I16: 11 | J16: 5 | K16: 1 | L16: 1 | M16: 12 | O16: 0.4621175778 | P16: 0 | Q16: 0.2577730632 | R16: 0.4513383193 | S16: 0 | T16: 0 | U16: 8.252973106 | V16: 7.941297403 | W16: 8.521525428 | X16: 12.07832934 | Y16: 10.47638509 | Z16: 8.4666873 | AA16: 12.53950509 | AB16: 9.3913902 | AC16: 10.64745 | AD16: 4.491350585 | AE16: 12.86196005 | AF16: 8.595570658 | AG16: 7.725705886 | AH16: 5.792404739 | AI16: 11.86226373 | AK16: 0 | AM16: O14 | AN16: 1000 | AO16: =SUM(AH38:AH52) -> 901.537106 | AP16: 98.46289399 | AQ16: 98.46289399
A17: O15 | B17: 34 | C17: 7 | D17: 4 | E17: 56 | F17: 34 | H17: O15 | I17: 12 | J17: 15 | K17: 14 | L17: 6 | M17: 8 | O17: 0.5317305046 | P17: 0 | Q17: 0.3608817698 | R17: 0.1676105191 | S17: 0.1098442743 | T17: 0 | U17: 6.85430502 | V17: 10.22906452 | W17: 6.590708307 | X17: 11.3377009 | Y17: 8.345883697 | Z17: 6.84552724 | AA17: 14.05469454 | AB17: 9.649399416 | AC17: 9.389947062 | AD17: 5.752293716 | AE17: 11.5932764 | AF17: 10.90253146 | AG17: 7.294618984 | AH17: 7.695659131 | AI17: 13.31752814 | AK17: 0 | AM17: O15 | AN17: 1000 | AO17: =SUM(AI38:AI52) -> 1073.20391 | AP17: -73.20390951 | AQ17: 73.20390951
AN18: szum | AO18: szum | AP18: hiba
U19: Activation | AK19: Szórás | AN19: =SUM(AN3:AN17) -> 15000 | AO19: =SUM(AO3:AO17) -> 14635.8044 | AP19: =SUMSQ(AP3:AP17) -> 364193.1456 | AQ19: =SUM(AQ3:AQ17)/15 -> 136.9194536 | AS19: SOLVER FUT
O20: activation weight | U20: =IF(U3<0, U3*$O$21, U3) -> 40.87475922 | V20: =IF(V3<0, V3*$O$21, V3) -> 80.92969498 | W20: 61.04569621 | X20: 121.6404895 | Y20: 182.522221 | Z20: 202.5701845 | AA20: 262.9600219 | AB20: 161.9413723 | AC20: 303.7527988 | AD20: 101.1826143 | AE20: 222.864095 | AF20: 242.7071026 | AG20: 141.8114265 | AH20: 20.25291933 | AI20: 283.2129413 | AK20: =STDEV(U20:AI20) -> 90.4463066 | AP20: hiba2
O21: 0.5 | U21: =IF(U4<0, U4*$O$21, U4) -> 105.5778576 | V21: 78.3715477 | W21: 72.67252106 | X21: 78.39930363 | Y21: 131.7163312 | Z21: 129.9882345 | AA21: 175.4266897 | AB21: 66.21574143 | AC21: 152.746109 | AD21: 88.18733919 | AE21: 83.54041921 | AF21: 175.1691085 | AG21: 54.8052341 | AH21: 51.26619874 | AI21: 198.3450805 | AK21: =STDEV(U21:AI21) -> 47.83005401 | AP21: =ABS(AN19-AO19) -> 364.1956046
U22: =IF(U5<0, U5*$O$21, U5) -> 69.97214428 | V22: 104.4091977 | W22: 22.04300452 | X22: 44.08600904 | Y22: 101.6641044 | Z22: 71.50251003 | AA22: 99.46802968 | AB22: 66.67803224 | AC22: 139.8275983 | AD22: 97.93766393 | AE22: 94.64355189 | AF22: 153.3196846 | AG22: 79.07208118 | AH22: 76.44367809 | AI22: 122.6090715 | AK22: 34.21296124 | AP22: hiba3
U23: =IF(U6<0, U6*$O$21, U6) -> 227.416371 | V23: 249.5092905 | W23: 146.2956947 | X23: 204.9879435 | Y23: 225.8756839 | Z23: 131.6690625 | AA23: 209.0038765 | AB23: 166.420731 | AC23: 210.8216737 | AD23: 165.5468322 | AE23: 232.0925796 | AF23: 233.92276 | AG23: 168.3177081 | AH23: 206.8836352 | AI23: 219.5274381 | AK23: 35.43228887 | AP23: =AP19*AP21 -> 132637542.9
U24: =IF(U7<0, U7*$O$21, U7) -> 5.320150118 | V24: 7.117439568 | W24: 1.929535357 | X24: 3.117154537 | Y24: 4.833148408 | Z24: 2.140300194 | AA24: 4.12118168 | AB24: 3.182700847 | AC24: 4.899645026 | AD24: 5.29760015 | AE24: 4.296423929 | AF24: 7.01256944 | AG24: 3.843994499 | AH24: 6.034690515 | AI24: 4.964166754 | AK24: 1.552133863 | AN24: szórás | AO24: szórás
U25: =IF(U8<0, U8*$O$21, U8) -> 42.09196183 | V25: 25.08380825 | W25: 40.48870237 | X25: 47.67749365 | Y25: 49.78780945 | Z25: 36.22857487 | AA25: 37.10268648 | AB25: 32.75321943 | AC25: 43.83593523 | AD25: 14.96836071 | AE25: 52.44915811 | AF25: 23.87435806 | AG25: 31.49493722 | AH25: 19.13126607 | AI25: 35.7625155 | AK25: 11.14008888 | AN25: =STDEV(AN3:AN17) -> 0 | AO25: =STDEV(AO3:AO17) -> 159.3178725
U26: =IF(U9<0, U9*$O$21, U9) -> 74.31635711 | V26: 30.15004359 | W26: 56.63433684 | X26: 50.22373109 | Y26: 81.37470128 | Z26: 64.32855978 | AA26: 56.72289561 | AB26: 29.78782482 | AC26: 71.66133915 | AD26: 32.80351117 | AE26: 53.52493709 | AF26: 53.69457442 | AG26: 33.54418781 | AH26: 22.91020244 | AI26: 65.70073574 | AK26: 18.25412111
U27: =IF(U10<0, U10*$O$21, U10) -> 9.404195176 | V27: 19.63544806 | W27: 12.45217735 | X27: 24.9043547 | Y27: 22.4694933 | Z27: 23.86336005 | AA27: 41.27788365 | AB27: 26.03797279 | AC27: 34.14092466 | AD27: 14.41285315 | AE27: 31.87368847 | AF27: 33.26755523 | AG27: 19.68175979 | AH27: 11.31855925 | AI27: 41.01763499 | AK27: 10.28447771
U28: =IF(U11<0, U11*$O$21, U11) -> 7.236701684 | V28: 4.253208902 | W28: 3.984942768 | X28: 3.148512355 | Y28: 7.320720805 | Z28: 5.305188445 | AA28: 4.992258656 | AB28: 2.083171274 | AC28: 6.751827377 | AD28: 4.660830574 | AE28: 3.771353264 | AF28: 6.944958962 | AG28: 2.957168961 | AH28: 3.468037195 | AI28: 6.473776087 | AK28: 1.711166182
U29: =IF(U12<0, U12*$O$21, U12) -> 39.02497233 | V29: 13.90143066 | W29: 26.45932255 | X29: 19.50860722 | Y29: 40.62480623 | Z29: 33.41003788 | AA29: 29.13864221 | AB29: 9.886330117 | AC29: 35.54573571 | AD29: 18.98050118 | AE29: 19.2367963 | AF29: 31.54615096 | AG29: 12.55789188 | AH29: 10.69400496 | AI29: 36.08935754 | AK29: 10.7516147
U30: =IF(U13<0, U13*$O$21, U13) -> 12.10118131 | V30: 9.309001408 | W30: 11.92358821 | X30: 15.3275212 | Y30: 13.40847471 | Z30: 9.71349725 | AA30: 12.82638577 | AB30: 10.61629481 | AC30: 11.44011857 | AD30: 4.71122639 | AE30: 15.44097257 | AF30: 7.873424559 | AG30: 9.18071796 | AH30: 7.340645269 | AI30: 11.81013684 | AK30: 2.938996933
U31: =IF(U14<0, U14*$O$21, U14) -> 103.5851528 | V31: 114.4588175 | W31: 82.1371392 | X31: 118.8063 | Y31: 104.7819181 | Z31: 68.24086767 | AA31: 118.7386528 | AB31: 91.29176735 | AC31: 95.35495804 | AD31: 66.49331989 | AE31: 121.2225515 | AF31: 102.731798 | AG31: 80.28977093 | AH31: 93.30292889 | AI31: 115.1921549 | AK31: 18.09303656
U32: =IF(U15<0, U15*$O$21, U15) -> 21.48360731 | V32: 42.96721462 | W32: 32.22541097 | X32: 64.45082193 | Y32: 96.6762329 | Z32: 107.4180366 | AA32: 139.6434475 | AB32: 85.93442924 | AC32: 161.1270548 | AD32: 53.70901828 | AE32: 118.1598402 | AF32: 128.9016439 | AG32: 75.19262559 | AH32: 10.74180366 | AI32: 150.3852512 | AK32: 48.03880635
U33: =IF(U16<0, U16*$O$21, U16) -> 8.252973106 | V33: 7.941297403 | W33: 8.521525428 | X33: 12.07832934 | Y33: 10.47638509 | Z33: 8.4666873 | AA33: 12.53950509 | AB33: 9.3913902 | AC33: 10.64745 | AD33: 4.491350585 | AE33: 12.86196005 | AF33: 8.595570658 | AG33: 7.725705886 | AH33: 5.792404739 | AI33: 11.86226373 | AK33: 2.439502977
U34: =IF(U17<0, U17*$O$21, U17) -> 6.85430502 | V34: 10.22906452 | W34: 6.590708307 | X34: 11.3377009 | Y34: 8.345883697 | Z34: 6.84552724 | AA34: 14.05469454 | AB34: 9.649399416 | AC34: 9.389947062 | AD34: 5.752293716 | AE34: 11.5932764 | AF34: 10.90253146 | AG34: 7.294618984 | AH34: 7.695659131 | AI34: 13.31752814 | AK34: 2.551613792
U37: Y0 - szorzatok | AK37: Szórás
U38: =U20*$AK3 -> 0 | V38: =V20*$AK3 -> 0 | W38: =W20*$AK3 -> 0 | X38: 0 | Y38: 0 | Z38: 0 | AA38: 0 | AB38: =AB20*$AK3 -> 0 | AC38: 0 | AD38: 0 | AE38: 0 | AF38: 0 | AG38: 0 | AH38: 0 | AI38: =AI20*$AK3 -> 0 | AK38: =STDEV(U38:AI38) -> 0
U39: =U21*$AK4 -> 7.357066234 | V39: =V21*$AK4 -> 5.461227194 | W39: 5.064097366 | X39: 5.463161333 | Y39: 9.178494375 | Z39: 9.058074034 | AA39: =AA21*$AK4 -> 12.22439822 | AB39: 4.614164431 | AC39: 10.64392919 | AD39: 6.145228837 | AE39: 5.821413798 | AF39: 12.20644898 | AG39: 3.819036929 | AH39: 3.572423499 | AI39: 13.82143876 | AK39: =STDEV(U39:AI39) -> 3.33297988
U40: 0.05459831096 | V40: 0.08146907464 | W40: 0.01719985614 | X40: 0.03439971228 | Y40: 0.07932711569 | Z40: 0.0557924345 | AA40: 0.07761354852 | AB40: 0.05202796021 | AC40: 0.1091055701 | AD40: 0.07641942497 | AE40: 0.07384907422 | AF40: 0.1196332612 | AG40: 0.06169886776 | AH40: 0.05964796063 | AI40: 0.09567018824 | AK40: 0.02669590757
U41: 813.4886196 | V41: 892.516961 | W41: 523.3127334 | X41: 733.2601364 | Y41: 807.9774448 | Z41: 470.991967 | AA41: 747.6254865 | AB41: 595.3017813 | AC41: 754.127909 | AD41: 592.1757673 | AE41: 830.2158345 | AF41: 836.7625526 | AG41: 602.0874372 | AH41: 740.0411945 | AI41: 785.2692039 | AK41: 126.744454
U42: 0 | V42: 0 | W42: =W24*$AK7 -> 0 | X42: 0 | Y42: 0 | Z42: 0 | AA42: 0 | AB42: 0 | AC42: 0 | AD42: 0 | AE42: 0 | AF42: 0 | AG42: 0 | AH42: 0 | AI42: 0 | AK42: 0
U43: 188.0184232 | V43: 112.0455752 | W43: =W25*$AK8 -> 180.8569058 | X43: 212.9681485 | Y43: 222.3946098 | Z43: 161.827561 | AA43: 165.7320853 | AB43: 146.3036743 | AC43: 195.8084884 | AD43: 66.86140195 | AE43: 234.2824515 | AF43: 106.6431443 | AG43: 140.6831181 | AH43: =AH25*$AK8 -> 85.45647016 | AI43: 159.7457444 | AK43: 49.76109105
U44: 44.39419782 | V44: 18.01066483 | W44: 33.8315285 | X44: 30.00203912 | Y44: 48.61062526 | Z44: 38.42780943 | AA44: 33.88443065 | AB44: 17.79428701 | AC44: 42.80817562 | AD44: 19.59576089 | AE44: 31.97407325 | AF44: 32.07540912 | AG44: 20.03821725 | AH44: 13.68581694 | AI44: 39.24750315 | AK44: 10.90442394
U45: 0.1720480673 | V45: 0.3592270074 | W45: 0.2278103556 | X45: 0.4556207111 | Y45: 0.4110753577 | Z45: 0.4365759005 | AA45: 0.7551714924 | AB45: 0.4763600512 | AC45: 0.6246021053 | AD45: 0.2636805684 | AE45: 0.583123425 | AF45: 0.6086239678 | AG45: 0.3600742721 | AH45: 0.2070710155 | AI45: 0.7504102897 | AK45: 0.1881526787
U46: 0.01017076567 | V46: 0.005977639121 | W46: 0.005600606585 | X46: 0.004425052016 | Y46: 0.01028884969 | Z46: 0.007456135526 | AA46: 0.007016330806 | AB46: 0.002927776742 | AC46: 0.009489302877 | AD46: 0.006550527806 | AE46: 0.005300418891 | AF46: 0.00976073815 | AG46: 0.004156129943 | AH46: 0.004874125699 | AI46: 0.009098517871 | AK46: 0.002404945101
U47: 3.428957176 | V47: 1.221459173 | W47: 2.324867348 | X47: 1.714137761 | Y47: 3.569527729 | Z47: 2.935596934 | AA47: 2.560287691 | AB47: 0.8686694846 | AC47: 3.123251556 | AD47: 1.667735346 | AE47: 1.690254901 | AF47: 2.771825173 | AG47: 1.103408175 | AH47: =AH29*$AK12 -> 0.939636414 | AI47: 3.171017278 | AK47: 0.9446983345
U48: 0 | V48: 0 | W48: 0 | X48: 0 | Y48: 0 | Z48: 0 | AA48: 0 | AB48: 0 | AC48: 0 | AD48: 0 | AE48: 0 | AF48: 0 | AG48: 0 | AH48: 0 | AI48: 0 | AK48: 0
U49: 63.91279036 | V49: 70.62192034 | W49: 50.67921044 | X49: 73.30434854 | Y49: 64.65120322 | Z49: 42.10511015 | AA49: 73.2626097 | AB49: 56.32768239 | AC49: 58.8347005 | AD49: 41.0268605 | AE49: 74.79519323 | AF49: 63.38626422 | AG49: 49.53937082 | AH49: =AH31*$AK14 -> 57.56858364 | AI49: 71.07439483 | AK49: 11.16353474
U50: 0.002775459845 | V50: 0.005550919691 | W50: 0.004163189768 | X50: 0.008326379536 | Y50: 0.0124895693 | Z50: 0.01387729923 | AA50: 0.018040489 | AB50: 0.01110183938 | AC50: 0.02081594884 | AD50: 0.006938649614 | AE50: 0.01526502915 | AF50: 0.01665275907 | AG50: 0.009714109459 | AH50: 0.001387729923 | AI50: 0.01942821892 | AK50: 0.006206116883
U51: 0 | V51: 0 | W51: 0 | X51: 0 | Y51: 0 | Z51: 0 | AA51: 0 | AB51: 0 | AC51: 0 | AD51: 0 | AE51: 0 | AF51: 0 | AG51: 0 | AH51: 0 | AI51: 0 | AK51: 0
U52: 0 | V52: 0 | W52: 0 | X52: 0 | Y52: 0 | Z52: 0 | AA52: 0 | AB52: 0 | AC52: 0 | AD52: 0 | AE52: 0 | AF52: 0 | AG52: 0 | AH52: 0 | AI52: 0 | AK52: 0

Sheet nn - ranked data - new (4)
A1: irány | B1: 0 | C1: 0 | D1: 0 | E1: 0 | F1: 0 | M1: súlyok | U1: 2. layer vektor | AK1: 2 layer súlyok | AO1: minden becslés nem lehet 1000 ALATT sem - kiegyensúlyozatlan tanulás! - a csak felett és csak alatt hibájú modellek egyesíthetők!
A2: rnd(1-100) | B2: A1 | C2: A2 | D2: A3 | E2: A4 | F2: A5 | H2: rank = 0 | I2: =B2 -> A1 | J2: A2 | K2: A3 | L2: A4 | M2: A5 | O2: w1 | P2: w2 | Q2: w3 | R2: w4 | S2: w5 | U2: O1 | V2: O2 | W2: O3 | X2: O4 | Y2: O5 | Z2: O6 | AA2: O7 | AB2: O8 | AC2: O9 | AD2: O10 | AE2: O11 | AF2: O12 | AG2: O13 | AH2: O14 | AI2: O15 | AN2: Y0 | AO2: Ybecslés | AP2: eltérés | AQ2: MAE
A3: O1 | B3: 70 | C3: 10 | D3: 93 | E3: 33 | F3: 29 | H3: =A3 -> O1 | I3: =RANK(B3,B$3:B$17,B$1) -> 6 | J3: =RANK(C3,C$3:C$17,C$1) -> 13 | K3: =RANK(D3,D$3:D$17,D$1) -> 2 | L3: 11 | M3: 10 | O3: -0.252628535 | P3: 0.165002227 | Q3: 0.208621413 | R3: -0.066670984 | S3: -0.138344273 | U3: =$I$3*$O3+$J$3*$P3+$K$3*$Q3+$L$3*$R3+$M$3*$S3 -> -1.070322987 | V3: =$I$4*$O3+$J$4*$P3+$K$4*$Q3+$L$4*$R3+$M$4*$S3 -> -3.529833731 | W3: =$I$5*$O3+$J$5*$P3+$K$5*$Q3+$L$5*$R3+$M$5*$S3 -> -0.79257403 | X3: =$I$6*$O3+$J$6*$P3+$K$6*$Q3+$L$6*$R3+$M$6*$S3 -> -2.501789506 | Y3: =$I$7*$O3+$J$7*$P3+$K$7*$Q3+$L$7*$R3+$M$7*$S3 -> 0.689568392 | Z3: =$I$8*$O3+$J$8*$P3+$K$8*$Q3+$L$8*$R3+$M$8*$S3 -> 2.082565687 | AA3: =$I$9*$O3+$J$9*$P3+$K$9*$Q3+$L$9*$R3+$M$9*$S3 -> -0.122399217 | AB3: =$I$10*$O3+$J$10*$P3+$K$10*$Q3+$L$10*$R3+$M$10*$S3 -> -1.645714815 | AC3: =$I$11*$O3+$J$11*$P3+$K$11*$Q3+$L$11*$R3+$M$11*$S3 -> 2.044876197 | AD3: =$I$12*$O3+$J$12*$P3+$K$12*$Q3+$L$12*$R3+$M$12*$S3 -> -0.507533487 | AE3: =$I$13*$O3+$J$13*$P3+$K$13*$Q3+$L$13*$R3+$M$13*$S3 -> -1.510607475 | AF3: =$I$14*$O3+$J$14*$P3+$K$14*$Q3+$L$14*$R3+$M$14*$S3 -> 0.450611823 | AG3: =$I$15*$O3+$J$15*$P3+$K$15*$Q3+$L$15*$R3+$M$15*$S3 -> -1.13956834 | AH3: =$I$16*$O3+$J$16*$P3+$K$16*$Q3+$L$16*$R3+$M$16*$S3 -> -3.472083597 | AI3: =$I$17*$O3+$J$17*$P3+$K$17*$Q3+$L$17*$R3+$M$17*$S3 -> 0.857410679 | AK3: 0.0072548459 | AM3: O1 | AN3: 1000 | AO3: =SUM(U38:U52) -> 999.2177127 | AP3: =AN3-AO3 -> 0.7822873067 | AQ3: =ABS(AP3) -> 0.7822873067
A4: O2 | B4: 17 | C4: 74 | D4: 84 | E4: 78 | F4: 23 | H4: =A4 -> O2 | I4: =RANK(B4,B$3:B$17,B$1) -> 13 | J4: 6 | K4: 4 | L4: 2 | M4: 14 | O4: -3.39014578 | P4: -0.730689228 | Q4: 4.79808187 | R4: -1.52569473 | S4: -7.22117805 | U4: =$I$3*$O4+$J$3*$P4+$K$3*$Q4+$L$3*$R4+$M$3*$S4 -> -109.2380934 | V4: =$I$4*$O4+$J$4*$P4+$K$4*$Q4+$L$4*$R4+$M$4*$S4 -> -133.4115852 | W4: =$I$5*$O4+$J$5*$P4+$K$5*$Q4+$L$5*$R4+$M$5*$S4 -> -36.9297248 | X4: =$I$6*$O4+$J$6*$P4+$K$6*$Q4+$L$6*$R4+$M$6*$S4 -> -49.76991528 | Y4: =$I$7*$O4+$J$7*$P4+$K$7*$Q4+$L$7*$R4+$M$7*$S4 -> -62.90130542 | Z4: =$I$8*$O4+$J$8*$P4+$K$8*$Q4+$L$8*$R4+$M$8*$S4 -> -4.55254132 | AA4: =$I$9*$O4+$J$9*$P4+$K$9*$Q4+$L$9*$R4+$M$9*$S4 -> -40.97975703 | AB4: =$I$10*$O4+$J$10*$P4+$K$10*$Q4+$L$10*$R4+$M$10*$S4 -> -34.28637265 | AC4: =$I$11*$O4+$J$11*$P4+$K$11*$Q4+$L$11*$R4+$M$11*$S4 -> -31.5666275 | AD4: =$I$12*$O4+$J$12*$P4+$K$12*$Q4+$L$12*$R4+$M$12*$S4 -> -86.64690838 | AE4: =$I$13*$O4+$J$13*$P4+$K$13*$Q4+$L$13*$R4+$M$13*$S4 -> -41.62420047 | AF4: =$I$14*$O4+$J$14*$P4+$K$14*$Q4+$L$14*$R4+$M$14*$S4 -> -94.19428266 | AG4: =$I$15*$O4+$J$15*$P4+$K$15*$Q4+$L$15*$R4+$M$15*$S4 -> -46.84864923 | AH4: =$I$16*$O4+$J$16*$P4+$K$16*$Q4+$L$16*$R4+$M$16*$S4 -> -124.3267992 | AI4: =$I$17*$O4+$J$17*$P4+$K$17*$Q4+$L$17*$R4+$M$17*$S4 -> -51.39253438 | AK4: 2.3923595 | AM4: O2 | AN4: 1000 | AO4: =SUM(V38:V52) -> 998.1259331 | AP4: =AN4-AO4 -> 1.874066863 | AQ4: =ABS(AP4) -> 1.874066863
A5: O3 | B5: 57 | C5: 57 | D5: 89 | E5: 37 | F5: 85 | H5: O3 | I5: 7 | J5: 7 | K5: 3 | L5: 10 | M5: 1 | O5: 0.00922831614 | P5: -0.0247624032 | Q5: -0.00482188864 | R5: -0.0305931661 | S5: 0.0568347946 | U5: -0.04436200314 | V5: =$I$4*$O5+$J$4*$P5+$K$4*$Q5+$L$4*$R5+$M$4*$S5 -> 0.6866069283 | W5: -0.3723011417 | X5: -0.1604534244 | Y5: -0.2354828246 | Z5: -0.4434067294 | AA5: -0.09020050612 | AB5: 0.07272583088 | AC5: -0.1459180217 | AD5: 0.4049426327 | AE5: -0.05145072468 | AF5: 0.3994394752 | AG5: 0.1407241904 | AH5: 0.624301942 | AI5: -0.05708333508 | AK5: 0.00040913135 | AM5: O3 | AN5: 1000 | AO5: =SUM(W38:W52) -> 997.951096 | AP5: 2.048904035 | AQ5: =ABS(AP5) -> 2.048904035
A6: O4 | B6: 13 | C6: 88 | D6: 62 | E6: 44 | F6: 75 | H6: O4 | I6: 14 | J6: 4 | K6: 6 | L6: 9 | M6: 2 | O6: -5.87123442 | P6: 2.43577027 | Q6: -6.57250404 | R6: -3.13309741 | S6: 6.85963345 | U6: 17.4248619 | V6: 1.76723148 | W6: -68.23710182 | X6: -126.3678348 | Y6: -35.23252675 | Z6: -66.9949777 | AA6: -125.6491454 | AB6: -100.2166569 | AC6: -57.80389183 | AD6: 36.05501345 | AE6: -122.2753496 | AF6: -1.37702795 | AG6: -49.97527524 | AH6: 20.20527268 | AI6: -89.85483241 | AK6: 4.7462387 | AM6: O4 | AN6: 1000 | AO6: =SUM(X38:X52) -> 997.7159041 | AP6: 2.284095891 | AQ6: 2.284095891
A7: O5 | B7: 76 | C7: 25 | D7: 28 | E7: 1 | F7: 33 | H7: O5 | I7: 3 | J7: 11 | K7: 9 | L7: 15 | M7: 9 | O7: 0.140157983 | P7: 0.197744831 | Q7: -0.55340308 | R7: 0.198884144 | S7: 0.239565417 | U7: 6.888204295 | V7: 4.546594571 | W7: 2.933517315 | X7: 1.701860736 | Y7: 2.754390283 | Z7: -0.369844689 | AA7: -0.526684518 | AB7: -0.676333447 | AC7: -1.201152552 | AD7: 2.847012616 | AE7: -0.605380828 | AF7: 1.637872369 | AG7: 0.292744257 | AH7: 5.050728036 | AI7: 0.010253341 | AK7: 0.0063026752 | AM7: O5 | AN7: 1000 | AO7: =SUM(Y38:Y52) -> 997.7099406 | AP7: 2.290059403 | AQ7: 2.290059403
A8: O6 | B8: 82 | C8: 33 | D8: 24 | E8: 33 | F8: 73 | H8: O6 | I8: 2 | J8: 10 | K8: =RANK(D8,D$3:D$17,D$1) -> 10 | L8: 11 | M8: 3 | O8: 2.0345788 | P8: 1.95257413 | Q8: 4.95432186 | R8: -2.95876193 | S8: -5.59172869 | U8: -40.96408792 | V8: -26.2194689 | W8: 7.5936881 | X8: 28.20801613 | Y8: -22.53603859 | Z8: 23.8165502 | AA8: 75.60330264 | AB8: 21.81345067 | AC8: -3.41738005 | AD8: -27.44651253 | AE8: 2.74704656 | AF8: 7.35355247 | AG8: -16.00647512 | AH8: -32.9619469 | AI8: 60.57766249 | AK8: 1.5184332 | AM8: O6 | AN8: 1000 | AO8: =SUM(Z38:Z52) -> 997.6576288 | AP8: 2.342371155 | AQ8: 2.342371155
A9: O7 | B9: 12 | C9: 19 | D9: 11 | E9: 69 | F9: 55 | H9: O7 | I9: 15 | J9: 12 | K9: 13 | L9: 5 | M9: 5 | O9: -1.68155789 | P9: -0.947853804 | Q9: -4.96847105 | R9: 2.78267837 | S9: 5.44520044 | U9: 52.71307758 | V9: 34.37690331 | W9: -0.039310868 | X9: -21.20954577 | Y9: 30.55967455 | Z9: -15.58130093 | AA9: -60.0483436 | AB9: -19.03432912 | AC9: 8.670193704 | AD9: 34.53902315 | AE9: -1.889034914 | AF9: 6.464651104 | AG9: 16.24288944 | AH9: 39.92020679 | AI9: -43.6974227 | AK9: 1.4784502 | AM9: O7 | AN9: 1000 | AO9: =SUM(AA38:AA52) -> 994.5764351 | AP9: 5.423564932 | AQ9: 5.423564932
A10: O8 | B10: 39 | C10: 97 | D10: 57 | E10: 56 | F10: 67 | H10: O8 | I10: 10 | J10: 1 | K10: 8 | L10: 6 | M10: 4 | O10: 0.0493896641 | P10: 0.0455446616 | Q10: -0.0147913732 | R10: -0.251704216 | S10: 0.107840396 | U10: -0.831506577 | V10: 1.862525222 | W10: -1.789035604 | X10: -1.264771447 | Y10: -2.288961765 | Z10: -2.038912976 | AA10: 0.3757739491 | AB10: -0.657753395 | AC10: -2.208034043 | AD10: 1.026931187 | AE10: -2.297765899 | AF10: 1.466035173 | AG10: -1.069797586 | AH10: 1.798598776 | AI10: 0.4212645404 | AK10: -0.014875194 | AM10: O8 | AN10: 1000 | AO10: =SUM(AB38:AB52) -> 996.7119124 | AP10: 3.288087582 | AQ10: 3.288087582
A11: O9 | B11: 90 | C11: 37 | D11: 1 | E11: 6 | F11: 29 | H11: O9 | I11: 1 | J11: 9 | K11: 15 | L11: 14 | M11: 10 | O11: 0.13525404 | P11: -0.0590115562 | Q11: -0.0349880196 | R11: -0.154855937 | S11: 0.0868862048 | U11: -0.8601552888 | V11: 2.170976098 | W11: -1.032939837 | X11: 0.2276511942 | Y11: -2.099120386 | Z11: -2.112244371 | AA11: 0.5259790098 | AB11: 0.4320338842 | AC11: -2.21979133 | AD11: 0.472050259 | AE11: -0.718403364 | AF11: 0.519883622 | AG11: -0.2583015558 | AH11: 2.04552716 | AI11: 0.013996879 | AK11: -0.0038714877 | AM11: O9 | AN11: 1000 | AO11: =SUM(AC38:AC52) -> 995.4318065 | AP11: 4.568193491 | AQ11: 4.568193491
A12: O10 | B12: 74 | C12: 47 | D12: 82 | E12: 76 | F12: 24 | H12: O10 | I12: 4 | J12: 8 | K12: 5 | L12: 3 | M12: 12 | O12: -0.208529577 | P12: -0.0364915095 | Q12: -0.0079245083 | R12: -0.119339325 | S12: 0.189301655 | U12: -1.161132127 | V12: -0.5499870712 | W12: -2.743012725 | X12: -3.808377781 | Y12: -1.18469089 | Z12: -1.606046942 | AA12: -3.319048727 | AB12: -2.144012676 | AC12: -0.433554787 | AD12: 0.7479289595 | AE12: -2.416028589 | AF12: 0.0879556764 | AG12: -0.7642139676 | AH12: -0.3319268678 | AI12: -2.362293393 | AK12: 0.028633261 | AM12: O10 | AN12: 1000 | AO12: =SUM(AD38:AD52) -> 998.2321334 | AP12: 1.767866556 | AQ12: 1.767866556
A13: O11 | B13: 43 | C13: 97 | D13: 15 | E13: 28 | F13: 46 | H13: O11 | I13: 9 | J13: 1 | K13: 11 | L13: 13 | M13: 6 | O13: 0.3697142 | P13: 7.23720121 | Q13: -6.39052343 | R13: 8.40720367 | S13: -10.499733 | U13: 71.00276444 | V13: -107.5144565 | W13: 107.6491413 | X13: 50.44703009 | Y13: 54.81410309 | Z13: 70.18624757 | AA13: -1.14732372 | AB13: -31.74555421 | AC13: -17.64980498 | AD13: -73.35133566 | AE13: -13.43587901 | AF13: -96.27493094 | AG13: -41.88839344 | AH13: -83.72725351 | AI13: -10.02738145 | AK13: 7.8874216 | AM13: O11 | AN13: 1000 | AO13: =SUM(AE38:AE52) -> 995.5188688 | AP13: 4.481131248 | AQ13: 4.481131248
A14: O12 | B14: 49 | C14: 9 | D14: 13 | E14: 72 | F14: 7 | H14: O12 | I14: 8 | J14: 14 | K14: 12 | L14: 4 | M14: 15 | O14: -0.91063875 | P14: -2.82373476 | Q14: 2.87851787 | R14: -8.47835541 | S14: 7.73581982 | U14: -52.31905995 | V14: 74.07812583 | W14: -94.55279524 | X14: -67.60633337 | Y14: -65.43929055 | Z14: -71.32789645 | AA14: -13.83634401 | AB14: -8.82883248 | AC14: -24.48526108 | AD14: 55.55492788 | AE14: -43.15948835 | AF14: 69.84869346 | AG14: -0.90340796 | AH14: 63.09430025 | AI14: -1.96801012 | AK14: -3.8877878 | AM14: O12 | AN14: 1000 | AO14: =SUM(AF38:AF52) -> 995.8310534 | AP14: 4.168946553 | AQ14: 4.168946553
A15: O13 | B15: 72 | C15: 97 | D15: 60 | E15: 49 | F15: 38 | H15: O13 | I15: 5 | J15: 1 | K15: 7 | L15: 8 | M15: 7 | O15: 0.0147130052 | P15: -0.166927367 | Q15: 0.167405933 | R15: 0.0389828756 | S15: -0.149388194 | U15: -2.812036182 | V15: -2.154140367 | W15: -0.3228421716 | X15: 0.5947776952 | Y15: -1.045159236 | Z15: 0.01485872 | AA15: -0.158182789 | AB15: 0.9557946266 | AC15: 0.0753340156 | AD15: -2.115246951 | AE15: 1.417403162 | AF15: -2.295299308 | AG15: 0.3446248368 | AH15: -2.259063297 | AI15: -0.944879679 | AK15: 0.0082731461 | AM15: O13 | AN15: 1000 | AO15: =SUM(AG38:AG52) -> 997.1533945 | AP15: 2.846605528 | AQ15: 2.846605528
A16: O14 | B16: 38 | C16: 80 | D16: 96 | E16: 89 | F16: 24 | H16: O14 | I16: 11 | J16: 5 | K16: 1 | L16: 1 | M16: 12 | O16: 1.53668046 | P16: 0.222152054 | Q16: 3.36668634 | R16: -2.88264132 | S16: -3.98133898 | U16: -52.68101218 | V16: -26.7275247 | W16: -10.39586556 | X16: 8.695802856 | Y16: -41.71777959 | Z16: -4.6913266 | AA16: 35.16305247 | AB16: 9.301243534 | AC16: -26.13402423 | AD16: -31.66662175 | AE16: -10.27654511 | AF16: -15.44684146 | AG16: -19.45814469 | AH16: -29.27777741 | AI16: 19.75949533 | AK16: 0.6635744 | AM16: O14 | AN16: 1000 | AO16: =SUM(AH38:AH52) -> 998.8524955 | AP16: 1.147504546 | AQ16: 1.147504546
A17: O15 | B17: 34 | C17: 7 | D17: 4 | E17: 56 | F17: 34 | H17: O15 | I17: 12 | J17: 15 | K17: 14 | L17: 6 | M17: 8 | O17: 4.6721859 | P17: 2.07231212 | Q17: -7.33474493 | R17: -5.02394915 | S17: -2.46212888 | U17: -39.58104635 | V17: -0.68439292 | W17: -27.49436903 | X17: -20.44841861 | Y17: -126.7191105 | Z17: -105.9297836 | AA17: -37.8315403 | AB17: -49.87599874 | AC17: -181.6547559 | AD17: -46.0238781 | AE17: -116.6443212 | AF17: -78.65481208 | AG17: -83.33646825 | AH17: 19.85136486 | AI17: -65.37624236 | AK17: 3.116905 | AM17: O15 | AN17: 1000 | AO17: =SUM(AI38:AI52) -> 994.4073544 | AP17: 5.59264562 | AQ17: 5.59264562
AN18: szum | AO18: szum | AP18: hiba
U19: Activation | AK19: Szórás | AN19: =SUM(AN3:AN17) -> 15000 | AO19: =SUM(AO3:AO17) -> 14955.09367 | AP19: =SUMSQ(AP3:AP17) -> 166.6488643 | AQ19: =SUM(AQ3:AQ17)/15 -> 2.993755381
O20: activation weight | U20: =IF(U3<0, U3*$O$21, U3) -> 1.070322987 | V20: =IF(V3<0, V3*$O$21, V3) -> 3.529833731 | W20: 0.79257403 | X20: 2.501789506 | Y20: 0.689568392 | Z20: 2.082565687 | AA20: 0.122399217 | AB20: 1.645714815 | AC20: 2.044876197 | AD20: 0.507533487 | AE20: 1.510607475 | AF20: 0.450611823 | AG20: 1.13956834 | AH20: 3.472083597 | AI20: 0.857410679 | AK20: =STDEV(U20:AI20) -> 1.053523997 | AP20: hiba2
O21: -1 | U21: =IF(U4<0, U4*$O$21, U4) -> 109.2380934 | V21: 133.4115852 | W21: 36.9297248 | X21: 49.76991528 | Y21: 62.90130542 | Z21: 4.55254132 | AA21: 40.97975703 | AB21: 34.28637265 | AC21: 31.5666275 | AD21: 86.64690838 | AE21: 41.62420047 | AF21: 94.19428266 | AG21: 46.84864923 | AH21: 124.3267992 | AI21: 51.39253438 | AK21: =STDEV(U21:AI21) -> 37.61538917 | AP21: =ABS(AN19-AO19) -> 44.90633071
U22: 0.04436200314 | V22: 0.6866069283 | W22: 0.3723011417 | X22: 0.1604534244 | Y22: 0.2354828246 | Z22: 0.4434067294 | AA22: 0.09020050612 | AB22: 0.07272583088 | AC22: 0.1459180217 | AD22: 0.4049426327 | AE22: 0.05145072468 | AF22: 0.3994394752 | AG22: 0.1407241904 | AH22: 0.624301942 | AI22: 0.05708333508 | AK22: 0.2128339884 | AP22: hiba3
U23: 17.4248619 | V23: 1.76723148 | W23: 68.23710182 | X23: 126.3678348 | Y23: 35.23252675 | Z23: 66.9949777 | AA23: 125.6491454 | AB23: 100.2166569 | AC23: 57.80389183 | AD23: 36.05501345 | AE23: 122.2753496 | AF23: 1.37702795 | AG23: 49.97527524 | AH23: 20.20527268 | AI23: 89.85483241 | AK23: 43.67827309 | AP23: =AP19*AP21 -> 7483.589014
U24: 6.888204295 | V24: 4.546594571 | W24: 2.933517315 | X24: 1.701860736 | Y24: 2.754390283 | Z24: 0.369844689 | AA24: 0.526684518 | AB24: 0.676333447 | AC24: 1.201152552 | AD24: 2.847012616 | AE24: 0.605380828 | AF24: 1.637872369 | AG24: 0.292744257 | AH24: 5.050728036 | AI24: 0.010253341 | AK24: 2.032303251 | AN24: szórás | AO24: szórás
U25: 40.96408792 | V25: 26.2194689 | W25: 7.5936881 | X25: 28.20801613 | Y25: 22.53603859 | Z25: 23.8165502 | AA25: 75.60330264 | AB25: 21.81345067 | AC25: 3.41738005 | AD25: 27.44651253 | AE25: 2.74704656 | AF25: 7.35355247 | AG25: 16.00647512 | AH25: 32.9619469 | AI25: 60.57766249 | AK25: 20.35982241 | AN25: =STDEV(AN3:AN17) -> 0 | AO25: =STDEV(AO3:AO17) -> 1.516817513
U26: 52.71307758 | V26: 34.37690331 | W26: 0.039310868 | X26: 21.20954577 | Y26: 30.55967455 | Z26: 15.58130093 | AA26: 60.0483436 | AB26: 19.03432912 | AC26: 8.670193704 | AD26: 34.53902315 | AE26: 1.889034914 | AF26: 6.464651104 | AG26: 16.24288944 | AH26: 39.92020679 | AI26: 43.6974227 | AK26: 18.42846925
U27: 0.831506577 | V27: 1.862525222 | W27: 1.789035604 | X27: 1.264771447 | Y27: 2.288961765 | Z27: 2.038912976 | AA27: 0.3757739491 | AB27: 0.657753395 | AC27: 2.208034043 | AD27: 1.026931187 | AE27: 2.297765899 | AF27: 1.466035173 | AG27: 1.069797586 | AH27: 1.798598776 | AI27: 0.4212645404 | AK27: 0.6720395563
U28: 0.8601552888 | V28: 2.170976098 | W28: 1.032939837 | X28: 0.2276511942 | Y28: 2.099120386 | Z28: 2.112244371 | AA28: 0.5259790098 | AB28: 0.4320338842 | AC28: 2.21979133 | AD28: 0.472050259 | AE28: 0.718403364 | AF28: 0.519883622 | AG28: 0.2583015558 | AH28: 2.04552716 | AI28: 0.013996879 | AK28: 0.8297651411
U29: 1.161132127 | V29: 0.5499870712 | W29: 2.743012725 | X29: 3.808377781 | Y29: 1.18469089 | Z29: 1.606046942 | AA29: 3.319048727 | AB29: 2.144012676 | AC29: 0.433554787 | AD29: 0.7479289595 | AE29: 2.416028589 | AF29: 0.0879556764 | AG29: 0.7642139676 | AH29: 0.3319268678 | AI29: 2.362293393 | AK29: 1.159460505
U30: 71.00276444 | V30: 107.5144565 | W30: 107.6491413 | X30: 50.44703009 | Y30: 54.81410309 | Z30: 70.18624757 | AA30: 1.14732372 | AB30: 31.74555421 | AC30: 17.64980498 | AD30: 73.35133566 | AE30: 13.43587901 | AF30: 96.27493094 | AG30: 41.88839344 | AH30: 83.72725351 | AI30: 10.02738145 | AK30: 35.51506194
U31: 52.31905995 | V31: 74.07812583 | W31: 94.55279524 | X31: 67.60633337 | Y31: 65.43929055 | Z31: 71.32789645 | AA31: 13.83634401 | AB31: 8.82883248 | AC31: 24.48526108 | AD31: 55.55492788 | AE31: 43.15948835 | AF31: 69.84869346 | AG31: 0.90340796 | AH31: 63.09430025 | AI31: 1.96801012 | AK31: 29.83834336
U32: 2.812036182 | V32: 2.154140367 | W32: 0.3228421716 | X32: 0.5947776952 | Y32: 1.045159236 | Z32: 0.01485872 | AA32: 0.158182789 | AB32: 0.9557946266 | AC32: 0.0753340156 | AD32: 2.115246951 | AE32: 1.417403162 | AF32: 2.295299308 | AG32: 0.3446248368 | AH32: 2.259063297 | AI32: 0.944879679 | AK32: 0.9437816278
U33: 52.68101218 | V33: 26.7275247 | W33: 10.39586556 | X33: 8.695802856 | Y33: 41.71777959 | Z33: 4.6913266 | AA33: 35.16305247 | AB33: 9.301243534 | AC33: 26.13402423 | AD33: 31.66662175 | AE33: 10.27654511 | AF33: 15.44684146 | AG33: 19.45814469 | AH33: 29.27777741 | AI33: 19.75949533 | AK33: 13.7449925
U34: 39.58104635 | V34: 0.68439292 | W34: 27.49436903 | X34: 20.44841861 | Y34: 126.7191105 | Z34: 105.9297836 | AA34: 37.8315403 | AB34: 49.87599874 | AC34: 181.6547559 | AD34: 46.0238781 | AE34: 116.6443212 | AF34: 78.65481208 | AG34: 83.33646825 | AH34: 19.85136486 | AI34: 65.37624236 | AK34: 49.12102562
U37: Y0 - szorzatok | AK37: Szórás
U38: =U20*$AK3 -> 0.007765028334 | V38: =V20*$AK3 -> 0.02560839977 | W38: =W20*$AK3 -> 0.005750002452 | X38: 0.01815009734 | Y38: 0.005002712421 | Z38: 0.01510869314 | AA38: 0.0008879874576 | AB38: =AB20*$AK3 -> 0.01193940738 | AC38: 0.01483526169 | AD38: 0.003682077237 | AE38: 0.01095922445 | AF38: 0.003269119337 | AG38: 0.008267392699 | AH38: 0.02518943145 | AI38: =AI20*$AK3 -> 0.006220382349 | AK38: =STDEV(U38:AI38) -> 0.007643154252
U39: =U21*$AK4 -> 261.3367906 | V39: =V21*$AK4 -> 319.1684732 | W39: 88.34917795 | X39: 119.0675296 | Y39: 150.4825356 | Z39: 10.89131548 | AA39: =AA21*$AK4 -> 98.03831103 | AB39: 82.02532932 | AC39: 75.51872119 | AD39: 207.2905544 | AE39: 99.58005142 | AF39: 225.346587 | AG39: 112.078811 | AH39: 297.4343991 | AI39: 122.9494179 | AK39: =STDEV(U39:AI39) -> 89.98953362
U40: 1.814988623e-05 | V40: 0.0002809124195 | W40: 0.0001523200687 | X40: 6.564652613e-05 | Y40: 9.634340595e-05 | Z40: 0.0001814115938 | AA40: 3.690385484e-05 | AB40: 2.975441737e-05 | AC40: 5.969963719e-05 | AD40: 0.000165674726 | AE40: 2.105010445e-05 | AF40: 0.0001634232117 | AG40: 5.7574678e-05 | AH40: 0.0002554214963 | AI40: 2.335458194e-05 | AK40: 8.7077057e-05
U41: 82.70255389 | V41: 8.387702442 | W41: 323.8695734 | X41: 599.7719081 | Y41: 167.221982 | Z41: 317.9741559 | AA41: 596.3608364 | AB41: 475.6521754 | AC41: 274.3510684 | AD41: 171.1257002 | AE41: 580.3479962 | AF41: 6.535703347 | AG41: 237.1945854 | AH41: 95.89904714 | AI41: 426.472483 | AK41: 207.3075101
U42: 0.04341411438 | V42: 0.02865570885 | W42: =W24*$AK7 -> 0.01848900683 | X42: 0.01072627545 | Y42: 0.01736002733 | Z42: 0.002331010949 | AA42: 0.00331952145 | AB42: 0.004262710043 | AC42: 0.007570474401 | AD42: 0.01794379581 | AE42: 0.003815518731 | AF42: 0.01032297756 | AG42: 0.001845071969 | AH42: 0.03183309833 | AI42: 6.462347804e-05 | AK42: 0.0128089473
U43: 62.20123111 | V43: 39.81251206 | W43: =W25*$AK8 -> 11.53050812 | X43: 42.8319882 | Y43: 34.21946919 | Z43: 36.16384053 | AA43: 114.7985648 | AB43: 33.1222677 | AC43: 5.189063325 | AD43: 41.67569585 | AE43: 4.171206699 | AF43: 11.16587821 | AG43: 24.30476324 | AH43: =AH25*$AK8 -> 50.05051451 | AI43: 91.9831339 | AK43: 30.91503029
U44: 77.93366009 | V44: 50.82453957 | W44: 0.05811916066 | X44: 31.35725718 | Y44: 45.18095694 | Z44: 23.03617748 | AA44: 88.7784856 | AB44: 28.1413077 | AC44: 12.81844962 | AD44: 51.06422568 | AE44: 2.792844046 | AF44: 9.557664718 | AG44: 24.01430314 | AH44: 59.02003771 | AI44: 64.60446333 | AK44: 27.24557405
U45: -0.01236882165 | V45: -0.02770542401 | W45: -0.02661225168 | X45: -0.01881372065 | Y45: -0.03404875031 | Z45: -0.03032922606 | AA45: -0.005589710393 | AB45: -0.009784209355 | AC45: -0.03284493476 | AD45: -0.01527580063 | AE45: -0.03417971351 | AF45: -0.02180755761 | AG45: -0.01591344664 | AH45: -0.02675450572 | AI45: -0.006266391764 | AK45: 0.009996718776
U46: -0.003330080621 | V46: -0.008404907259 | W46: -0.003999013875 | X46: -0.0008813487982 | Y46: -0.008126718757 | Z46: -0.0081775281 | AA46: -0.002036321267 | AB46: -0.001672613869 | AC46: -0.00859389483 | AD46: -0.001827536772 | AE46: -0.002781289787 | AF46: -0.002012723048 | AG46: -0.001000011296 | AH46: -0.00791923324 | AI46: -5.418874489e-05 | AK46: 0.003212425538
U47: 0.03324699925 | V47: 0.01574792336 | W47: 0.07854139929 | X47: 0.109046275 | Y47: 0.03392156346 | Z47: 0.04598636127 | AA47: 0.09503518847 | AB47: 0.06139007454 | AC47: 0.01241408737 | AD47: 0.02141564511 | AE47: 0.06917877717 | AF47: 0.002518457839 | AG47: 0.02188193799 | AH47: =AH29*$AK12 -> 0.009504148639 | AI47: 0.06764016327 | AK47: 0.03319913526
U48: 560.0287379 | V48: 848.0118467 | W48: 849.0741622 | X48: 397.8969948 | Y48: 432.3419407 | Z48: 553.5885251 | AA48: 9.049425891 | AB48: 250.39057 | AC48: 139.211453 | AD48: 578.5529093 | AE48: 105.9744423 | AF48: 759.3609698 | AG48: 330.3914192 | AH48: 660.3921478 | AI48: 79.09018504 | AK48: 280.1222666
U49: -203.405403 | V49: -288.0000338 | W49: -367.6012038 | X49: -262.8390781 | Y49: -254.4140754 | Z49: -277.3077256 | AA49: -53.79276944 | AB49: -34.3246272 | AC49: -95.19349931 | AD49: -215.9857708 | AE49: -167.7949323 | AF49: -271.5568983 | AG49: -3.512258445 | AH49: =AH31*$AK14 -> -245.2972508 | AI49: -7.651205735 | AK49: 116.0051473
U50: 0.02326438617 | V50: 0.01782151798 | W50: 0.002670920453 | X50: 0.004920682769 | Y50: 0.008646755061 | Z50: 0.0001229283614 | AA50: 0.001308669324 | AB50: 0.007907428587 | AC50: 0.0006232493174 | AD50: 0.01749974707 | AE50: 0.01172638344 | AF50: 0.01898934652 | AG50: 0.002851131625 | AH50: 0.01868956071 | AI50: 0.007817127631 | AK50: 0.007808043294
U51: 34.95777105 | V51: 17.73570116 | W51: 6.898430253 | X51: 5.770312163 | Y51: 27.68285056 | Z51: 3.113044234 | AA51: 23.33330144 | AB51: 6.172067097 | AC51: 17.34186945 | AD51: 21.01315953 | AE51: 6.819252253 | AF51: 10.25012856 | AG51: 12.91192669 | AH51: 19.42798358 | AI51: 13.11189526 | AK51: 9.120825154
U52: 123.3703613 | V52: 2.133187714 | W52: 85.6973363 | X52: 63.73577821 | Y52: 394.9714292 | Z52: 330.1730721 | AA52: 117.9173171 | AB52: 155.4587499 | AC52: 566.2006168 | AD52: 143.4520558 | AE52: 363.5692681 | AF52: 245.159577 | AG52: 259.7518546 | AH52: 61.87481839 | AI52: 203.7715367 | AK52: 153.1055704

Sheet nn - ranked data - new (5)
A1: irány | B1: 0 | C1: 0 | D1: 0 | E1: 0 | F1: 0 | M1: súlyok | U1: 2. layer vektor | AK1: 2 layer súlyok | AO1: tény_összeg <> becslés összeg - különösen az objektumonkénti hibák nagyságrendje kapcsán aggályos a szum:szum eltérés
A2: rnd(1-100) | B2: A1 | C2: A2 | D2: A3 | E2: A4 | F2: A5 | H2: rank = 0 | I2: =B2 -> A1 | J2: A2 | K2: A3 | L2: A4 | M2: A5 | O2: w1 | P2: w2 | Q2: w3 | R2: w4 | S2: w5 | U2: O1 | V2: O2 | W2: O3 | X2: O4 | Y2: O5 | Z2: O6 | AA2: O7 | AB2: O8 | AC2: O9 | AD2: O10 | AE2: O11 | AF2: O12 | AG2: O13 | AH2: O14 | AI2: O15 | AN2: Y0 | AO2: Ybecslés | AP2: eltérés | AQ2: MAE
A3: O1 | B3: 70 | C3: 10 | D3: 93 | E3: 33 | F3: 29 | H3: =A3 -> O1 | I3: =RANK(B3,B$3:B$17,B$1) -> 6 | J3: =RANK(C3,C$3:C$17,C$1) -> 13 | K3: =RANK(D3,D$3:D$17,D$1) -> 2 | L3: 11 | M3: 10 | O3: 2.0820203 | P3: -5.154926 | Q3: -1.6323303 | R3: -2.358517 | S3: 11.333138 | U3: =$I$3*$O3+$J$3*$P3+$K$3*$Q3+$L$3*$R3+$M$3*$S3 -> 29.6011162 | V3: =$I$4*$O3+$J$4*$P3+$K$4*$Q3+$L$4*$R3+$M$4*$S3 -> 143.5542847 | W3: =$I$5*$O3+$J$5*$P3+$K$5*$Q3+$L$5*$R3+$M$5*$S3 -> -38.6593628 | X3: =$I$6*$O3+$J$6*$P3+$K$6*$Q3+$L$6*$R3+$M$6*$S3 -> 0.1742214 | Y3: =$I$7*$O3+$J$7*$P3+$K$7*$Q3+$L$7*$R3+$M$7*$S3 -> 1.4713892 | Z3: =$I$8*$O3+$J$8*$P3+$K$8*$Q3+$L$8*$R3+$M$8*$S3 -> -55.6527954 | AA3: =$I$9*$O3+$J$9*$P3+$K$9*$Q3+$L$9*$R3+$M$9*$S3 -> -6.9759964 | AB3: =$I$10*$O3+$J$10*$P3+$K$10*$Q3+$L$10*$R3+$M$10*$S3 -> 33.7880846 | AC3: =$I$11*$O3+$J$11*$P3+$K$11*$Q3+$L$11*$R3+$M$11*$S3 -> 11.5148738 | AD3: =$I$12*$O3+$J$12*$P3+$K$12*$Q3+$L$12*$R3+$M$12*$S3 -> 87.8491267 | AE3: =$I$13*$O3+$J$13*$P3+$K$13*$Q3+$L$13*$R3+$M$13*$S3 -> 32.9657304 | AF3: =$I$14*$O3+$J$14*$P3+$K$14*$Q3+$L$14*$R3+$M$14*$S3 -> 85.4622368 | AG3: =$I$15*$O3+$J$15*$P3+$K$15*$Q3+$L$15*$R3+$M$15*$S3 -> 54.2926934 | AH3: =$I$16*$O3+$J$16*$P3+$K$16*$Q3+$L$16*$R3+$M$16*$S3 -> 129.134402 | AI3: =$I$17*$O3+$J$17*$P3+$K$17*$Q3+$L$17*$R3+$M$17*$S3 -> 1.3217314 | AK3: -10.888085 | AM3: O1 | AN3: 1000 | AO3: =SUM(U38:U52) -> 999.2319017 | AP3: =AN3-AO3 -> 0.7680983401 | AQ3: =ABS(AP3) -> 0.7680983401
A4: O2 | B4: 17 | C4: 74 | D4: 84 | E4: 78 | F4: 23 | H4: =A4 -> O2 | I4: =RANK(B4,B$3:B$17,B$1) -> 13 | J4: 6 | K4: 4 | L4: 2 | M4: 14 | O4: -0.7690219 | P4: -1.2050487 | Q4: 2.3095815 | R4: -0.79163855 | S4: 0.7683538 | U4: =$I$3*$O4+$J$3*$P4+$K$3*$Q4+$L$3*$R4+$M$3*$S4 -> -16.68508755 | V4: =$I$4*$O4+$J$4*$P4+$K$4*$Q4+$L$4*$R4+$M$4*$S4 -> 1.1844252 | W4: =$I$5*$O4+$J$5*$P4+$K$5*$Q4+$L$5*$R4+$M$5*$S4 -> -14.0377814 | X4: =$I$6*$O4+$J$6*$P4+$K$6*$Q4+$L$6*$R4+$M$6*$S4 -> -7.31705175 | Y4: =$I$7*$O4+$J$7*$P4+$K$7*$Q4+$L$7*$R4+$M$7*$S4 -> 0.26423805 | Z4: =$I$8*$O4+$J$8*$P4+$K$8*$Q4+$L$8*$R4+$M$8*$S4 -> 3.10432155 | AA4: =$I$9*$O4+$J$9*$P4+$K$9*$Q4+$L$9*$R4+$M$9*$S4 -> 3.91222285 | AB4: =$I$10*$O4+$J$10*$P4+$K$10*$Q4+$L$10*$R4+$M$10*$S4 -> 7.9049682 | AC4: =$I$11*$O4+$J$11*$P4+$K$11*$Q4+$L$11*$R4+$M$11*$S4 -> 19.6298606 | AD4: =$I$12*$O4+$J$12*$P4+$K$12*$Q4+$L$12*$R4+$M$12*$S4 -> 5.67676025 | AE4: =$I$13*$O4+$J$13*$P4+$K$13*$Q4+$L$13*$R4+$M$13*$S4 -> 11.59797235 | AF4: =$I$14*$O4+$J$14*$P4+$K$14*$Q4+$L$14*$R4+$M$14*$S4 -> 13.0508738 | AG4: =$I$15*$O4+$J$15*$P4+$K$15*$Q4+$L$15*$R4+$M$15*$S4 -> 10.1622805 | AH4: =$I$16*$O4+$J$16*$P4+$K$16*$Q4+$L$16*$R4+$M$16*$S4 -> -3.74629585 | AI4: =$I$17*$O4+$J$17*$P4+$K$17*$Q4+$L$17*$R4+$M$17*$S4 -> 6.4271468 | AK4: 0.004081395 | AM4: O2 | AN4: 1000 | AO4: =SUM(V38:V52) -> 1001.327332 | AP4: =AN4-AO4 -> -1.327331954 | AQ4: =ABS(AP4) -> 1.327331954
A5: O3 | B5: 57 | C5: 57 | D5: 89 | E5: 37 | F5: 85 | H5: O3 | I5: 7 | J5: 7 | K5: 3 | L5: 10 | M5: 1 | O5: 0.02929566 | P5: -2.1375458 | Q5: -1.0765142 | R5: 2.700259 | S5: 1.2565365 | U5: 12.50286416 | V5: =$I$4*$O5+$J$4*$P5+$K$4*$Q5+$L$4*$R5+$M$4*$S5 -> 6.24154098 | W5: 10.27183292 | X5: 12.21627484 | Y5: 18.69896888 | Z5: 1.39044982 | AA5: -19.4218218 | AB5: 10.7709972 | AC5: 15.01266146 | AD5: 0.81346024 | AE5: 28.92704494 | AF5: -12.96036282 | AG5: 20.8711606 | AH5: 6.33670606 | AI5: -20.52899188 | AK5: -0.027650597 | AM5: O3 | AN5: 1000 | AO5: =SUM(W38:W52) -> 999.1433061 | AP5: 0.8566939225 | AQ5: =ABS(AP5) -> 0.8566939225
A6: O4 | B6: 13 | C6: 88 | D6: 62 | E6: 44 | F6: 75 | H6: O4 | I6: 14 | J6: 4 | K6: 6 | L6: 9 | M6: 2 | O6: -0.17830738 | P6: 1.5687405 | Q6: 1.4166863 | R6: -8.024862 | S6: 9.256677 | U6: 26.45044282 | V6: 126.3049463 | W6: -57.00885226 | X6: -41.43162752 | Y6: -7.59143694 | Z6: -31.00579776 | AA6: 40.7262722 | AB6: -0.0033069 | AC6: 15.40935362 | AD6: 105.925664 | AE6: -33.23562062 | AF6: 144.2868506 | AG6: 11.1918507 | AH6: 110.3542696 | AI6: 67.12927114 | AK6: 10.559795 | AM6: O4 | AN6: 1000 | AO6: =SUM(X38:X52) -> 999.2720935 | AP6: 0.727906522 | AQ6: 0.727906522
A7: O5 | B7: 76 | C7: 25 | D7: 28 | E7: 1 | F7: 33 | H7: O5 | I7: 3 | J7: 11 | K7: 9 | L7: 15 | M7: 9 | O7: 0.35083002 | P7: 1.5704595 | Q7: 0.01271933 | R7: -1.1385065 | S7: -0.6420273 | U7: 3.60254778 | V7: 2.76902938 | W7: 1.46009233 | X7: -0.26083884 | Y7: -4.41382467 | Z7: 2.08379494 | AA7: 15.37064659 | AB7: -4.21863386 | AC7: -7.68360853 | AD7: 2.91074563 | AE7: -13.78490599 | AF7: 10.76126962 | AG7: -10.18859819 | AH7: 2.88131295 | AI7: 15.97766596 | AK7: -0.029936865 | AM7: O5 | AN7: 1000 | AO7: =SUM(Y38:Y52) -> 998.4594392 | AP7: 1.540560832 | AQ7: 1.540560832
A8: O6 | B8: 82 | C8: 33 | D8: 24 | E8: 33 | F8: 73 | H8: O6 | I8: 2 | J8: 10 | K8: =RANK(D8,D$3:D$17,D$1) -> 10 | L8: 11 | M8: 3 | O8: 7.3188577 | P8: -8.505463 | Q8: 5.3660107 | R8: -3.9947417 | S8: 2.0194178 | U8: -79.6738321 | V8: 85.8587807 | W8: -30.1362042 | X8: 68.7243803 | Y8: -65.0557889 | Z8: -54.6407129 | AA8: 67.5988291 | AB8: 91.7204206 | AC8: -24.4723546 | AD8: 0.3105688 | AE8: 76.5752387 | AF8: 18.1788082 | AG8: 47.8288914 | AH8: 63.5844023 | AI8: 27.5553894 | AK8: 9.7198753 | AM8: O6 | AN8: 1000 | AO8: =SUM(Z38:Z52) -> 998.7453487 | AP8: 1.254651344 | AQ8: 1.254651344
A9: O7 | B9: 12 | C9: 19 | D9: 11 | E9: 69 | F9: 55 | H9: O7 | I9: 15 | J9: 12 | K9: 13 | L9: 5 | M9: 5 | O9: -0.30687648 | P9: 2.0502691 | Q9: -1.0432471 | R9: -0.23946945 | S9: -0.14123222 | U9: 18.67925907 | V9: 1.68304198 | W9: 6.53808032 | X9: -4.79236641 | Y9: 7.37997503 | Z9: 6.39860643 | AA9: 4.53436135 | AB9: -11.36621808 | AC9: -2.26805558 | AD9: 7.54521639 | AE9: -16.14783349 | AF9: 10.65342926 | AG9: -9.69122414 | AH9: 3.89820103 | AI9: 9.89938488 | AK9: -0.017865853 | AM9: O7 | AN9: 1000 | AO9: =SUM(AA38:AA52) -> 998.5768692 | AP9: 1.423130781 | AQ9: 1.423130781
A10: O8 | B10: 39 | C10: 97 | D10: 57 | E10: 56 | F10: 67 | H10: O8 | I10: 10 | J10: 1 | K10: 8 | L10: 6 | M10: 4 | O10: -0.70296055 | P10: 3.1185968 | Q10: 2.0030103 | R10: -0.7281112 | S10: -3.1083703 | U10: 1.2370895 | V10: -27.38827175 | W10: 12.52900235 | X10: 1.8812599 | Y10: 11.32577515 | Z10: 32.4758158 | AA10: 33.73547975 | AB10: -4.6890747 | AC10: 16.13230535 | AD10: -7.3327935 | AE10: -9.29060225 | AF10: 12.5347951 | AG10: -13.95861555 | AH10: -28.16512655 | AI10: 37.14994 | AK10: -0.04218784 | AM10: O8 | AN10: 1000 | AO10: =SUM(AB38:AB52) -> 998.4444966 | AP10: 1.555503378 | AQ10: 1.555503378
A11: O9 | B11: 90 | C11: 37 | D11: 1 | E11: 6 | F11: 29 | H11: O9 | I11: 1 | J11: 9 | K11: 15 | L11: 14 | M11: 10 | O11: -4.135462 | P11: 6.576953 | Q11: 2.100232 | R11: 4.286634 | S11: -9.7009325 | U11: 15.03173 | V11: -133.138147 | W11: 56.5565405 | X11: 0.190577 | Y11: 55.8333025 | Z11: 96.5511025 | AA11: 17.1230295 | AB11: -31.059737 | AC11: 49.564146 | AD11: -56.976352 | AE11: -10.019006 | AF11: -44.1710215 | AG11: -33.0121885 | AH11: -122.629641 | AI11: 26.544343 | AK11: -7.5920262 | AM11: O9 | AN11: 1000 | AO11: =SUM(AC38:AC52) -> 998.8463042 | AP11: 1.153695769 | AQ11: 1.153695769
A12: O10 | B12: 74 | C12: 47 | D12: 82 | E12: 76 | F12: 24 | H12: O10 | I12: 4 | J12: 8 | K12: 5 | L12: 3 | M12: 12 | O12: -0.22137092 | P12: -1.0006789 | Q12: 1.709893 | R12: -0.4312113 | S12: 0.10182524 | U12: -14.64233712 | V12: -1.4791926 | W12: -7.6349575 | X12: -0.5198017 | Y12: -1.834286 | Z12: 2.21155058 | AA12: 5.2529681 | AB12: 8.28478906 | AC12: 11.40220818 | AD12: -0.4131809 | AE12: 10.82101036 | AF12: 4.54077744 | AG12: 7.12480378 | AH12: -4.93789004 | AI12: 4.49920158 | AK12: -0.035514284 | AM12: O10 | AN12: 1000 | AO12: =SUM(AD38:AD52) -> 999.0939142 | AP12: 0.9060858362 | AQ12: 0.9060858362
A13: O11 | B13: 43 | C13: 97 | D13: 15 | E13: 28 | F13: 46 | H13: O11 | I13: 9 | J13: 1 | K13: 11 | L13: 13 | M13: 6 | O13: 0.24771628 | P13: 3.4646797 | Q13: -2.2762613 | R13: -0.0460676 | S13: -0.9675519 | U13: 31.79234858 | V13: 1.26548284 | W13: 17.72976006 | X13: 1.31946672 | Y13: 8.96929274 | Z13: 8.97021726 | AA13: 10.6324062 | AB13: -16.4148611 | AC13: -13.03455132 | AD13: 5.57817062 | AE13: -25.74893828 | AF13: 8.47456154 | AG13: -18.3719721 | AH13: 6.11532588 | AI13: 15.05831186 | AK13: -0.073880136 | AM13: O11 | AN13: 1000 | AO13: =SUM(AE38:AE52) -> 999.0045906 | AP13: 0.9954094267 | AQ13: 0.9954094267
A14: O12 | B14: 49 | C14: 9 | D14: 13 | E14: 72 | F14: 7 | H14: O12 | I14: 8 | J14: 14 | K14: 12 | L14: 4 | M14: 15 | O14: 1.2125366 | P14: -2.3521893 | Q14: -0.8421221 | R14: 2.850825 | S14: -0.04783469 | U14: 5.8932426 | V14: 3.31331594 | W14: 17.95648011 | X14: 28.07577822 | Y14: 12.51629139 | Z14: 1.69753013 | AA14: -6.97085835 | AB14: 19.94981114 | AC14: 6.8442045 | AD14: -10.19951978 | AE14: 36.07101386 | AF14: -22.65004295 | AG14: 20.28739617 | AH14: 3.01164272 | AI14: -15.79983722 | AK14: -0.021611856 | AM14: O12 | AN14: 1000 | AO14: =SUM(AF38:AF52) -> 998.2431899 | AP14: 1.756810138 | AQ14: 1.756810138
A15: O13 | B15: 72 | C15: 97 | D15: 60 | E15: 49 | F15: 38 | H15: O13 | I15: 5 | J15: 1 | K15: 7 | L15: 8 | M15: 7 | O15: 0.43964794 | P15: -0.11861271 | Q15: -0.2873041 | R15: -0.10786016 | S15: 0.19504276 | U15: 1.28528005 | V15: 6.36940888 | W15: 0.50177547 | X15: 3.3761398 | Y15: -2.43405045 | Z15: -3.7812057 | AA15: 1.87232628 | AB15: 2.11244397 | AC15: -4.49704259 | AD15: 1.39010222 | AE15: 0.44594813 | AF15: 0.90315714 | AG15: 0.57091633 | AH15: 6.18841265 | AI15: 0.38750835 | AK15: 0.0043216618 | AM15: O13 | AN15: 1000 | AO15: =SUM(AG38:AG52) -> 999.1539631 | AP15: 0.846036862 | AQ15: 0.846036862
A16: O14 | B16: 38 | C16: 80 | D16: 96 | E16: 89 | F16: 24 | H16: O14 | I16: 11 | J16: 5 | K16: 1 | L16: 1 | M16: 12 | O16: -1.4598739 | P16: -2.7229545 | Q16: -7.1023765 | R16: 10.994121 | S16: 2.1076512 | U16: 83.6494381 | V16: -12.2302349 | W16: 61.4619329 | X16: 29.2180798 | Y16: 85.6271661 | Z16: 26.0852268 | AA16: -81.395596 | AB16: 0.2546253 | AC16: 42.4920941 | AD16: -4.8608367 | AE16: 61.5815191 | AF16: -59.4376202 | AG16: 42.9675669 | AH16: -0.4898265 | AI16: -74.9701397 | AK16: 3.7320266 | AM16: O14 | AN16: 1000 | AO16: =SUM(AH38:AH52) -> 996.0130111 | AP16: 3.98698887 | AQ16: 3.98698887
A17: O15 | B17: 34 | C17: 7 | D17: 4 | E17: 56 | F17: 34 | H17: O15 | I17: 12 | J17: 15 | K17: 14 | L17: 6 | M17: 8 | O17: -1.743545 | P17: 6.9520245 | Q17: -4.4487514 | R17: 10.954863 | S17: -4.9151993 | U17: 142.3690457 | V17: -45.6520078 | W17: 127.746533 | X17: 65.469328 | Y17: 151.2890232 | Z17: 127.3035361 | AA17: 29.6356693 | AB17: -0.0050559 | AC17: 98.3094935 | AD17: 0.2804564 | AE17: 55.2458773 | AF17: 0.0864287 | AG17: 20.3255486 | AH17: -36.8951525 | AI17: 47.4828915 | AK17: 16.825323 | AM17: O15 | AN17: 1000 | AO17: =SUM(AI38:AI52) -> 998.4750524 | AP17: 1.524947649 | AQ17: 1.524947649
AN18: szum | AO18: szum | AP18: hiba
U19: Activation | AK19: Szórás | AN19: =SUM(AN3:AN17) -> 15000 | AO19: =SUM(AO3:AO17) -> 14982.03081 | AP19: =SUMSQ(AP3:AP17) -> 37.17447842 | AQ19: =SUM(AQ3:AQ17)/15 -> 1.374923442
O20: activation weight | U20: =IF(U3<0, U3*$O$21, U3) -> 29.6011162 | V20: =IF(V3<0, V3*$O$21, V3) -> 143.5542847 | W20: -77.3187256 | X20: 0.1742214 | Y20: 1.4713892 | Z20: -111.3055908 | AA20: -13.9519928 | AB20: 33.7880846 | AC20: 11.5148738 | AD20: 87.8491267 | AE20: 32.9657304 | AF20: 85.4622368 | AG20: 54.2926934 | AH20: 129.134402 | AI20: 1.3217314 | AK20: =STDEV(U20:AI20) -> 68.62301959 | AP20: hiba2
O21: 2 | U21: =IF(U4<0, U4*$O$21, U4) -> -33.3701751 | V21: 1.1844252 | W21: -28.0755628 | X21: -14.6341035 | Y21: 0.26423805 | Z21: 3.10432155 | AA21: 3.91222285 | AB21: 7.9049682 | AC21: 19.6298606 | AD21: 5.67676025 | AE21: 11.59797235 | AF21: 13.0508738 | AG21: 10.1622805 | AH21: -7.4925917 | AI21: 6.4271468 | AK21: =STDEV(U21:AI21) -> 14.94741232 | AP21: =ABS(AN19-AO19) -> 17.96918772
U22: 12.50286416 | V22: 6.24154098 | W22: 10.27183292 | X22: 12.21627484 | Y22: 18.69896888 | Z22: 1.39044982 | AA22: -38.8436436 | AB22: 10.7709972 | AC22: 15.01266146 | AD22: 0.81346024 | AE22: 28.92704494 | AF22: -25.92072564 | AG22: 20.8711606 | AH22: 6.33670606 | AI22: -41.05798376 | AK22: 21.08694136 | AP22: hiba3
U23: 26.45044282 | V23: 126.3049463 | W23: -114.0177045 | X23: -82.86325504 | Y23: -15.18287388 | Z23: -62.01159552 | AA23: 40.7262722 | AB23: -0.0066138 | AC23: 15.40935362 | AD23: 105.925664 | AE23: -66.47124124 | AF23: 144.2868506 | AG23: 11.1918507 | AH23: 110.3542696 | AI23: 67.12927114 | AK23: 79.9399235 | AP23: =AP19*AP21 -> 667.995181
U24: 3.60254778 | V24: 2.76902938 | W24: 1.46009233 | X24: -0.52167768 | Y24: -8.82764934 | Z24: 2.08379494 | AA24: 15.37064659 | AB24: -8.43726772 | AC24: -15.36721706 | AD24: 2.91074563 | AE24: -27.56981198 | AF24: 10.76126962 | AG24: -20.37719638 | AH24: 2.88131295 | AI24: 15.97766596 | AK24: 12.46699305 | AN24: szórás | AO24: szórás
U25: -159.3476642 | V25: 85.8587807 | W25: -60.2724084 | X25: 68.7243803 | Y25: -130.1115778 | Z25: -109.2814258 | AA25: 67.5988291 | AB25: 91.7204206 | AC25: -48.9447092 | AD25: 0.3105688 | AE25: 76.5752387 | AF25: 18.1788082 | AG25: 47.8288914 | AH25: 63.5844023 | AI25: 27.5553894 | AK25: 83.89881183 | AN25: =STDEV(AN3:AN17) -> 0 | AO25: =STDEV(AO3:AO17) -> 1.057232391
U26: 18.67925907 | V26: 1.68304198 | W26: 6.53808032 | X26: -9.58473282 | Y26: 7.37997503 | Z26: 6.39860643 | AA26: 4.53436135 | AB26: -22.73243616 | AC26: -4.53611116 | AD26: 7.54521639 | AE26: -32.29566698 | AF26: 10.65342926 | AG26: -19.38244828 | AH26: 3.89820103 | AI26: 9.89938488 | AK26: 14.22631107
U27: 1.2370895 | V27: -54.7765435 | W27: 12.52900235 | X27: 1.8812599 | Y27: 11.32577515 | Z27: 32.4758158 | AA27: 33.73547975 | AB27: -9.3781494 | AC27: 16.13230535 | AD27: -14.665587 | AE27: -18.5812045 | AF27: 12.5347951 | AG27: -27.9172311 | AH27: -56.3302531 | AI27: 37.14994 | AK27: 29.0905059
U28: 15.03173 | V28: -266.276294 | W28: 56.5565405 | X28: 0.190577 | Y28: 55.8333025 | Z28: 96.5511025 | AA28: 17.1230295 | AB28: -62.119474 | AC28: 49.564146 | AD28: -113.952704 | AE28: -20.038012 | AF28: -88.342043 | AG28: -66.024377 | AH28: -245.259282 | AI28: 26.544343 | AK28: 106.9074763
U29: -29.28467424 | V29: -2.9583852 | W29: -15.269915 | X29: -1.0396034 | Y29: -3.668572 | Z29: 2.21155058 | AA29: 5.2529681 | AB29: 8.28478906 | AC29: 11.40220818 | AD29: -0.8263618 | AE29: 10.82101036 | AF29: 4.54077744 | AG29: 7.12480378 | AH29: -9.87578008 | AI29: 4.49920158 | AK29: 10.84623912
U30: 31.79234858 | V30: 1.26548284 | W30: 17.72976006 | X30: 1.31946672 | Y30: 8.96929274 | Z30: 8.97021726 | AA30: 10.6324062 | AB30: -32.8297222 | AC30: -26.06910264 | AD30: 5.57817062 | AE30: -51.49787656 | AF30: 8.47456154 | AG30: -36.7439442 | AH30: 6.11532588 | AI30: 15.05831186 | AK30: 23.39716106
U31: 5.8932426 | V31: 3.31331594 | W31: 17.95648011 | X31: 28.07577822 | Y31: 12.51629139 | Z31: 1.69753013 | AA31: -13.9417167 | AB31: 19.94981114 | AC31: 6.8442045 | AD31: -20.39903956 | AE31: 36.07101386 | AF31: -45.3000859 | AG31: 20.28739617 | AH31: 3.01164272 | AI31: -31.59967444 | AK31: 22.38044907
U32: 1.28528005 | V32: 6.36940888 | W32: 0.50177547 | X32: 3.3761398 | Y32: -4.8681009 | Z32: -7.5624114 | AA32: 1.87232628 | AB32: 2.11244397 | AC32: -8.99408518 | AD32: 1.39010222 | AE32: 0.44594813 | AF32: 0.90315714 | AG32: 0.57091633 | AH32: 6.18841265 | AI32: 0.38750835 | AK32: 4.344829303
U33: 83.6494381 | V33: -24.4604698 | W33: 61.4619329 | X33: 29.2180798 | Y33: 85.6271661 | Z33: 26.0852268 | AA33: -162.791192 | AB33: 0.2546253 | AC33: 42.4920941 | AD33: -9.7216734 | AE33: 61.5815191 | AF33: -118.8752404 | AG33: 42.9675669 | AH33: -0.979653 | AI33: -149.9402794 | AK33: 80.54224364
U34: 142.3690457 | V34: -91.3040156 | W34: 127.746533 | X34: 65.469328 | Y34: 151.2890232 | Z34: 127.3035361 | AA34: 29.6356693 | AB34: -0.0101118 | AC34: 98.3094935 | AD34: 0.2804564 | AE34: 55.2458773 | AF34: 0.0864287 | AG34: 20.3255486 | AH34: -73.790305 | AI34: 47.4828915 | AK34: 74.30902243
U37: Y0 - szorzatok | AK37: Szórás
U38: =U20*$AK3 -> -322.2994693 | V38: =V20*$AK3 -> -1563.031254 | W38: =W20*$AK3 -> 841.8528564 | X38: -1.896937412 | Y38: -16.02061068 | Z38: 1211.904734 | AA38: 151.9104835 | AB38: =AB20*$AK3 -> -367.8875371 | AC38: -125.3749247 | AD38: -956.5087587 | AE38: -358.9336747 | AF38: -930.5200986 | AG38: -591.1434606 | AH38: -1406.026345 | AI38: =AI20*$AK3 -> -14.39112383 | AK38: =STDEV(U38:AI38) -> 747.1732702
U39: =U21*$AK4 -> -0.1361968658 | V39: =V21*$AK4 -> 0.004834107089 | W39: -0.1145874616 | X39: -0.05972755685 | Y39: 0.001078459856 | Z39: 0.01266996245 | AA39: =AA21*$AK4 -> 0.01596732678 | AB39: 0.03226329769 | AC39: 0.0801172149 | AD39: 0.0231691009 | AE39: 0.04733590636 | AF39: 0.05326577107 | AG39: 0.04147628082 | AH39: -0.0305802263 | AI39: 0.02623172481 | AK39: =STDEV(U39:AI39) -> 0.06100629391
U40: -0.3457116582 | V40: -0.1725823343 | W40: -0.2840223125 | X40: -0.3377872924 | Y40: -0.5170376528 | Z40: -0.03844676762 | AA40: 1.074049935 | AB40: -0.2978245029 | AC40: -0.4151090519 | AD40: -0.02249266127 | AE40: -0.799850062 | AF40: 0.7167235386 | AG40: -0.5771000507 | AH40: -0.1752137056 | AI40: 1.135277763 | AK40: 0.5830665175
U41: 279.3112538 | V41: 1333.75434 | W41: -1204.003586 | X41: -875.0189863 | Y41: -160.3280357 | Z41: -654.8297363 | AA41: 430.0610855 | AB41: -0.06984037217 | AC41: 162.7196153 | AD41: 1118.553297 | AE41: -701.9226809 | AF41: 1523.639563 | AG41: 118.1836491 | AH41: 1165.318465 | AI41: 708.8713417 | AK41: 844.1492045
U42: -0.1078489865 | V42: -0.08289605873 | W42: =W24*$AK7 -> -0.04371058697 | X42: 0.01561739428 | Y42: 0.2642721466 | Z42: -0.06238228781 | AA42: -0.4601489719 | AB42: 0.2525853447 | AC42: 0.4600463026 | AD42: -0.08713859897 | AE42: 0.8253537393 | AF42: -0.3221586758 | AG42: 0.6100293771 | AH42: -0.08625747681 | AI42: -0.4783212289 | AK42: 0.3732226879
U43: -1548.839425 | V43: 834.5366418 | W43: =W25*$AK8 -> -585.8402937 | X43: 667.9924066 | Y43: -1264.668311 | Z43: -1062.201831 | AA43: 657.0521893 | AB43: 891.5110507 | AC43: -475.73647 | AD43: 3.018690008 | AE43: 744.3017712 | AF43: 176.6957488 | AG43: 464.8908601 | AH43: =AH25*$AK8 -> 618.0324614 | AI43: 267.8349488 | AK43: 815.4859888
U44: -0.3337208967 | V44: -0.03006898061 | W44: -0.1168083819 | X44: 0.1712394276 | Y44: -0.131849549 | Z44: -0.1143165619 | AA44: -0.08101023333 | AB44: 0.4061343628 | AC44: 0.08104149518 | AD44: -0.1348017269 | AE44: 0.5769896388 | AF44: -0.1903326011 | AG44: 0.3462839718 | AH44: -0.06964468657 | AI44: -0.1768609551 | AK44: 0.2541651824
U45: -0.05219013389 | V45: 2.310904053 | W45: -0.5285715465 | X45: -0.07936629166 | Y45: -0.4778099899 | Z45: -1.370084521 | AA45: -1.423227022 | AB45: 0.3956438664 | AC45: -0.6805871169 | AD45: 0.6187094379 | AE45: 0.7839008825 | AF45: -0.5288159301 | AG45: 1.177767679 | AH45: 2.376451705 | AI45: -1.567275725 | AK45: 1.227265608
U46: -114.121288 | V46: 2021.5766 | W46: -429.3787373 | X46: -1.446865577 | Y46: -423.8878954 | Z46: -733.0184998 | AA46: -129.9984886 | AB46: 471.6126741 | AC46: -376.292295 | AD46: 865.1319143 | AE46: 152.1291121 | AF46: 670.695105 | AG46: 501.2588 | AH46: 1862.014895 | AI46: -201.5253475 | AK46: 811.6443614
U47: 1.040024238 | V47: 0.1050649322 | W47: 0.542300098 | X47: 0.03692077039 | Y47: 0.1302867079 | Z47: -0.07854163538 | AA47: -0.1865554009 | AB47: -0.2942283516 | AC47: -0.4049412595 | AD47: 0.02934764765 | AE47: -0.3843004351 | AF47: -0.1612624596 | AG47: -0.2530323049 | AH47: =AH29*$AK12 -> 0.3507312585 | AI47: -0.1597859227 | AK47: 0.3851964163
U48: -2.348823037 | V48: -0.09349404432 | W48: -1.309877084 | X48: -0.09748238072 | Y48: -0.6626525675 | Z48: -0.6627208711 | AA48: -0.7855236161 | AB48: 2.425464341 | AC48: 1.925988848 | AD48: -0.412116004 | AE48: 3.804670124 | AF48: -0.6261017591 | AG48: 2.714647595 | AH48: -0.4518011077 | AI48: -1.112510128 | AK48: 1.728585441
U49: -0.1273639104 | V49: -0.07160690698 | W49: -0.3880728624 | X49: -0.606769676 | Y49: -0.2705002872 | Z49: -0.03668677673 | AA49: 0.3013063737 | AB49: -0.4311524456 | AC49: -0.1479159621 | AD49: 0.4408611055 | AE49: -0.7795615573 | AF49: 0.9790189333 | AG49: -0.4384482846 | AH49: =AH31*$AK14 -> -0.06508718879 | AI49: 0.6829276136 | AK49: 0.4836830426
U50: 0.005554545694 | V50: 0.02752643105 | W50: 0.002168503881 | X50: 0.01459053441 | Y50: -0.0210382857 | Z50: -0.03268218446 | AA50: 0.008091560961 | AB50: 0.00912926841 | AC50: -0.03886939435 | AD50: 0.006007551662 | AE50: 0.001927236998 | AF50: 0.003903139711 | AG50: 0.002467307294 | AH50: 0.02674422655 | AI50: 0.001674680033 | AK50: 0.01877688283
U51: 312.1819281 | V51: -91.28712394 | W51: 229.3775685 | X51: 109.042651 | Y51: 319.5628616 | Z51: 97.35076028 | AA51: -607.5410588 | AB51: 0.9502683926 | AC51: 158.5816255 | AD51: -36.28154373 | AE51: 229.8238673 | AF51: -443.6455593 | AG51: 160.3561026 | AH51: -3.656091055 | AI51: -559.5811111 | AK51: 300.5857957
U52: 2395.405179 | V52: -1536.219554 | W52: 2149.37668 | X52: 1101.54259 | Y52: 2545.486682 | Z52: 2141.923114 | AA52: 498.6297083 | AB52: -0.1701343011 | AC52: 1654.088982 | AD52: 4.718769517 | AE52: 929.52973 | AF52: 1.454190794 | AG52: 341.9839203 | AH52: -1241.545716 | AI52: 798.9149865 | AK52: 1250.273304

Sheet nn - ranked data - new (6)
A1: irány | B1: 0 | C1: 0 | D1: 0 | E1: 0 | F1: 0 | M1: súlyok | U1: 2. layer vektor | AK1: 2 layer súlyok | AO1: tény_összeg <> becslés összeg - különösen az objektumonkénti hibák nagyságrendje kapcsán aggályos a szum:szum eltérés / de a felülbecslő és az alulbecslő modellek hibridizálhatók
A2: rnd(1-100) | B2: A1 | C2: A2 | D2: A3 | E2: A4 | F2: A5 | H2: rank = 0 | I2: =B2 -> A1 | J2: A2 | K2: A3 | L2: A4 | M2: A5 | O2: w1 | P2: w2 | Q2: w3 | R2: w4 | S2: w5 | U2: O1 | V2: O2 | W2: O3 | X2: O4 | Y2: O5 | Z2: O6 | AA2: O7 | AB2: O8 | AC2: O9 | AD2: O10 | AE2: O11 | AF2: O12 | AG2: O13 | AH2: O14 | AI2: O15 | AN2: Y0 | AO2: Ybecslés | AP2: eltérés | AQ2: MAE
A3: O1 | B3: 70 | C3: 10 | D3: 93 | E3: 33 | F3: 29 | H3: =A3 -> O1 | I3: =RANK(B3,B$3:B$17,B$1) -> 6 | J3: =RANK(C3,C$3:C$17,C$1) -> 13 | K3: =RANK(D3,D$3:D$17,D$1) -> 2 | L3: 11 | M3: 10 | O3: -3.0072913 | P3: 7.1746573 | Q3: -3.2402027 | R3: 0.44589096 | S3: 0.5962355 | U3: =$I$3*$O3+$J$3*$P3+$K$3*$Q3+$L$3*$R3+$M$3*$S3 -> 79.61354726 | V3: =$I$4*$O3+$J$4*$P3+$K$4*$Q3+$L$4*$R3+$M$4*$S3 -> 0.23142502 | W3: =$I$5*$O3+$J$5*$P3+$K$5*$Q3+$L$5*$R3+$M$5*$S3 -> 24.506099 | X3: =$I$6*$O3+$J$6*$P3+$K$6*$Q3+$L$6*$R3+$M$6*$S3 -> -27.63917556 | Y3: =$I$7*$O3+$J$7*$P3+$K$7*$Q3+$L$7*$R3+$M$7*$S3 -> 52.792016 | Z3: =$I$8*$O3+$J$8*$P3+$K$8*$Q3+$L$8*$R3+$M$8*$S3 -> 40.02347046 | AA3: =$I$9*$O3+$J$9*$P3+$K$9*$Q3+$L$9*$R3+$M$9*$S3 -> 4.0745153 | AB3: =$I$10*$O3+$J$10*$P3+$K$10*$Q3+$L$10*$R3+$M$10*$S3 -> -43.75958954 | AC3: =$I$11*$O3+$J$11*$P3+$K$11*$Q3+$L$11*$R3+$M$11*$S3 -> 25.16641234 | AD3: =$I$12*$O3+$J$12*$P3+$K$12*$Q3+$L$12*$R3+$M$12*$S3 -> 37.65957858 | AE3: =$I$13*$O3+$J$13*$P3+$K$13*$Q3+$L$13*$R3+$M$13*$S3 -> -46.15919862 | AF3: =$I$14*$O3+$J$14*$P3+$K$14*$Q3+$L$14*$R3+$M$14*$S3 -> 48.23153574 | AG3: =$I$15*$O3+$J$15*$P3+$K$15*$Q3+$L$15*$R3+$M$15*$S3 -> -22.80244192 | AH3: =$I$16*$O3+$J$16*$P3+$K$16*$Q3+$L$16*$R3+$M$16*$S3 -> 7.15359646 | AI3: =$I$17*$O3+$J$17*$P3+$K$17*$Q3+$L$17*$R3+$M$17*$S3 -> 33.61475586 | AK3: -0.89031899 | AM3: O1 | AN3: 1000 | AO3: =SUM(U38:U52) -> 1000.675855 | AP3: =AN3-AO3 -> -0.6758547641 | AQ3: =ABS(AP3) -> 0.6758547641
A4: O2 | B4: 17 | C4: 74 | D4: 84 | E4: 78 | F4: 23 | H4: =A4 -> O2 | I4: =RANK(B4,B$3:B$17,B$1) -> 13 | J4: 6 | K4: 4 | L4: 2 | M4: 14 | O4: -2.7060463 | P4: 6.1924024 | Q4: -3.9147935 | R4: 12.942396 | S4: -6.274035 | U4: =$I$3*$O4+$J$3*$P4+$K$3*$Q4+$L$3*$R4+$M$3*$S4 -> 136.0613724 | V4: =$I$4*$O4+$J$4*$P4+$K$4*$Q4+$L$4*$R4+$M$4*$S4 -> -75.6350595 | W4: =$I$5*$O4+$J$5*$P4+$K$5*$Q4+$L$5*$R4+$M$5*$S4 -> 135.8100372 | X4: =$I$6*$O4+$J$6*$P4+$K$6*$Q4+$L$6*$R4+$M$6*$S4 -> 67.3296944 | Y4: =$I$7*$O4+$J$7*$P4+$K$7*$Q4+$L$7*$R4+$M$7*$S4 -> 162.434771 | Z4: =$I$8*$O4+$J$8*$P4+$K$8*$Q4+$L$8*$R4+$M$8*$S4 -> 140.9082474 | AA4: =$I$9*$O4+$J$9*$P4+$K$9*$Q4+$L$9*$R4+$M$9*$S4 -> 16.1676238 | AB4: =$I$10*$O4+$J$10*$P4+$K$10*$Q4+$L$10*$R4+$M$10*$S4 -> 0.3718274 | AC4: =$I$11*$O4+$J$11*$P4+$K$11*$Q4+$L$11*$R4+$M$11*$S4 -> 112.7568668 | AD4: =$I$12*$O4+$J$12*$P4+$K$12*$Q4+$L$12*$R4+$M$12*$S4 -> -17.3201655 | AE4: =$I$13*$O4+$J$13*$P4+$K$13*$Q4+$L$13*$R4+$M$13*$S4 -> 69.3821952 | AF4: =$I$14*$O4+$J$14*$P4+$K$14*$Q4+$L$14*$R4+$M$14*$S4 -> -24.2731998 | AG4: =$I$15*$O4+$J$15*$P4+$K$15*$Q4+$L$15*$R4+$M$15*$S4 -> 24.8795394 | AH4: =$I$16*$O4+$J$16*$P4+$K$16*$Q4+$L$16*$R4+$M$16*$S4 -> -65.0653148 | AI4: =$I$17*$O4+$J$17*$P4+$K$17*$Q4+$L$17*$R4+$M$17*$S4 -> 33.0684674 | AK4: 7.5571718 | AM4: O2 | AN4: 1000 | AO4: =SUM(V38:V52) -> 1000.869626 | AP4: =AN4-AO4 -> -0.8696262676 | AQ4: =ABS(AP4) -> 0.8696262676
A5: O3 | B5: 57 | C5: 57 | D5: 89 | E5: 37 | F5: 85 | H5: O3 | I5: 7 | J5: 7 | K5: 3 | L5: 10 | M5: 1 | O5: 1.2298069 | P5: 4.0239496 | Q5: -5.720702 | R5: 3.658056 | S5: -1.4555726 | U5: 73.9316722 | V5: =$I$4*$O5+$J$4*$P5+$K$4*$Q5+$L$4*$R5+$M$4*$S5 -> 4.1864749 | W5: 54.7391769 | X5: 29.0002418 | Y5: 38.2372349 | Z5: 21.363988 | AA5: 3.3777897 | AB5: -13.3175518 | AC5: -11.7081187 | AD5: 2.0146112 | AE5: -9.0142179 | AF5: -9.6760394 | AG5: -10.7964901 | AH5: 14.1181067 | AI5: 5.330854 | AK5: -0.073664248 | AM5: O3 | AN5: 1000 | AO5: =SUM(W38:W52) -> 1000.465908 | AP5: -0.4659082281 | AQ5: =ABS(AP5) -> 0.4659082281
A6: O4 | B6: 13 | C6: 88 | D6: 62 | E6: 44 | F6: 75 | H6: O4 | I6: 14 | J6: 4 | K6: 6 | L6: 9 | M6: 2 | O6: 0.35650486 | P6: 1.3643284 | Q6: -0.9675536 | R6: 0.27856046 | S6: -0.59114355 | U6: 15.09292072 | V6: 1.2314304 | W6: 11.33763307 | X6: 5.96781708 | Y6: 6.22725953 | Z6: 5.97149213 | AA6: 7.57840145 | AB6: -3.50426324 | AC6: -3.8894326 | AD6: 1.24483742 | AE6: -5.99579278 | AF6: 2.58908187 | AG6: -5.53554367 | AH6: 2.96047972 | AI6: 8.13944828 | AK6: 0.00038188917 | AM6: O4 | AN6: 1000 | AO6: =SUM(X38:X52) -> 1000.610652 | AP6: -0.610651731 | AQ6: 0.610651731
A7: O5 | B7: 76 | C7: 25 | D7: 28 | E7: 1 | F7: 33 | H7: O5 | I7: 3 | J7: 11 | K7: 9 | L7: 15 | M7: 9 | O7: 0.3022432 | P7: 0.6407146 | Q7: 0.3433411 | R7: -0.2273464 | S7: -0.76597226 | U7: 0.6688982 | V7: -2.03149084 | W7: 4.59129164 | X7: 5.27624768 | Y7: 0.74071376 | Z7: 5.64631622 | AA7: 11.7190642 | AB7: 1.98190796 | AC7: 0.3762189 | AD7: -1.82231122 | AE7: -0.41368126 | AF7: 3.1090737 | AG7: -2.62525872 | AH7: -2.54742422 | AI7: 10.55255632 | AK7: -0.019430712 | AM7: O5 | AN7: 1000 | AO7: =SUM(Y38:Y52) -> 1000.433653 | AP7: -0.4336533728 | AQ7: 0.4336533728
A8: O6 | B8: 82 | C8: 33 | D8: 24 | E8: 33 | F8: 73 | H8: O6 | I8: 2 | J8: 10 | K8: =RANK(D8,D$3:D$17,D$1) -> 10 | L8: 11 | M8: 3 | O8: 0.33356872 | P8: 1.5024673 | Q8: -8.6889515 | R8: 3.4289978 | S8: 1.0941232 | U8: 52.81579202 | V8: 0.77111156 | W8: 22.16949884 | X8: -8.40465112 | Y8: 0.60935876 | Z8: -30.19635916 | AA8: -67.3076261 | AB8: -39.7229779 | AC8: -57.53129688 | AD8: -6.67427242 | AE8: -39.93217012 | AF8: -50.43648684 | AG8: -22.5615048 | AH8: 19.05111712 | AI8: -65.77851446 | AK8: -2.2924008 | AM8: O6 | AN8: 1000 | AO8: =SUM(Z38:Z52) -> 1000.630468 | AP8: -0.6304676475 | AQ8: 0.6304676475
A9: O7 | B9: 12 | C9: 19 | D9: 11 | E9: 69 | F9: 55 | H9: O7 | I9: 15 | J9: 12 | K9: 13 | L9: 5 | M9: 5 | O9: 0.0286779 | P9: 0.1550353 | Q9: -0.06896883 | R9: 0.09781815 | S9: -0.11087784 | U9: 2.01680989 | V9: -0.32950428 | W9: 1.94638957 | X9: 1.26642649 | Y9: 1.64007422 | Z9: 1.66138663 | AA9: 1.32869886 | AB9: 0.0334612 | AC9: 0.65013885 | AD9: -0.02692978 | AE9: 0.26084818 | AF9: 0.30039644 | AG9: -0.17795669 | AH9: -0.21105136 | AI9: 1.40398686 | AK9: 0.0017659765 | AM9: O7 | AN9: 1000 | AO9: =SUM(AA38:AA52) -> 1000.759034 | AP9: -0.7590342946 | AQ9: 0.7590342946
A10: O8 | B10: 39 | C10: 97 | D10: 57 | E10: 56 | F10: 67 | H10: O8 | I10: 10 | J10: 1 | K10: 8 | L10: 6 | M10: 4 | O10: -0.32166773 | P10: 0.03770313 | Q10: -1.216325 | R10: 1.2133552 | S10: 0.8765001 | U10: 18.23939251 | V10: 5.87695009 | W10: 7.3733249 | X10: 1.0227113 | Y10: 14.59163514 | Z10: 3.54685334 | AA10: -9.73552689 | AB10: -2.12344257 | AC10: 7.52475924 | AD10: 7.09139592 | AE10: 4.79573676 | AF10: 1.35952428 | AG10: 5.75743178 | AH10: 7.16520202 | AI10: -6.03088381 | AK10: 0.0017570028 | AM10: O8 | AN10: 1000 | AO10: =SUM(AB38:AB52) -> 1000.494585 | AP10: -0.4945849313 | AQ10: 0.4945849313
A11: O9 | B11: 90 | C11: 37 | D11: 1 | E11: 6 | F11: 29 | H11: O9 | I11: 1 | J11: 9 | K11: 15 | L11: 14 | M11: 10 | O11: -3.452875 | P11: -4.9822507 | Q11: -1.9474238 | R11: 0.20490147 | S11: 9.171221 | U11: 4.58476947 | V11: 46.23632254 | W11: -53.6679156 | X11: -59.76724037 | Y11: 2.92431415 | Z11: -46.43491583 | AA11: -90.01603045 | AB11: -17.17609828 | AC11: 17.07634228 | AD11: 47.26273181 | AE11: 0.21125761 | AF11: 17.64432548 | AG11: 29.95916646 | AH11: 45.41925117 | AI11: -68.83301688 | AK11: -1.9794649 | AM11: O9 | AN11: 1000 | AO11: =SUM(AC38:AC52) -> 1000.577258 | AP11: -0.5772577166 | AQ11: 0.5772577166
A12: O10 | B12: 74 | C12: 47 | D12: 82 | E12: 76 | F12: 24 | H12: O10 | I12: 4 | J12: 8 | K12: 5 | L12: 3 | M12: 12 | O12: -2.581779 | P12: -1.7422462 | Q12: 0.07409533 | R12: 1.4519455 | S12: 4.0493283 | U12: 18.47299956 | V12: 15.87426432 | W12: -11.47710711 | X12: -21.50315272 | Y12: 31.97994997 | Z12: 6.2743187 | AA12: -31.16403111 | AB12: -2.05828736 | AC12: 43.66995515 | AD12: 29.05316715 | AE12: 19.00805273 | AF12: 22.39117166 | AG12: 25.82838821 | AH12: 13.00718043 | AI12: -14.97140698 | AK12: -0.0071407985 | AM12: O10 | AN12: 1000 | AO12: =SUM(AD38:AD52) -> 1000.690681 | AP12: -0.6906813626 | AQ12: 0.6906813626
A13: O11 | B13: 43 | C13: 97 | D13: 15 | E13: 28 | F13: 46 | H13: O11 | I13: 9 | J13: 1 | K13: 11 | L13: 13 | M13: 6 | O13: -2.7503924 | P13: 3.3572054 | Q13: -5.1978507 | R13: 12.694388 | S13: -2.527198 | U13: 131.1119024 | V13: -46.3952676 | W13: 113.0708209 | X13: 52.9313198 | Y13: 149.5684639 | Z13: 108.1494362 | AA13: -17.7055303 | AB13: 0.3280118 | AC13: 101.9461477 | AD13: -2.3763919 | AE13: 71.2911721 | AF13: -24.50689 | AG13: 37.0850065 | AH13: -36.2981281 | AI13: 0.5322064 | AK13: 0.93361628 | AM13: O11 | AN13: 1000 | AO13: =SUM(AE38:AE52) -> 1000.760124 | AP13: -0.7601237328 | AQ13: 0.7601237328
A14: O12 | B14: 49 | C14: 9 | D14: 13 | E14: 72 | F14: 7 | H14: O12 | I14: 8 | J14: 14 | K14: 12 | L14: 4 | M14: 15 | O14: -4.4728346 | P14: 6.110401 | Q14: 3.0327077 | R14: 5.8365703 | S14: -12.629451 | U14: -3.4286159 | V14: -174.4927864 | W14: 66.2973399 | X14: 7.2883965 | Y14: 54.973772 | Z14: 108.7993381 | AA14: 11.6930896 | AB14: -29.8546656 | AC14: 51.4288641 | AD14: -87.888293 | AE14: -0.6866178 | AF14: -79.9400542 | AG14: -36.7384127 | AH14: -161.3333096 | AI14: 14.4237214 | AK14: -5.6158228 | AM14: O12 | AN14: 1000 | AO14: =SUM(AF38:AF52) -> 1000.764102 | AP14: -0.7641022774 | AQ14: 0.7641022774
A15: O13 | B15: 72 | C15: 97 | D15: 60 | E15: 49 | F15: 38 | H15: O13 | I15: 5 | J15: 1 | K15: 7 | L15: 8 | M15: 7 | O15: 1.5223054 | P15: 0.77024084 | Q15: -2.019457 | R15: 0.8860888 | S15: -0.5634688 | U15: 19.22033812 | V15: 10.21720164 | W15: 18.28687188 | X15: 19.12435856 | Y15: 3.08456524 | Z15: -1.3909804 | AA15: 7.43763008 | AB15: 2.90029644 | AC15: -15.06682684 | AD15: -1.94949588 | AE15: 0.39530404 | AF15: -6.17934584 | AG15: -2.61000236 | AH15: 12.7015698 | AI15: 2.3576618 | AK15: -0.011346081 | AM15: O13 | AN15: 1000 | AO15: =SUM(AG38:AG52) -> 1000.25641 | AP15: -0.2564100566 | AQ15: 0.2564100566
A16: O14 | B16: 38 | C16: 80 | D16: 96 | E16: 89 | F16: 24 | H16: O14 | I16: 11 | J16: 5 | K16: 1 | L16: 1 | M16: 12 | O16: 1.4616407 | P16: -0.7235909 | Q16: -1.7492553 | R16: 2.8285897 | S16: -0.47220355 | U16: 22.2571031 | V16: 6.7090922 | W16: 27.73227615 | X16: 31.5859746 | Y16: 18.86113805 | Z16: 7.89269545 | AA16: 2.28313155 | AB16: 14.9814977 | AC16: 3.5887134 | AD16: -5.8691144 | AE16: 27.1278119 | AF16: -15.19690505 | AG16: 13.66311825 | AH16: 7.872985 | AI16: -4.6098395 | AK16: -0.039379802 | AM16: O14 | AN16: 1000 | AO16: =SUM(AH38:AH52) -> 999.8698934 | AP16: 0.1301065754 | AQ16: 0.1301065754
A17: O15 | B17: 34 | C17: 7 | D17: 4 | E17: 56 | F17: 34 | H17: O15 | I17: 12 | J17: 15 | K17: 14 | L17: 6 | M17: 8 | O17: -0.03396377 | P17: 1.0727724 | Q17: -2.997061 | R17: 2.2259562 | S17: 0.7446611 | U17: 39.68026578 | V17: 8.88402919 | W17: 21.28470051 | X17: 7.35615882 | Y17: 24.81634899 | Z17: 7.40868796 | AA17: -11.74489425 | AB17: -6.9089717 | AC17: 3.27507063 | AD17: 9.07482092 | AE17: 1.20482467 | AF17: -1.14388726 | AG17: 2.94380385 | AH17: 13.15508893 | AI17: -6.96180724 | AK17: -0.0014867703 | AM17: O15 | AN17: 1000 | AO17: =SUM(AI38:AI52) -> 1000.847518 | AP17: -0.8475176231 | AQ17: 0.8475176231
AN18: szum | AO18: szum | AP18: hiba
U19: Activation | AK19: Szórás | AN19: =SUM(AN3:AN17) -> 15000 | AO19: =SUM(AO3:AO17) -> 15008.70577 | AP19: =SUMSQ(AP3:AP17) -> 5.982155093 | AQ19: =SUM(AQ3:AQ17)/15 -> 0.5977320388
O20: activation weight | U20: =IF(U3<0, U3*$O$21, U3) -> 79.61354726 | V20: =IF(V3<0, V3*$O$21, V3) -> 0.23142502 | W20: 24.506099 | X20: -82.91752668 | Y20: 52.792016 | Z20: 40.02347046 | AA20: 4.0745153 | AB20: -131.2787686 | AC20: 25.16641234 | AD20: 37.65957858 | AE20: -138.4775959 | AF20: 48.23153574 | AG20: -68.40732576 | AH20: 7.15359646 | AI20: 33.61475586 | AK20: =STDEV(U20:AI20) -> 67.90751968 | AP20: hiba2
O21: 3 | U21: =IF(U4<0, U4*$O$21, U4) -> 136.0613724 | V21: -226.9051785 | W21: 135.8100372 | X21: 67.3296944 | Y21: 162.434771 | Z21: 140.9082474 | AA21: 16.1676238 | AB21: 0.3718274 | AC21: 112.7568668 | AD21: -51.9604965 | AE21: 69.3821952 | AF21: -72.8195994 | AG21: 24.8795394 | AH21: -195.1959444 | AI21: 33.0684674 | AK21: =STDEV(U21:AI21) -> 118.4871101 | AP21: =ABS(AN19-AO19) -> 8.705767431
U22: 73.9316722 | V22: 4.1864749 | W22: 54.7391769 | X22: 29.0002418 | Y22: 38.2372349 | Z22: 21.363988 | AA22: 3.3777897 | AB22: -39.9526554 | AC22: -35.1243561 | AD22: 2.0146112 | AE22: -27.0426537 | AF22: -29.0281182 | AG22: -32.3894703 | AH22: 14.1181067 | AI22: 5.330854 | AK22: 34.30829404 | AP22: hiba3
U23: 15.09292072 | V23: 1.2314304 | W23: 11.33763307 | X23: 5.96781708 | Y23: 6.22725953 | Z23: 5.97149213 | AA23: 7.57840145 | AB23: -10.51278972 | AC23: -11.6682978 | AD23: 1.24483742 | AE23: -17.98737834 | AF23: 2.58908187 | AG23: -16.60663101 | AH23: 2.96047972 | AI23: 8.13944828 | AK23: 10.16184497 | AP23: =AP19*AP21 -> 52.07925098
U24: 0.6688982 | V24: -6.09447252 | W24: 4.59129164 | X24: 5.27624768 | Y24: 0.74071376 | Z24: 5.64631622 | AA24: 11.7190642 | AB24: 1.98190796 | AC24: 0.3762189 | AD24: -5.46693366 | AE24: -1.24104378 | AF24: 3.1090737 | AG24: -7.87577616 | AH24: -7.64227266 | AI24: 10.55255632 | AK24: 6.067614209 | AN24: szórás | AO24: szórás
U25: 52.81579202 | V25: 0.77111156 | W25: 22.16949884 | X25: -25.21395336 | Y25: 0.60935876 | Z25: -90.58907748 | AA25: -201.9228783 | AB25: -119.1689337 | AC25: -172.5938906 | AD25: -20.02281726 | AE25: -119.7965104 | AF25: -151.3094605 | AG25: -67.6845144 | AH25: 19.05111712 | AI25: -197.3355434 | AK25: 85.38182648 | AN25: =STDEV(AN3:AN17) -> 0 | AO25: =STDEV(AO3:AO17) -> 0.2576629382
U26: 2.01680989 | V26: -0.98851284 | W26: 1.94638957 | X26: 1.26642649 | Y26: 1.64007422 | Z26: 1.66138663 | AA26: 1.32869886 | AB26: 0.0334612 | AC26: 0.65013885 | AD26: -0.08078934 | AE26: 0.26084818 | AF26: 0.30039644 | AG26: -0.53387007 | AH26: -0.63315408 | AI26: 1.40398686 | AK26: 0.9951116659
U27: 18.23939251 | V27: 5.87695009 | W27: 7.3733249 | X27: 1.0227113 | Y27: 14.59163514 | Z27: 3.54685334 | AA27: -29.20658067 | AB27: -6.37032771 | AC27: 7.52475924 | AD27: 7.09139592 | AE27: 4.79573676 | AF27: 1.35952428 | AG27: 5.75743178 | AH27: 7.16520202 | AI27: -18.09265143 | AK27: 12.01958191
U28: 4.58476947 | V28: 46.23632254 | W28: -161.0037468 | X28: -179.3017211 | Y28: 2.92431415 | Z28: -139.3047475 | AA28: -270.0480913 | AB28: -51.52829484 | AC28: 17.07634228 | AD28: 47.26273181 | AE28: 0.21125761 | AF28: 17.64432548 | AG28: 29.95916646 | AH28: 45.41925117 | AI28: -206.4990506 | AK28: 107.366076
U29: 18.47299956 | V29: 15.87426432 | W29: -34.43132133 | X29: -64.50945816 | Y29: 31.97994997 | Z29: 6.2743187 | AA29: -93.49209333 | AB29: -6.17486208 | AC29: 43.66995515 | AD29: 29.05316715 | AE29: 19.00805273 | AF29: 22.39117166 | AG29: 25.82838821 | AH29: 13.00718043 | AI29: -44.91422094 | AK29: 39.84533171
U30: 131.1119024 | V30: -139.1858028 | W30: 113.0708209 | X30: 52.9313198 | Y30: 149.5684639 | Z30: 108.1494362 | AA30: -53.1165909 | AB30: 0.3280118 | AC30: 101.9461477 | AD30: -7.1291757 | AE30: 71.2911721 | AF30: -73.52067 | AG30: 37.0850065 | AH30: -108.8943843 | AI30: 0.5322064 | AK30: 89.98586923
U31: -10.2858477 | V31: -523.4783592 | W31: 66.2973399 | X31: 7.2883965 | Y31: 54.973772 | Z31: 108.7993381 | AA31: 11.6930896 | AB31: -89.5639968 | AC31: 51.4288641 | AD31: -263.664879 | AE31: -2.0598534 | AF31: -239.8201626 | AG31: -110.2152381 | AH31: -483.9999288 | AI31: 14.4237214 | AK31: 197.4292565
U32: 19.22033812 | V32: 10.21720164 | W32: 18.28687188 | X32: 19.12435856 | Y32: 3.08456524 | Z32: -4.1729412 | AA32: 7.43763008 | AB32: 2.90029644 | AC32: -45.20048052 | AD32: -5.84848764 | AE32: 0.39530404 | AF32: -18.53803752 | AG32: -7.83000708 | AH32: 12.7015698 | AI32: 2.3576618 | AK32: 16.69174465
U33: 22.2571031 | V33: 6.7090922 | W33: 27.73227615 | X33: 31.5859746 | Y33: 18.86113805 | Z33: 7.89269545 | AA33: 2.28313155 | AB33: 14.9814977 | AC33: 3.5887134 | AD33: -17.6073432 | AE33: 27.1278119 | AF33: -45.59071515 | AG33: 13.66311825 | AH33: 7.872985 | AI33: -13.8295185 | AK33: 20.28593865
U34: 39.68026578 | V34: 8.88402919 | W34: 21.28470051 | X34: 7.35615882 | Y34: 24.81634899 | Z34: 7.40868796 | AA34: -35.23468275 | AB34: -20.7269151 | AC34: 3.27507063 | AD34: 9.07482092 | AE34: 1.20482467 | AF34: -3.43166178 | AG34: 2.94380385 | AH34: 13.15508893 | AI34: -20.88542172 | AK34: 18.89089378
U37: Y0 - szorzatok | AK37: Szórás
U38: =U20*$AK3 -> -70.88145299 | V38: =V20*$AK3 -> -0.2060420901 | W38: =W20*$AK3 -> -21.81824531 | X38: 73.82304861 | Y38: -47.00173437 | Z38: -35.6336558 | AA38: -3.627618347 | AB38: =AB20*$AK3 -> 116.8799807 | AC38: -22.40613482 | AD38: -33.52903797 | AE38: 123.2892333 | AF38: -42.94145219 | AG38: 60.90434118 | AH38: -6.368982775 | AI38: =AI20*$AK3 -> -29.92785549 | AK38: =STDEV(U38:AI38) -> 60.45935434
U39: =U21*$AK4 -> 1028.239167 | V39: =V21*$AK4 -> -1714.761416 | W39: 1026.339783 | X39: 508.8220678 | Y39: 1227.547471 | Z39: 1064.867834 | AA39: =AA21*$AK4 -> 122.1815107 | AB39: 2.809963542 | AC39: 852.123014 | AD39: -392.6743989 | AE39: 524.333169 | AF39: -550.3102231 | AG39: 188.0189536 | AH39: -1475.129286 | AI39: 249.9040893 | AK39: =STDEV(U39:AI39) -> 895.4274468
U40: -5.446121036 | V40: -0.3083935253 | W40: -4.032320302 | X40: -2.136281004 | Y40: -2.816717155 | Z40: -1.57376211 | AA40: -0.2488223382 | AB40: 2.943082316 | AC40: 2.587409279 | AD40: -0.1484048191 | AE40: 1.992076749 | AF40: 2.138334498 | AG40: 2.385945973 | AH40: -1.039999713 | AI40: -0.3926933511 | AK40: 2.527294681
U41: 0.005763822967 | V41: 0.0004702699334 | W41: 0.004329719283 | X41: 0.002279044711 | Y41: 0.002378122973 | Z41: 0.002280448173 | AA41: 0.00289410944 | AB41: -0.004014720541 | AC41: -0.004455996562 | AD41: 0.0004753899291 | AE41: -0.006869184985 | AF41: 0.0009887423264 | AG41: -0.006341892533 | AH41: 0.001130575143 | AI41: 0.003108367148 | AK41: 0.003880698542
U42: -0.01299716828 | V42: 0.1184199403 | W42: =W24*$AK7 -> -0.08921206556 | X42: -0.1025212491 | Y42: -0.01439259574 | Z42: -0.1097119443 | AA42: -0.2277097614 | AB42: -0.03850988278 | AC42: -0.007310201095 | AD42: 0.1062264135 | AE42: 0.02411436427 | AF42: -0.06041151565 | AG42: 0.1530319383 | AH42: 0.1484947991 | AI42: -0.2050436827 | AK42: 0.1178980642
U43: -121.0749639 | V43: -1.767696757 | W43: =W25*$AK8 -> -50.82137688 | X43: 57.80048685 | Y43: -1.396894509 | Z43: 207.6664737 | AA43: 462.8881678 | AB43: 273.1829589 | AC43: 395.654373 | AD43: 45.90032231 | AE43: 274.6216162 | AF43: 346.8619283 | AG43: 155.160035 | AH43: =AH25*$AK8 -> -43.67279613 | AI43: 452.3721575 | AK43: 195.7293673
U44: 0.003561638871 | V44: -0.001745690445 | W44: 0.00343727824 | X44: 0.00223647942 | Y44: 0.002896332531 | Z44: 0.002933969746 | AA44: 0.002346450962 | AB44: 5.909169286e-05 | AC44: 0.001148129931 | AD44: -0.0001426720759 | AE44: 0.0004606517559 | AF44: 0.0005304930537 | AG44: -0.0009428019977 | AH44: -0.001118135226 | AI44: 0.002479407801 | AK44: 0.001757343817
U45: 0.03204666371 | V45: 0.01032581776 | W45: 0.01295495249 | X45: 0.001796906618 | Y45: 0.0256375438 | Z45: 0.00623183125 | AA45: -0.05131604402 | AB45: -0.01119268362 | AC45: 0.01322102305 | AD45: 0.01245960249 | AE45: 0.008426122915 | AF45: 0.002388687967 | AG45: 0.01011582376 | AH45: 0.01258928001 | AI45: -0.03178883922 | AK45: 0.02111843906
U46: -9.07539024 | V46: -91.52317757 | W46: 318.7012656 | X46: 354.9214634 | Y46: -5.788577216 | Z46: 275.7488581 | AA46: 534.5507181 | AB46: 101.998451 | AC46: -33.80202016 | AD46: -93.5549187 | AE46: -0.4181770239 | AF46: -34.92632297 | AG46: -59.30311844 | AH46: -89.90581348 | AI46: 408.7576226 | AK46: 212.5273788
U47: -0.1319119675 | V47: -0.1133549228 | W47: 0.2458671277 | X47: 0.4606490421 | Y47: -0.2283623788 | Z47: -0.04480364556 | AA47: 0.6676081998 | AB47: 0.04409344588 | AC47: -0.3118383502 | AD47: -0.2074628124 | AE47: -0.1357326744 | AF47: -0.159890845 | AG47: -0.1844353158 | AH47: =AH29*$AK12 -> -0.0928816545 | AI47: 0.3207234015 | AK47: 0.2845274849
U48: 122.4082066 | V48: -129.9461314 | W48: 105.5647592 | X48: 49.41754189 | Y48: 139.6395529 | Z48: 100.9700743 | AA48: -49.590514 | AB48: 0.3062371565 | AC48: 95.17858318 | AD48: -6.655914497 | AE48: 66.55859889 | AF48: -68.64009443 | AG48: 34.62316581 | AH48: -101.66557 | AI48: 0.4968765594 | AK48: 84.01227248
U49: 57.76349803 | V49: 2939.761705 | W49: -372.314113 | X49: -40.93034324 | Y49: -308.7229622 | Z49: -610.9978035 | AA49: -65.66631918 | AB49: 502.9755353 | AC49: -288.8153876 | AD49: 1480.695239 | AE49: 11.56777169 | AF49: 1346.787537 | AG49: 618.949247 | AH49: =AH31*$AK14 -> 2718.057835 | AI49: -81.0010635 | AK49: 1108.72772
U50: -0.2180755132 | V50: -0.1159251974 | W50: -0.2074843296 | X50: -0.2169865213 | Y50: -0.03499772706 | Z50: 0.04734652886 | AA50: -0.08438795334 | AB50: -0.03290699833 | AC50: 0.5128483132 | AD50: 0.06635741449 | AE50: -0.004485151657 | AF50: 0.2103340753 | AG50: 0.08883989456 | AH50: -0.1441130398 | AI50: -0.02675022175 | AK50: 0.1893858868
U51: -0.8764803132 | V51: -0.2642027224 | W51: -1.092091544 | X51: -1.243849426 | Y51: -0.7427478819 | Z51: -0.3108127841 | AA51: -0.08990926838 | AB51: -0.5899684131 | AC51: -0.1413228231 | AD51: 0.693373689 | AE51: -1.068287861 | AF51: 1.795353336 | AG51: -0.5380508914 | AH51: -0.3100365904 | AI51: 0.5446037003 | AK51: 0.7988562473
U52: -0.05899544066 | V52: -0.01320851074 | W52: -0.03164546056 | X52: -0.01093691846 | Y52: -0.03689621063 | Z52: -0.01101501722 | AA52: 0.05238587984 | AB52: 0.03081616178 | AC52: -0.004869277743 | AD52: -0.01349217422 | AE52: -0.001791297536 | AF52: 0.005102092814 | AG52: -0.004376760133 | AH52: -0.01955859551 | AI52: 0.03105182472 | AK52: 0.02808641981

Sheet nn - ranked data - new (7)
A1: irány | B1: 0 | C1: 0 | D1: 0 | E1: 0 | F1: 0 | M1: súlyok | U1: 2. layer vektor | AK1: 2 layer súlyok | AO1: szórások a 38-52-es sorokban (AK-oszlop) ismét nullák = elvész az alapminta = nincs gravitáció
A2: rnd(1-100) | B2: A1 | C2: A2 | D2: A3 | E2: A4 | F2: A5 | H2: rank = 0 | I2: =B2 -> A1 | J2: A2 | K2: A3 | L2: A4 | M2: A5 | O2: w1 | P2: w2 | Q2: w3 | R2: w4 | S2: w5 | U2: O1 | V2: O2 | W2: O3 | X2: O4 | Y2: O5 | Z2: O6 | AA2: O7 | AB2: O8 | AC2: O9 | AD2: O10 | AE2: O11 | AF2: O12 | AG2: O13 | AH2: O14 | AI2: O15 | AN2: Y0 | AO2: Ybecslés | AP2: eltérés | AQ2: MAE
A3: O1 | B3: 70 | C3: 10 | D3: 93 | E3: 33 | F3: 29 | H3: =A3 -> O1 | I3: =RANK(B3,B$3:B$17,B$1) -> 6 | J3: =RANK(C3,C$3:C$17,C$1) -> 13 | K3: =RANK(D3,D$3:D$17,D$1) -> 2 | L3: 11 | M3: 10 | O3: -3.0116577 | P3: -4.610962 | Q3: -2.8474257 | R3: -3.203534 | S3: -1.8696042 | U3: =$I$3*$O3+$J$3*$P3+$K$3*$Q3+$L$3*$R3+$M$3*$S3 -> -137.6422196 | V3: =$I$4*$O3+$J$4*$P3+$K$4*$Q3+$L$4*$R3+$M$4*$S3 -> -110.7885517 | W3: =$I$5*$O3+$J$5*$P3+$K$5*$Q3+$L$5*$R3+$M$5*$S3 -> -95.8055592 | X3: =$I$6*$O3+$J$6*$P3+$K$6*$Q3+$L$6*$R3+$M$6*$S3 -> -110.2626244 | Y3: =$I$7*$O3+$J$7*$P3+$K$7*$Q3+$L$7*$R3+$M$7*$S3 -> -150.2618342 | Z3: =$I$8*$O3+$J$8*$P3+$K$8*$Q3+$L$8*$R3+$M$8*$S3 -> -121.454879 | AA3: =$I$9*$O3+$J$9*$P3+$K$9*$Q3+$L$9*$R3+$M$9*$S3 -> -162.8886346 | AB3: =$I$10*$O3+$J$10*$P3+$K$10*$Q3+$L$10*$R3+$M$10*$S3 -> -84.2065654 | AC3: =$I$11*$O3+$J$11*$P3+$K$11*$Q3+$L$11*$R3+$M$11*$S3 -> -150.7672192 | AD3: =$I$12*$O3+$J$12*$P3+$K$12*$Q3+$L$12*$R3+$M$12*$S3 -> -95.2173077 | AE3: =$I$13*$O3+$J$13*$P3+$K$13*$Q3+$L$13*$R3+$M$13*$S3 -> -115.9011312 | AF3: =$I$14*$O3+$J$14*$P3+$K$14*$Q3+$L$14*$R3+$M$14*$S3 -> -163.674037 | AG3: =$I$15*$O3+$J$15*$P3+$K$15*$Q3+$L$15*$R3+$M$15*$S3 -> -78.3167318 | AH3: =$I$16*$O3+$J$16*$P3+$K$16*$Q3+$L$16*$R3+$M$16*$S3 -> -84.6692548 | AI3: =$I$17*$O3+$J$17*$P3+$K$17*$Q3+$L$17*$R3+$M$17*$S3 -> -179.3463198 | AK3: 2.6272411 | AM3: O1 | AN3: 1000 | AO3: =SUM(U38:U52) -> 1000.000018 | AP3: =AN3-AO3 -> -1.83990395e-05 | AQ3: =ABS(AP3) -> 1.83990395e-05
A4: O2 | B4: 17 | C4: 74 | D4: 84 | E4: 78 | F4: 23 | H4: =A4 -> O2 | I4: =RANK(B4,B$3:B$17,B$1) -> 13 | J4: 6 | K4: 4 | L4: 2 | M4: 14 | O4: -0.7019002 | P4: -0.55768 | Q4: -0.92728853 | R4: -0.9180388 | S4: -0.818419 | U4: =$I$3*$O4+$J$3*$P4+$K$3*$Q4+$L$3*$R4+$M$3*$S4 -> -31.59843506 | V4: =$I$4*$O4+$J$4*$P4+$K$4*$Q4+$L$4*$R4+$M$4*$S4 -> -29.47388032 | W4: =$I$5*$O4+$J$5*$P4+$K$5*$Q4+$L$5*$R4+$M$5*$S4 -> -21.59773399 | X4: =$I$6*$O4+$J$6*$P4+$K$6*$Q4+$L$6*$R4+$M$6*$S4 -> -27.52024118 | Y4: =$I$7*$O4+$J$7*$P4+$K$7*$Q4+$L$7*$R4+$M$7*$S4 -> -37.72213037 | Z4: =$I$8*$O4+$J$8*$P4+$K$8*$Q4+$L$8*$R4+$M$8*$S4 -> -28.8071695 | AA4: =$I$9*$O4+$J$9*$P4+$K$9*$Q4+$L$9*$R4+$M$9*$S4 -> -37.95770289 | AB4: =$I$10*$O4+$J$10*$P4+$K$10*$Q4+$L$10*$R4+$M$10*$S4 -> -23.77689904 | AC4: =$I$11*$O4+$J$11*$P4+$K$11*$Q4+$L$11*$R4+$M$11*$S4 -> -40.66708135 | AD4: =$I$12*$O4+$J$12*$P4+$K$12*$Q4+$L$12*$R4+$M$12*$S4 -> -24.48062785 | AE4: =$I$13*$O4+$J$13*$P4+$K$13*$Q4+$L$13*$R4+$M$13*$S4 -> -33.91997403 | AF4: =$I$14*$O4+$J$14*$P4+$K$14*$Q4+$L$14*$R4+$M$14*$S4 -> -40.49862416 | AG4: =$I$15*$O4+$J$15*$P4+$K$15*$Q4+$L$15*$R4+$M$15*$S4 -> -23.63144411 | AH4: =$I$16*$O4+$J$16*$P4+$K$16*$Q4+$L$16*$R4+$M$16*$S4 -> -22.17565753 | AI4: =$I$17*$O4+$J$17*$P4+$K$17*$Q4+$L$17*$R4+$M$17*$S4 -> -41.82562662 | AK4: -109.931786 | AM4: O2 | AN4: 1000 | AO4: =SUM(V38:V52) -> 1000.000018 | AP4: =AN4-AO4 -> -1.839939421e-05 | AQ4: =ABS(AP4) -> 1.839939421e-05
A5: O3 | B5: 57 | C5: 57 | D5: 89 | E5: 37 | F5: 85 | H5: O3 | I5: 7 | J5: 7 | K5: 3 | L5: 10 | M5: 1 | O5: -3.706347 | P5: -0.41994956 | Q5: 0.42267692 | R5: -0.91447866 | S5: -1.9710823 | U5: -56.6221607 | V5: =$I$4*$O5+$J$4*$P5+$K$4*$Q5+$L$4*$R5+$M$4*$S5 -> -78.4356102 | W5: -38.73191406 | X5: -63.20506726 | Y5: -43.39131448 | Z5: -23.35793256 | AA5: -69.56760456 | AB5: -47.47320536 | AC5: -33.65926348 | AD5: -42.46802346 | AE5: -52.84234282 | AF5: -63.68209594 | AG5: -37.1063515 | AH5: -67.01435414 | AI5: -66.11346088 | AK5: 1.0222129 | AM5: O3 | AN5: 1000 | AO5: =SUM(W38:W52) -> 1000.000016 | AP5: -1.561259603e-05 | AQ5: =ABS(AP5) -> 1.561259603e-05
A6: O4 | B6: 13 | C6: 88 | D6: 62 | E6: 44 | F6: 75 | H6: O4 | I6: 14 | J6: 4 | K6: 6 | L6: 9 | M6: 2 | O6: -1.0906593 | P6: -0.96713996 | Q6: -0.8528343 | R6: -1.07464 | S6: -0.57303286 | U6: -38.37381248 | V6: -33.5644879 | W6: -28.28253058 | X6: -35.07262156 | Y6: -42.8629219 | Z6: -33.92119978 | AA6: -47.29077922 | AB6: -27.4363788 | AC6: -43.36272204 | AD6: -26.4642427 | AE6: -37.57276812 | AF6: -45.39329834 | AG6: -24.99862658 | AH6: -25.63682072 | AI6: -50.56679408 | AK6: -109.969864 | AM6: O4 | AN6: 1000 | AO6: =SUM(X38:X52) -> 1000.000018 | AP6: -1.835260196e-05 | AQ6: 1.835260196e-05
A7: O5 | B7: 76 | C7: 25 | D7: 28 | E7: 1 | F7: 33 | H7: O5 | I7: 3 | J7: 11 | K7: 9 | L7: 15 | M7: 9 | O7: -1.1682475 | P7: -0.6215491 | Q7: -0.47672096 | R7: -0.47526315 | S7: -1.1973827 | U7: -33.24478687 | V7: -38.53728004 | W7: -19.90875328 | X7: -28.37412091 | Y7: -32.53766279 | Z7: -22.13923835 | AA7: -39.54290343 | AB7: -23.75890148 | AC7: -32.5405149 | AD7: -27.82336945 | AE7: -29.74242431 | AF7: -43.63011202 | AG7: -21.98361742 | AH7: -31.27904451 | AI7: -42.44694044 | AK7: -114.73674 | AM7: O5 | AN7: 1000 | AO7: =SUM(Y38:Y52) -> 1000.000018 | AP7: -1.839997537e-05 | AQ7: 1.839997537e-05
A8: O6 | B8: 82 | C8: 33 | D8: 24 | E8: 33 | F8: 73 | H8: O6 | I8: 2 | J8: 10 | K8: =RANK(D8,D$3:D$17,D$1) -> 10 | L8: 11 | M8: 3 | O8: -0.69508797 | P8: -1.0370027 | Q8: -1.159661 | R8: -0.28361365 | S8: -1.1855555 | U8: -34.94619007 | V8: -37.06180811 | W8: -19.62530969 | X8: -25.76084223 | Y8: -38.85344686 | Z8: -30.03322959 | AA8: -45.2917907 | AB8: -23.7090743 | AC8: -43.24917337 | AD8: -31.95218543 | AE8: -30.84937588 | AF8: -52.91246066 | AG8: -23.19786725 | AH8: -28.50092182 | AI8: -51.31747604 | AK8: -110.21601 | AM8: O6 | AN8: 1000 | AO8: =SUM(Z38:Z52) -> 1000.000018 | AP8: -1.835709304e-05 | AQ8: 1.835709304e-05
A9: O7 | B9: 12 | C9: 19 | D9: 11 | E9: 69 | F9: 55 | H9: O7 | I9: 15 | J9: 12 | K9: 13 | L9: 5 | M9: 5 | O9: -1.8448569 | P9: -1.7465138 | Q9: -1.2710686 | R9: -2.3218656 | S9: -1.5346448 | U9: -77.2029276 | V9: -65.6752553 | W9: -53.7061015 | X9: -64.4065434 | Y9: -84.8256271 | Z9: -64.0099938 | AA9: -84.4374629 | AB9: -50.4334044 | AC9: -84.4820765 | AD9: -53.0882154 | AE9: -71.7241021 | AF9: -86.770006 | AG9: -49.1857169 | AH9: -51.0346667 | AI9: -92.3393022 | AK9: -44.29086 | AM9: O7 | AN9: 1000 | AO9: =SUM(AA38:AA52) -> 1000.000018 | AP9: -1.83999997e-05 | AQ9: 1.83999997e-05
A10: O8 | B10: 39 | C10: 97 | D10: 57 | E10: 56 | F10: 67 | H10: O8 | I10: 10 | J10: 1 | K10: 8 | L10: 6 | M10: 4 | O10: -3.4297142 | P10: -0.9259872 | Q10: -1.7004101 | R10: -1.5220169 | S10: -0.9234518 | U10: -61.9936429 | V10: -72.9162072 | W10: -51.7347609 | X10: -77.4674639 | Y10: -66.9200124 | Z10: -52.6359427 | AA10: -96.8902342 | AB10: -61.6523186 | AC10: -67.8125051 | AD10: -45.2762772 | AE10: -75.8248566 | AF10: -80.7463002 | AG10: -48.6177267 | AH10: -56.6606408 | AI10: -95.3718356 | AK10: -2.482046 | AM10: O8 | AN10: 1000 | AO10: =SUM(AB38:AB52) -> 1000.000018 | AP10: -1.776931106e-05 | AQ10: 1.776931106e-05
A11: O9 | B11: 90 | C11: 37 | D11: 1 | E11: 6 | F11: 29 | H11: O9 | I11: 1 | J11: 9 | K11: 15 | L11: 14 | M11: 10 | O11: -1.0309476 | P11: -0.92854923 | Q11: -0.7693637 | R11: -0.33260837 | S11: -0.45703548 | U11: -28.02459986 | V11: -29.11478244 | W11: -19.80768809 | X11: -26.67119181 | Y11: -29.3336025 | Z11: -24.07082301 | AA11: -40.55675211 | AB11: -21.21672697 | AC11: -30.15521815 | AD11: -21.88125361 | AE11: -25.73620002 | AF11: -38.6656001 | AG11: -17.32894845 | AH11: -22.56956758 | AI11: -42.72263551 | AK11: -112.07927 | AM11: O9 | AN11: 1000 | AO11: =SUM(AC38:AC52) -> 1000.000018 | AP11: -1.839999004e-05 | AQ11: 1.839999004e-05
A12: O10 | B12: 74 | C12: 47 | D12: 82 | E12: 76 | F12: 24 | H12: O10 | I12: 4 | J12: 8 | K12: 5 | L12: 3 | M12: 12 | O12: -0.46947527 | P12: -0.74997973 | Q12: -0.43789202 | R12: -1.3498626 | S12: -1.0187225 | U12: -38.47808575 | V12: -29.31646517 | W12: -24.36720956 | X12: -26.38613322 | Y12: -43.01567252 | Z12: -30.72232414 | AA12: -33.57740757 | AB12: -21.12193419 | AC12: -42.87297454 | AD12: -26.34145682 | AE12: -33.45261818 | AF12: -40.19051052 | AG12: -24.09255852 | AH12: -22.92655124 | AI12: -39.26284307 | AK12: -63.12221 | AM12: O10 | AN12: 1000 | AO12: =SUM(AD38:AD52) -> 1000.000018 | AP12: -1.827937194e-05 | AQ12: 1.827937194e-05
A13: O11 | B13: 43 | C13: 97 | D13: 15 | E13: 28 | F13: 46 | H13: O11 | I13: 9 | J13: 1 | K13: 11 | L13: 13 | M13: 6 | O13: -0.88084024 | P13: -0.17068528 | Q13: -0.89027673 | R13: -0.74707496 | S13: -0.8226589 | U13: -25.7289171 | V13: -29.04751624 | W13: -18.32491733 | X13: -26.7251573 | Y13: -31.14260387 | Z13: -23.05710184 | AA13: -34.68309375 | AB13: -23.87438688 | AC13: -34.45679715 | AD13: -21.45335853 | AE13: -32.53921935 | AF13: -35.44781994 | AG13: -22.54203557 | AH13: -22.05192753 | AI13: -36.65795726 | AK13: -111.26095 | AM13: O11 | AN13: 1000 | AO13: =SUM(AE38:AE52) -> 1000.000018 | AP13: -1.839908236e-05 | AQ13: 1.839908236e-05
A14: O12 | B14: 49 | C14: 9 | D14: 13 | E14: 72 | F14: 7 | H14: O12 | I14: 8 | J14: 14 | K14: 12 | L14: 4 | M14: 15 | O14: -2.1273541 | P14: -3.1644437 | Q14: -3.5530856 | R14: -2.4378414 | S14: -4.0787945 | U14: -128.6122643 | V14: -122.8334137 | W14: -76.1590499 | X14: -93.8574074 | Y14: -146.4454849 | Z14: -110.4826401 | AA14: -148.6569282 | AB14: -83.8048959 | AC14: -158.821356 | AD14: -107.8494522 | AE14: -117.5592774 | AF14: -174.8913549 | AG14: -86.7271061 | AH14: -94.1595746 | AI14: -169.9955075 | AK14: -1.6384969 | AM14: O12 | AN14: 1000 | AO14: =SUM(AF38:AF52) -> 1000.000018 | AP14: -1.839999993e-05 | AQ14: 1.839999993e-05
A15: O13 | B15: 72 | C15: 97 | D15: 60 | E15: 49 | F15: 38 | H15: O13 | I15: 5 | J15: 1 | K15: 7 | L15: 8 | M15: 7 | O15: -0.30550268 | P15: -1.1197877 | Q15: -1.1527094 | R15: -0.5050356 | S15: -0.70115125 | U15: -31.26257908 | V15: -26.12728734 | W15: -19.18666811 | X15: -21.62006762 | Y15: -37.49445259 | Z15: -30.99482171 | AA15: -39.03614905 | AB15: -19.2313083 | AC15: -41.75624388 | AD15: -25.87278112 | AE15: -27.32148552 | AF15: -44.49097319 | AG15: -19.66461045 | AH15: -19.03102798 | AI15: -45.24020286 | AK15: -112.037315 | AM15: O13 | AN15: 1000 | AO15: =SUM(AG38:AG52) -> 1000.000015 | AP15: -1.46646687e-05 | AQ15: 1.46646687e-05
A16: O14 | B16: 38 | C16: 80 | D16: 96 | E16: 89 | F16: 24 | H16: O14 | I16: 11 | J16: 5 | K16: 1 | L16: 1 | M16: 12 | O16: -2.1789937 | P16: -3.369471 | Q16: -3.4832137 | R16: -2.540624 | S16: -4.682438 | U16: -138.6147566 | V16: -133.1119789 | W16: -79.377572 | X16: -97.11357 | Y16: -155.2013874 | Z16: -114.8790124 | AA16: -154.5156456 | AB16: -86.9986136 | AC16: -167.1455542 | AD16: -116.8989393 | AE16: -122.418505 | AF16: -186.802174 | AG16: -91.7489934 | AH16: -103.0293794 | AI16: -178.1582292 | AK16: -1.6891345 | AM16: O14 | AN16: 1000 | AO16: =SUM(AH38:AH52) -> 1000.000018 | AP16: -1.767334652e-05 | AQ16: 1.767334652e-05
A17: O15 | B17: 34 | C17: 7 | D17: 4 | E17: 56 | F17: 34 | H17: O15 | I17: 12 | J17: 15 | K17: 14 | L17: 6 | M17: 8 | O17: -0.9102237 | P17: -0.23740108 | Q17: -1.054119 | R17: -0.8677348 | S17: -0.7235393 | U17: -27.43627004 | V17: -29.33881038 | W17: -20.59661776 | X17: -29.27414192 | Y17: -34.35702968 | Z17: -26.4513489 | AA17: -38.16208596 | AB17: -25.87315608 | AC17: -38.24229862 | AD17: -22.09637444 | AE17: -35.64651158 | AF17: -37.57886142 | AG17: -24.17400608 | AH17: -21.8037915 | AI17: -40.2360898 | AK17: -110.19479 | AM17: O15 | AN17: 1000 | AO17: =SUM(AI38:AI52) -> 1000.000018 | AP17: -1.839999993e-05 | AQ17: 1.839999993e-05
AN18: szum | AO18: szum | AP18: hiba
U19: Activation | AK19: Szórás | AN19: =SUM(AN3:AN17) -> 15000 | AO19: =SUM(AO3:AO17) -> 15000.00027 | AP19: =SUMSQ(AP3:AP17) -> 4.803224862e-09 | AQ19: =SUM(AQ3:AQ17)/15 -> 1.786043135e-05
O20: activation weight | U20: =IF(U3<0, $O$21*(EXP(U3)-1), U3) -> -1 | V20: =IF(V3<0, $O$21*(EXP(V3)-1), V3) -> -1 | W20: -1 | X20: -1 | Y20: -1 | Z20: -1 | AA20: -1 | AB20: -1 | AC20: -1 | AD20: -1 | AE20: -1 | AF20: -1 | AG20: -1 | AH20: -1 | AI20: -1 | AK20: =STDEV(U20:AI20) -> 0 | AP20: hiba2
O21: 1 | U21: =IF(U4<0, $O$21*(EXP(U4)-1), U4) -> -1 | V21: -1 | W21: -0.9999999996 | X21: -1 | Y21: -1 | Z21: -1 | AA21: -1 | AB21: -1 | AC21: -1 | AD21: -1 | AE21: -1 | AF21: -1 | AG21: -0.9999999999 | AH21: -0.9999999998 | AI21: -1 | AK21: =STDEV(U21:AI21) -> 1.177584881e-10 | AP21: =ABS(AN19-AO19) -> 0.000267906471
O22: exp | U22: =IF(U5<0, $O$21*(EXP(U5)-1), U5) -> -1 | V22: -1 | W22: -1 | X22: -1 | Y22: -1 | Z22: -0.9999999999 | AA22: -1 | AB22: -1 | AC22: -1 | AD22: -1 | AE22: -1 | AF22: -1 | AG22: -1 | AH22: -1 | AI22: -1 | AK22: 1.852387298e-11 | AP22: hiba3
U23: =IF(U6<0, $O$21*(EXP(U6)-1), U6) -> -1 | V23: -1 | W23: -1 | X23: -1 | Y23: =IF(Y6<0, $O$21*(EXP(Y6)-1), Y6) -> -1 | Z23: -1 | AA23: -1 | AB23: -1 | AC23: -1 | AD23: -1 | AE23: -1 | AF23: -1 | AG23: -1 | AH23: -1 | AI23: -1 | AK23: 3.906505478e-12 | AP23: =AP19*AP21 -> 1.286815022e-12
U24: =IF(U7<0, $O$21*(EXP(U7)-1), U7) -> -1 | V24: -1 | W24: -0.9999999977 | X24: -1 | Y24: -1 | Z24: -0.9999999998 | AA24: -1 | AB24: -1 | AC24: -1 | AD24: -1 | AE24: -1 | AF24: -1 | AG24: -0.9999999997 | AH24: -1 | AI24: -1 | AK24: 5.797252729e-10 | AN24: szórás | AO24: szórás
U25: =IF(U8<0, $O$21*(EXP(U8)-1), U8) -> -1 | V25: -1 | W25: -0.999999997 | X25: -1 | Y25: -1 | Z25: -1 | AA25: -1 | AB25: -0.9999999999 | AC25: -1 | AD25: -1 | AE25: -1 | AF25: -1 | AG25: -0.9999999999 | AH25: -1 | AI25: -1 | AK25: 7.718560281e-10 | AN25: =STDEV(AN3:AN17) -> 0 | AO25: =STDEV(AO3:AO17) -> 1.143295382e-06
U26: =IF(U9<0, $O$21*(EXP(U9)-1), U9) -> -1 | V26: -1 | W26: -1 | X26: -1 | Y26: -1 | Z26: -1 | AA26: -1 | AB26: -1 | AC26: -1 | AD26: -1 | AE26: -1 | AF26: -1 | AG26: -1 | AH26: -1 | AI26: -1 | AK26: 0
U27: =IF(U10<0, $O$21*(EXP(U10)-1), U10) -> -1 | V27: -1 | W27: -1 | X27: -1 | Y27: -1 | Z27: -1 | AA27: -1 | AB27: -1 | AC27: -1 | AD27: -1 | AE27: -1 | AF27: -1 | AG27: -1 | AH27: -1 | AI27: -1 | AK27: 0
U28: =IF(U11<0, $O$21*(EXP(U11)-1), U11) -> -1 | V28: -1 | W28: -0.9999999975 | X28: -1 | Y28: -1 | Z28: -1 | AA28: -1 | AB28: -0.9999999994 | AC28: -1 | AD28: -0.9999999997 | AE28: -1 | AF28: -1 | AG28: -0.9999999702 | AH28: -0.9999999998 | AI28: -1 | AK28: 7.653090894e-09
U29: =IF(U12<0, $O$21*(EXP(U12)-1), U12) -> -1 | V29: -1 | W29: -1 | X29: -1 | Y29: -1 | Z29: -1 | AA29: -1 | AB29: -0.9999999993 | AC29: -1 | AD29: -1 | AE29: -1 | AF29: -1 | AG29: -1 | AH29: -0.9999999999 | AI29: -1 | AK29: 1.724821379e-10
U30: =IF(U13<0, $O$21*(EXP(U13)-1), U13) -> -1 | V30: -1 | W30: -0.999999989 | X30: -1 | Y30: -1 | Z30: -0.9999999999 | AA30: -1 | AB30: -1 | AC30: -1 | AD30: -0.9999999995 | AE30: -1 | AF30: -1 | AG30: -0.9999999998 | AH30: -0.9999999997 | AI30: -1 | AK30: 2.825248962e-09
U31: =IF(U14<0, $O$21*(EXP(U14)-1), U14) -> -1 | V31: -1 | W31: -1 | X31: -1 | Y31: -1 | Z31: -1 | AA31: -1 | AB31: -1 | AC31: -1 | AD31: -1 | AE31: -1 | AF31: -1 | AG31: -1 | AH31: -1 | AI31: -1 | AK31: 0
U32: =IF(U15<0, $O$21*(EXP(U15)-1), U15) -> -1 | V32: -1 | W32: -0.9999999954 | X32: -0.9999999996 | Y32: -1 | Z32: -1 | AA32: -1 | AB32: -0.9999999956 | AC32: -1 | AD32: -1 | AE32: -1 | AF32: -1 | AG32: -0.9999999971 | AH32: -0.9999999946 | AI32: -1 | AK32: 2.038273661e-09
U33: =IF(U16<0, $O$21*(EXP(U16)-1), U16) -> -1 | V33: -1 | W33: -1 | X33: -1 | Y33: -1 | Z33: -1 | AA33: -1 | AB33: -1 | AC33: -1 | AD33: -1 | AE33: -1 | AF33: -1 | AG33: -1 | AH33: -1 | AI33: -1 | AK33: 0
U34: =IF(U17<0, $O$21*(EXP(U17)-1), U17) -> -1 | V34: -1 | W34: -0.9999999989 | X34: -1 | Y34: -1 | Z34: -1 | AA34: -1 | AB34: -1 | AC34: -1 | AD34: -0.9999999997 | AE34: -1 | AF34: -1 | AG34: -1 | AH34: -0.9999999997 | AI34: -1 | AK34: 2.999765101e-10
U37: Y0 - szorzatok | AK37: Szórás
U38: =U20*$AK3 -> -2.6272411 | V38: =V20*$AK3 -> -2.6272411 | W38: =W20*$AK3 -> -2.6272411 | X38: -2.6272411 | Y38: -2.6272411 | Z38: -2.6272411 | AA38: -2.6272411 | AB38: =AB20*$AK3 -> -2.6272411 | AC38: -2.6272411 | AD38: -2.6272411 | AE38: -2.6272411 | AF38: -2.6272411 | AG38: -2.6272411 | AH38: -2.6272411 | AI38: =AI20*$AK3 -> -2.6272411 | AK38: =STDEV(U38:AI38) -> 4.596760035e-16
U39: =U21*$AK4 -> 109.931786 | V39: =V21*$AK4 -> 109.931786 | W39: 109.931786 | X39: 109.931786 | Y39: 109.931786 | Z39: 109.931786 | AA39: =AA21*$AK4 -> 109.931786 | AB39: 109.931786 | AC39: 109.931786 | AD39: 109.931786 | AE39: 109.931786 | AF39: 109.931786 | AG39: 109.931786 | AH39: 109.931786 | AI39: 109.931786 | AK39: =STDEV(U39:AI39) -> 1.294540045e-08
U40: -1.0222129 | V40: -1.0222129 | W40: -1.0222129 | X40: -1.0222129 | Y40: -1.0222129 | Z40: -1.0222129 | AA40: -1.0222129 | AB40: -1.0222129 | AC40: -1.0222129 | AD40: -1.0222129 | AE40: -1.0222129 | AF40: -1.0222129 | AG40: -1.0222129 | AH40: -1.0222129 | AI40: -1.0222129 | AK40: 1.893534033e-11
U41: 109.969864 | V41: 109.969864 | W41: 109.969864 | X41: 109.969864 | Y41: 109.969864 | Z41: 109.969864 | AA41: 109.969864 | AB41: 109.969864 | AC41: 109.969864 | AD41: 109.969864 | AE41: 109.969864 | AF41: 109.969864 | AG41: 109.969864 | AH41: 109.969864 | AI41: 109.969864 | AK41: 4.295957726e-10
U42: 114.73674 | V42: 114.73674 | W42: =W24*$AK7 -> 114.7367397 | X42: 114.73674 | Y42: 114.73674 | Z42: 114.73674 | AA42: 114.73674 | AB42: 114.73674 | AC42: 114.73674 | AD42: 114.73674 | AE42: 114.73674 | AF42: 114.73674 | AG42: 114.73674 | AH42: 114.73674 | AI42: 114.73674 | AK42: 6.651578732e-08
U43: 110.21601 | V43: 110.21601 | W43: =W25*$AK8 -> 110.2160097 | X43: 110.21601 | Y43: 110.21601 | Z43: 110.21601 | AA43: 110.21601 | AB43: 110.21601 | AC43: 110.21601 | AD43: 110.21601 | AE43: 110.21601 | AF43: 110.21601 | AG43: 110.21601 | AH43: =AH25*$AK8 -> 110.21601 | AI43: 110.21601 | AK43: 8.507089034e-08
U44: 44.29086 | V44: 44.29086 | W44: 44.29086 | X44: 44.29086 | Y44: 44.29086 | Z44: 44.29086 | AA44: 44.29086 | AB44: 44.29086 | AC44: 44.29086 | AD44: 44.29086 | AE44: 44.29086 | AF44: 44.29086 | AG44: 44.29086 | AH44: 44.29086 | AI44: 44.29086 | AK44: 1.470963211e-14
U45: 2.482046 | V45: 2.482046 | W45: 2.482046 | X45: 2.482046 | Y45: 2.482046 | Z45: 2.482046 | AA45: 2.482046 | AB45: 2.482046 | AC45: 2.482046 | AD45: 2.482046 | AE45: 2.482046 | AF45: 2.482046 | AG45: 2.482046 | AH45: 2.482046 | AI45: 2.482046 | AK45: 4.596760035e-16
U46: 112.07927 | V46: 112.07927 | W46: 112.0792697 | X46: 112.07927 | Y46: 112.07927 | Z46: 112.07927 | AA46: 112.07927 | AB46: 112.0792699 | AC46: 112.07927 | AD46: 112.07927 | AE46: 112.07927 | AF46: 112.07927 | AG46: 112.0792667 | AH46: 112.07927 | AI46: 112.07927 | AK46: 8.577528397e-07
U47: 63.12221 | V47: 63.12221 | W47: 63.12221 | X47: 63.12221 | Y47: 63.12221 | Z47: 63.12221 | AA47: 63.12221 | AB47: 63.12220996 | AC47: 63.12221 | AD47: 63.12221 | AE47: 63.12221 | AF47: 63.12221 | AG47: 63.12221 | AH47: =AH29*$AK12 -> 63.12220999 | AI47: 63.12221 | AK47: 1.08874542e-08
U48: 111.26095 | V48: 111.26095 | W48: 111.2609488 | X48: 111.26095 | Y48: 111.26095 | Z48: 111.26095 | AA48: 111.26095 | AB48: 111.26095 | AC48: 111.26095 | AD48: 111.2609499 | AE48: 111.26095 | AF48: 111.26095 | AG48: 111.26095 | AH48: 111.26095 | AI48: 111.26095 | AK48: 3.143398838e-07
U49: 1.6384969 | V49: 1.6384969 | W49: 1.6384969 | X49: 1.6384969 | Y49: 1.6384969 | Z49: 1.6384969 | AA49: 1.6384969 | AB49: 1.6384969 | AC49: 1.6384969 | AD49: 1.6384969 | AE49: 1.6384969 | AF49: 1.6384969 | AG49: 1.6384969 | AH49: =AH31*$AK14 -> 1.6384969 | AI49: 1.6384969 | AK49: 0
U50: 112.037315 | V50: 112.037315 | W50: 112.0373145 | X50: 112.037315 | Y50: 112.037315 | Z50: 112.037315 | AA50: 112.037315 | AB50: 112.0373145 | AC50: 112.037315 | AD50: 112.037315 | AE50: 112.037315 | AF50: 112.037315 | AG50: 112.0373147 | AH50: 112.0373144 | AI50: 112.037315 | AK50: 2.283627078e-07
U51: 1.6891345 | V51: 1.6891345 | W51: 1.6891345 | X51: 1.6891345 | Y51: 1.6891345 | Z51: 1.6891345 | AA51: 1.6891345 | AB51: 1.6891345 | AC51: 1.6891345 | AD51: 1.6891345 | AE51: 1.6891345 | AF51: 1.6891345 | AG51: 1.6891345 | AH51: 1.6891345 | AI51: 1.6891345 | AK51: 6.895140052e-16
U52: 110.19479 | V52: 110.19479 | W52: 110.1947899 | X52: 110.19479 | Y52: 110.19479 | Z52: 110.19479 | AA52: 110.19479 | AB52: 110.19479 | AC52: 110.19479 | AD52: 110.19479 | AE52: 110.19479 | AF52: 110.19479 | AG52: 110.19479 | AH52: 110.19479 | AI52: 110.19479 | AK52: 3.305584758e-08

Sheet nn - ranked data - new (8)
A1: irány | B1: 0 | C1: 0 | D1: 0 | E1: 0 | F1: 0 | M1: súlyok | U1: 2. layer vektor | AK1: 2 layer súlyok | AO1: JÓ! - kérdés: ceteris paribus alakzatok alakulása attribútumonként
A2: rnd(1-100) | B2: A1 | C2: A2 | D2: A3 | E2: A4 | F2: A5 | H2: rank = 0 | I2: =B2 -> A1 | J2: A2 | K2: A3 | L2: A4 | M2: A5 | O2: w1 | P2: w2 | Q2: w3 | R2: w4 | S2: w5 | T2: w6 | U2: O1 | V2: O2 | W2: O3 | X2: O4 | Y2: O5 | Z2: O6 | AA2: O7 | AB2: O8 | AC2: O9 | AD2: O10 | AE2: O11 | AF2: O12 | AG2: O13 | AH2: O14 | AI2: O15 | AK2: w6 | AN2: Y0 | AO2: Ybecslés | AP2: eltérés | AQ2: MAE
A3: O1 | B3: 70 | C3: 10 | D3: 93 | E3: 33 | F3: 29 | H3: =A3 -> O1 | I3: =RANK(B3,B$3:B$17,B$1) -> 6 | J3: =RANK(C3,C$3:C$17,C$1) -> 13 | K3: =RANK(D3,D$3:D$17,D$1) -> 2 | L3: 11 | M3: 10 | O3: 12.69248596 | P3: 0.4254838251 | Q3: 0.3874125823 | R3: 2.524412899 | S3: 2.885310437 | T3: 1.070896124 | U3: =$I$3*$O3+$J$3*$P3+$K$3*$Q3+$L$3*$R3+$M$3*$S3 -> 139.0826769 | V3: =$I$4*$O3+$J$4*$P3+$K$4*$Q3+$L$4*$R3+$M$4*$S3 -> 214.5480427 | W3: =$I$5*$O3+$J$5*$P3+$K$5*$Q3+$L$5*$R3+$M$5*$S3 -> 121.1174657 | X3: =$I$6*$O3+$J$6*$P3+$K$6*$Q3+$L$6*$R3+$M$6*$S3 -> 210.2115512 | Y3: =$I$7*$O3+$J$7*$P3+$K$7*$Q3+$L$7*$R3+$M$7*$S3 -> 110.0784806 | Z3: =$I$8*$O3+$J$8*$P3+$K$8*$Q3+$L$8*$R3+$M$8*$S3 -> 69.93840919 | AA3: =$I$9*$O3+$J$9*$P3+$K$9*$Q3+$L$9*$R3+$M$9*$S3 -> 227.5780755 | AB3: =$I$10*$O3+$J$10*$P3+$K$10*$Q3+$L$10*$R3+$M$10*$S3 -> 157.1373632 | AC3: =$I$11*$O3+$J$11*$P3+$K$11*$Q3+$L$11*$R3+$M$11*$S3 -> 86.52791408 | AD3: =$I$12*$O3+$J$12*$P3+$K$12*$Q3+$L$12*$R3+$M$12*$S3 -> 98.30784129 | AE3: =$I$13*$O3+$J$13*$P3+$K$13*$Q3+$L$13*$R3+$M$13*$S3 -> 169.0486262 | AF3: =$I$14*$O3+$J$14*$P3+$K$14*$Q3+$L$14*$R3+$M$14*$S3 -> 165.5229204 | AG3: =$I$15*$O3+$J$15*$P3+$K$15*$Q3+$L$15*$R3+$M$15*$S3 -> 106.9922779 | AH3: =$I$16*$O3+$J$16*$P3+$K$16*$Q3+$L$16*$R3+$M$16*$S3 -> 179.2803154 | AI3: =$I$17*$O3+$J$17*$P3+$K$17*$Q3+$L$17*$R3+$M$17*$S3 -> 202.3448259 | AK3: =T3 -> 1.070896124 | AM3: O1 | AN3: 1000 | AO3: =SUM(U38:U52) -> 1120.827393 | AP3: =AN3-AO3 -> -120.8273928 | AQ3: =ABS(AP3) -> 120.8273928
A4: O2 | B4: 17 | C4: 74 | D4: 84 | E4: 78 | F4: 23 | H4: =A4 -> O2 | I4: =RANK(B4,B$3:B$17,B$1) -> 13 | J4: 6 | K4: 4 | L4: 2 | M4: 14 | O4: 0 | P4: 0 | Q4: 0 | R4: 0 | S4: 0 | T4: 0 | U4: =$I$3*$O4+$J$3*$P4+$K$3*$Q4+$L$3*$R4+$M$3*$S4 -> 0 | V4: =$I$4*$O4+$J$4*$P4+$K$4*$Q4+$L$4*$R4+$M$4*$S4 -> 0 | W4: =$I$5*$O4+$J$5*$P4+$K$5*$Q4+$L$5*$R4+$M$5*$S4 -> 0 | X4: =$I$6*$O4+$J$6*$P4+$K$6*$Q4+$L$6*$R4+$M$6*$S4 -> 0 | Y4: =$I$7*$O4+$J$7*$P4+$K$7*$Q4+$L$7*$R4+$M$7*$S4 -> 0 | Z4: =$I$8*$O4+$J$8*$P4+$K$8*$Q4+$L$8*$R4+$M$8*$S4 -> 0 | AA4: =$I$9*$O4+$J$9*$P4+$K$9*$Q4+$L$9*$R4+$M$9*$S4 -> 0 | AB4: =$I$10*$O4+$J$10*$P4+$K$10*$Q4+$L$10*$R4+$M$10*$S4 -> 0 | AC4: =$I$11*$O4+$J$11*$P4+$K$11*$Q4+$L$11*$R4+$M$11*$S4 -> 0 | AD4: =$I$12*$O4+$J$12*$P4+$K$12*$Q4+$L$12*$R4+$M$12*$S4 -> 0 | AE4: =$I$13*$O4+$J$13*$P4+$K$13*$Q4+$L$13*$R4+$M$13*$S4 -> 0 | AF4: =$I$14*$O4+$J$14*$P4+$K$14*$Q4+$L$14*$R4+$M$14*$S4 -> 0 | AG4: =$I$15*$O4+$J$15*$P4+$K$15*$Q4+$L$15*$R4+$M$15*$S4 -> 0 | AH4: =$I$16*$O4+$J$16*$P4+$K$16*$Q4+$L$16*$R4+$M$16*$S4 -> 0 | AI4: =$I$17*$O4+$J$17*$P4+$K$17*$Q4+$L$17*$R4+$M$17*$S4 -> 0 | AK4: =T4 -> 0 | AM4: O2 | AN4: 1000 | AO4: =SUM(V38:V52) -> 1100.342443 | AP4: =AN4-AO4 -> -100.3424431 | AQ4: =ABS(AP4) -> 100.3424431
A5: O3 | B5: 57 | C5: 57 | D5: 89 | E5: 37 | F5: 85 | H5: O3 | I5: 7 | J5: 7 | K5: 3 | L5: 10 | M5: 1 | O5: 0.102879919 | P5: 0.0337009759 | Q5: 1.152805292e-05 | R5: 6.574371999 | S5: 4.6915921 | T5: 5.330391045 | U5: =$I$3*$O5+$J$3*$P5+$K$3*$Q5+$L$3*$R5+$M$3*$S5 -> 120.2894282 | V5: =$I$4*$O5+$J$4*$P5+$K$4*$Q5+$L$4*$R5+$M$4*$S5 -> 80.37072431 | W5: =$I$5*$O5+$J$5*$P5+$K$5*$Q5+$L$5*$R5+$M$5*$S5 -> 71.39141294 | X5: 70.12772413 | Y5: 141.5193631 | Z5: 86.93575317 | AA5: 58.27758086 | AB5: 59.27519279 | AC5: 139.3634906 | AD5: 76.70340632 | AE5: 114.5761356 | AF5: 97.96636085 | AG5: 85.98430196 | AH5: 64.17367272 | AI5: 78.71920386 | AK5: 5.330391045 | AM5: O3 | AN5: 1000 | AO5: =SUM(W38:W52) -> 796.3155759 | AP5: 203.6844241 | AQ5: =ABS(AP5) -> 203.6844241
A6: O4 | B6: 13 | C6: 88 | D6: 62 | E6: 44 | F6: 75 | H6: O4 | I6: 14 | J6: 4 | K6: 6 | L6: 9 | M6: 2 | O6: 0 | P6: 0 | Q6: 3.288987049 | R6: 0 | S6: 3.046140759 | T6: 5.341105595e-06 | U6: 37.03938169 | V6: =$I$4*$O6+$J$4*$P6+$K$4*$Q6+$L$4*$R6+$M$4*$S6 -> 55.80191882 | W6: 12.91310191 | X6: 25.82620381 | Y6: 57.01615027 | Z6: 42.02829277 | AA6: 57.98753543 | AB6: 38.49645943 | AC6: 79.79621332 | AD6: 52.99862435 | AE6: 54.45570209 | AF6: 85.15995597 | AG6: 44.34589465 | AH6: 39.84267616 | AI6: 70.41494476 | AK6: 5.341105595e-06 | AM6: O4 | AN6: 1000 | AO6: =SUM(X38:X52) -> 1057.220166 | AP6: -57.22016622 | AQ6: 57.22016622
A7: O5 | B7: 76 | C7: 25 | D7: 28 | E7: 1 | F7: 33 | H7: O5 | I7: 3 | J7: 11 | K7: 9 | L7: 15 | M7: 9 | O7: 0 | P7: 0 | Q7: 0 | R7: 0 | S7: 0 | T7: 0 | U7: 0 | V7: 0 | W7: 0 | X7: 0 | Y7: 0 | Z7: 0 | AA7: 0 | AB7: 0 | AC7: 0 | AD7: 0 | AE7: 0 | AF7: 0 | AG7: 0 | AH7: 0 | AI7: 0 | AK7: 0 | AM7: O5 | AN7: 1000 | AO7: =SUM(Y38:Y52) -> 1156.891445 | AP7: -156.8914446 | AQ7: 156.8914446
A8: O6 | B8: 82 | C8: 33 | D8: 24 | E8: 33 | F8: 73 | H8: O6 | I8: 2 | J8: 10 | K8: =RANK(D8,D$3:D$17,D$1) -> 10 | L8: 11 | M8: 3 | O8: 0.8429479526 | P8: 1.51329819 | Q8: 0 | R8: 5.782434688 | S8: 1.039770436 | T8: 0.3564584582 | U8: 98.73505011 | V8: 46.159768 | W8: 75.35784031 | X8: 71.97591716 | Y8: 115.2695782 | Z8: 83.54497068 | AA8: 64.91482318 | AB8: 48.79646759 | AC8: 105.8144216 | AD8: 45.30272662 | AE8: 90.51010332 | AF8: 66.65605357 | AG8: 59.26590851 | AH8: 35.09859834 | AI8: 75.82761989 | AK8: 0.3564584582 | AM8: O6 | AN8: 1000 | AO8: =SUM(Z38:Z52) -> 725.8453359 | AP8: 274.1546641 | AQ8: 274.1546641
A9: O7 | B9: 12 | C9: 19 | D9: 11 | E9: 69 | F9: 55 | H9: O7 | I9: 15 | J9: 12 | K9: 13 | L9: 5 | M9: 5 | O9: 0 | P9: 0 | Q9: 0 | R9: 0 | S9: 0 | T9: 0 | U9: 0 | V9: 0 | W9: 0 | X9: 0 | Y9: 0 | Z9: 0 | AA9: 0 | AB9: 0 | AC9: 0 | AD9: 0 | AE9: 0 | AF9: 0 | AG9: 0 | AH9: 0 | AI9: 0 | AK9: 0 | AM9: O7 | AN9: 1000 | AO9: =SUM(AA38:AA52) -> 1036.13004 | AP9: -36.13004037 | AQ9: 36.13004037
A10: O8 | B10: 39 | C10: 97 | D10: 57 | E10: 56 | F10: 67 | H10: O8 | I10: 10 | J10: 1 | K10: 8 | L10: 6 | M10: 4 | O10: 1.834430901 | P10: 2.316016838 | Q10: 3.443516727 | R10: 0 | S10: 5.283517765 | T10: 2.006980046e-07 | U10: 100.8370154 | V10: 125.4870184 | W10: 44.66720212 | X10: 66.17423586 | Y10: 109.5227883 | Z10: 77.11475074 | AA10: 126.4919718 | AB10: 69.34253072 | AC10: 127.166511 | AD10: 106.4856551 | AE10: 88.40568553 | AF10: 167.6746501 | AG10: 72.57741278 | AH10: 98.604554 | AI10: 147.2307997 | AK10: 2.006980046e-07 | AM10: O8 | AN10: 1000 | AO10: =SUM(AB38:AB52) -> 821.7673622 | AP10: 178.2326378 | AQ10: 178.2326378
A11: O9 | B11: 90 | C11: 37 | D11: 1 | E11: 6 | F11: 29 | H11: O9 | I11: 1 | J11: 9 | K11: 15 | L11: 14 | M11: 10 | O11: 13.66191486 | P11: 0.2652852315 | Q11: 0.2863979928 | R11: 2.96457091 | S11: 2.807775537 | T11: 1.844079676 | U11: 146.6810286 | V11: 225.5801959 | W11: 130.8030793 | X11: 226.3430262 | Y11: 116.2200076 | Z11: 73.87426859 | AA11: 240.6970518 | AB11: 168.1941454 | AC11: 89.92719995 | AD11: 100.7889504 | AE11: 181.758972 | AF11: 170.4210047 | AG11: 113.9506415 | AH11: 188.551765 | AI11: 212.1814585 | AK11: 1.844079676 | AM11: O9 | AN11: 1000 | AO11: =SUM(AC38:AC52) -> 1066.114564 | AP11: -66.11456381 | AQ11: 66.11456381
A12: O10 | B12: 74 | C12: 47 | D12: 82 | E12: 76 | F12: 24 | H12: O10 | I12: 4 | J12: 8 | K12: 5 | L12: 3 | M12: 12 | O12: 0 | P12: 1.348999428 | Q12: 0 | R12: 1.178906131 | S12: 0 | T12: 0.009218730212 | U12: 30.50496 | V12: 10.45180883 | W12: 21.23205731 | X12: 16.00615289 | Y12: 32.52258567 | Z12: 26.45796172 | AA12: 22.08252379 | AB12: 8.422436213 | AC12: 28.64568069 | AD12: 14.32871382 | AE12: 16.67477913 | AF12: 23.60161652 | AG12: 10.78024848 | AH12: 7.923903271 | AI12: 27.30842821 | AK12: 0.009218730212 | AM12: O10 | AN12: 1000 | AO12: =SUM(AD38:AD52) -> 727.8263435 | AP12: 272.1736565 | AQ12: 272.1736565
A13: O11 | B13: 43 | C13: 97 | D13: 15 | E13: 28 | F13: 46 | H13: O11 | I13: 9 | J13: 1 | K13: 11 | L13: 13 | M13: 6 | O13: 0 | P13: 0 | Q13: 0 | R13: 0 | S13: 0 | T13: 0 | U13: 0 | V13: 0 | W13: 0 | X13: 0 | Y13: 0 | Z13: 0 | AA13: 0 | AB13: 0 | AC13: 0 | AD13: 0 | AE13: 0 | AF13: 0 | AG13: 0 | AH13: 0 | AI13: 0 | AK13: 0 | AM13: O11 | AN13: 1000 | AO13: =SUM(AE38:AE52) -> 1179.481394 | AP13: -179.4813939 | AQ13: 179.4813939
A14: O12 | B14: 49 | C14: 9 | D14: 13 | E14: 72 | F14: 7 | H14: O12 | I14: 8 | J14: 14 | K14: 12 | L14: 4 | M14: 15 | O14: 0 | P14: 0 | Q14: 0 | R14: 0 | S14: 0 | T14: 0 | U14: 0 | V14: 0 | W14: 0 | X14: 0 | Y14: 0 | Z14: 0 | AA14: 0 | AB14: 0 | AC14: 0 | AD14: 0 | AE14: 0 | AF14: 0 | AG14: 0 | AH14: 0 | AI14: 0 | AK14: 0 | AM14: O12 | AN14: 1000 | AO14: =SUM(AF38:AF52) -> 1054.589974 | AP14: -54.58997366 | AQ14: 54.58997366
A15: O13 | B15: 72 | C15: 97 | D15: 60 | E15: 49 | F15: 38 | H15: O13 | I15: 5 | J15: 1 | K15: 7 | L15: 8 | M15: 7 | O15: 0 | P15: 1.652672189 | Q15: 0 | R15: 4.345603843 | S15: 0.8313723264 | T15: 0.3186428659 | U15: 77.60010399 | V15: 30.24645339 | W15: 55.85611608 | X15: 47.38386799 | Y15: 90.84580266 | Z15: 66.82248114 | AA15: 45.71694711 | AB15: 31.05178455 | AC15: 84.02622676 | AD15: 36.23465696 | AE15: 63.1337561 | AF15: 52.99041091 | AG15: 42.23710922 | AH15: 22.5854327 | AI15: 57.5146845 | AK15: 0.3186428659 | AM15: O13 | AN15: 1000 | AO15: =SUM(AG38:AG52) -> 817.7256506 | AP15: 182.2743494 | AQ15: 182.2743494
A16: O14 | B16: 38 | C16: 80 | D16: 96 | E16: 89 | F16: 24 | H16: O14 | I16: 11 | J16: 5 | K16: 1 | L16: 1 | M16: 12 | O16: 0 | P16: 0 | Q16: 0 | R16: 0 | S16: 0 | T16: 0 | U16: 0 | V16: 0 | W16: 0 | X16: 0 | Y16: 0 | Z16: 0 | AA16: 0 | AB16: 0 | AC16: 0 | AD16: 0 | AE16: 0 | AF16: 0 | AG16: 0 | AH16: 0 | AI16: 0 | AK16: 0 | AM16: O14 | AN16: 1000 | AO16: =SUM(AH38:AH52) -> 901.5470032 | AP16: 98.45299681 | AQ16: 98.45299681
A17: O15 | B17: 34 | C17: 7 | D17: 4 | E17: 56 | F17: 34 | H17: O15 | I17: 12 | J17: 15 | K17: 14 | L17: 6 | M17: 8 | O17: 0 | P17: 0 | Q17: 0 | R17: 0 | S17: 0 | T17: 0 | U17: 0 | V17: 0 | W17: 0 | X17: 0 | Y17: 0 | Z17: 0 | AA17: 0 | AB17: 0 | AC17: 0 | AD17: 0 | AE17: 0 | AF17: 0 | AG17: 0 | AH17: 0 | AI17: 0 | AK17: 0 | AM17: O15 | AN17: 1000 | AO17: =SUM(AI38:AI52) -> 1073.182139 | AP17: -73.18213943 | AQ17: 73.18213943
AN18: szum | AO18: szum | AP18: hiba
U19: Activation | AK19: Szórás | AN19: =SUM(AN3:AN17) -> 15000 | AO19: =SUM(AO3:AO17) -> 14635.80683 | AP19: =SUMSQ(AP3:AP17) -> 364193.1424 | AQ19: =SUM(AQ3:AQ17)/15 -> 136.9168191 | AS19: SOLVER FUT, de nem ad negatív paramétereket!
O20: activation weight | U20: =IF(U3<0, $O$21*(EXP(U3)-1), U3) -> 139.0826769 | V20: =IF(V3<0, $O$21*(EXP(V3)-1), V3) -> 214.5480427 | W20: 121.1174657 | X20: 210.2115512 | Y20: 110.0784806 | Z20: 69.93840919 | AA20: 227.5780755 | AB20: 157.1373632 | AC20: 86.52791408 | AD20: 98.30784129 | AE20: 169.0486262 | AF20: 165.5229204 | AG20: 106.9922779 | AH20: 179.2803154 | AI20: 202.3448259 | AK20: =STDEV(U20:AI20) -> 50.40249662 | AP20: hiba2
O21: 0.01 | U21: =IF(U4<0, $O$21*(EXP(U4)-1), U4) -> 0 | V21: 0 | W21: =IF(W4<0, $O$21*(EXP(W4)-1), W4) -> 0 | X21: 0 | Y21: 0 | Z21: 0 | AA21: 0 | AB21: 0 | AC21: 0 | AD21: 0 | AE21: 0 | AF21: 0 | AG21: 0 | AH21: 0 | AI21: 0 | AK21: =STDEV(U21:AI21) -> 0 | AP21: =ABS(AN19-AO19) -> 364.1931708
O22: exp | U22: 120.2894282 | V22: 80.37072431 | W22: 71.39141294 | X22: 70.12772413 | Y22: 141.5193631 | Z22: 86.93575317 | AA22: 58.27758086 | AB22: 59.27519279 | AC22: 139.3634906 | AD22: 76.70340632 | AE22: 114.5761356 | AF22: 97.96636085 | AG22: 85.98430196 | AH22: 64.17367272 | AI22: 78.71920386 | AK22: 27.32797609 | AP22: hiba3
I23: w1 | J23: w2 | K23: w3 | L23: w4 | M23: w5 | N23: w6 | U23: 37.03938169 | V23: 55.80191882 | W23: 12.91310191 | X23: 25.82620381 | Y23: =IF(Y6<0, $O$21*(EXP(Y6)-1), Y6) -> 57.01615027 | Z23: 42.02829277 | AA23: 57.98753543 | AB23: 38.49645943 | AC23: 79.79621332 | AD23: 52.99862435 | AE23: 54.45570209 | AF23: 85.15995597 | AG23: 44.34589465 | AH23: 39.84267616 | AI23: 70.41494476 | AK23: 19.22426969 | AP23: =AP19*AP21 -> 132636655.3
I24: 7.248607 | J24: 0.7381974 | K24: 3.5302963 | L24: 2.520196 | M24: -8.99366 | N24: 3.44311929 | U24: 0 | V24: 0 | W24: 0 | X24: 0 | Y24: 0 | Z24: 0 | AA24: 0 | AB24: 0 | AC24: 0 | AD24: 0 | AE24: 0 | AF24: 0 | AG24: 0 | AH24: 0 | AI24: 0 | AK24: 0 | AN24: szórás | AO24: szórás
I25: -0.9825616 | J25: -0.6593509 | K25: -0.8847452 | L25: -1.1716441 | M25: -0.35265994 | N25: -860.489868 | U25: 98.73505011 | V25: 46.159768 | W25: 75.35784031 | X25: 71.97591716 | Y25: 115.2695782 | Z25: 83.54497068 | AA25: 64.91482318 | AB25: 48.79646759 | AC25: 105.8144216 | AD25: 45.30272662 | AE25: 90.51010332 | AF25: 66.65605357 | AG25: 59.26590851 | AH25: 35.09859834 | AI25: 75.82761989 | AK25: 23.53275757 | AN25: =STDEV(AN3:AN17) -> 0 | AO25: =STDEV(AO3:AO17) -> 159.3178983
I26: -0.49893862 | J26: -5.261792 | K26: -13.521281 | L26: 9.803955 | M26: 5.1690874 | N26: 7.00564194 | U26: 0 | V26: 0 | W26: 0 | X26: 0 | Y26: 0 | Z26: 0 | AA26: 0 | AB26: 0 | AC26: 0 | AD26: 0 | AE26: 0 | AF26: 0 | AG26: 0 | AH26: 0 | AI26: 0 | AK26: 0
I27: -0.55270886 | J27: -11.822919 | K27: 4.773351 | L27: -5.677042 | M27: 10.83884 | N27: 11.9730797 | U27: 100.8370154 | V27: 125.4870184 | W27: 44.66720212 | X27: 66.17423586 | Y27: 109.5227883 | Z27: 77.11475074 | AA27: 126.4919718 | AB27: 69.34253072 | AC27: 127.166511 | AD27: 106.4856551 | AE27: 88.40568553 | AF27: 167.6746501 | AG27: 72.57741278 | AH27: 98.604554 | AI27: 147.2307997 | AK27: 33.31657378
I28: -0.71714014 | J28: -0.5367206 | K28: -0.88142514 | L28: -0.5181976 | M28: -0.8456378 | N28: -77.6046829 | U28: 146.6810286 | V28: 225.5801959 | W28: 130.8030793 | X28: 226.3430262 | Y28: 116.2200076 | Z28: 73.87426859 | AA28: 240.6970518 | AB28: 168.1941454 | AC28: 89.92719995 | AD28: 100.7889504 | AE28: 181.758972 | AF28: 170.4210047 | AG28: 113.9506415 | AH28: 188.551765 | AI28: 212.1814585 | AK28: 53.64515133
I29: -3.569059 | J29: 6.6164865 | K29: -4.9212985 | L29: 5.5687785 | M29: 1.0477837 | N29: 2.85428524 | U29: 30.50496 | V29: 10.45180883 | W29: 21.23205731 | X29: 16.00615289 | Y29: 32.52258567 | Z29: 26.45796172 | AA29: 22.08252379 | AB29: 8.422436213 | AC29: 28.64568069 | AD29: 14.32871382 | AE29: 16.67477913 | AF29: 23.60161652 | AG29: 10.78024848 | AH29: 7.923903271 | AI29: 27.30842821 | AK29: 8.3257545
I30: -0.99327475 | J30: -0.3206896 | K30: -0.4872727 | L30: -1.1194049 | M30: -0.52022296 | N30: -100.699875 | U30: 0 | V30: 0 | W30: 0 | X30: 0 | Y30: 0 | Z30: 0 | AA30: 0 | AB30: 0 | AC30: 0 | AD30: 0 | AE30: 0 | AF30: 0 | AG30: 0 | AH30: 0 | AI30: 0 | AK30: 0
I31: -9.78393 | J31: 2.716091 | K31: 6.1060514 | L31: -1.6230927 | M31: 6.1637664 | N31: 4.4167285 | U31: 0 | V31: 0 | W31: 0 | X31: 0 | Y31: 0 | Z31: 0 | AA31: 0 | AB31: 0 | AC31: 0 | AD31: 0 | AE31: 0 | AF31: 0 | AG31: 0 | AH31: 0 | AI31: 0 | AK31: 0
I32: 7.4796014 | J32: 0.3599927 | K32: 4.077317 | L32: 3.0028565 | M32: -9.206612 | N32: 3.77484202 | U32: 77.60010399 | V32: 30.24645339 | W32: 55.85611608 | X32: 47.38386799 | Y32: 90.84580266 | Z32: 66.82248114 | AA32: 45.71694711 | AB32: 31.05178455 | AC32: 84.02622676 | AD32: 36.23465696 | AE32: 63.1337561 | AF32: 52.99041091 | AG32: 42.23710922 | AH32: 22.5854327 | AI32: 57.5146845 | AK32: 20.21789478
I33: -1.664111 | J33: 1.3555291 | K33: -4.9582205 | L33: 1.129238 | M33: -0.7233946 | N33: -0.0411949232 | U33: 0 | V33: 0 | W33: 0 | X33: 0 | Y33: 0 | Z33: 0 | AA33: 0 | AB33: 0 | AC33: 0 | AD33: 0 | AE33: 0 | AF33: 0 | AG33: 0 | AH33: 0 | AI33: 0 | AK33: 0
I34: -0.5632427 | J34: -1.0691447 | K34: -0.3703964 | L34: -0.60264266 | M34: -1.0148598 | N34: -371.023041 | U34: 0 | V34: 0 | W34: 0 | X34: 0 | Y34: 0 | Z34: 0 | AA34: 0 | AB34: 0 | AC34: 0 | AD34: 0 | AE34: 0 | AF34: 0 | AG34: 0 | AH34: 0 | AI34: 0 | AK34: 0
I35: -0.8421993 | J35: -0.819102 | K35: -0.8301129 | L35: -0.97036374 | M35: -0.48026595 | N35: -860.069092
I36: -1.7585582 | J36: 2.9675746 | K36: -5.348579 | L36: 4.248206 | M36: 0.81092155 | N36: 0.571480155
I37: -0.45154455 | J37: -1.1448882 | K37: -0.89239216 | L37: -0.9087747 | M37: -0.41204983 | N37: -130.74556 | U37: Y0 - szorzatok | AK37: Szórás
I38: -0.99314326 | J38: -0.6663954 | K38: -0.6425013 | L38: -0.34440482 | M38: -0.6411716 | N38: -200.325714 | U38: =U20*$AK3 -> 148.9430996 | V38: =V20*$AK3 -> 229.7586673 | W38: =W20*$AK3 -> 129.7042245 | X38: 225.1147354 | Y38: 117.8826182 | Z38: 74.89677132 | AA38: 243.712479 | AB38: =AB20*$AK3 -> 168.2777932 | AC38: 92.66240779 | AD38: 105.2774862 | AE38: 181.0335185 | AF38: 177.2578538 | AG38: 114.5776157 | AH38: 191.9905948 | AI38: =AI20*$AK3 -> 216.6902898 | AK38: =STDEV(U38:AI38) -> 53.97583826
U39: =U21*$AK4 -> 0 | V39: =V21*$AK4 -> 0 | W39: 0 | X39: 0 | Y39: 0 | Z39: 0 | AA39: =AA21*$AK4 -> 0 | AB39: 0 | AC39: 0 | AD39: 0 | AE39: 0 | AF39: 0 | AG39: 0 | AH39: 0 | AI39: 0 | AK39: =STDEV(U39:AI39) -> 0
U40: 641.1896912 | V40: 428.4073892 | W40: 380.5441482 | X40: 373.8081927 | Y40: 754.353546 | Z40: 463.4015602 | AA40: 310.6422951 | AB40: 315.9599568 | AC40: 742.8619024 | AD40: 408.8591502 | AE40: 610.7356074 | AF40: 522.1990126 | AG40: 458.3299532 | AH40: 342.0707704 | AI40: 419.6041393 | AK40: 145.6687991
U41: 0.0001978312487 | V41: 0.0002980439408 | W41: 6.897024083e-05 | X41: 0.0001379404817 | Y41: 0.0003045292792 | Z41: 0.0002244775496 | AA41: 0.0003097175499 | AB41: 0.0002056136548 | AC41: 0.0004262000014 | AD41: 0.000283071249 | AE41: 0.0002908536551 | AF41: 0.0004548483173 | AG41: 0.000236856106 | AH41: 0.0002128039405 | AI41: 0.0003760936554 | AK41: 0.0001026788544
U42: 0 | V42: 0 | W42: =W24*$AK7 -> 0 | X42: 0 | Y42: 0 | Z42: 0 | AA42: 0 | AB42: 0 | AC42: 0 | AD42: 0 | AE42: 0 | AF42: 0 | AG42: 0 | AH42: 0 | AI42: 0 | AK42: 0
U43: 35.19494373 | V43: 16.45403973 | W43: =W25*$AK8 -> 26.86193957 | X43: 25.65642445 | Y43: 41.08881611 | Z43: 29.78031143 | AA43: 23.13943778 | AB43: 17.3939136 | AC43: 37.71844559 | AD43: 16.14854008 | AE43: 32.26309188 | AF43: 23.76011408 | AG43: 21.12583437 | AH43: =AH25*$AK8 -> 12.51119225 | AI43: 27.02939647 | AK43: 8.388450481
U44: 0 | V44: 0 | W44: 0 | X44: 0 | Y44: 0 | Z44: 0 | AA44: 0 | AB44: 0 | AC44: 0 | AD44: 0 | AE44: 0 | AF44: 0 | AG44: 0 | AH44: 0 | AI44: 0 | AK44: 0
U45: 2.023778778e-05 | V45: 2.518499418e-05 | W45: 8.964618335e-06 | X45: 1.328103709e-05 | Y45: 2.198100507e-05 | Z45: 1.54767766e-05 | AA45: 2.538668634e-05 | AB45: 1.391690755e-05 | AC45: 2.5522065e-05 | AD45: 2.13714585e-05 | AE45: 1.774284468e-05 | AF45: 3.36519677e-05 | AG45: 1.456614192e-05 | AH45: 1.978973723e-05 | AI45: 2.954892771e-05 | AK45: 6.686569877e-06
U46: 270.4915037 | V46: 415.9878547 | W46: 241.2113001 | X46: 417.3945746 | Y46: 214.3189539 | Z46: 136.2300373 | AA46: 443.8645415 | AB46: 310.1634052 | AC46: 165.8329218 | AD46: 185.8628551 | AE46: 335.1780262 | AF46: 314.2699113 | AG46: 210.1340622 | AH46: 347.7044778 | AI46: 391.2795153 | AK46: 98.92593331
U47: 0.2812169964 | V47: 0.09635240584 | W47: 0.1957326082 | X47: 0.1475564052 | Y47: 0.2998169431 | Z47: 0.2439088111 | AA47: 0.2035728292 | AB47: 0.07764416718 | AC47: 0.264076802 | AD47: 0.132092547 | AE47: 0.1537202901 | AF47: 0.2175769352 | AG47: 0.09938020231 | AH47: =AH29*$AK12 -> 0.07304832649 | AI47: 0.2517490322 | AK47: 0.07675288455
U48: 0 | V48: 0 | W48: 0 | X48: 0 | Y48: 0 | Z48: 0 | AA48: 0 | AB48: 0 | AC48: 0 | AD48: 0 | AE48: 0 | AF48: 0 | AG48: 0 | AH48: 0 | AI48: 0 | AK48: 0
U49: 0 | V49: 0 | W49: 0 | X49: 0 | Y49: 0 | Z49: 0 | AA49: 0 | AB49: 0 | AC49: 0 | AD49: 0 | AE49: 0 | AF49: 0 | AG49: 0 | AH49: =AH31*$AK14 -> 0 | AI49: 0 | AK49: 0
U50: 24.72671953 | V50: 9.637816592 | W50: 17.79815291 | X50: 15.0985315 | Y50: 28.94736692 | Z50: 21.2925069 | AA50: 14.56737905 | AB50: 9.894429622 | AC50: 26.77435771 | AD50: 11.54591494 | AE50: 20.11712098 | AF50: 16.8850164 | AG50: 13.45855353 | AH50: 7.196687005 | AI50: 18.3266439 | AK50: 6.442287935
U51: 0 | V51: 0 | W51: 0 | X51: 0 | Y51: 0 | Z51: 0 | AA51: 0 | AB51: 0 | AC51: 0 | AD51: 0 | AE51: 0 | AF51: 0 | AG51: 0 | AH51: 0 | AI51: 0 | AK51: 0
U52: 0 | V52: 0 | W52: 0 | X52: 0 | Y52: 0 | Z52: 0 | AA52: 0 | AB52: 0 | AC52: 0 | AD52: 0 | AE52: 0 | AF52: 0 | AG52: 0 | AH52: 0 | AI52: 0 | AK52: 0

Sheet nn - ranked data - new (9)
A1: irány | B1: 0 | C1: 0 | D1: 0 | E1: 0 | F1: 0 | M1: súlyok | U1: 2. layer vektor | AK1: 2 layer súlyok | AO1: JÓ! - kérdés: ceteris paribus alakzatok alakulása attribútumonként
A2: rnd(1-100) | B2: A1 | C2: A2 | D2: A3 | E2: A4 | F2: A5 | H2: rank = 0 | I2: =B2 -> A1 | J2: A2 | K2: A3 | L2: A4 | M2: A5 | O2: w1 | P2: w2 | Q2: w3 | R2: w4 | S2: w5 | U2: O1 | V2: O2 | W2: O3 | X2: O4 | Y2: O5 | Z2: O6 | AA2: O7 | AB2: O8 | AC2: O9 | AD2: O10 | AE2: O11 | AF2: O12 | AG2: O13 | AH2: O14 | AI2: O15 | AN2: Y0 | AO2: Ybecslés | AP2: eltérés | AQ2: MAE
A3: O1 | B3: 70 | C3: 10 | D3: 93 | E3: 33 | F3: 29 | H3: =A3 -> O1 | I3: =RANK(B3,B$3:B$17,B$1) -> 6 | J3: =RANK(C3,C$3:C$17,C$1) -> 13 | K3: =RANK(D3,D$3:D$17,D$1) -> 2 | L3: 11 | M3: 10 | O3: -2.81569 | P3: 5.3395376 | Q3: -0.7359075 | R3: 8.389649 | S3: -5.3521976 | U3: =$I$3*$O3+$J$3*$P3+$K$3*$Q3+$L$3*$R3+$M$3*$S3 -> 89.8121968 | V3: =$I$4*$O3+$J$4*$P3+$K$4*$Q3+$L$4*$R3+$M$4*$S3 -> -65.6618428 | W3: =$I$5*$O3+$J$5*$P3+$K$5*$Q3+$L$5*$R3+$M$5*$S3 -> 94.0035031 | X3: =$I$6*$O3+$J$6*$P3+$K$6*$Q3+$L$6*$R3+$M$6*$S3 -> 42.3254912 | Y3: =$I$7*$O3+$J$7*$P3+$K$7*$Q3+$L$7*$R3+$M$7*$S3 -> 121.3396327 | Z3: =$I$8*$O3+$J$8*$P3+$K$8*$Q3+$L$8*$R3+$M$8*$S3 -> 116.6344672 | AA3: =$I$9*$O3+$J$9*$P3+$K$9*$Q3+$L$9*$R3+$M$9*$S3 -> 27.4595607 | AB3: =$I$10*$O3+$J$10*$P3+$K$10*$Q3+$L$10*$R3+$M$10*$S3 -> 0.2244812 | AC3: =$I$11*$O3+$J$11*$P3+$K$11*$Q3+$L$11*$R3+$M$11*$S3 -> 98.1346459 | AD3: =$I$12*$O3+$J$12*$P3+$K$12*$Q3+$L$12*$R3+$M$12*$S3 -> -11.2834209 | AE3: =$I$13*$O3+$J$13*$P3+$K$13*$Q3+$L$13*$R3+$M$13*$S3 -> 48.8555965 | AF3: =$I$14*$O3+$J$14*$P3+$K$14*$Q3+$L$14*$R3+$M$14*$S3 -> -3.3272516 | AG3: =$I$15*$O3+$J$15*$P3+$K$15*$Q3+$L$15*$R3+$M$15*$S3 -> 15.7615439 | AH3: =$I$16*$O3+$J$16*$P3+$K$16*$Q3+$L$16*$R3+$M$16*$S3 -> -60.8475317 | AI3: =$I$17*$O3+$J$17*$P3+$K$17*$Q3+$L$17*$R3+$M$17*$S3 -> 43.5223922 | AK3: -2.3225164 | AM3: O1 | AN3: 1000 | AO3: =SUM(U38:U52) -> 999.9993338 | AP3: =AN3-AO3 -> 0.0006661983504 | AQ3: =ABS(AP3) -> 0.0006661983504
A4: O2 | B4: 17 | C4: 74 | D4: 84 | E4: 78 | F4: 23 | H4: =A4 -> O2 | I4: =RANK(B4,B$3:B$17,B$1) -> 13 | J4: 6 | K4: 4 | L4: 2 | M4: 14 | O4: -0.67634004 | P4: -0.5052023 | Q4: -1.161774 | R4: -1.3339746 | S4: -0.4720192 | U4: =$I$3*$O4+$J$3*$P4+$K$3*$Q4+$L$3*$R4+$M$3*$S4 -> -32.34313074 | V4: =$I$4*$O4+$J$4*$P4+$K$4*$Q4+$L$4*$R4+$M$4*$S4 -> -25.74694832 | W4: =$I$5*$O4+$J$5*$P4+$K$5*$Q4+$L$5*$R4+$M$5*$S4 -> -25.56788358 | X4: =$I$6*$O4+$J$6*$P4+$K$6*$Q4+$L$6*$R4+$M$6*$S4 -> -31.41002356 | Y4: =$I$7*$O4+$J$7*$P4+$K$7*$Q4+$L$7*$R4+$M$7*$S4 -> -42.30000322 | Z4: =$I$8*$O4+$J$8*$P4+$K$8*$Q4+$L$8*$R4+$M$8*$S4 -> -34.11222128 | AA4: =$I$9*$O4+$J$9*$P4+$K$9*$Q4+$L$9*$R4+$M$9*$S4 -> -40.3405592 | AB4: =$I$10*$O4+$J$10*$P4+$K$10*$Q4+$L$10*$R4+$M$10*$S4 -> -26.4547191 | AC4: =$I$11*$O4+$J$11*$P4+$K$11*$Q4+$L$11*$R4+$M$11*$S4 -> -46.04560714 | AD4: =$I$12*$O4+$J$12*$P4+$K$12*$Q4+$L$12*$R4+$M$12*$S4 -> -22.22200276 | AE4: =$I$13*$O4+$J$13*$P4+$K$13*$Q4+$L$13*$R4+$M$13*$S4 -> -39.54556166 | AF4: =$I$14*$O4+$J$14*$P4+$K$14*$Q4+$L$14*$R4+$M$14*$S4 -> -38.84102692 | AG4: =$I$15*$O4+$J$15*$P4+$K$15*$Q4+$L$15*$R4+$M$15*$S4 -> -25.9952517 | AH4: =$I$16*$O4+$J$16*$P4+$K$16*$Q4+$L$16*$R4+$M$16*$S4 -> -18.12573094 | AI4: =$I$17*$O4+$J$17*$P4+$K$17*$Q4+$L$17*$R4+$M$17*$S4 -> -43.73895218 | AK4: -94.65141 | AM4: O2 | AN4: 1000 | AO4: =SUM(V38:V52) -> 1000.006318 | AP4: =AN4-AO4 -> -0.006318393387 | AQ4: =ABS(AP4) -> 0.006318393387
A5: O3 | B5: 57 | C5: 57 | D5: 89 | E5: 37 | F5: 85 | H5: O3 | I5: 7 | J5: 7 | K5: 3 | L5: 10 | M5: 1 | O5: -7.476964 | P5: 0.6634149 | Q5: 6.715766 | R5: -2.6759198 | S5: 4.6000643 | U5: -6.2403331 | V5: =$I$4*$O5+$J$4*$P5+$K$4*$Q5+$L$4*$R5+$M$4*$S5 -> -7.307918 | W5: -49.7066794 | X5: -76.61239 | Y5: 46.5703476 | Z5: 43.2029561 | AA5: -7.2678007 | AB5: -18.0353587 | AC5: 107.7680259 | AD5: 56.1513054 | AE5: 0.0575933 | AF5: 88.3585739 | AG5: 21.0820486 | AH5: -19.6889117 | AI5: 34.9933751 | AK5: 2.829634 | AM5: O3 | AN5: 1000 | AO5: =SUM(W38:W52) -> 999.9947763 | AP5: 0.005223710079 | AQ5: =ABS(AP5) -> 0.005223710079
A6: O4 | B6: 13 | C6: 88 | D6: 62 | E6: 44 | F6: 75 | H6: O4 | I6: 14 | J6: 4 | K6: 6 | L6: 9 | M6: 2 | O6: -4.1916866 | P6: -0.89118344 | Q6: -4.5704293 | R6: -0.7108512 | S6: -2.0134892 | U6: -73.83061812 | V6: -107.7312948 | W6: -58.41337938 | X6: -100.0955612 | Y6: -92.29611214 | Z6: -76.8593314 | AA6: -146.6067832 | AB6: -91.69054784 | AC6: -110.8555859 | AD6: -73.04278442 | AE6: -110.2130859 | AF6: -133.9009554 | AG6: -73.62385554 | AH6: -80.0076207 | AI6: -148.0270218 | AK6: -38.577557 | AM6: O4 | AN6: 1000 | AO6: =SUM(X38:X52) -> 1000.000796 | AP6: -0.0007963495329 | AQ6: 0.0007963495329
A7: O5 | B7: 76 | C7: 25 | D7: 28 | E7: 1 | F7: 33 | H7: O5 | I7: 3 | J7: 11 | K7: 9 | L7: 15 | M7: 9 | O7: -2.4329824 | P7: 6.2515464 | Q7: -7.302504 | R7: 7.0256186 | S7: 0.66273147 | U7: 135.9763201 | V7: -3.102e-05 | W7: 75.74135347 | X7: 11.68543834 | Y7: 107.0943894 | Z7: 63.89445821 | AA7: -17.96698085 | AB7: -31.69367212 | AC7: 49.2793503 | AD7: 32.79755504 | AE7: -0.66340858 | AF7: 18.47118885 | AG7: 3.81317549 | AH7: 12.17081784 | AI7: 9.79791456 | AK7: 2.4923496 | AM7: O5 | AN7: 1000 | AO7: =SUM(Y38:Y52) -> 999.9985428 | AP7: 0.00145723715 | AQ7: 0.00145723715
A8: O6 | B8: 82 | C8: 33 | D8: 24 | E8: 33 | F8: 73 | H8: O6 | I8: 2 | J8: 10 | K8: =RANK(D8,D$3:D$17,D$1) -> 10 | L8: 11 | M8: 3 | O8: -0.905744 | P8: -0.7194918 | Q8: -0.814196 | R8: -0.95791686 | S8: -0.9403124 | U8: -36.35645886 | V8: -34.42861412 | W8: -24.3387196 | X8: -30.94543574 | Y8: -40.7909703 | Z8: -30.50638866 | AA8: -42.2957559 | AB8: -25.79925056 | AC8: -42.40807024 | AD8: -27.60738978 | AE8: -35.92213738 | AF8: -45.02554264 | AG8: -25.19310548 | AH8: -26.61650466 | AI8: -46.33004936 | AK8: -1359.8633 | AM8: O6 | AN8: 1000 | AO8: =SUM(Z38:Z52) -> 999.9988959 | AP8: 0.001104067739 | AQ8: 0.001104067739
A9: O7 | B9: 12 | C9: 19 | D9: 11 | E9: 69 | F9: 55 | H9: O7 | I9: 15 | J9: 12 | K9: 13 | L9: 5 | M9: 5 | O9: 5.6735206 | P9: 8.296306 | Q9: 4.1164727 | R9: -2.5904472 | S9: -11.924814 | U9: 2.3829878 | V9: -32.1287958 | W9: 72.3089183 | X9: 90.1496958 | Y9: -0.8518519 | Z9: 71.205467 | AA9: 165.5963201 | AB9: 34.7213544 | AC9: -13.4270357 | AD9: -41.2222157 | AE9: -0.5855065 | AF9: 21.7001224 | AG9: -38.7180577 | AH9: -37.6814859 | AI9: 139.2162598 | AK9: 6.411727 | AM9: O7 | AN9: 1000 | AO9: =SUM(AA38:AA52) -> 999.9997004 | AP9: 0.0002995976715 | AQ9: 0.0002995976715
A10: O8 | B10: 39 | C10: 97 | D10: 57 | E10: 56 | F10: 67 | H10: O8 | I10: 10 | J10: 1 | K10: 8 | L10: 6 | M10: 4 | O10: -0.38980198 | P10: -0.83012384 | Q10: -0.55552363 | R10: -0.7765866 | S10: -0.88186675 | U10: -31.60258916 | V10: -26.169571 | W10: -18.85378438 | X10: -20.86387776 | Y10: -34.8860806 | Z10: -25.82413151 | AA10: -31.32258972 | AB10: -17.35931928 | AC10: -35.88465089 | AD10: -23.88997759 | AE10: -25.83592789 | AF10: -37.74078081 | AG10: -19.0535592 | AH10: -20.35295221 | AI10: -36.62126578 | AK10: -99.761505 | AM10: O8 | AN10: 1000 | AO10: =SUM(AB38:AB52) -> 999.9977032 | AP10: 0.002296775848 | AQ10: 0.002296775848
A11: O9 | B11: 90 | C11: 37 | D11: 1 | E11: 6 | F11: 29 | H11: O9 | I11: 1 | J11: 9 | K11: 15 | L11: 14 | M11: 10 | O11: 1.982447 | P11: -12.039665 | Q11: 5.908791 | R11: 6.990215 | S11: 0.57335806 | U11: -50.1774354 | V11: -0.82357216 | W11: 17.80135506 | X11: 79.10699512 | Y11: 36.70359254 | Z11: 21.26859318 | AA11: -0.1071267 | AB11: 99.28985524 | AC11: 85.8539176 | AD11: -30.99263528 | AE11: 165.1120024 | AF11: -45.2290111 | AG11: 99.16933342 | AH11: -18.61210528 | AI11: -27.55438252 | AK11: 5.3963957 | AM11: O9 | AN11: 1000 | AO11: =SUM(AC38:AC52) -> 999.997312 | AP11: 0.002687961864 | AQ11: 0.002687961864
A12: O10 | B12: 74 | C12: 47 | D12: 82 | E12: 76 | F12: 24 | H12: O10 | I12: 4 | J12: 8 | K12: 5 | L12: 3 | M12: 12 | O12: -0.5899617 | P12: -0.55767375 | Q12: -0.5029801 | R12: -1.122154 | S12: -0.5404773 | U12: -29.54395615 | V12: -22.8384552 | W12: -21.30440575 | X12: -24.68838 | Y12: -34.12772295 | Z12: -25.7515878 | AA12: -30.3934083 | AB12: -19.37596475 | AC12: -34.26865595 | AD12: -19.1883269 | AE12: -29.23097595 | AF12: -31.1586628 | AG12: -19.78891605 | AH12: -17.38880915 | AI12: -33.54311045 | AK12: -69.07631 | AM12: O10 | AN12: 1000 | AO12: =SUM(AD38:AD52) -> 1000.000006 | AP12: -6.05750688e-06 | AQ12: 6.05750688e-06
A13: O11 | B13: 43 | C13: 97 | D13: 15 | E13: 28 | F13: 46 | H13: O11 | I13: 9 | J13: 1 | K13: 11 | L13: 13 | M13: 6 | O13: -2.7926247 | P13: 6.6607904 | Q13: -7.227848 | R13: 7.131489 | S13: 0.7848492 | U13: 141.673702 | V13: 9.61e-05 | W13: 77.4933551 | X13: 9.9324272 | Y13: 113.8761661 | Z13: 69.5451012 | AA13: -16.3402187 | AB13: -33.1599098 | AC13: 56.4261069 | AD13: 36.7892418 | AE13: -0.5607077 | AF13: 24.474586 | AG13: 4.6485873 | AH13: 11.9069117 | AI13: 14.2782152 | AK13: 3.0963051 | AM13: O11 | AN13: 1000 | AO13: =SUM(AE38:AE52) -> 999.9993741 | AP13: 0.0006259408918 | AQ13: 0.0006259408918
A14: O12 | B14: 49 | C14: 9 | D14: 13 | E14: 72 | F14: 7 | H14: O12 | I14: 8 | J14: 14 | K14: 12 | L14: 4 | M14: 15 | O14: 2.0001087 | P14: -9.2347145 | Q14: -0.9558571 | R14: -3.5479674 | S14: 13.392021 | U14: -15.0697819 | V14: 147.1620569 | W14: -75.5974649 | X14: -19.8201434 | Y14: -36.8755693 | Z14: -96.757077 | AA14: -44.0208178 | AB14: 35.3997953 | AC14: -11.2015119 | AD14: 79.4037831 | AE14: 32.4803855 | AF14: 61.9330268 | AG14: 59.4352371 | AH14: 132.0280507 | AI14: -42.0530489 | AK14: 6.781507 | AM14: O12 | AN14: 1000 | AO14: =SUM(AF38:AF52) -> 999.9970857 | AP14: 0.002914340496 | AQ14: 0.002914340496
A15: O13 | B15: 72 | C15: 97 | D15: 60 | E15: 49 | F15: 38 | H15: O13 | I15: 5 | J15: 1 | K15: 7 | L15: 8 | M15: 7 | O15: -0.9448645 | P15: -0.5658325 | Q15: -0.9740114 | R15: -0.5744854 | S15: -0.21316202 | U15: -23.4239919 | V15: -23.70751818 | W15: -19.45492922 | X15: -26.93219404 | Y15: -28.36059278 | Z15: -24.24699346 | AA15: -37.5633428 | AB15: -22.10612918 | AC15: -30.8219438 | AD15: -17.45757544 | AE15: -28.53102072 | AF15: -32.6640797 | AG15: -18.19625214 | AH15: -17.32911304 | AI15: -38.61422966 | AK15: -208.70192 | AM15: O13 | AN15: 1000 | AO15: =SUM(AG38:AG52) -> 999.996571 | AP15: 0.003429031611 | AQ15: 0.003429031611
A16: O14 | B16: 38 | C16: 80 | D16: 96 | E16: 89 | F16: 24 | H16: O14 | I16: 11 | J16: 5 | K16: 1 | L16: 1 | M16: 12 | O16: -2.588714 | P16: 6.3513284 | Q16: -7.03062 | R16: 6.8820267 | S16: 0.7074115 | U16: 135.7501539 | V16: 2.28e-05 | W16: 74.7741193 | X16: 10.3326609 | Y16: 108.4199944 | Z16: 65.8541842 | AA16: -16.0656382 | AB16: -31.6589654 | AC16: 52.5364304 | AD16: 34.4376893 | AE16: -0.5731015 | AF16: 21.9807249 | AG16: 4.2015125 | AH16: 11.6211327 | AI16: 12.7281302 | AK16: 3.047692 | AM16: O14 | AN16: 1000 | AO16: =SUM(AH38:AH52) -> 999.9912098 | AP16: 0.008790173293 | AQ16: 0.008790173293
A17: O15 | B17: 34 | C17: 7 | D17: 4 | E17: 56 | F17: 34 | H17: O15 | I17: 12 | J17: 15 | K17: 14 | L17: 6 | M17: 8 | O17: -0.22207084 | P17: -0.8015395 | Q17: -0.7452368 | R17: -0.81970847 | S17: -0.86160207 | U17: -30.87572601 | V17: -24.37895104 | W17: -18.45966955 | X17: -19.88715093 | Y17: -36.2403239 | Z17: -27.51350406 | AA17: -31.0441677 | AB17: -17.3488014 | AC17: -38.70641762 | AD17: -23.82513361 | AE17: -26.82360439 | AF17: -38.14382625 | AG17: -19.71743355 | AH17: -18.35464685 | AI17: -36.93232516 | AK17: -164.7455 | AM17: O15 | AN17: 1000 | AO17: =SUM(AI38:AI52) -> 999.9977853 | AP17: 0.002214733438 | AQ17: 0.002214733438
AN18: szum | AO18: szum | AP18: hiba
U19: Activation | AK19: Szórás | AN19: =SUM(AN3:AN17) -> 15000 | AO19: =SUM(AO3:AO17) -> 14999.97541 | AP19: =SUMSQ(AP3:AP17) -> 0.0001870354853 | AQ19: =SUM(AQ3:AQ17)/15 -> 0.002588704591
O20: activation weight | U20: =IF(U3<0, $O$21*(EXP(U3)-1), U3) -> 89.8121968 | V20: =IF(V3<0, $O$21*(EXP(V3)-1), V3) -> -0.001 | W20: 94.0035031 | X20: 42.3254912 | Y20: 121.3396327 | Z20: 116.6344672 | AA20: 27.4595607 | AB20: 0.2244812 | AC20: 98.1346459 | AD20: -0.0009999874202 | AE20: 48.8555965 | AF20: -0.0009641083859 | AG20: 15.7615439 | AH20: -0.001 | AI20: 43.5223922 | AK20: =STDEV(U20:AI20) -> 45.86352672 | AP20: hiba2
O21: 0.001 | U21: =IF(U4<0, $O$21*(EXP(U4)-1), U4) -> -0.001 | V21: -0.001 | W21: =IF(W4<0, $O$21*(EXP(W4)-1), W4) -> -0.001 | X21: -0.001 | Y21: -0.001 | Z21: -0.001 | AA21: -0.001 | AB21: -0.001 | AC21: -0.001 | AD21: -0.0009999999998 | AE21: -0.001 | AF21: -0.001 | AG21: -0.001 | AH21: -0.0009999999866 | AI21: -0.001 | AK21: =STDEV(U21:AI21) -> 3.463692792e-12 | AP21: =ABS(AN19-AO19) -> 0.02458896801
O22: exp | U22: -0.0009980507939 | V22: -0.000999329789 | W22: -0.001 | X22: -0.001 | Y22: 46.5703476 | Z22: 43.2029561 | AA22: -0.0009993023554 | AB22: -0.0009999999853 | AC22: 107.7680259 | AD22: 56.1513054 | AE22: 0.0575933 | AF22: 88.3585739 | AG22: 21.0820486 | AH22: -0.0009999999972 | AI22: 34.9933751 | AK22: 35.5655988 | AP22: hiba3
U23: -0.001 | V23: -0.001 | W23: -0.001 | X23: -0.001 | Y23: =IF(Y6<0, $O$21*(EXP(Y6)-1), Y6) -> -0.001 | Z23: -0.001 | AA23: -0.001 | AB23: -0.001 | AC23: -0.001 | AD23: -0.001 | AE23: -0.001 | AF23: -0.001 | AG23: -0.001 | AH23: -0.001 | AI23: -0.001 | AK23: 4.489023472e-19 | AP23: =AP19*AP21 -> 4.599009563e-06
U24: 135.9763201 | V24: -3.101951889e-08 | W24: 75.74135347 | X24: 11.68543834 | Y24: 107.0943894 | Z24: 63.89445821 | AA24: -0.0009999999843 | AB24: -0.001 | AC24: 49.2793503 | AD24: 32.79755504 | AE24: -0.0004849073955 | AF24: 18.47118885 | AG24: 3.81317549 | AH24: 12.17081784 | AI24: 9.79791456 | AK24: 43.04646486 | AN24: szórás | AO24: szórás
U25: -0.001 | V25: -0.001 | W25: -0.001 | X25: -0.001 | Y25: -0.001 | Z25: -0.001 | AA25: -0.001 | AB25: -0.001 | AC25: -0.001 | AD25: -0.001 | AE25: -0.001 | AF25: -0.001 | AG25: -0.001 | AH25: -0.001 | AI25: -0.001 | AK25: 7.299461773e-15 | AN25: =STDEV(AN3:AN17) -> 0 | AO25: =STDEV(AO3:AO17) -> 0.00323736734
U26: 2.3829878 | V26: -0.001 | W26: 72.3089183 | X26: 90.1496958 | Y26: -0.0005733758653 | Z26: 71.205467 | AA26: 165.5963201 | AB26: 34.7213544 | AC26: -0.0009999985253 | AD26: -0.001 | AE26: -0.0004431762409 | AF26: 21.7001224 | AG26: -0.001 | AH26: -0.001 | AI26: 139.2162598 | AK26: 55.50335688
U27: -0.001 | V27: -0.001 | W27: -0.0009999999935 | X27: -0.0009999999991 | Y27: -0.001 | Z27: -0.001 | AA27: -0.001 | AB27: -0.0009999999711 | AC27: -0.001 | AD27: -0.001 | AE27: -0.001 | AF27: -0.001 | AG27: -0.0009999999947 | AH27: -0.0009999999986 | AI27: -0.001 | AK27: 7.487149945e-12
U28: -0.001 | V28: -0.0005611388311 | W28: 17.80135506 | X28: 79.10699512 | Y28: 36.70359254 | Z28: 21.26859318 | AA28: -0.000101588163 | AB28: 99.28985524 | AC28: 85.8539176 | AD28: -0.001 | AE28: 165.1120024 | AF28: -0.001 | AG28: 99.16933342 | AH28: -0.0009999999917 | AI28: -0.001 | AK28: 52.34158482
U29: -0.001 | V29: -0.0009999999999 | W29: -0.0009999999994 | X29: -0.001 | Y29: -0.001 | Z29: -0.001 | AA29: -0.001 | AB29: -0.0009999999962 | AC29: -0.001 | AD29: -0.0009999999954 | AE29: -0.001 | AF29: -0.001 | AG29: -0.0009999999975 | AH29: -0.0009999999719 | AI29: -0.001 | AK29: 7.19657377e-12
U30: 141.673702 | V30: 9.61e-05 | W30: 77.4933551 | X30: 9.9324272 | Y30: 113.8761661 | Z30: 69.5451012 | AA30: -0.0009999999199 | AB30: -0.001 | AC30: 56.4261069 | AD30: 36.7892418 | AE30: -0.0004291950378 | AF30: 24.474586 | AG30: 4.6485873 | AH30: 11.9069117 | AI30: 14.2782152 | AK30: 45.11784342
U31: -0.0009999997147 | V31: 147.1620569 | W31: -0.001 | X31: -0.0009999999975 | Y31: -0.001 | Z31: -0.001 | AA31: -0.001 | AB31: 35.3997953 | AC31: -0.0009999863465 | AD31: 79.4037831 | AE31: 32.4803855 | AF31: 61.9330268 | AG31: 59.4352371 | AH31: 132.0280507 | AI31: -0.001 | AK31: 50.04372529
U32: -0.0009999999999 | V32: -0.0009999999999 | W32: -0.0009999999964 | X32: -0.001 | Y32: -0.001 | Z32: -0.001 | AA32: -0.001 | AB32: -0.0009999999997 | AC32: -0.001 | AD32: -0.0009999999738 | AE32: -0.001 | AF32: -0.001 | AG32: -0.0009999999875 | AH32: -0.0009999999702 | AI32: -0.001 | AK32: 9.97528325e-12
U33: 135.7501539 | V33: 2.28e-05 | W33: 74.7741193 | X33: 10.3326609 | Y33: 108.4199944 | Z33: 65.8541842 | AA33: -0.0009999998946 | AB33: -0.001 | AC33: 52.5364304 | AD33: 34.4376893 | AE33: -0.0004362258213 | AF33: 21.9807249 | AG33: 4.2015125 | AH33: 11.6211327 | AI33: 12.7281302 | AK33: 43.13459826
U34: -0.001 | V34: -0.001 | W34: -0.0009999999904 | X34: -0.0009999999977 | Y34: -0.001 | Z34: -0.001 | AA34: -0.001 | AB34: -0.0009999999708 | AC34: -0.001 | AD34: -0.001 | AE34: -0.001 | AF34: -0.001 | AG34: -0.0009999999973 | AH34: -0.0009999999893 | AI34: -0.001 | AK34: 7.899548715e-12
U37: Y0 - szorzatok | AK37: Szórás
U38: =U20*$AK3 -> -208.5903 | V38: =V20*$AK3 -> 0.0023225164 | W38: =W20*$AK3 -> -218.3246776 | X38: -98.30164745 | Y38: -281.8132869 | Z38: -270.8854629 | AA38: -63.77528006 | AB38: =AB20*$AK3 -> -0.5213612685 | AC38: -227.9193245 | AD38: 0.002322487183 | AE38: -113.4679241 | AF38: 0.002239157538 | AG38: -36.6064442 | AH38: 0.0023225164 | AI38: =AI20*$AK3 -> -101.0814697 | AK38: =STDEV(U38:AI38) -> 106.518793
U39: =U21*$AK4 -> 0.09465141 | V39: =V21*$AK4 -> 0.09465141 | W39: 0.09465141 | X39: 0.09465141 | Y39: 0.09465141 | Z39: 0.09465141 | AA39: =AA21*$AK4 -> 0.09465141 | AB39: 0.09465141 | AC39: 0.09465141 | AD39: 0.09465140998 | AE39: 0.09465141 | AF39: 0.09465141 | AG39: 0.09465141 | AH39: 0.09465140873 | AI39: 0.09465141 | AK39: =STDEV(U39:AI39) -> 3.278434074e-10
U40: -0.00282411846 | V40: -0.002827737548 | W40: -0.002829634 | X40: -0.002829634 | Y40: 131.777039 | Z40: 122.2485535 | AA40: -0.002827659921 | AB40: -0.002829633958 | AC40: 304.9440702 | AD40: 158.8876429 | AE40: 0.1629679599 | AF40: 250.0224249 | AG40: 59.65448151 | AH40: -0.002829633992 | AI40: 99.01844396 | AK40: 100.6376276
U41: 0.038577557 | V41: 0.038577557 | W41: 0.038577557 | X41: 0.038577557 | Y41: 0.038577557 | Z41: 0.038577557 | AA41: 0.038577557 | AB41: 0.038577557 | AC41: 0.038577557 | AD41: 0.038577557 | AE41: 0.038577557 | AF41: 0.038577557 | AG41: 0.038577557 | AH41: 0.038577557 | AI41: 0.038577557 | AK41: 7.182437555e-18
U42: 338.900527 | V42: -7.731148549e-08 | W42: =W24*$AK7 -> 188.773932 | X42: 29.12419757 | Y42: 266.9166587 | Z42: 159.2473274 | AA42: -0.002492349561 | AB42: -0.0024923496 | AC42: 122.821369 | AD42: 81.74297318 | AE42: -0.001208558753 | AF42: 46.03666014 | AG42: 9.503766407 | AH42: 30.33393298 | AI42: 24.41982843 | AK42: 107.2868395
U43: 1.3598633 | V43: 1.3598633 | W43: =W25*$AK8 -> 1.3598633 | X43: 1.3598633 | Y43: 1.3598633 | Z43: 1.3598633 | AA43: 1.3598633 | AB43: 1.3598633 | AC43: 1.3598633 | AD43: 1.3598633 | AE43: 1.3598633 | AF43: 1.3598633 | AG43: 1.3598633 | AH43: =AH25*$AK8 -> 1.3598633 | AI43: 1.3598633 | AK43: 9.926279734e-12
U44: 15.27906722 | V44: -0.006411727 | W44: 463.6250438 | X44: 578.0152386 | Y44: -0.003676329517 | Z44: 456.5500153 | AA44: 1061.758397 | AB44: 222.6238455 | AC44: -0.006411717544 | AD44: -0.006411727 | AE44: -0.002841525069 | AF44: 139.1352607 | AG44: -0.006411727 | AH44: -0.006411727 | AI44: 892.6166518 | AK44: 355.8723719
U45: 0.099761505 | V45: 0.099761505 | W45: 0.09976150435 | X45: 0.09976150491 | Y45: 0.099761505 | Z45: 0.099761505 | AA45: 0.099761505 | AB45: 0.09976150212 | AC45: 0.099761505 | AD45: 0.099761505 | AE45: 0.099761505 | AF45: 0.099761505 | AG45: 0.09976150447 | AH45: 0.09976150486 | AI45: 0.099761505 | AK45: 7.469293482e-10
U46: -0.0053963957 | V46: -0.003028127176 | W46: 96.0631559 | X46: 426.8926483 | Y46: 198.067109 | Z46: 114.7737448 | AA46: -0.000548209926 | AB46: 535.8073479 | AC46: 463.3017118 | AD46: -0.0053963957 | AE46: 891.0096996 | AF46: -0.0053963957 | AG46: 535.1569644 | AH46: -0.005396395655 | AI46: -0.0053963957 | AK46: 282.4559033
U47: 0.06907631 | V47: 0.06907630999 | W47: 0.06907630996 | X47: 0.06907631 | Y47: 0.06907631 | Z47: 0.06907631 | AA47: 0.06907631 | AB47: 0.06907630973 | AC47: 0.06907631 | AD47: 0.06907630968 | AE47: 0.06907631 | AF47: 0.06907631 | AG47: 0.06907630982 | AH47: =AH29*$AK12 -> 0.06907630806 | AI47: 0.06907631 | AK47: 4.971127618e-10
U48: 438.665006 | V48: 0.0002975549201 | W48: 239.9430706 | X48: 30.75382499 | Y48: 352.5953539 | Z48: 215.3328515 | AA48: -0.003096304852 | AB48: -0.0030963051 | AC48: 174.7124426 | AD48: 113.910717 | AE48: -0.001328918784 | AF48: 75.78078545 | AG48: 14.39344456 | AH48: 36.86743142 | AI48: 44.20971054 | AK48: 139.6986087
U49: -0.006781505065 | V49: 997.980519 | W49: -0.006781507 | X49: -0.006781506983 | Y49: -0.006781507 | Z49: -0.006781507 | AA49: -0.006781507 | AB49: 240.0639596 | AC49: -0.006781414408 | AD49: 538.4773109 | AE49: 220.2659616 | AF49: 419.9992548 | AG49: 403.0604764 | AH49: =AH31*$AK14 -> 895.34915 | AI49: -0.006781507 | AK49: 339.3718734
U50: 0.20870192 | V50: 0.20870192 | W50: 0.2087019193 | X50: 0.20870192 | Y50: 0.20870192 | Z50: 0.20870192 | AA50: 0.20870192 | AB50: 0.2087019199 | AC50: 0.20870192 | AD50: 0.2087019145 | AE50: 0.20870192 | AF50: 0.20870192 | AG50: 0.2087019174 | AH50: 0.2087019138 | AI50: 0.20870192 | AK50: 2.08186077e-09
U51: 413.724658 | V51: 6.948737761e-05 | W51: 227.8884852 | X51: 31.49076796 | Y51: 330.4307496 | Z51: 200.7032704 | AA51: -0.003047691679 | AB51: -0.003047692 | AC51: 160.1148586 | AD51: 104.9554702 | AE51: -0.001329481946 | AF51: 66.99047943 | AG51: 12.80491603 | AH51: 35.41763316 | AI51: 38.79142059 | AK51: 131.46097
U52: 0.1647455 | V52: 0.1647455 | W52: 0.1647454984 | X52: 0.1647454996 | Y52: 0.1647455 | Z52: 0.1647455 | AA52: 0.1647455 | AB52: 0.1647454952 | AC52: 0.1647455 | AD52: 0.1647455 | AE52: 0.1647455 | AF52: 0.1647455 | AG52: 0.1647454995 | AH52: 0.1647454982 | AI52: 0.1647455 | AK52: 1.301415107e-09

Sheet 9ceteris
A1: irány | B1: 0 | C1: 0 | D1: 0 | E1: 0 | F1: 0 | M1: súlyok | U1: 2. layer vektor | AK1: 2 layer súlyok | AO1: JÓ! - kérdés: ceteris paribus alakzatok alakulása attribútumonként | AV1: ceteris paribus (a1;o1) | AW1: a1;o2
A2: rnd(1-100) | B2: A1 | C2: A2 | D2: A3 | E2: A4 | F2: A5 | H2: rank = 0 | I2: =B2 -> A1 | J2: A2 | K2: A3 | L2: A4 | M2: A5 | O2: w1 | P2: w2 | Q2: w3 | R2: w4 | S2: w5 | U2: O1 | V2: O2 | W2: O3 | X2: O4 | Y2: O5 | Z2: O6 | AA2: O7 | AB2: O8 | AC2: O9 | AD2: O10 | AE2: O11 | AF2: O12 | AG2: O13 | AH2: O14 | AI2: O15 | AN2: Y0 | AO2: Ybecslés | AP2: eltérés | AQ2: MAE | AU2: -32 | AV2: -3520.471615 | AW2: 999.9993338
A3: O1 | B3: 70 | C3: 10 | D3: 93 | E3: 33 | F3: 29 | H3: =A3 -> O1 | I3: 6 | J3: =RANK(C3,C$3:C$17,C$1) -> 13 | K3: =RANK(D3,D$3:D$17,D$1) -> 2 | L3: 11 | M3: 10 | O3: -2.81569 | P3: 5.3395376 | Q3: -0.7359075 | R3: 8.389649 | S3: -5.3521976 | U3: =$I$3*$O3+$J$3*$P3+$K$3*$Q3+$L$3*$R3+$M$3*$S3 -> 89.8121968 | V3: =$I$4*$O3+$J$4*$P3+$K$4*$Q3+$L$4*$R3+$M$4*$S3 -> -65.6618428 | W3: =$I$5*$O3+$J$5*$P3+$K$5*$Q3+$L$5*$R3+$M$5*$S3 -> 94.0035031 | X3: =$I$6*$O3+$J$6*$P3+$K$6*$Q3+$L$6*$R3+$M$6*$S3 -> 42.3254912 | Y3: =$I$7*$O3+$J$7*$P3+$K$7*$Q3+$L$7*$R3+$M$7*$S3 -> 121.3396327 | Z3: =$I$8*$O3+$J$8*$P3+$K$8*$Q3+$L$8*$R3+$M$8*$S3 -> 116.6344672 | AA3: =$I$9*$O3+$J$9*$P3+$K$9*$Q3+$L$9*$R3+$M$9*$S3 -> 27.4595607 | AB3: =$I$10*$O3+$J$10*$P3+$K$10*$Q3+$L$10*$R3+$M$10*$S3 -> 0.2244812 | AC3: =$I$11*$O3+$J$11*$P3+$K$11*$Q3+$L$11*$R3+$M$11*$S3 -> 98.1346459 | AD3: =$I$12*$O3+$J$12*$P3+$K$12*$Q3+$L$12*$R3+$M$12*$S3 -> -11.2834209 | AE3: =$I$13*$O3+$J$13*$P3+$K$13*$Q3+$L$13*$R3+$M$13*$S3 -> 48.8555965 | AF3: =$I$14*$O3+$J$14*$P3+$K$14*$Q3+$L$14*$R3+$M$14*$S3 -> -3.3272516 | AG3: =$I$15*$O3+$J$15*$P3+$K$15*$Q3+$L$15*$R3+$M$15*$S3 -> 15.7615439 | AH3: =$I$16*$O3+$J$16*$P3+$K$16*$Q3+$L$16*$R3+$M$16*$S3 -> -60.8475317 | AI3: =$I$17*$O3+$J$17*$P3+$K$17*$Q3+$L$17*$R3+$M$17*$S3 -> 43.5223922 | AK3: -2.3225164 | AM3: O1 | AN3: 1000 | AO3: =SUM(U38:U52) -> 999.9993338 | AP3: =AN3-AO3 -> 0.0006661983504 | AQ3: =ABS(AP3) -> 0.0006661983504 | AU3: 0 | AV3: 1190.365915 | AW3: 1371.844559
A4: O2 | B4: 17 | C4: 74 | D4: 84 | E4: 78 | F4: 23 | H4: =A4 -> O2 | I4: 13 | J4: =RANK(C4,C$3:C$17,C$1) -> 6 | K4: 4 | L4: 2 | M4: 14 | O4: -0.67634004 | P4: -0.5052023 | Q4: -1.161774 | R4: -1.3339746 | S4: -0.4720192 | U4: =$I$3*$O4+$J$3*$P4+$K$3*$Q4+$L$3*$R4+$M$3*$S4 -> -32.34313074 | V4: =$I$4*$O4+$J$4*$P4+$K$4*$Q4+$L$4*$R4+$M$4*$S4 -> -25.74694832 | W4: =$I$5*$O4+$J$5*$P4+$K$5*$Q4+$L$5*$R4+$M$5*$S4 -> -25.56788358 | X4: =$I$6*$O4+$J$6*$P4+$K$6*$Q4+$L$6*$R4+$M$6*$S4 -> -31.41002356 | Y4: =$I$7*$O4+$J$7*$P4+$K$7*$Q4+$L$7*$R4+$M$7*$S4 -> -42.30000322 | Z4: =$I$8*$O4+$J$8*$P4+$K$8*$Q4+$L$8*$R4+$M$8*$S4 -> -34.11222128 | AA4: =$I$9*$O4+$J$9*$P4+$K$9*$Q4+$L$9*$R4+$M$9*$S4 -> -40.3405592 | AB4: =$I$10*$O4+$J$10*$P4+$K$10*$Q4+$L$10*$R4+$M$10*$S4 -> -26.4547191 | AC4: =$I$11*$O4+$J$11*$P4+$K$11*$Q4+$L$11*$R4+$M$11*$S4 -> -46.04560714 | AD4: =$I$12*$O4+$J$12*$P4+$K$12*$Q4+$L$12*$R4+$M$12*$S4 -> -22.22200276 | AE4: =$I$13*$O4+$J$13*$P4+$K$13*$Q4+$L$13*$R4+$M$13*$S4 -> -39.54556166 | AF4: =$I$14*$O4+$J$14*$P4+$K$14*$Q4+$L$14*$R4+$M$14*$S4 -> -38.84102692 | AG4: =$I$15*$O4+$J$15*$P4+$K$15*$Q4+$L$15*$R4+$M$15*$S4 -> -25.9952517 | AH4: =$I$16*$O4+$J$16*$P4+$K$16*$Q4+$L$16*$R4+$M$16*$S4 -> -18.12573094 | AI4: =$I$17*$O4+$J$17*$P4+$K$17*$Q4+$L$17*$R4+$M$17*$S4 -> -43.73895218 | AK4: -94.65141 | AM4: O2 | AN4: 1000 | AO4: =SUM(V38:V52) -> 1000.006318 | AP4: =AN4-AO4 -> -0.006318393387 | AQ4: =ABS(AP4) -> 0.006318393387 | AU4: 1 | AV4: 1153.148066 | AW4: 1341.650976
A5: O3 | B5: 57 | C5: 57 | D5: 89 | E5: 37 | F5: 85 | H5: O3 | I5: 7 | J5: 7 | K5: 3 | L5: 10 | M5: 1 | O5: -7.476964 | P5: 0.6634149 | Q5: 6.715766 | R5: -2.6759198 | S5: 4.6000643 | U5: -6.2403331 | V5: =$I$4*$O5+$J$4*$P5+$K$4*$Q5+$L$4*$R5+$M$4*$S5 -> -7.307918 | W5: -49.7066794 | X5: -76.61239 | Y5: 46.5703476 | Z5: 43.2029561 | AA5: -7.2678007 | AB5: -18.0353587 | AC5: 107.7680259 | AD5: 56.1513054 | AE5: 0.0575933 | AF5: 88.3585739 | AG5: 21.0820486 | AH5: -19.6889117 | AI5: 34.9933751 | AK5: 2.829634 | AM5: O3 | AN5: 1000 | AO5: =SUM(W38:W52) -> 999.9947763 | AP5: 0.005223710079 | AQ5: =ABS(AP5) -> 0.005223710079 | AU5: 2 | AV5: 1115.930217 | AW5: 1311.457393
A6: O4 | B6: 13 | C6: 88 | D6: 62 | E6: 44 | F6: 75 | H6: O4 | I6: 14 | J6: 4 | K6: 6 | L6: 9 | M6: 2 | O6: -4.1916866 | P6: -0.89118344 | Q6: -4.5704293 | R6: -0.7108512 | S6: -2.0134892 | U6: -73.83061812 | V6: -107.7312948 | W6: -58.41337938 | X6: -100.0955612 | Y6: -92.29611214 | Z6: -76.8593314 | AA6: -146.6067832 | AB6: -91.69054784 | AC6: -110.8555859 | AD6: -73.04278442 | AE6: -110.2130859 | AF6: -133.9009554 | AG6: -73.62385554 | AH6: -80.0076207 | AI6: -148.0270218 | AK6: -38.577557 | AM6: O4 | AN6: 1000 | AO6: =SUM(X38:X52) -> 1000.000796 | AP6: -0.0007963495329 | AQ6: 0.0007963495329 | AU6: 3 | AV6: 1078.712368 | AW6: 1281.263809
A7: O5 | B7: 76 | C7: 25 | D7: 28 | E7: 1 | F7: 33 | H7: O5 | I7: 3 | J7: 11 | K7: 9 | L7: 15 | M7: 9 | O7: -2.4329824 | P7: 6.2515464 | Q7: -7.302504 | R7: 7.0256186 | S7: 0.66273147 | U7: 135.9763201 | V7: -3.102e-05 | W7: 75.74135347 | X7: 11.68543834 | Y7: 107.0943894 | Z7: 63.89445821 | AA7: -17.96698085 | AB7: -31.69367212 | AC7: 49.2793503 | AD7: 32.79755504 | AE7: -0.66340858 | AF7: 18.47118885 | AG7: 3.81317549 | AH7: 12.17081784 | AI7: 9.79791456 | AK7: 2.4923496 | AM7: O5 | AN7: 1000 | AO7: =SUM(Y38:Y52) -> 999.9985428 | AP7: 0.00145723715 | AQ7: 0.00145723715 | AU7: 4 | AV7: 1041.494519 | AW7: 1251.070225
A8: O6 | B8: 82 | C8: 33 | D8: 24 | E8: 33 | F8: 73 | H8: O6 | I8: 2 | J8: 10 | K8: =RANK(D8,D$3:D$17,D$1) -> 10 | L8: 11 | M8: 3 | O8: -0.905744 | P8: -0.7194918 | Q8: -0.814196 | R8: -0.95791686 | S8: -0.9403124 | U8: =$I$3*$O8+$J$3*$P8+$K$3*$Q8+$L$3*$R8+$M$3*$S8 -> -36.35645886 | V8: -34.42861412 | W8: -24.3387196 | X8: -30.94543574 | Y8: -40.7909703 | Z8: -30.50638866 | AA8: -42.2957559 | AB8: -25.79925056 | AC8: -42.40807024 | AD8: -27.60738978 | AE8: -35.92213738 | AF8: -45.02554264 | AG8: -25.19310548 | AH8: -26.61650466 | AI8: -46.33004936 | AK8: -1359.8633 | AM8: O6 | AN8: 1000 | AO8: =SUM(Z38:Z52) -> 999.9988959 | AP8: 0.001104067739 | AQ8: 0.001104067739 | AU8: 5 | AV8: 1004.276908 | AW8: 1220.876641
A9: O7 | B9: 12 | C9: 19 | D9: 11 | E9: 69 | F9: 55 | H9: O7 | I9: 15 | J9: 12 | K9: 13 | L9: 5 | M9: 5 | O9: 5.6735206 | P9: 8.296306 | Q9: 4.1164727 | R9: -2.5904472 | S9: -11.924814 | U9: 2.3829878 | V9: -32.1287958 | W9: 72.3089183 | X9: 90.1496958 | Y9: -0.8518519 | Z9: 71.205467 | AA9: 165.5963201 | AB9: 34.7213544 | AC9: -13.4270357 | AD9: -41.2222157 | AE9: -0.5855065 | AF9: 21.7001224 | AG9: -38.7180577 | AH9: -37.6814859 | AI9: 139.2162598 | AK9: 6.411727 | AM9: O7 | AN9: 1000 | AO9: =SUM(AA38:AA52) -> 999.9997004 | AP9: 0.0002995976715 | AQ9: 0.0002995976715 | AU9: 6 | AV9: 999.9993338 | AW9: 1190.683057
A10: O8 | B10: 39 | C10: 97 | D10: 57 | E10: 56 | F10: 67 | H10: O8 | I10: 10 | J10: 1 | K10: 8 | L10: 6 | M10: 4 | O10: -0.38980198 | P10: -0.83012384 | Q10: -0.55552363 | R10: -0.7765866 | S10: -0.88186675 | U10: -31.60258916 | V10: -26.169571 | W10: -18.85378438 | X10: -20.86387776 | Y10: -34.8860806 | Z10: -25.82413151 | AA10: -31.32258972 | AB10: -17.35931928 | AC10: -35.88465089 | AD10: -23.88997759 | AE10: -25.83592789 | AF10: -37.74078081 | AG10: -19.0535592 | AH10: -20.35295221 | AI10: -36.62126578 | AK10: -99.761505 | AM10: O8 | AN10: 1000 | AO10: =SUM(AB38:AB52) -> 999.9977032 | AP10: 0.002296775848 | AQ10: 0.002296775848 | AU10: 7 | AV10: 1020.315616 | AW10: 1160.489472
A11: O9 | B11: 90 | C11: 37 | D11: 1 | E11: 6 | F11: 29 | H11: O9 | I11: =RANK(B11,B$3:B$17,B$1) -> 1 | J11: 9 | K11: =RANK(D11,D$3:D$17,D$1) -> 15 | L11: 14 | M11: 10 | O11: 1.982447 | P11: -12.039665 | Q11: 5.908791 | R11: 6.990215 | S11: 0.57335806 | U11: -50.1774354 | V11: -0.82357216 | W11: 17.80135506 | X11: 79.10699512 | Y11: 36.70359254 | Z11: 21.26859318 | AA11: -0.1071267 | AB11: 99.28985524 | AC11: 85.8539176 | AD11: -30.99263528 | AE11: 165.1120024 | AF11: -45.2290111 | AG11: 99.16933342 | AH11: -18.61210528 | AI11: -27.55438252 | AK11: 5.3963957 | AM11: O9 | AN11: 1000 | AO11: =SUM(AC38:AC52) -> 999.997312 | AP11: 0.002687961864 | AQ11: 0.002687961864 | AU11: 8 | AV11: 1040.631904 | AW11: 1130.295888
A12: O10 | B12: 74 | C12: 47 | D12: 82 | E12: 76 | F12: 24 | H12: O10 | I12: 4 | J12: 8 | K12: 5 | L12: 3 | M12: 12 | O12: -0.5899617 | P12: -0.55767375 | Q12: -0.5029801 | R12: -1.122154 | S12: -0.5404773 | U12: -29.54395615 | V12: -22.8384552 | W12: -21.30440575 | X12: -24.68838 | Y12: -34.12772295 | Z12: -25.7515878 | AA12: -30.3934083 | AB12: -19.37596475 | AC12: -34.26865595 | AD12: -19.1883269 | AE12: -29.23097595 | AF12: -31.1586628 | AG12: -19.78891605 | AH12: -17.38880915 | AI12: -33.54311045 | AK12: -69.07631 | AM12: O10 | AN12: 1000 | AO12: =SUM(AD38:AD52) -> 1000.000006 | AP12: -6.05750688e-06 | AQ12: 6.05750688e-06 | AU12: 9 | AV12: 1060.948192 | AW12: 1100.102305
A13: O11 | B13: 43 | C13: 97 | D13: 15 | E13: 28 | F13: 46 | H13: O11 | I13: 9 | J13: 1 | K13: 11 | L13: 13 | M13: 6 | O13: -2.7926247 | P13: 6.6607904 | Q13: -7.227848 | R13: 7.131489 | S13: 0.7848492 | U13: 141.673702 | V13: 9.61e-05 | W13: 77.4933551 | X13: 9.9324272 | Y13: 113.8761661 | Z13: 69.5451012 | AA13: -16.3402187 | AB13: -33.1599098 | AC13: 56.4261069 | AD13: 36.7892418 | AE13: -0.5607077 | AF13: 24.474586 | AG13: 4.6485873 | AH13: 11.9069117 | AI13: 14.2782152 | AK13: 3.0963051 | AM13: O11 | AN13: 1000 | AO13: =SUM(AE38:AE52) -> 999.9993741 | AP13: 0.0006259408918 | AQ13: 0.0006259408918 | AU13: 10 | AV13: 1081.264485 | AW13: 1069.908726
A14: O12 | B14: 49 | C14: 9 | D14: 13 | E14: 72 | F14: 7 | H14: O12 | I14: 8 | J14: 14 | K14: 12 | L14: 4 | M14: 15 | O14: 2.0001087 | P14: -9.2347145 | Q14: -0.9558571 | R14: -3.5479674 | S14: 13.392021 | U14: -15.0697819 | V14: 147.1620569 | W14: -75.5974649 | X14: -19.8201434 | Y14: -36.8755693 | Z14: -96.757077 | AA14: -44.0208178 | AB14: 35.3997953 | AC14: -11.2015119 | AD14: 79.4037831 | AE14: 32.4803855 | AF14: 61.9330268 | AG14: 59.4352371 | AH14: 132.0280507 | AI14: -42.0530489 | AK14: 6.781507 | AM14: O12 | AN14: 1000 | AO14: =SUM(AF38:AF52) -> 999.9970857 | AP14: 0.002914340496 | AQ14: 0.002914340496 | AU14: 11 | AV14: 1101.580809 | AW14: 1039.715181
A15: O13 | B15: 72 | C15: 97 | D15: 60 | E15: 49 | F15: 38 | H15: O13 | I15: 5 | J15: 1 | K15: 7 | L15: 8 | M15: 7 | O15: -0.9448645 | P15: -0.5658325 | Q15: -0.9740114 | R15: -0.5744854 | S15: -0.21316202 | U15: -23.4239919 | V15: -23.70751818 | W15: -19.45492922 | X15: -26.93219404 | Y15: -28.36059278 | Z15: -24.24699346 | AA15: -37.5633428 | AB15: -22.10612918 | AC15: -30.8219438 | AD15: -17.45757544 | AE15: -28.53102072 | AF15: -32.6640797 | AG15: -18.19625214 | AH15: -17.32911304 | AI15: -38.61422966 | AK15: -208.70192 | AM15: O13 | AN15: 1000 | AO15: =SUM(AG38:AG52) -> 999.996571 | AP15: 0.003429031611 | AQ15: 0.003429031611 | AU15: 12 | AV15: 1121.897369 | AW15: 1009.521878
A16: O14 | B16: 38 | C16: 80 | D16: 96 | E16: 89 | F16: 24 | H16: O14 | I16: 11 | J16: 5 | K16: 1 | L16: 1 | M16: 12 | O16: -2.588714 | P16: 6.3513284 | Q16: -7.03062 | R16: 6.8820267 | S16: 0.7074115 | U16: 135.7501539 | V16: 2.28e-05 | W16: 74.7741193 | X16: 10.3326609 | Y16: 108.4199944 | Z16: 65.8541842 | AA16: -16.0656382 | AB16: -31.6589654 | AC16: 52.5364304 | AD16: 34.4376893 | AE16: -0.5731015 | AF16: 21.9807249 | AG16: 4.2015125 | AH16: 11.6211327 | AI16: 12.7281302 | AK16: 3.047692 | AM16: O14 | AN16: 1000 | AO16: =SUM(AH38:AH52) -> 999.9912098 | AP16: 0.008790173293 | AQ16: 0.008790173293 | AU16: 13 | AV16: 1142.21567 | AW16: 1000.006318
A17: O15 | B17: 34 | C17: 7 | D17: 4 | E17: 56 | F17: 34 | H17: O15 | I17: 12 | J17: 15 | K17: 14 | L17: 6 | M17: 8 | O17: -0.22207084 | P17: -0.8015395 | Q17: -0.7452368 | R17: -0.81970847 | S17: -0.86160207 | U17: -30.87572601 | V17: -24.37895104 | W17: -18.45966955 | X17: -19.88715093 | Y17: -36.2403239 | Z17: -27.51350406 | AA17: -31.0441677 | AB17: -17.3488014 | AC17: -38.70641762 | AD17: -23.82513361 | AE17: -26.82360439 | AF17: -38.14382625 | AG17: -19.71743355 | AH17: -18.35464685 | AI17: -36.93232516 | AK17: -164.7455 | AM17: O15 | AN17: 1000 | AO17: =SUM(AI38:AI52) -> 999.9977853 | AP17: 0.002214733438 | AQ17: 0.002214733438 | AU17: 14 | AV17: 1168.850589 | AW17: 1019.818477
AN18: szum | AO18: szum | AP18: hiba | AU18: 15 | AV18: 1202.730628 | AW18: 1044.079707
U19: Activation | AK19: Szórás | AN19: =SUM(AN3:AN17) -> 15000 | AO19: =SUM(AO3:AO17) -> 14999.97541 | AP19: =SUMSQ(AP3:AP17) -> 0.0001870354853 | AQ19: =SUM(AQ3:AQ17)/15 -> 0.002588704591 | AU19: 16 | AV19: 1236.610666 | AW19: 1068.341483
O20: activation weight | U20: =IF(U3<0, $O$21*(EXP(U3)-1), U3) -> 89.8121968 | V20: =IF(V3<0, $O$21*(EXP(V3)-1), V3) -> -0.001 | W20: 94.0035031 | X20: 42.3254912 | Y20: 121.3396327 | Z20: 116.6344672 | AA20: 27.4595607 | AB20: 0.2244812 | AC20: 98.1346459 | AD20: -0.0009999874202 | AE20: 48.8555965 | AF20: -0.0009641083859 | AG20: 15.7615439 | AH20: -0.001 | AI20: 43.5223922 | AK20: =STDEV(U20:AI20) -> 45.86352672 | AP20: hiba2 | AU20: 32 | AV20: 1786.069167 | AW20: 999.9993338
O21: 0.001 | U21: =IF(U4<0, $O$21*(EXP(U4)-1), U4) -> -0.001 | V21: -0.001 | W21: =IF(W4<0, $O$21*(EXP(W4)-1), W4) -> -0.001 | X21: -0.001 | Y21: -0.001 | Z21: -0.001 | AA21: -0.001 | AB21: -0.001 | AC21: -0.001 | AD21: -0.0009999999998 | AE21: -0.001 | AF21: -0.001 | AG21: -0.001 | AH21: -0.0009999999866 | AI21: -0.001 | AK21: =STDEV(U21:AI21) -> 3.463692792e-12 | AP21: =ABS(AN19-AO19) -> 0.02458896801
O22: exp | U22: -0.0009980507939 | V22: -0.000999329789 | W22: -0.001 | X22: -0.001 | Y22: 46.5703476 | Z22: 43.2029561 | AA22: -0.0009993023554 | AB22: -0.0009999999853 | AC22: 107.7680259 | AD22: 56.1513054 | AE22: 0.0575933 | AF22: 88.3585739 | AG22: 21.0820486 | AH22: -0.0009999999972 | AI22: 34.9933751 | AK22: 35.5655988 | AP22: hiba3
U23: -0.001 | V23: -0.001 | W23: -0.001 | X23: -0.001 | Y23: =IF(Y6<0, $O$21*(EXP(Y6)-1), Y6) -> -0.001 | Z23: -0.001 | AA23: -0.001 | AB23: -0.001 | AC23: -0.001 | AD23: -0.001 | AE23: -0.001 | AF23: -0.001 | AG23: -0.001 | AH23: -0.001 | AI23: -0.001 | AK23: 4.489023472e-19 | AP23: =AP19*AP21 -> 4.599009563e-06
U24: 135.9763201 | V24: -3.101951889e-08 | W24: 75.74135347 | X24: 11.68543834 | Y24: 107.0943894 | Z24: 63.89445821 | AA24: -0.0009999999843 | AB24: -0.001 | AC24: 49.2793503 | AD24: 32.79755504 | AE24: -0.0004849073955 | AF24: 18.47118885 | AG24: 3.81317549 | AH24: 12.17081784 | AI24: 9.79791456 | AK24: 43.04646486 | AN24: szórás | AO24: szórás
U25: -0.001 | V25: -0.001 | W25: -0.001 | X25: -0.001 | Y25: -0.001 | Z25: -0.001 | AA25: -0.001 | AB25: -0.001 | AC25: -0.001 | AD25: -0.001 | AE25: -0.001 | AF25: -0.001 | AG25: -0.001 | AH25: -0.001 | AI25: -0.001 | AK25: 7.299461773e-15 | AN25: =STDEV(AN3:AN17) -> 0 | AO25: =STDEV(AO3:AO17) -> 0.00323736734
U26: 2.3829878 | V26: -0.001 | W26: 72.3089183 | X26: 90.1496958 | Y26: -0.0005733758653 | Z26: 71.205467 | AA26: 165.5963201 | AB26: 34.7213544 | AC26: -0.0009999985253 | AD26: -0.001 | AE26: -0.0004431762409 | AF26: 21.7001224 | AG26: -0.001 | AH26: -0.001 | AI26: 139.2162598 | AK26: 55.50335688
U27: -0.001 | V27: -0.001 | W27: -0.0009999999935 | X27: -0.0009999999991 | Y27: -0.001 | Z27: -0.001 | AA27: -0.001 | AB27: -0.0009999999711 | AC27: -0.001 | AD27: -0.001 | AE27: -0.001 | AF27: -0.001 | AG27: -0.0009999999947 | AH27: -0.0009999999986 | AI27: -0.001 | AK27: 7.487149945e-12
U28: -0.001 | V28: -0.0005611388311 | W28: 17.80135506 | X28: 79.10699512 | Y28: 36.70359254 | Z28: 21.26859318 | AA28: -0.000101588163 | AB28: 99.28985524 | AC28: 85.8539176 | AD28: -0.001 | AE28: 165.1120024 | AF28: -0.001 | AG28: 99.16933342 | AH28: -0.0009999999917 | AI28: -0.001 | AK28: 52.34158482
U29: -0.001 | V29: -0.0009999999999 | W29: -0.0009999999994 | X29: -0.001 | Y29: -0.001 | Z29: -0.001 | AA29: -0.001 | AB29: -0.0009999999962 | AC29: -0.001 | AD29: -0.0009999999954 | AE29: -0.001 | AF29: -0.001 | AG29: -0.0009999999975 | AH29: -0.0009999999719 | AI29: -0.001 | AK29: 7.19657377e-12
U30: 141.673702 | V30: 9.61e-05 | W30: 77.4933551 | X30: 9.9324272 | Y30: 113.8761661 | Z30: 69.5451012 | AA30: -0.0009999999199 | AB30: -0.001 | AC30: 56.4261069 | AD30: 36.7892418 | AE30: -0.0004291950378 | AF30: 24.474586 | AG30: 4.6485873 | AH30: 11.9069117 | AI30: 14.2782152 | AK30: 45.11784342
U31: -0.0009999997147 | V31: 147.1620569 | W31: -0.001 | X31: -0.0009999999975 | Y31: -0.001 | Z31: -0.001 | AA31: -0.001 | AB31: 35.3997953 | AC31: -0.0009999863465 | AD31: 79.4037831 | AE31: 32.4803855 | AF31: 61.9330268 | AG31: 59.4352371 | AH31: 132.0280507 | AI31: -0.001 | AK31: 50.04372529
U32: -0.0009999999999 | V32: -0.0009999999999 | W32: -0.0009999999964 | X32: -0.001 | Y32: -0.001 | Z32: -0.001 | AA32: -0.001 | AB32: -0.0009999999997 | AC32: -0.001 | AD32: -0.0009999999738 | AE32: -0.001 | AF32: -0.001 | AG32: -0.0009999999875 | AH32: -0.0009999999702 | AI32: -0.001 | AK32: 9.97528325e-12
U33: 135.7501539 | V33: 2.28e-05 | W33: 74.7741193 | X33: 10.3326609 | Y33: 108.4199944 | Z33: 65.8541842 | AA33: -0.0009999998946 | AB33: -0.001 | AC33: 52.5364304 | AD33: 34.4376893 | AE33: -0.0004362258213 | AF33: 21.9807249 | AG33: 4.2015125 | AH33: 11.6211327 | AI33: 12.7281302 | AK33: 43.13459826
U34: -0.001 | V34: -0.001 | W34: -0.0009999999904 | X34: -0.0009999999977 | Y34: -0.001 | Z34: -0.001 | AA34: -0.001 | AB34: -0.0009999999708 | AC34: -0.001 | AD34: -0.001 | AE34: -0.001 | AF34: -0.001 | AG34: -0.0009999999973 | AH34: -0.0009999999893 | AI34: -0.001 | AK34: 7.899548715e-12
U37: Y0 - szorzatok | AK37: Szórás
U38: =U20*$AK3 -> -208.5903 | V38: =V20*$AK3 -> 0.0023225164 | W38: =W20*$AK3 -> -218.3246776 | X38: -98.30164745 | Y38: -281.8132869 | Z38: -270.8854629 | AA38: -63.77528006 | AB38: =AB20*$AK3 -> -0.5213612685 | AC38: -227.9193245 | AD38: 0.002322487183 | AE38: -113.4679241 | AF38: 0.002239157538 | AG38: -36.6064442 | AH38: 0.0023225164 | AI38: =AI20*$AK3 -> -101.0814697 | AK38: =STDEV(U38:AI38) -> 106.518793
U39: =U21*$AK4 -> 0.09465141 | V39: =V21*$AK4 -> 0.09465141 | W39: 0.09465141 | X39: 0.09465141 | Y39: 0.09465141 | Z39: 0.09465141 | AA39: =AA21*$AK4 -> 0.09465141 | AB39: 0.09465141 | AC39: 0.09465141 | AD39: 0.09465140998 | AE39: 0.09465141 | AF39: 0.09465141 | AG39: 0.09465141 | AH39: 0.09465140873 | AI39: 0.09465141 | AK39: =STDEV(U39:AI39) -> 3.278434074e-10
U40: -0.00282411846 | V40: -0.002827737548 | W40: -0.002829634 | X40: -0.002829634 | Y40: 131.777039 | Z40: 122.2485535 | AA40: -0.002827659921 | AB40: -0.002829633958 | AC40: 304.9440702 | AD40: 158.8876429 | AE40: 0.1629679599 | AF40: 250.0224249 | AG40: 59.65448151 | AH40: -0.002829633992 | AI40: 99.01844396 | AK40: 100.6376276
U41: 0.038577557 | V41: 0.038577557 | W41: 0.038577557 | X41: 0.038577557 | Y41: 0.038577557 | Z41: 0.038577557 | AA41: 0.038577557 | AB41: 0.038577557 | AC41: 0.038577557 | AD41: 0.038577557 | AE41: 0.038577557 | AF41: 0.038577557 | AG41: 0.038577557 | AH41: 0.038577557 | AI41: 0.038577557 | AK41: 7.182437555e-18
U42: 338.900527 | V42: -7.731148549e-08 | W42: =W24*$AK7 -> 188.773932 | X42: 29.12419757 | Y42: 266.9166587 | Z42: 159.2473274 | AA42: -0.002492349561 | AB42: -0.0024923496 | AC42: 122.821369 | AD42: 81.74297318 | AE42: -0.001208558753 | AF42: 46.03666014 | AG42: 9.503766407 | AH42: 30.33393298 | AI42: 24.41982843 | AK42: 107.2868395
U43: 1.3598633 | V43: 1.3598633 | W43: =W25*$AK8 -> 1.3598633 | X43: 1.3598633 | Y43: 1.3598633 | Z43: 1.3598633 | AA43: 1.3598633 | AB43: 1.3598633 | AC43: 1.3598633 | AD43: 1.3598633 | AE43: 1.3598633 | AF43: 1.3598633 | AG43: 1.3598633 | AH43: =AH25*$AK8 -> 1.3598633 | AI43: 1.3598633 | AK43: 9.926279734e-12
U44: 15.27906722 | V44: -0.006411727 | W44: 463.6250438 | X44: 578.0152386 | Y44: -0.003676329517 | Z44: 456.5500153 | AA44: 1061.758397 | AB44: 222.6238455 | AC44: -0.006411717544 | AD44: -0.006411727 | AE44: -0.002841525069 | AF44: 139.1352607 | AG44: -0.006411727 | AH44: -0.006411727 | AI44: 892.6166518 | AK44: 355.8723719
U45: 0.099761505 | V45: 0.099761505 | W45: 0.09976150435 | X45: 0.09976150491 | Y45: 0.099761505 | Z45: 0.099761505 | AA45: 0.099761505 | AB45: 0.09976150212 | AC45: 0.099761505 | AD45: 0.099761505 | AE45: 0.099761505 | AF45: 0.099761505 | AG45: 0.09976150447 | AH45: 0.09976150486 | AI45: 0.099761505 | AK45: 7.469293482e-10
U46: -0.0053963957 | V46: -0.003028127176 | W46: 96.0631559 | X46: 426.8926483 | Y46: 198.067109 | Z46: 114.7737448 | AA46: -0.000548209926 | AB46: 535.8073479 | AC46: 463.3017118 | AD46: -0.0053963957 | AE46: 891.0096996 | AF46: -0.0053963957 | AG46: 535.1569644 | AH46: -0.005396395655 | AI46: -0.0053963957 | AK46: 282.4559033
U47: 0.06907631 | V47: 0.06907630999 | W47: 0.06907630996 | X47: 0.06907631 | Y47: 0.06907631 | Z47: 0.06907631 | AA47: 0.06907631 | AB47: 0.06907630973 | AC47: 0.06907631 | AD47: 0.06907630968 | AE47: 0.06907631 | AF47: 0.06907631 | AG47: 0.06907630982 | AH47: =AH29*$AK12 -> 0.06907630806 | AI47: 0.06907631 | AK47: 4.971127618e-10
U48: 438.665006 | V48: 0.0002975549201 | W48: 239.9430706 | X48: 30.75382499 | Y48: 352.5953539 | Z48: 215.3328515 | AA48: -0.003096304852 | AB48: -0.0030963051 | AC48: 174.7124426 | AD48: 113.910717 | AE48: -0.001328918784 | AF48: 75.78078545 | AG48: 14.39344456 | AH48: 36.86743142 | AI48: 44.20971054 | AK48: 139.6986087
U49: -0.006781505065 | V49: 997.980519 | W49: -0.006781507 | X49: -0.006781506983 | Y49: -0.006781507 | Z49: -0.006781507 | AA49: -0.006781507 | AB49: 240.0639596 | AC49: -0.006781414408 | AD49: 538.4773109 | AE49: 220.2659616 | AF49: 419.9992548 | AG49: 403.0604764 | AH49: =AH31*$AK14 -> 895.34915 | AI49: -0.006781507 | AK49: 339.3718734
U50: 0.20870192 | V50: 0.20870192 | W50: 0.2087019193 | X50: 0.20870192 | Y50: 0.20870192 | Z50: 0.20870192 | AA50: 0.20870192 | AB50: 0.2087019199 | AC50: 0.20870192 | AD50: 0.2087019145 | AE50: 0.20870192 | AF50: 0.20870192 | AG50: 0.2087019174 | AH50: 0.2087019138 | AI50: 0.20870192 | AK50: 2.08186077e-09
U51: 413.724658 | V51: 6.948737761e-05 | W51: 227.8884852 | X51: 31.49076796 | Y51: 330.4307496 | Z51: 200.7032704 | AA51: -0.003047691679 | AB51: -0.003047692 | AC51: 160.1148586 | AD51: 104.9554702 | AE51: -0.001329481946 | AF51: 66.99047943 | AG51: 12.80491603 | AH51: 35.41763316 | AI51: 38.79142059 | AK51: 131.46097
U52: 0.1647455 | V52: 0.1647455 | W52: 0.1647454984 | X52: 0.1647454996 | Y52: 0.1647455 | Z52: 0.1647455 | AA52: 0.1647455 | AB52: 0.1647454952 | AC52: 0.1647455 | AD52: 0.1647455 | AE52: 0.1647455 | AF52: 0.1647455 | AG52: 0.1647454995 | AH52: 0.1647454982 | AI52: 0.1647455 | AK52: 1.301415107e-09

Sheet 8 - ceteris
A1: irány | B1: 0 | C1: 0 | D1: 0 | E1: 0 | F1: 0 | M1: súlyok | U1: 2. layer vektor | AK1: 2 layer súlyok | AO1: JÓ! - kérdés: ceteris paribus alakzatok alakulása attribútumonként | AS1: Futtat | AY1: 1 | AZ1: 2 | BA1: 3 | BB1: 4 | BC1: 5 | BD1: 6 | BE1: 7 | BF1: 8 | BG1: 9 | BH1: 10 | BI1: 11 | BJ1: 12 | BK1: 13 | BL1: 14 | BM1: 15 | BO1: Ranking | BP1: irány miért 1? | CE1: O2 - O1 | CF1: O3 - O2 | CG1: O4 - O3 | CH1: O5 - O4 | CI1: O6 - O5 | CJ1: O7 - O6 | CK1: O8 - O7 | CL1: O9 - O8 | CM1: O10 - O9 | CN1: O11 - O10 | CO1: O12 - O11 | CP1: O13 - 12 | CQ1: O14 - O13 | CR1: O15 - O14 | CS1: Szórás: miért NULLA? Lehetne más is?
A2: rnd(1-100) | B2: A1 | C2: A2 | D2: A3 | E2: A4 | F2: A5 | H2: rank = 0 | I2: =B2 -> A1 | J2: A2 | K2: A3 | L2: A4 | M2: A5 | O2: w1 | P2: w2 | Q2: w3 | R2: w4 | S2: w5 | T2: w6 | U2: O1 | V2: O2 | W2: O3 | X2: O8 | Y2: O5 | Z2: O6 | AA2: O7 | AB2: O8 | AC2: O9 | AD2: O10 | AE2: O11 | AF2: O12 | AG2: O13 | AH2: O14 | AI2: O15 | AK2: w6 | AN2: Y0 | AO2: Ybecslés | AP2: eltérés | AQ2: MAE | AT2: =AW2&AX2 -> A1 | AU2: O | AV2: 1 | AW2: A | AX2: 1 | AY2: 922.6530925 | AZ2: 962.2879526 | BA2: 1001.922813 | BB2: 1041.557673 | BC2: 1081.192533 | BD2: 1120.827393 | BE2: 1160.462253 | BF2: 1200.097113 | BG2: 1239.731973 | BH2: 1279.366833 | BI2: 1319.001693 | BJ2: 1358.636553 | BK2: 1398.271413 | BL2: 1437.906273 | BM2: 1477.541133 | BO2: =RANK(AY2,$AY2:$BM2, 1) -> 1 | BP2: =RANK(AZ2,$AY2:$BM2, 1) -> 2 | BQ2: 3 | BR2: 4 | BS2: 5 | BT2: 6 | BU2: =RANK(BE2,$AY2:$BM2, 1) -> 7 | BV2: =RANK(BF2,$AY2:$BM2, 1) -> 8 | BW2: =RANK(BG2,$AY2:$BM2, 1) -> 9 | BX2: =RANK(BH2,$AY2:$BM2, 1) -> 10 | BY2: =RANK(BI2,$AY2:$BM2, 1) -> 11 | BZ2: =RANK(BJ2,$AY2:$BM2, 1) -> 12 | CA2: =RANK(BK2,$AY2:$BM2, 1) -> 13 | CB2: =RANK(BL2,$AY2:$BM2, 1) -> 14 | CC2: =RANK(BM2,$AY2:$BM2, 1) -> 15 | CE2: =AZ2-AY2 -> 39.63486005 | CF2: =BA2-AZ2 -> 39.63486005 | CG2: 39.63486005 | CH2: 39.63486005 | CI2: 39.63486005 | CJ2: 39.63486005 | CK2: 39.63486005 | CL2: 39.63486005 | CM2: =BH2-BG2 -> 39.63486005 | CN2: 39.63486005 | CO2: 39.63486005 | CP2: 39.63486005 | CQ2: 39.63486005 | CR2: 39.63486005 | CS2: =STDEV(CE2:CR2) -> 1.761758053e-13
A3: O1 | B3: 70 | C3: 10 | D3: 93 | E3: 33 | F3: 29 | H3: =A3 -> O1 | I3: 6 | J3: 13 | K3: 2 | L3: 11 | M3: 10 | O3: 12.69248596 | P3: 0.4254838251 | Q3: 0.3874125823 | R3: 2.524412899 | S3: 2.885310437 | T3: 1.070896124 | U3: =$I$3*$O3+$J$3*$P3+$K$3*$Q3+$L$3*$R3+$M$3*$S3 -> 139.0826769 | V3: =$I$4*$O3+$J$4*$P3+$K$4*$Q3+$L$4*$R3+$M$4*$S3 -> 214.5480427 | W3: =$I$5*$O3+$J$5*$P3+$K$5*$Q3+$L$5*$R3+$M$5*$S3 -> 121.1174657 | X3: =$I$6*$O3+$J$6*$P3+$K$6*$Q3+$L$6*$R3+$M$6*$S3 -> 210.2115512 | Y3: =$I$7*$O3+$J$7*$P3+$K$7*$Q3+$L$7*$R3+$M$7*$S3 -> 110.0784806 | Z3: =$I$8*$O3+$J$8*$P3+$K$8*$Q3+$L$8*$R3+$M$8*$S3 -> 69.93840919 | AA3: =$I$9*$O3+$J$9*$P3+$K$9*$Q3+$L$9*$R3+$M$9*$S3 -> 227.5780755 | AB3: =$I$10*$O3+$J$10*$P3+$K$10*$Q3+$L$10*$R3+$M$10*$S3 -> 157.1373632 | AC3: =$I$11*$O3+$J$11*$P3+$K$11*$Q3+$L$11*$R3+$M$11*$S3 -> 86.52791408 | AD3: =$I$12*$O3+$J$12*$P3+$K$12*$Q3+$L$12*$R3+$M$12*$S3 -> 98.30784129 | AE3: =$I$13*$O3+$J$13*$P3+$K$13*$Q3+$L$13*$R3+$M$13*$S3 -> 169.0486262 | AF3: =$I$14*$O3+$J$14*$P3+$K$14*$Q3+$L$14*$R3+$M$14*$S3 -> 165.5229204 | AG3: =$I$15*$O3+$J$15*$P3+$K$15*$Q3+$L$15*$R3+$M$15*$S3 -> 106.9922779 | AH3: =$I$16*$O3+$J$16*$P3+$K$16*$Q3+$L$16*$R3+$M$16*$S3 -> 179.2803154 | AI3: =$I$17*$O3+$J$17*$P3+$K$17*$Q3+$L$17*$R3+$M$17*$S3 -> 202.3448259 | AK3: =T3 -> 1.070896124 | AM3: O1 | AN3: 1000 | AO3: =SUM(U38:U52) -> 1120.827393 | AP3: =AN3-AO3 -> -120.8273928 | AQ3: =ABS(AP3) -> 120.8273928 | AT3: =AW3&AX3 -> A2 | AU3: O | AV3: 1 | AW3: A | AX3: 2 | AY3: 1094.391727 | AZ3: 1096.594699 | BA3: 1098.797671 | BB3: 1101.000644 | BC3: 1103.203616 | BD3: 1105.406588 | BE3: 1107.60956 | BF3: 1109.812532 | BG3: 1112.015504 | BH3: 1114.218476 | BI3: 1116.421449 | BJ3: 1118.624421 | BK3: 1120.827393 | BL3: 1123.030365 | BM3: 1125.233337 | BO3: =RANK(AY3,$AY3:$BM3, 1) -> 1 | BP3: =RANK(AZ3,$AY3:$BM3, 1) -> 2 | BQ3: =RANK(BA3,$AY3:$BM3, 1) -> 3 | BR3: =RANK(BB3,$AY3:$BM3, 1) -> 4 | BS3: =RANK(BC3,$AY3:$BM3, 1) -> 5 | BT3: =RANK(BD3,$AY3:$BM3, 1) -> 6 | BU3: =RANK(BE3,$AY3:$BM3, 1) -> 7 | BV3: =RANK(BF3,$AY3:$BM3, 1) -> 8 | BW3: =RANK(BG3,$AY3:$BM3, 1) -> 9 | BX3: =RANK(BH3,$AY3:$BM3, 1) -> 10 | BY3: =RANK(BI3,$AY3:$BM3, 1) -> 11 | BZ3: =RANK(BJ3,$AY3:$BM3, 1) -> 12 | CA3: =RANK(BK3,$AY3:$BM3, 1) -> 13 | CB3: =RANK(BL3,$AY3:$BM3, 1) -> 14 | CC3: =RANK(BM3,$AY3:$BM3, 1) -> 15 | CE3: =AZ3-AY3 -> 2.202972132 | CF3: =BA3-AZ3 -> 2.202972132 | CG3: =BB3-BA3 -> 2.202972132 | CH3: =BC3-BB3 -> 2.202972132 | CI3: =BD3-BC3 -> 2.202972132 | CJ3: =BE3-BD3 -> 2.202972132 | CK3: =BF3-BE3 -> 2.202972132 | CL3: =BG3-BF3 -> 2.202972132 | CM3: =BH3-BG3 -> 2.202972132 | CN3: =BI3-BH3 -> 2.202972132 | CO3: =BJ3-BI3 -> 2.202972132 | CP3: =BK3-BJ3 -> 2.202972132 | CQ3: =BL3-BK3 -> 2.202972132 | CR3: =BM3-BL3 -> 2.202972132 | CS3: =STDEV(CE3:CR3) -> 1.914253144e-13
A4: O2 | B4: 17 | C4: 74 | D4: 84 | E4: 78 | F4: 23 | H4: =A4 -> O2 | I4: 13 | J4: 6 | K4: 4 | L4: 2 | M4: 14 | O4: 0 | P4: 0 | Q4: 0 | R4: 0 | S4: 0 | T4: 0 | U4: 0 | V4: =$I$4*$O4+$J$4*$P4+$K$4*$Q4+$L$4*$R4+$M$4*$S4 -> 0 | W4: =$I$5*$O4+$J$5*$P4+$K$5*$Q4+$L$5*$R4+$M$5*$S4 -> 0 | X4: =$I$6*$O4+$J$6*$P4+$K$6*$Q4+$L$6*$R4+$M$6*$S4 -> 0 | Y4: =$I$7*$O4+$J$7*$P4+$K$7*$Q4+$L$7*$R4+$M$7*$S4 -> 0 | Z4: =$I$8*$O4+$J$8*$P4+$K$8*$Q4+$L$8*$R4+$M$8*$S4 -> 0 | AA4: =$I$9*$O4+$J$9*$P4+$K$9*$Q4+$L$9*$R4+$M$9*$S4 -> 0 | AB4: =$I$10*$O4+$J$10*$P4+$K$10*$Q4+$L$10*$R4+$M$10*$S4 -> 0 | AC4: =$I$11*$O4+$J$11*$P4+$K$11*$Q4+$L$11*$R4+$M$11*$S4 -> 0 | AD4: =$I$12*$O4+$J$12*$P4+$K$12*$Q4+$L$12*$R4+$M$12*$S4 -> 0 | AE4: =$I$13*$O4+$J$13*$P4+$K$13*$Q4+$L$13*$R4+$M$13*$S4 -> 0 | AF4: =$I$14*$O4+$J$14*$P4+$K$14*$Q4+$L$14*$R4+$M$14*$S4 -> 0 | AG4: =$I$15*$O4+$J$15*$P4+$K$15*$Q4+$L$15*$R4+$M$15*$S4 -> 0 | AH4: =$I$16*$O4+$J$16*$P4+$K$16*$Q4+$L$16*$R4+$M$16*$S4 -> 0 | AI4: =$I$17*$O4+$J$17*$P4+$K$17*$Q4+$L$17*$R4+$M$17*$S4 -> 0 | AK4: =T4 -> 0 | AM4: O2 | AN4: 1000 | AO4: =SUM(V38:V52) -> 1100.342443 | AP4: =AN4-AO4 -> -100.3424431 | AQ4: =ABS(AP4) -> 100.3424431 | AT4: A3 | AU4: O | AV4: 1 | AW4: A | AX4: 3 | AY4: 1119.884294 | AZ4: 1120.827393 | BA4: 1121.770492 | BB4: 1122.713591 | BC4: 1123.65669 | BD4: 1124.599789 | BE4: 1125.542888 | BF4: 1126.485987 | BG4: 1127.429086 | BH4: 1128.372185 | BI4: 1129.315284 | BJ4: 1130.258383 | BK4: 1131.201482 | BL4: 1132.144581 | BM4: 1133.087681 | BO4: 1 | BP4: 2 | BQ4: 3 | BR4: 4 | BS4: 5 | BT4: 6 | BU4: 7 | BV4: 8 | BW4: 9 | BX4: 10 | BY4: 11 | BZ4: 12 | CA4: 13 | CB4: 14 | CC4: 15 | CE4: 0.9430990575 | CF4: 0.9430990575 | CG4: 0.9430990575 | CH4: 0.9430990575 | CI4: 0.9430990575 | CJ4: 0.9430990575 | CK4: 0.9430990575 | CL4: 0.9430990575 | CM4: 0.9430990575 | CN4: 0.9430990575 | CO4: 0.9430990575 | CP4: 0.9430990575 | CQ4: 0.9430990575 | CR4: 0.9430990575 | CS4: 2.158372622e-13
A5: O3 | B5: 57 | C5: 57 | D5: 89 | E5: 37 | F5: 85 | H5: O3 | I5: 7 | J5: 7 | K5: 3 | L5: 10 | M5: 1 | O5: 0.102879919 | P5: 0.0337009759 | Q5: 1.152805292e-05 | R5: 6.574371999 | S5: 4.6915921 | T5: 5.330391045 | U5: 120.2894282 | V5: =$I$4*$O5+$J$4*$P5+$K$4*$Q5+$L$4*$R5+$M$4*$S5 -> 80.37072431 | W5: =$I$5*$O5+$J$5*$P5+$K$5*$Q5+$L$5*$R5+$M$5*$S5 -> 71.39141294 | X5: =$I$6*$O5+$J$6*$P5+$K$6*$Q5+$L$6*$R5+$M$6*$S5 -> 70.12772413 | Y5: =$I$7*$O5+$J$7*$P5+$K$7*$Q5+$L$7*$R5+$M$7*$S5 -> 141.5193631 | Z5: =$I$8*$O5+$J$8*$P5+$K$8*$Q5+$L$8*$R5+$M$8*$S5 -> 86.93575317 | AA5: =$I$9*$O5+$J$9*$P5+$K$9*$Q5+$L$9*$R5+$M$9*$S5 -> 58.27758086 | AB5: =$I$10*$O5+$J$10*$P5+$K$10*$Q5+$L$10*$R5+$M$10*$S5 -> 59.27519279 | AC5: =$I$11*$O5+$J$11*$P5+$K$11*$Q5+$L$11*$R5+$M$11*$S5 -> 139.3634906 | AD5: =$I$12*$O5+$J$12*$P5+$K$12*$Q5+$L$12*$R5+$M$12*$S5 -> 76.70340632 | AE5: =$I$13*$O5+$J$13*$P5+$K$13*$Q5+$L$13*$R5+$M$13*$S5 -> 114.5761356 | AF5: =$I$14*$O5+$J$14*$P5+$K$14*$Q5+$L$14*$R5+$M$14*$S5 -> 97.96636085 | AG5: =$I$15*$O5+$J$15*$P5+$K$15*$Q5+$L$15*$R5+$M$15*$S5 -> 85.98430196 | AH5: =$I$16*$O5+$J$16*$P5+$K$16*$Q5+$L$16*$R5+$M$16*$S5 -> 64.17367272 | AI5: =$I$17*$O5+$J$17*$P5+$K$17*$Q5+$L$17*$R5+$M$17*$S5 -> 78.71920386 | AK5: =T5 -> 5.330391045 | AM5: O3 | AN5: 1000 | AO5: =SUM(W38:W52) -> 796.3155759 | AP5: =AN5-AO5 -> 203.6844241 | AQ5: =ABS(AP5) -> 203.6844241 | AT5: A4 | AU5: O | AV5: 1 | AW5: A | AX5: 4 | AY5: 654.1171526 | AZ5: 700.7881766 | BA5: 747.4592006 | BB5: 794.1302246 | BC5: 840.8012487 | BD5: 887.4722727 | BE5: 934.1432967 | BF5: 980.8143207 | BG5: 1027.485345 | BH5: 1074.156369 | BI5: 1120.827393 | BJ5: 1167.498417 | BK5: 1214.169441 | BL5: 1260.840465 | BM5: 1307.511489 | BO5: 1 | BP5: 2 | BQ5: 3 | BR5: 4 | BS5: 5 | BT5: 6 | BU5: 7 | BV5: 8 | BW5: 9 | BX5: 10 | BY5: 11 | BZ5: 12 | CA5: 13 | CB5: 14 | CC5: 15 | CE5: 46.67102402 | CF5: 46.67102402 | CG5: 46.67102402 | CH5: 46.67102402 | CI5: 46.67102402 | CJ5: 46.67102402 | CK5: 46.67102402 | CL5: 46.67102402 | CM5: 46.67102402 | CN5: 46.67102402 | CO5: 46.67102402 | CP5: 46.67102402 | CQ5: 46.67102402 | CR5: 46.67102402 | CS5: 1.400161722e-13
A6: O4 | B6: 13 | C6: 88 | D6: 62 | E6: 44 | F6: 75 | H6: O4 | I6: 14 | J6: 4 | K6: 6 | L6: 9 | M6: 2 | O6: 0 | P6: 0 | Q6: 3.288987049 | R6: 0 | S6: 3.046140759 | T6: 5.341105595e-06 | U6: 37.03938169 | V6: =$I$4*$O6+$J$4*$P6+$K$4*$Q6+$L$4*$R6+$M$4*$S6 -> 55.80191882 | W6: 12.91310191 | X6: 25.82620381 | Y6: 57.01615027 | Z6: 42.02829277 | AA6: 57.98753543 | AB6: 38.49645943 | AC6: 79.79621332 | AD6: 52.99862435 | AE6: 54.45570209 | AF6: 85.15995597 | AG6: 44.34589465 | AH6: 39.84267616 | AI6: 70.41494476 | AK6: 5.341105595e-06 | AM6: O8 | AN6: 1000 | AO6: =SUM(X38:X52) -> 1057.220166 | AP6: -57.22016622 | AQ6: 57.22016622 | AT6: A5 | AU6: O | AV6: 1 | AW6: A | AX6: 5 | AY6: 815.6264736 | AZ6: 849.5376868 | BA6: 883.4489001 | BB6: 917.3601133 | BC6: 951.2713266 | BD6: 985.1825398 | BE6: 1019.093753 | BF6: 1053.004966 | BG6: 1086.91618 | BH6: 1120.827393 | BI6: 1154.738606 | BJ6: 1188.649819 | BK6: 1222.561033 | BL6: 1256.472246 | BM6: 1290.383459 | BO6: 1 | BP6: 2 | BQ6: =RANK(BA6,$AY6:$BM6, 1) -> 3 | BR6: 4 | BS6: 5 | BT6: 6 | BU6: 7 | BV6: 8 | BW6: 9 | BX6: 10 | BY6: 11 | BZ6: 12 | CA6: 13 | CB6: 14 | CC6: 15 | CE6: 33.91121324 | CF6: =BA6-AZ6 -> 33.91121324 | CG6: 33.91121324 | CH6: 33.91121324 | CI6: 33.91121324 | CJ6: 33.91121324 | CK6: 33.91121324 | CL6: 33.91121324 | CM6: 33.91121324 | CN6: 33.91121324 | CO6: 33.91121324 | CP6: 33.91121324 | CQ6: 33.91121324 | CR6: 33.91121324 | CS6: 1.015240623e-13
A7: O5 | B7: 76 | C7: 25 | D7: 28 | E7: 1 | F7: 33 | H7: O5 | I7: 3 | J7: 11 | K7: 9 | L7: 15 | M7: 9 | O7: 0 | P7: 0 | Q7: 0 | R7: 0 | S7: 0 | T7: 0 | U7: 0 | V7: 0 | W7: 0 | X7: 0 | Y7: 0 | Z7: 0 | AA7: 0 | AB7: 0 | AC7: 0 | AD7: 0 | AE7: 0 | AF7: 0 | AG7: 0 | AH7: 0 | AI7: 0 | AK7: 0 | AM7: O5 | AN7: 1000 | AO7: =SUM(Y38:Y52) -> 1156.891445 | AP7: -156.8914446 | AQ7: 156.8914446 | AT7: A1 | AU7: O | AV7: 2 | AW7: A | AX7: 1 | AY7: 624.7241225 | AZ7: 664.3589826 | BA7: 703.9938426 | BB7: 743.6287027 | BC7: 783.2635627 | BD7: 822.8984228 | BE7: 862.5332828 | BF7: 902.1681429 | BG7: 941.8030029 | BH7: 981.437863 | BI7: 1021.072723 | BJ7: 1060.707583 | BK7: 1100.342443 | BL7: 1139.977303 | BM7: 1179.612163 | BO7: 1 | BP7: 2 | BQ7: 3 | BR7: 4 | BS7: 5 | BT7: 6 | BU7: 7 | BV7: 8 | BW7: 9 | BX7: 10 | BY7: 11 | BZ7: 12 | CA7: 13 | CB7: 14 | CC7: 15 | CE7: 39.63486005 | CF7: 39.63486005 | CG7: 39.63486005 | CH7: 39.63486005 | CI7: 39.63486005 | CJ7: 39.63486005 | CK7: 39.63486005 | CL7: 39.63486005 | CM7: 39.63486005 | CN7: 39.63486005 | CO7: 39.63486005 | CP7: 39.63486005 | CQ7: 39.63486005 | CR7: 39.63486005 | CS7: 1.767699918e-13
A8: O6 | B8: 82 | C8: 33 | D8: 24 | E8: 33 | F8: 73 | H8: O6 | I8: 2 | J8: 10 | K8: 10 | L8: 11 | M8: 3 | O8: 0.8429479526 | P8: 1.51329819 | Q8: 0 | R8: 5.782434688 | S8: 1.039770436 | T8: 0.3564584582 | U8: 98.73505011 | V8: 46.159768 | W8: 75.35784031 | X8: 71.97591716 | Y8: 115.2695782 | Z8: 83.54497068 | AA8: 64.91482318 | AB8: 48.79646759 | AC8: 105.8144216 | AD8: 45.30272662 | AE8: 90.51010332 | AF8: 66.65605357 | AG8: 59.26590851 | AH8: 35.09859834 | AI8: 75.82761989 | AK8: 0.3564584582 | AM8: O6 | AN8: 1000 | AO8: =SUM(Z38:Z52) -> 725.8453359 | AP8: 274.1546641 | AQ8: 274.1546641 | AT8: A2 | AU8: O | AV8: 2 | AW8: A | AX8: 2 | AY8: 1089.327582 | AZ8: 1091.530555 | BA8: 1093.733527 | BB8: 1095.936499 | BC8: 1098.139471 | BD8: 1100.342443 | BE8: 1102.545415 | BF8: 1104.748387 | BG8: 1106.951359 | BH8: 1109.154332 | BI8: 1111.357304 | BJ8: 1113.560276 | BK8: 1115.763248 | BL8: 1117.96622 | BM8: 1120.169192 | BO8: 1 | BP8: 2 | BQ8: 3 | BR8: 4 | BS8: 5 | BT8: 6 | BU8: 7 | BV8: 8 | BW8: 9 | BX8: 10 | BY8: 11 | BZ8: 12 | CA8: 13 | CB8: 14 | CC8: 15 | CE8: 2.202972132 | CF8: 2.202972132 | CG8: 2.202972132 | CH8: 2.202972132 | CI8: 2.202972132 | CJ8: 2.202972132 | CK8: 2.202972132 | CL8: 2.202972132 | CM8: 2.202972132 | CN8: 2.202972132 | CO8: 2.202972132 | CP8: 2.202972132 | CQ8: 2.202972132 | CR8: 2.202972132 | CS8: 1.389821864e-13
A9: O7 | B9: 12 | C9: 19 | D9: 11 | E9: 69 | F9: 55 | H9: O7 | I9: 15 | J9: 12 | K9: 13 | L9: 5 | M9: 5 | O9: 0 | P9: 0 | Q9: 0 | R9: 0 | S9: 0 | T9: 0 | U9: =$I$3*$O9+$J$3*$P9+$K$3*$Q9+$L$3*$R9+$M$3*$S9 -> 0 | V9: 0 | W9: 0 | X9: 0 | Y9: 0 | Z9: 0 | AA9: 0 | AB9: 0 | AC9: 0 | AD9: 0 | AE9: 0 | AF9: 0 | AG9: 0 | AH9: 0 | AI9: 0 | AK9: 0 | AM9: O7 | AN9: 1000 | AO9: =SUM(AA38:AA52) -> 1036.13004 | AP9: -36.13004037 | AQ9: 36.13004037 | AT9: A3 | AU9: O | AV9: 2 | AW9: A | AX9: 3 | AY9: 1097.513146 | AZ9: 1098.456245 | BA9: 1099.399344 | BB9: 1100.342443 | BC9: 1101.285542 | BD9: 1102.228641 | BE9: 1103.17174 | BF9: 1104.114839 | BG9: 1105.057938 | BH9: 1106.001037 | BI9: 1106.944137 | BJ9: 1107.887236 | BK9: 1108.830335 | BL9: 1109.773434 | BM9: 1110.716533 | BO9: 1 | BP9: 2 | BQ9: =RANK(BA9,$AY9:$BM9, 1) -> 3 | BR9: 4 | BS9: 5 | BT9: 6 | BU9: 7 | BV9: 8 | BW9: 9 | BX9: 10 | BY9: 11 | BZ9: 12 | CA9: 13 | CB9: 14 | CC9: 15 | CE9: 0.9430990575 | CF9: 0.9430990575 | CG9: 0.9430990575 | CH9: 0.9430990575 | CI9: 0.9430990575 | CJ9: 0.9430990575 | CK9: 0.9430990575 | CL9: 0.9430990575 | CM9: 0.9430990575 | CN9: 0.9430990575 | CO9: 0.9430990575 | CP9: 0.9430990575 | CQ9: 0.9430990575 | CR9: 0.9430990575 | CS9: 1.751525172e-13
A10: O8 | B10: 39 | C10: 97 | D10: 57 | E10: 56 | F10: 67 | H10: O8 | I10: 10 | J10: 1 | K10: 8 | L10: 6 | M10: 4 | O10: 1.834430901 | P10: 2.316016838 | Q10: 3.443516727 | R10: 0 | S10: 5.283517765 | T10: 2.006980046e-07 | U10: =$I$3*$O10+$J$3*$P10+$K$3*$Q10+$L$3*$R10+$M$3*$S10 -> 100.8370154 | V10: 125.4870184 | W10: 44.66720212 | X10: 66.17423586 | Y10: 109.5227883 | Z10: 77.11475074 | AA10: 126.4919718 | AB10: 69.34253072 | AC10: 127.166511 | AD10: 106.4856551 | AE10: 88.40568553 | AF10: 167.6746501 | AG10: 72.57741278 | AH10: 98.604554 | AI10: 147.2307997 | AK10: =T10 -> 2.006980046e-07 | AM10: O8 | AN10: 1000 | AO10: =SUM(AB38:AB52) -> 821.7673622 | AP10: 178.2326378 | AQ10: 178.2326378 | AT10: A4 | AU10: O | AV10: 2 | AW10: A | AX10: 4 | AY10: 1053.671419 | AZ10: 1100.342443 | BA10: 1147.013467 | BB10: 1193.684491 | BC10: 1240.355515 | BD10: 1287.026539 | BE10: 1333.697563 | BF10: 1380.368587 | BG10: 1427.039611 | BH10: 1473.710635 | BI10: 1520.381659 | BJ10: 1567.052683 | BK10: 1613.723707 | BL10: 1660.394731 | BM10: 1707.065755 | BO10: 1 | BP10: 2 | BQ10: =RANK(BA10,$AY10:$BM10, 1) -> 3 | BR10: 4 | BS10: 5 | BT10: 6 | BU10: 7 | BV10: 8 | BW10: 9 | BX10: 10 | BY10: 11 | BZ10: 12 | CA10: 13 | CB10: 14 | CC10: 15 | CE10: 46.67102402 | CF10: 46.67102402 | CG10: 46.67102402 | CH10: 46.67102402 | CI10: 46.67102402 | CJ10: 46.67102402 | CK10: 46.67102402 | CL10: 46.67102402 | CM10: 46.67102402 | CN10: 46.67102402 | CO10: 46.67102402 | CP10: 46.67102402 | CQ10: 46.67102402 | CR10: 46.67102402 | CS10: 2.084838308e-13
A11: O9 | B11: 90 | C11: 37 | D11: 1 | E11: 6 | F11: 29 | H11: O9 | I11: 1 | J11: 9 | K11: 15 | L11: 14 | M11: 10 | O11: 13.66191486 | P11: 0.2652852315 | Q11: 0.2863979928 | R11: 2.96457091 | S11: 2.807775537 | T11: 1.844079676 | U11: 146.6810286 | V11: 225.5801959 | W11: 130.8030793 | X11: 226.3430262 | Y11: 116.2200076 | Z11: 73.87426859 | AA11: 240.6970518 | AB11: =$I$10*$O11+$J$10*$P11+$K$10*$Q11+$L$10*$R11+$M$10*$S11 -> 168.1941454 | AC11: 89.92719995 | AD11: 100.7889504 | AE11: 181.758972 | AF11: 170.4210047 | AG11: 113.9506415 | AH11: 188.551765 | AI11: 212.1814585 | AK11: 1.844079676 | AM11: O9 | AN11: 1000 | AO11: =SUM(AC38:AC52) -> 1066.114564 | AP11: -66.11456381 | AQ11: 66.11456381 | AT11: A5 | AU11: O | AV11: 2 | AW11: A | AX11: 5 | AY11: 659.4966709 | AZ11: 693.4078842 | BA11: 727.3190974 | BB11: 761.2303107 | BC11: 795.1415239 | BD11: 829.0527372 | BE11: 862.9639504 | BF11: 896.8751636 | BG11: 930.7863769 | BH11: 964.6975901 | BI11: 998.6088034 | BJ11: 1032.520017 | BK11: 1066.43123 | BL11: 1100.342443 | BM11: 1134.253656 | BO11: 1 | BP11: 2 | BQ11: =RANK(BA11,$AY11:$BM11, 1) -> 3 | BR11: 4 | BS11: 5 | BT11: 6 | BU11: 7 | BV11: 8 | BW11: 9 | BX11: 10 | BY11: 11 | BZ11: 12 | CA11: 13 | CB11: 14 | CC11: 15 | CE11: 33.91121324 | CF11: 33.91121324 | CG11: 33.91121324 | CH11: 33.91121324 | CI11: 33.91121324 | CJ11: 33.91121324 | CK11: 33.91121324 | CL11: 33.91121324 | CM11: 33.91121324 | CN11: 33.91121324 | CO11: 33.91121324 | CP11: 33.91121324 | CQ11: 33.91121324 | CR11: 33.91121324 | CS11: 1.146393473e-13
A12: O10 | B12: 74 | C12: 47 | D12: 82 | E12: 76 | F12: 24 | H12: O10 | I12: 4 | J12: 8 | K12: 5 | L12: 3 | M12: 12 | O12: 0 | P12: 1.348999428 | Q12: 0 | R12: 1.178906131 | S12: 0 | T12: 0.009218730212 | U12: 30.50496 | V12: 10.45180883 | W12: 21.23205731 | X12: 16.00615289 | Y12: 32.52258567 | Z12: 26.45796172 | AA12: 22.08252379 | AB12: 8.422436213 | AC12: 28.64568069 | AD12: 14.32871382 | AE12: 16.67477913 | AF12: 23.60161652 | AG12: 10.78024848 | AH12: 7.923903271 | AI12: 27.30842821 | AK12: 0.009218730212 | AM12: O10 | AN12: 1000 | AO12: =SUM(AD38:AD52) -> 727.8263435 | AP12: 272.1736565 | AQ12: 272.1736565 | AT12: A1 | AU12: O | AV12: 3 | AW12: A | AX12: 1 | AY12: 558.5064156 | AZ12: 598.1412756 | BA12: 637.7761357 | BB12: 677.4109957 | BC12: 717.0458558 | BD12: 756.6807158 | BE12: 796.3155759 | BF12: 835.9504359 | BG12: 875.585296 | BH12: 915.220156 | BI12: 954.8550161 | BJ12: 994.4898761 | BK12: 1034.124736 | BL12: 1073.759596 | BM12: 1113.394456 | BO12: 1 | BP12: 2 | BQ12: 3 | BR12: 4 | BS12: 5 | BT12: 6 | BU12: 7 | BV12: 8 | BW12: 9 | BX12: 10 | BY12: 11 | BZ12: 12 | CA12: 13 | CB12: 14 | CC12: 15 | CE12: 39.63486005 | CF12: 39.63486005 | CG12: 39.63486005 | CH12: 39.63486005 | CI12: 39.63486005 | CJ12: 39.63486005 | CK12: 39.63486005 | CL12: 39.63486005 | CM12: 39.63486005 | CN12: 39.63486005 | CO12: 39.63486005 | CP12: 39.63486005 | CQ12: 39.63486005 | CR12: 39.63486005 | CS12: 1.238560072e-13
A13: O11 | B13: 43 | C13: 97 | D13: 15 | E13: 28 | F13: 46 | H13: O11 | I13: 9 | J13: 1 | K13: 11 | L13: 13 | M13: 6 | O13: 0 | P13: 0 | Q13: 0 | R13: 0 | S13: 0 | T13: 0 | U13: 0 | V13: 0 | W13: 0 | X13: 0 | Y13: 0 | Z13: 0 | AA13: 0 | AB13: =$I$10*$O13+$J$10*$P13+$K$10*$Q13+$L$10*$R13+$M$10*$S13 -> 0 | AC13: 0 | AD13: 0 | AE13: 0 | AF13: 0 | AG13: 0 | AH13: 0 | AI13: 0 | AK13: 0 | AM13: O11 | AN13: 1000 | AO13: =SUM(AE38:AE52) -> 1179.481394 | AP13: -179.4813939 | AQ13: 179.4813939 | AT13: A2 | AU13: O | AV13: 3 | AW13: A | AX13: 2 | AY13: 783.0977431 | AZ13: 785.3007152 | BA13: 787.5036874 | BB13: 789.7066595 | BC13: 791.9096316 | BD13: 794.1126037 | BE13: 796.3155759 | BF13: 798.518548 | BG13: 800.7215201 | BH13: 802.9244923 | BI13: 805.1274644 | BJ13: 807.3304365 | BK13: 809.5334087 | BL13: 811.7363808 | BM13: 813.9393529 | BO13: 1 | BP13: 2 | BQ13: 3 | BR13: 4 | BS13: 5 | BT13: 6 | BU13: 7 | BV13: 8 | BW13: 9 | BX13: 10 | BY13: 11 | BZ13: 12 | CA13: 13 | CB13: 14 | CC13: 15 | CE13: 2.202972132 | CF13: 2.202972132 | CG13: 2.202972132 | CH13: 2.202972132 | CI13: 2.202972132 | CJ13: 2.202972132 | CK13: 2.202972132 | CL13: 2.202972132 | CM13: 2.202972132 | CN13: 2.202972132 | CO13: 2.202972132 | CP13: 2.202972132 | CQ13: 2.202972132 | CR13: 2.202972132 | CS13: 1.275241071e-13
A14: O12 | B14: 49 | C14: 9 | D14: 13 | E14: 72 | F14: 7 | H14: O12 | I14: 8 | J14: 14 | K14: 12 | L14: 4 | M14: 15 | O14: 0 | P14: 0 | Q14: 0 | R14: 0 | S14: 0 | T14: 0 | U14: 0 | V14: 0 | W14: 0 | X14: 0 | Y14: 0 | Z14: 0 | AA14: 0 | AB14: =$I$10*$O14+$J$10*$P14+$K$10*$Q14+$L$10*$R14+$M$10*$S14 -> 0 | AC14: 0 | AD14: 0 | AE14: 0 | AF14: 0 | AG14: 0 | AH14: 0 | AI14: 0 | AK14: 0 | AM14: O12 | AN14: 1000 | AO14: =SUM(AF38:AF52) -> 1054.589974 | AP14: -54.58997366 | AQ14: 54.58997366 | AT14: A3 | AU14: O | AV14: 3 | AW14: A | AX14: 3 | AY14: 794.4293778 | AZ14: 795.3724768 | BA14: 796.3155759 | BB14: 797.2586749 | BC14: 798.201774 | BD14: 799.1448731 | BE14: 800.0879721 | BF14: 801.0310712 | BG14: 801.9741702 | BH14: 802.9172693 | BI14: 803.8603683 | BJ14: 804.8034674 | BK14: 805.7465665 | BL14: 806.6896655 | BM14: 807.6327646 | BO14: 1 | BP14: 2 | BQ14: 3 | BR14: 4 | BS14: 5 | BT14: 6 | BU14: 7 | BV14: 8 | BW14: =RANK(BG14,$AY14:$BM14, 1) -> 9 | BX14: 10 | BY14: 11 | BZ14: 12 | CA14: 13 | CB14: 14 | CC14: 15 | CE14: 0.9430990575 | CF14: 0.9430990575 | CG14: 0.9430990575 | CH14: 0.9430990575 | CI14: 0.9430990575 | CJ14: 0.9430990575 | CK14: 0.9430990575 | CL14: 0.9430990575 | CM14: 0.9430990575 | CN14: 0.9430990575 | CO14: 0.9430990575 | CP14: 0.9430990575 | CQ14: 0.9430990575 | CR14: 0.9430990575 | CS14: 7.200057552e-14
A15: O13 | B15: 72 | C15: 97 | D15: 60 | E15: 49 | F15: 38 | H15: O13 | I15: 5 | J15: 1 | K15: 7 | L15: 8 | M15: 7 | O15: 0 | P15: 1.652672189 | Q15: 0 | R15: 4.345603843 | S15: 0.8313723264 | T15: 0.3186428659 | U15: 77.60010399 | V15: 30.24645339 | W15: 55.85611608 | X15: 47.38386799 | Y15: 90.84580266 | Z15: 66.82248114 | AA15: 45.71694711 | AB15: =$I$10*$O15+$J$10*$P15+$K$10*$Q15+$L$10*$R15+$M$10*$S15 -> 31.05178455 | AC15: 84.02622676 | AD15: 36.23465696 | AE15: 63.1337561 | AF15: 52.99041091 | AG15: 42.23710922 | AH15: 22.5854327 | AI15: 57.5146845 | AK15: 0.3186428659 | AM15: O13 | AN15: 1000 | AO15: =SUM(AG38:AG52) -> 817.7256506 | AP15: 182.2743494 | AQ15: 182.2743494 | AT15: A4 | AU15: O | AV15: 3 | AW15: A | AX15: 4 | AY15: 376.2763597 | AZ15: 422.9473837 | BA15: 469.6184077 | BB15: 516.2894318 | BC15: 562.9604558 | BD15: 609.6314798 | BE15: 656.3025038 | BF15: 702.9735278 | BG15: 749.6445519 | BH15: 796.3155759 | BI15: 842.9865999 | BJ15: 889.6576239 | BK15: 936.3286479 | BL15: 982.999672 | BM15: 1029.670696 | BO15: 1 | BP15: 2 | BQ15: 3 | BR15: 4 | BS15: 5 | BT15: 6 | BU15: 7 | BV15: 8 | BW15: =RANK(BG15,$AY15:$BM15, 1) -> 9 | BX15: 10 | BY15: 11 | BZ15: 12 | CA15: 13 | CB15: 14 | CC15: 15 | CE15: 46.67102402 | CF15: 46.67102402 | CG15: 46.67102402 | CH15: 46.67102402 | CI15: 46.67102402 | CJ15: 46.67102402 | CK15: 46.67102402 | CL15: 46.67102402 | CM15: 46.67102402 | CN15: 46.67102402 | CO15: 46.67102402 | CP15: 46.67102402 | CQ15: 46.67102402 | CR15: 46.67102402 | CS15: 9.327012028e-14
A16: O14 | B16: 38 | C16: 80 | D16: 96 | E16: 89 | F16: 24 | H16: O14 | I16: 11 | J16: 5 | K16: 1 | L16: 1 | M16: 12 | O16: 0 | P16: 0 | Q16: 0 | R16: 0 | S16: 0 | T16: 0 | U16: 0 | V16: 0 | W16: 0 | X16: 0 | Y16: 0 | Z16: 0 | AA16: 0 | AB16: 0 | AC16: 0 | AD16: 0 | AE16: 0 | AF16: 0 | AG16: 0 | AH16: 0 | AI16: 0 | AK16: 0 | AM16: O14 | AN16: 1000 | AO16: =SUM(AH38:AH52) -> 901.5470032 | AP16: 98.45299681 | AQ16: 98.45299681 | AT16: A5 | AU16: O | AV16: 3 | AW16: A | AX16: 5 | AY16: 796.3155759 | AZ16: 830.2267891 | BA16: 864.1380024 | BB16: 898.0492156 | BC16: 931.9604289 | BD16: 965.8716421 | BE16: 999.7828553 | BF16: 1033.694069 | BG16: 1067.605282 | BH16: 1101.516495 | BI16: 1135.427708 | BJ16: 1169.338922 | BK16: 1203.250135 | BL16: 1237.161348 | BM16: 1271.072561 | BO16: 1 | BP16: 2 | BQ16: 3 | BR16: 4 | BS16: 5 | BT16: 6 | BU16: 7 | BV16: 8 | BW16: =RANK(BG16,$AY16:$BM16, 1) -> 9 | BX16: 10 | BY16: 11 | BZ16: 12 | CA16: 13 | CB16: 14 | CC16: 15 | CE16: 33.91121324 | CF16: 33.91121324 | CG16: 33.91121324 | CH16: 33.91121324 | CI16: 33.91121324 | CJ16: 33.91121324 | CK16: 33.91121324 | CL16: 33.91121324 | CM16: 33.91121324 | CN16: 33.91121324 | CO16: 33.91121324 | CP16: 33.91121324 | CQ16: 33.91121324 | CR16: 33.91121324 | CS16: 1.6513873e-13
A17: O15 | B17: 34 | C17: 7 | D17: 4 | E17: 56 | F17: 34 | H17: O15 | I17: 12 | J17: 15 | K17: 14 | L17: 6 | M17: 8 | O17: 0 | P17: 0 | Q17: 0 | R17: 0 | S17: 0 | T17: 0 | U17: 0 | V17: 0 | W17: 0 | X17: 0 | Y17: 0 | Z17: 0 | AA17: 0 | AB17: 0 | AC17: 0 | AD17: 0 | AE17: 0 | AF17: 0 | AG17: 0 | AH17: 0 | AI17: 0 | AK17: 0 | AM17: O15 | AN17: 1000 | AO17: =SUM(AI38:AI52) -> 1073.182139 | AP17: -73.18213943 | AQ17: 73.18213943 | AT17: A1 | AU17: O | AV17: 4 | AW17: A | AX17: 1 | AY17: 541.9669856 | AZ17: 581.6018456 | BA17: 621.2367057 | BB17: 660.8715657 | BC17: 700.5064258 | BD17: 740.1412858 | BE17: 779.7761459 | BF17: 819.4110059 | BG17: 859.045866 | BH17: 898.680726 | BI17: 938.3155861 | BJ17: 977.9504461 | BK17: 1017.585306 | BL17: 1057.220166 | BM17: 1096.855026 | BO17: 1 | BP17: 2 | BQ17: 3 | BR17: 4 | BS17: 5 | BT17: 6 | BU17: 7 | BV17: 8 | BW17: 9 | BX17: 10 | BY17: 11 | BZ17: 12 | CA17: 13 | CB17: 14 | CC17: 15 | CE17: 39.63486005 | CF17: 39.63486005 | CG17: 39.63486005 | CH17: 39.63486005 | CI17: 39.63486005 | CJ17: 39.63486005 | CK17: 39.63486005 | CL17: 39.63486005 | CM17: 39.63486005 | CN17: 39.63486005 | CO17: 39.63486005 | CP17: 39.63486005 | CQ17: 39.63486005 | CR17: 39.63486005 | CS17: 7.394688005e-14
AN18: szum | AO18: szum | AP18: hiba | AT18: A2 | AU18: O | AV18: 4 | AW18: A | AX18: 2 | AY18: 1050.61125 | AZ18: 1052.814222 | BA18: 1055.017194 | BB18: 1057.220166 | BC18: 1059.423138 | BD18: 1061.62611 | BE18: 1063.829083 | BF18: 1066.032055 | BG18: 1068.235027 | BH18: 1070.437999 | BI18: 1072.640971 | BJ18: 1074.843943 | BK18: 1077.046915 | BL18: 1079.249888 | BM18: 1081.45286 | BO18: 1 | BP18: 2 | BQ18: 3 | BR18: 4 | BS18: 5 | BT18: 6 | BU18: 7 | BV18: 8 | BW18: 9 | BX18: 10 | BY18: 11 | BZ18: 12 | CA18: 13 | CB18: 14 | CC18: 15 | CE18: 2.202972132 | CF18: 2.202972132 | CG18: 2.202972132 | CH18: 2.202972132 | CI18: 2.202972132 | CJ18: 2.202972132 | CK18: 2.202972132 | CL18: 2.202972132 | CM18: 2.202972132 | CN18: 2.202972132 | CO18: 2.202972132 | CP18: 2.202972132 | CQ18: 2.202972132 | CR18: 2.202972132 | CS18: 1.651354228e-13
U19: Activation | AK19: Szórás | AN19: =SUM(AN3:AN17) -> 15000 | AO19: =SUM(AO3:AO17) -> 14635.80683 | AP19: =SUMSQ(AP3:AP17) -> 364193.1424 | AQ19: =SUM(AQ3:AQ17)/15 -> 136.9168191 | AS19: SOLVER FUT, de nem ad negatív paramétereket! | AT19: A3 | AU19: O | AV19: 4 | AW19: A | AX19: 3 | AY19: 1052.504671 | AZ19: 1053.44777 | BA19: 1054.390869 | BB19: 1055.333968 | BC19: 1056.277067 | BD19: 1057.220166 | BE19: 1058.163265 | BF19: 1059.106364 | BG19: 1060.049463 | BH19: 1060.992562 | BI19: 1061.935662 | BJ19: 1062.878761 | BK19: 1063.82186 | BL19: 1064.764959 | BM19: 1065.708058 | BO19: 1 | BP19: 2 | BQ19: 3 | BR19: 4 | BS19: 5 | BT19: 6 | BU19: 7 | BV19: 8 | BW19: 9 | BX19: 10 | BY19: 11 | BZ19: 12 | CA19: 13 | CB19: 14 | CC19: 15 | CE19: 0.9430990575 | CF19: 0.9430990575 | CG19: 0.9430990575 | CH19: 0.9430990575 | CI19: 0.9430990575 | CJ19: 0.9430990575 | CK19: 0.9430990575 | CL19: 0.9430990575 | CM19: 0.9430990575 | CN19: 0.9430990575 | CO19: 0.9430990575 | CP19: 0.9430990575 | CQ19: 0.9430990575 | CR19: 0.9430990575 | CS19: 1.215363518e-13
O20: activation weight | U20: =IF(U3<0, $O$21*(EXP(U3)-1), U3) -> 139.0826769 | V20: =IF(V3<0, $O$21*(EXP(V3)-1), V3) -> 214.5480427 | W20: 121.1174657 | X20: 210.2115512 | Y20: 110.0784806 | Z20: 69.93840919 | AA20: 227.5780755 | AB20: 157.1373632 | AC20: 86.52791408 | AD20: 98.30784129 | AE20: 169.0486262 | AF20: 165.5229204 | AG20: 106.9922779 | AH20: 179.2803154 | AI20: 202.3448259 | AK20: =STDEV(U20:AI20) -> 50.40249662 | AP20: hiba2 | AT20: A4 | AU20: O | AV20: 4 | AW20: A | AX20: 4 | AY20: 683.8519741 | AZ20: 730.5229981 | BA20: 777.1940221 | BB20: 823.8650461 | BC20: 870.5360701 | BD20: 917.2070942 | BE20: 963.8781182 | BF20: 1010.549142 | BG20: 1057.220166 | BH20: 1103.89119 | BI20: 1150.562214 | BJ20: 1197.233238 | BK20: 1243.904262 | BL20: 1290.575286 | BM20: 1337.24631 | BO20: =RANK(AY20,$AY20:$BM20, 1) -> 1 | BP20: =RANK(AZ20,$AY20:$BM20, 1) -> 2 | BQ20: =RANK(BA20,$AY20:$BM20, 1) -> 3 | BR20: =RANK(BB20,$AY20:$BM20, 1) -> 4 | BS20: =RANK(BC20,$AY20:$BM20, 1) -> 5 | BT20: =RANK(BD20,$AY20:$BM20, 1) -> 6 | BU20: =RANK(BE20,$AY20:$BM20, 1) -> 7 | BV20: =RANK(BF20,$AY20:$BM20, 1) -> 8 | BW20: =RANK(BG20,$AY20:$BM20, 1) -> 9 | BX20: =RANK(BH20,$AY20:$BM20, 1) -> 10 | BY20: =RANK(BI20,$AY20:$BM20, 1) -> 11 | BZ20: =RANK(BJ20,$AY20:$BM20, 1) -> 12 | CA20: =RANK(BK20,$AY20:$BM20, 1) -> 13 | CB20: =RANK(BL20,$AY20:$BM20, 1) -> 14 | CC20: =RANK(BM20,$AY20:$BM20, 1) -> 15 | CE20: 46.67102402 | CF20: 46.67102402 | CG20: 46.67102402 | CH20: 46.67102402 | CI20: 46.67102402 | CJ20: 46.67102402 | CK20: 46.67102402 | CL20: 46.67102402 | CM20: 46.67102402 | CN20: 46.67102402 | CO20: 46.67102402 | CP20: 46.67102402 | CQ20: 46.67102402 | CR20: 46.67102402 | CS20: 2.160042725e-13
A21: 6 | B21: 13 | C21: 2 | D21: 11 | E21: 10 | O21: 0.01 | U21: =IF(U4<0, $O$21*(EXP(U4)-1), U4) -> 0 | V21: =IF(V4<0, $O$21*(EXP(V4)-1), V4) -> 0 | W21: =IF(W4<0, $O$21*(EXP(W4)-1), W4) -> 0 | X21: 0 | Y21: 0 | Z21: 0 | AA21: 0 | AB21: 0 | AC21: 0 | AD21: 0 | AE21: 0 | AF21: 0 | AG21: 0 | AH21: 0 | AI21: 0 | AK21: =STDEV(U21:AI21) -> 0 | AP21: =ABS(AN19-AO19) -> 364.1931708 | AT21: A5 | AU21: O | AV21: 4 | AW21: A | AX21: 5 | AY21: 1023.308953 | AZ21: 1057.220166 | BA21: 1091.131379 | BB21: 1125.042593 | BC21: 1158.953806 | BD21: 1192.865019 | BE21: 1226.776232 | BF21: 1260.687446 | BG21: 1294.598659 | BH21: 1328.509872 | BI21: 1362.421085 | BJ21: 1396.332299 | BK21: 1430.243512 | BL21: 1464.154725 | BM21: 1498.065938 | BO21: 1 | BP21: 2 | BQ21: 3 | BR21: 4 | BS21: 5 | BT21: 6 | BU21: 7 | BV21: 8 | BW21: 9 | BX21: 10 | BY21: 11 | BZ21: 12 | CA21: 13 | CB21: 14 | CC21: 15 | CE21: 33.91121324 | CF21: 33.91121324 | CG21: 33.91121324 | CH21: 33.91121324 | CI21: 33.91121324 | CJ21: 33.91121324 | CK21: 33.91121324 | CL21: 33.91121324 | CM21: 33.91121324 | CN21: 33.91121324 | CO21: 33.91121324 | CP21: 33.91121324 | CQ21: 33.91121324 | CR21: 33.91121324 | CS21: 1.793870104e-13
A22: 13 | B22: 6 | C22: 4 | D22: 2 | E22: 14 | O22: exp | U22: =IF(U5<0, $O$21*(EXP(U5)-1), U5) -> 120.2894282 | V22: 80.37072431 | W22: 71.39141294 | X22: 70.12772413 | Y22: 141.5193631 | Z22: 86.93575317 | AA22: 58.27758086 | AB22: 59.27519279 | AC22: 139.3634906 | AD22: 76.70340632 | AE22: 114.5761356 | AF22: 97.96636085 | AG22: 85.98430196 | AH22: 64.17367272 | AI22: 78.71920386 | AK22: 27.32797609 | AP22: hiba3 | AT22: A1 | AU22: O | AV22: 5 | AW22: A | AX22: 1 | AY22: 1077.621725 | AZ22: 1117.256585 | BA22: 1156.891445 | BB22: 1196.526305 | BC22: 1236.161165 | BD22: 1275.796025 | BE22: 1315.430885 | BF22: 1355.065745 | BG22: 1394.700605 | BH22: 1434.335465 | BI22: 1473.970325 | BJ22: 1513.605185 | BK22: 1553.240045 | BL22: 1592.874905 | BM22: 1632.509765 | BO22: 1 | BP22: 2 | BQ22: 3 | BR22: 4 | BS22: 5 | BT22: 6 | BU22: 7 | BV22: 8 | BW22: 9 | BX22: 10 | BY22: 11 | BZ22: 12 | CA22: 13 | CB22: 14 | CC22: 15 | CE22: 39.63486005 | CF22: 39.63486005 | CG22: 39.63486005 | CH22: 39.63486005 | CI22: 39.63486005 | CJ22: 39.63486005 | CK22: 39.63486005 | CL22: 39.63486005 | CM22: 39.63486005 | CN22: 39.63486005 | CO22: 39.63486005 | CP22: 39.63486005 | CQ22: 39.63486005 | CR22: 39.63486005 | CS22: 1.316386169e-13
A23: 7 | B23: 7 | C23: 3 | D23: 10 | E23: 1 | I23: w1 | J23: w2 | K23: w3 | L23: w4 | M23: w5 | N23: w6 | U23: =IF(U6<0, $O$21*(EXP(U6)-1), U6) -> 37.03938169 | V23: 55.80191882 | W23: 12.91310191 | X23: 25.82620381 | Y23: =IF(Y6<0, $O$21*(EXP(Y6)-1), Y6) -> 57.01615027 | Z23: 42.02829277 | AA23: 57.98753543 | AB23: 38.49645943 | AC23: 79.79621332 | AD23: 52.99862435 | AE23: 54.45570209 | AF23: 85.15995597 | AG23: 44.34589465 | AH23: 39.84267616 | AI23: 70.41494476 | AK23: 19.22426969 | AP23: =AP19*AP21 -> 132636655.3 | AT23: A2 | AU23: O | AV23: 5 | AW23: A | AX23: 2 | AY23: 1134.861723 | AZ23: 1137.064695 | BA23: 1139.267668 | BB23: 1141.47064 | BC23: 1143.673612 | BD23: 1145.876584 | BE23: 1148.079556 | BF23: 1150.282528 | BG23: 1152.4855 | BH23: 1154.688472 | BI23: 1156.891445 | BJ23: 1159.094417 | BK23: 1161.297389 | BL23: 1163.500361 | BM23: 1165.703333 | BO23: 1 | BP23: 2 | BQ23: 3 | BR23: 4 | BS23: 5 | BT23: 6 | BU23: 7 | BV23: 8 | BW23: 9 | BX23: 10 | BY23: 11 | BZ23: 12 | CA23: 13 | CB23: 14 | CC23: 15 | CE23: 2.202972132 | CF23: 2.202972132 | CG23: 2.202972132 | CH23: 2.202972132 | CI23: 2.202972132 | CJ23: 2.202972132 | CK23: 2.202972132 | CL23: 2.202972132 | CM23: 2.202972132 | CN23: 2.202972132 | CO23: 2.202972132 | CP23: 2.202972132 | CQ23: 2.202972132 | CR23: 2.202972132 | CS23: 2.459768895e-13
A24: 14 | B24: 4 | C24: 6 | D24: 9 | E24: 2 | I24: 7.248607 | J24: 0.7381974 | K24: 3.5302963 | L24: 2.520196 | M24: -8.99366 | N24: 3.44311929 | U24: =IF(U7<0, $O$21*(EXP(U7)-1), U7) -> 0 | V24: 0 | W24: 0 | X24: 0 | Y24: 0 | Z24: 0 | AA24: 0 | AB24: 0 | AC24: 0 | AD24: 0 | AE24: 0 | AF24: 0 | AG24: 0 | AH24: 0 | AI24: 0 | AK24: 0 | AN24: szórás | AO24: szórás | AT24: A3 | AU24: O | AV24: 5 | AW24: A | AX24: 3 | AY24: 1149.346652 | AZ24: 1150.289751 | BA24: 1151.23285 | BB24: 1152.175949 | BC24: 1153.119048 | BD24: 1154.062147 | BE24: 1155.005246 | BF24: 1155.948346 | BG24: 1156.891445 | BH24: 1157.834544 | BI24: 1158.777643 | BJ24: 1159.720742 | BK24: 1160.663841 | BL24: 1161.60694 | BM24: 1162.550039 | BO24: 1 | BP24: 2 | BQ24: 3 | BR24: 4 | BS24: 5 | BT24: 6 | BU24: 7 | BV24: 8 | BW24: 9 | BX24: 10 | BY24: 11 | BZ24: 12 | CA24: 13 | CB24: 14 | CC24: 15 | CE24: 0.9430990575 | CF24: 0.9430990575 | CG24: 0.9430990575 | CH24: 0.9430990575 | CI24: 0.9430990575 | CJ24: 0.9430990575 | CK24: 0.9430990575 | CL24: 0.9430990575 | CM24: 0.9430990575 | CN24: 0.9430990575 | CO24: 0.9430990575 | CP24: 0.9430990575 | CQ24: 0.9430990575 | CR24: 0.9430990575 | CS24: 1.751525172e-13
A25: 3 | B25: 11 | C25: 9 | D25: 15 | E25: 9 | I25: -0.9825616 | J25: -0.6593509 | K25: -0.8847452 | L25: -1.1716441 | M25: -0.35265994 | N25: -860.489868 | U25: 98.73505011 | V25: 46.159768 | W25: 75.35784031 | X25: 71.97591716 | Y25: 115.2695782 | Z25: 83.54497068 | AA25: 64.91482318 | AB25: 48.79646759 | AC25: 105.8144216 | AD25: 45.30272662 | AE25: 90.51010332 | AF25: 66.65605357 | AG25: 59.26590851 | AH25: 35.09859834 | AI25: 75.82761989 | AK25: 23.53275757 | AN25: =STDEV(AN3:AN17) -> 0 | AO25: =STDEV(AO3:AO17) -> 159.3178983 | AT25: A4 | AU25: O | AV25: 5 | AW25: A | AX25: 4 | AY25: 503.4971083 | AZ25: 550.1681323 | BA25: 596.8391564 | BB25: 643.5101804 | BC25: 690.1812044 | BD25: 736.8522284 | BE25: 783.5232524 | BF25: 830.1942765 | BG25: 876.8653005 | BH25: 923.5363245 | BI25: 970.2073485 | BJ25: 1016.878373 | BK25: 1063.549397 | BL25: 1110.220421 | BM25: 1156.891445 | BO25: 1 | BP25: 2 | BQ25: 3 | BR25: 4 | BS25: 5 | BT25: 6 | BU25: 7 | BV25: 8 | BW25: 9 | BX25: 10 | BY25: 11 | BZ25: 12 | CA25: 13 | CB25: 14 | CC25: 15 | CE25: 46.67102402 | CF25: 46.67102402 | CG25: 46.67102402 | CH25: 46.67102402 | CI25: 46.67102402 | CJ25: 46.67102402 | CK25: 46.67102402 | CL25: 46.67102402 | CM25: 46.67102402 | CN25: 46.67102402 | CO25: 46.67102402 | CP25: 46.67102402 | CQ25: 46.67102402 | CR25: 46.67102402 | CS25: 1.057583756e-13
A26: 2 | B26: 10 | C26: 10 | D26: 11 | E26: 3 | I26: -0.49893862 | J26: -5.261792 | K26: -13.521281 | L26: 9.803955 | M26: 5.1690874 | N26: 7.00564194 | U26: 0 | V26: 0 | W26: 0 | X26: 0 | Y26: 0 | Z26: 0 | AA26: 0 | AB26: 0 | AC26: 0 | AD26: 0 | AE26: 0 | AF26: 0 | AG26: 0 | AH26: 0 | AI26: 0 | AK26: 0 | AT26: A5 | AU26: O | AV26: 5 | AW26: A | AX26: 5 | AY26: 885.6017387 | AZ26: 919.5129519 | BA26: 953.4241651 | BB26: 987.3353784 | BC26: 1021.246592 | BD26: 1055.157805 | BE26: 1089.069018 | BF26: 1122.980231 | BG26: 1156.891445 | BH26: 1190.802658 | BI26: 1224.713871 | BJ26: 1258.625084 | BK26: 1292.536298 | BL26: 1326.447511 | BM26: 1360.358724 | BO26: 1 | BP26: 2 | BQ26: 3 | BR26: 4 | BS26: 5 | BT26: 6 | BU26: 7 | BV26: 8 | BW26: 9 | BX26: 10 | BY26: 11 | BZ26: 12 | CA26: 13 | CB26: 14 | CC26: 15 | CE26: 33.91121324 | CF26: 33.91121324 | CG26: 33.91121324 | CH26: 33.91121324 | CI26: 33.91121324 | CJ26: 33.91121324 | CK26: 33.91121324 | CL26: 33.91121324 | CM26: 33.91121324 | CN26: 33.91121324 | CO26: 33.91121324 | CP26: 33.91121324 | CQ26: 33.91121324 | CR26: 33.91121324 | CS26: 2.546388977e-13
